Workbook

Sheet Home
A1: User Status: | B1: Activated | N1: Version: | O1: 10.0Sampel | P1: Windows | X1: TRUE | Y1: =LEFT(P41,LEN(P41)-3) -> SAMPEL | Z1: =RIGHT(P41,3) -> DM1 | AA1: =VLOOKUP(Z1,$Z$2:$AA$1001,2,FALSE) -> 873 | AB1: DeActivated | AC1: - | AD1: - | AE1: - | AF1: - | AG1: - | AH1: - | AI1: - | AJ1: - | AK1: - | AL1: - | AM1: - | AN1: - | AO1: - | AP1: - | AQ1: 0 | AR1: 0 | AS1: 0 | AT1: 0 | AU1: AA0
H2: WELCOME TO PowerExec-xL | N2: Strictly for Demo Use Only | X2: TRUE | Z2: AA0 | AA2: 2
H3: YOUR PRACTICAL BUSINESS PERFORMANCE EXECUTION TOOL | N3: Tarikh Hari Ini: | O3: ='Wk Input'!A2 -> 2020-12-31 | X3: FALSE | Z3: AA1 | AA3: 3 | FTP3: 0
N4: Minggu Ini: | O4: ='Wk Input'!J2 -> 53 | Z4: AA2 | AA4: 4
Z5: AA3 | AA5: 5
F6: Nama: | H6: ADAM NAUFAL HASMADI | Z6: AA4 | AA6: 6
Z7: AA5 | AA7: 7
F8: No Staf: | H8: 1234HM | Z8: AA6 | AA8: 8
Z9: AA7 | AA9: 9
F10: Jawatan: | H10: PEN. KETUA PEMASARAN DAN PERKHIDMATAN | Z10: AA8 | AA10: 10
Z11: AA9 | AA11: 11
F12: Bahagian: | H12: PEMASARAN DAN PERKHIDMATAN | Z12: AB0 | AA12: 12
Z13: AB1 | AA13: 13
F14: Gred: | H14: 15 | Z14: AB2 | AA14: 14
Z15: AB3 | AA15: 15
F16: Organisasi: | H16: SAMPEL CORPORATION LTD | Z16: AB4 | AA16: 16
Z17: AB5 | AA17: 17
F18: Emel: | H18: adam.naufal@sampel.com | Z18: AB6 | AA18: 18
Z19: AB7 | AA19: 19
F20: Tel Bimbit: | H20: 012-345 6789 | Z20: AB8 | AA20: 20
Z21: AB9 | AA21: 21
Z22: AC0 | AA22: 22
F23: Ketua: | H23: RASHIDI ZAMAN | Z23: AC1 | AA23: 23
Z24: AC2 | AA24: 24
F25: Jawatan Ketua: | H25: PENGURUS KOMUNIKASI KORPORAT | Z25: AC3 | AA25: 25
Z26: AC4 | AA26: 26
C27: 2020 | Z27: AC5 | AA27: 27
H28: SKOR PRESTASI KESELURUHAN | Z28: AC6 | AA28: 28
Z29: AC7 | AA29: 29
F30: Wajaran % | H30: Skor % | J30: Skor diWajar % | L30: Jumlah Skor Keseluruhan % | Z30: AC8 | AA30: 30
C31: KPI | F31: =sample!KG20 -> 70 | H31: =KPIScore!A2 -> 95.11655303 | J31: =IFERROR(F31*H31/100,0) -> 66.58158712 | L31: =SUM(J31:K34) -> 85.23905049 | Z31: AC9 | AA31: 31
C32: Kompetensi Insaniah | F32: =sample!KH20 -> 15 | H32: =Competencies!M26 -> 65.71428571 | J32: =IFERROR(F32*H32/100,0) -> 9.857142857 | Z32: AD0 | AA32: 32
C33: Kompetensi Teknikal | F33: =sample!KI20 -> 10 | H33: =Competencies!M55 -> 60 | J33: =IFERROR(F33*H33/100,0) -> 6 | Z33: AD1 | AA33: 33
C34: Nilai Bersama | F34: =sample!KJ20 -> 5 | H34: =IFERROR(sample!OP5*100,"") -> 56.00641026 | J34: 2.800320513 | Z34: AD2 | AA34: 34
C35: JUMLAH | F35: =SUM(F31:G34) -> 100 | L35: Taraf Prestasi | N35: =IF(L31<15,1,IF(L31<30,2,IF(L31<45,3,IF(L31<60,4,IF(L31<70,5,IF(L31<80,6,IF(L31<85,7,IF(L31<90,8,IF(L31<95,9,10))))))))) -> 8 | Z35: AD3 | AA35: 35
Z36: AD4 | AA36: 36
C37: Taraf Prestasi Keseluruhan | E37: 1 | F37: 2 | G37: 3 | H37: 4 | I37: 5 | J37: 6 | K37: 7 | L37: 8 | M37: 9 | N37: 10 | Z37: AD5 | AA37: 37
C38: Jumlah Skor % | E38: 0% - 29.99% | G38: 30% - 59.99% | I38: 60% - 79.99% | K38: 80% - 89.99% | M38: 90% - 100% | Z38: AD6 | AA38: 38
C39: Deskripsi | E39: Sangat Lemah | G39: Lemah | I39: Sederhana | K39: Baik | M39: Cemerlang | R39: =KPICreate!Q38 -> 0 | Z39: AD7 | AA39: 39
N40: LICENCE CONTROL DO NOT CHANGE Serial No: 600409000000 | R40: =LEN(R39) -> 1 | S40: =R40+6 -> 7 | Z40: AD8 | AA40: 40
H41: Form design by: | O41: User Licence No: | P41: SAMPELDM1 | R41: =CELL("filename",R39) -> C:\Users\Zaharin\Desktop\Leadersense\Software\PowerExec-xL\Release Ver10.0\SAMPEL\[PowerExecSampelDM1.xlsm]Home | Z41: AD9 | AA41: 41
A42: My Local pathname: | O42: User Licence Pass: | R42: =LEN(R41) -> 111 | S42: =R42-S40 -> 104 | Z42: AE0 | AA42: 42
A43: =R43 -> C:\Users\Zaharin\Desktop\Leadersense\Software\PowerExec-xL\Release Ver10.0\SAMPEL\ | O43: Unlocked | R43: =LEFT(CELL("filename",A1),FIND("[",CELL("filename",A1))-1) -> C:\Users\Zaharin\Desktop\Leadersense\Software\PowerExec-xL\Release Ver10.0\SAMPEL\ | Z43: AE1 | AA43: 43
H44: Leadersense Consulting & Systems Sdn Bhd @ 2017 | Z44: AE2 | AA44: 44
Z45: AE3 | AA45: 45
B46: Catatan oleh Ketua: | K46: Tandatangan: | N46: Tarikh: | Z46: AE4 | AA46: 46
Z47: AE5 | AA47: 47
Z48: AE6 | AA48: 48
Z49: AE7 | AA49: 49
Z50: AE8 | AA50: 50
B51: Catatan oleh Pegawai Penilai Kedua: | Z51: AE9 | AA51: 51
Z52: AF0 | AA52: 52
Z53: AF1 | AA53: 53
Z54: AF2 | AA54: 54
Z55: AF3 | AA55: 55
Z56: AF4 | AA56: 56
Z57: AF5 | AA57: 57
Z58: AF6 | AA58: 58
Z59: AF7 | AA59: 59
Z60: AF8 | AA60: 60
Z61: AF9 | AA61: 61
Z62: AG0 | AA62: 62
Z63: AG1 | AA63: 63
Z64: AG2 | AA64: 64
Z65: AG3 | AA65: 65
Z66: AG4 | AA66: 66
Z67: AG5 | AA67: 67
Z68: AG6 | AA68: 68
Z69: AG7 | AA69: 69
Z70: AG8 | AA70: 70
Z71: AG9 | AA71: 71
Z72: AH0 | AA72: 72
Z73: AH1 | AA73: 73
Z74: AH2 | AA74: 74
Z75: AH3 | AA75: 75
Z76: AH4 | AA76: 76
Z77: AH5 | AA77: 77
Z78: AH6 | AA78: 78
Z79: AH7 | AA79: 79
Z80: AH8 | AA80: 80
Z81: AH9 | AA81: 81
Z82: AI0 | AA82: 82
Z83: AI1 | AA83: 83
Z84: AI2 | AA84: 84
Z85: AI3 | AA85: 85
Z86: AI4 | AA86: 86
Z87: AI5 | AA87: 87
Z88: AI6 | AA88: 88
Z89: AI7 | AA89: 89
Z90: AI8 | AA90: 90
Z91: AI9 | AA91: 91
Z92: AJ0 | AA92: 92
Z93: AJ1 | AA93: 93
Z94: AJ2 | AA94: 94
Z95: AJ3 | AA95: 95
Z96: AJ4 | AA96: 96
Z97: AJ5 | AA97: 97
Z98: AJ6 | AA98: 98
Z99: AJ7 | AA99: 99
Z100: AJ8 | AA100: 100
Z101: AJ9 | AA101: 101
Z102: AK0 | AA102: 102
Z103: AK1 | AA103: 103
Z104: AK2 | AA104: 104
Z105: AK3 | AA105: 105
Z106: AK4 | AA106: 106
Z107: AK5 | AA107: 107
Z108: AK6 | AA108: 108
Z109: AK7 | AA109: 109
Z110: AK8 | AA110: 110
Z111: AK9 | AA111: 111
Z112: AL0 | AA112: 112
Z113: AL1 | AA113: 113
Z114: AL2 | AA114: 114
Z115: AL3 | AA115: 115
Z116: AL4 | AA116: 116
Z117: AL5 | AA117: 117
Z118: AL6 | AA118: 118
Z119: AL7 | AA119: 119
Z120: AL8 | AA120: 120
Z121: AL9 | AA121: 121
Z122: AM0 | AA122: 122
Z123: AM1 | AA123: 123
Z124: AM2 | AA124: 124
Z125: AM3 | AA125: 125
Z126: AM4 | AA126: 126
Z127: AM5 | AA127: 127
Z128: AM6 | AA128: 128
Z129: AM7 | AA129: 129
Z130: AM8 | AA130: 130
Z131: AM9 | AA131: 131
Z132: AN0 | AA132: 132
Z133: AN1 | AA133: 133
Z134: AN2 | AA134: 134
Z135: AN3 | AA135: 135
Z136: AN4 | AA136: 136
Z137: AN5 | AA137: 137
Z138: AN6 | AA138: 138
Z139: AN7 | AA139: 139
Z140: AN8 | AA140: 140
Z141: AN9 | AA141: 141
Z142: AO0 | AA142: 142
Z143: AO1 | AA143: 143
Z144: AO2 | AA144: 144
Z145: AO3 | AA145: 145
Z146: AO4 | AA146: 146
Z147: AO5 | AA147: 147
Z148: AO6 | AA148: 148
Z149: AO7 | AA149: 149
Z150: AO8 | AA150: 150
Z151: AO9 | AA151: 151
Z152: AP0 | AA152: 152
Z153: AP1 | AA153: 153
Z154: AP2 | AA154: 154
Z155: AP3 | AA155: 155
Z156: AP4 | AA156: 156
Z157: AP5 | AA157: 157
Z158: AP6 | AA158: 158
Z159: AP7 | AA159: 159
Z160: AP8 | AA160: 160
Z161: AP9 | AA161: 161
Z162: AQ0 | AA162: 162
Z163: AQ1 | AA163: 163
Z164: AQ2 | AA164: 164
Z165: AQ3 | AA165: 165
Z166: AQ4 | AA166: 166
Z167: AQ5 | AA167: 167
Z168: AQ6 | AA168: 168
Z169: AQ7 | AA169: 169
Z170: AQ8 | AA170: 170
Z171: AQ9 | AA171: 171
Z172: AR0 | AA172: 172
Z173: AR1 | AA173: 173
Z174: AR2 | AA174: 174
Z175: AR3 | AA175: 175
Z176: AR4 | AA176: 176
Z177: AR5 | AA177: 177
Z178: AR6 | AA178: 178
Z179: AR7 | AA179: 179
Z180: AR8 | AA180: 180
Z181: AR9 | AA181: 181
Z182: AS0 | AA182: 182
Z183: AS1 | AA183: 183
Z184: AS2 | AA184: 184
Z185: AS3 | AA185: 185
Z186: AS4 | AA186: 186
Z187: AS5 | AA187: 187
Z188: AS6 | AA188: 188
Z189: AS7 | AA189: 189
Z190: AS8 | AA190: 190
Z191: AS9 | AA191: 191
Z192: AT0 | AA192: 192
Z193: AT1 | AA193: 193
Z194: AT2 | AA194: 194
Z195: AT3 | AA195: 195
Z196: AT4 | AA196: 196
Z197: AT5 | AA197: 197
Z198: AT6 | AA198: 198
Z199: AT7 | AA199: 199
Z200: AT8 | AA200: 200
... 801 more rows

Sheet KPICreate
A1: Terima Cascade Dari? | B1: ID KPI | E1: Metoda Ukuran | F1: SMART Sasaran (Elakkan 0) | G1: Jenis | H1: Wk Mula | I1: Wk Dead Line | J1: Cascade Ke Bawah? | K1: Kontribusi Sendiri | L1: Cascade Ke Bawah
C2: Deskripsi Spesifik KPI | D2: « Wajaran | L2: Cascade 1 | M2: Kontribusi | N2: Cascade 2 | O2: Kontribusi | P2: Cascade 3 | Q2: Kontribusi | R2: Cascade 4 | S2: Kontribusi | T2: Cascade 5 | U2: Kontribusi | V2: Cascade 6 | W2: Kontrib | X2: Cascade 7 | Y2: Kontrib | Z2: Cascade 8 | AA2: Kontrib
D3: % | CA3: =IF(CA4>BI4,TRUE,FALSE) -> FALSE
A4: 2020 | C4: =CONCATENATE(Home!H6,": ",Home!H10) -> ADAM NAUFAL HASMADI: PEN. KETUA PEMASARAN DAN PERKHIDMATAN
A5: Rashidi | B5: DM101 | C5: WK01 Mencapai sasaran pendapatan korporat yang meningkat bagi Sektor Perumahan (RM Juta) | D5: 5⍟ | E5: Number | F5: 38.5 | G5: A | H5: 1 | I5: 52 | J5: Absolute | K5: 18.5 | L5: Raymond | M5: 10 | N5: Linda | O5: 10 | AW5: =IFERROR(VALUE(LEFT(D5,1)),"") -> 5 | AY5: 01
A6: BM301 | D6: =IFERROR($AW5*100/$AW$21,0) -> 22.72727273 | L6: CG801 | N6: DK602 | AW6: =IFERROR(VALUE(LEFT(D7,1)),"") -> 3 | AY6: 02
B7: DM102 | C7: BP03 Mengekalkan pembayaran pulang deposit pelanggan sewaan dalam tempoh yang optimum (Bil Hari) | D7: 3⍟ | E7: MaxLimit | F7: 14 | G7: M | H7: 1 | I7: 52 | J7: No | AW7: =IFERROR(VALUE(LEFT(D9,1)),"") -> 3 | AY7: 03
D8: =IFERROR($AW6*100/$AW$21,0) -> 13.63636364 | AW8: =IFERROR(VALUE(LEFT(D11,1)),"") -> 4 | AY8: 04
B9: DM103 | C9: BP49 Mengekalkan Penghantaran shipment Pelanggan menepati sasaran | D9: 3⍟ | E9: Percentage | F9: 95 | G9: M | H9: 1 | I9: 52 | J9: %Prorated | K9: 80 | L9: Raymond | M9: 20 | AW9: =IFERROR(VALUE(LEFT(D13,1)),"") -> 3 | AY9: 05
D10: =IFERROR($AW7*100/$AW$21,0) -> 13.63636364 | L10: CG802 | AW10: =IFERROR(VALUE(LEFT(D15,1)),"") -> 4 | AY10: 06
A11: Rashidi | B11: DM104 | C11: BP19 Mencapai penyempurnaan survei kajian penyelidikan 5 Klien-Produk | D11: 4⍟ | E11: Percentage | F11: 90 | G11: A | H11: 1 | I11: 44 | J11: %Prorated | K11: 70 | L11: Linda | M11: 30 | AW11: =IFERROR(VALUE(LEFT(D17,1)),"") ->  | AY11: 07
A12: BM303 | D12: =IFERROR($AW8*100/$AW$21,0) -> 18.18181818 | L12: DK604 | AW12: =IFERROR(VALUE(LEFT(D19,1)),"") ->  | AY12: 08
B13: DM105 | C13: OR04 Mengekalkan penyempurnaan kerja-kerja adhoc pemasaran dan perkhidmatan seperti yang diperlukan oleh Jabatan | D13: 3⍟ | E13: Percentage | F13: 95 | G13: M | H13: 1 | I13: 52 | J13: No | AW13: =IFERROR(VALUE(LEFT(D21,1)),"") ->  | AY13: 09
D14: =IFERROR($AW9*100/$AW$21,0) -> 13.63636364 | AW14: =IFERROR(VALUE(LEFT(D23,1)),"") ->  | AY14: 10
B15: DM106 | C15: OR05 Mencapai pensijilan ISO18001:2007 oleh badan pensijilan | D15: 4⍟ | E15: Yes/No | F15: Yes | G15: A | H15: 10 | I15: 45 | J15: No | AW15: =IFERROR(VALUE(LEFT(D25,1)),"") ->  | AY15: 11
D16: =IFERROR($AW10*100/$AW$21,0) -> 18.18181818 | AW16: =IFERROR(VALUE(LEFT(D27,1)),"") ->  | AY16: 12
B17: DM107 | AW17: =IFERROR(VALUE(LEFT(D29,1)),"") ->  | AY17: 13
D18: =IFERROR($AW11*100/$AW$21,0) -> 0 | AW18: =IFERROR(VALUE(LEFT(D31,1)),"") ->  | AY18: 14
B19: DM108 | AW19: =IFERROR(VALUE(LEFT(D33,1)),"") ->  | AY19: 15
D20: =IFERROR($AW12*100/$AW$21,0) -> 0 | AW20: =IFERROR(VALUE(LEFT(D35,1)),"") ->  | AY20: 16 | KL20: TRUE
B21: DM109 | AW21: =IFERROR(IF(SUM(AW5:AW20)=0,1,SUM(AW5:AW20)),1) -> 22
D22: =IFERROR($AW13*100/$AW$21,0) -> 0 | AY22: 0
B23: DM110 | AY23: 1⍟
D24: =IFERROR($AW14*100/$AW$21,0) -> 0 | AY24: 2⍟
B25: DM111 | AY25: 3⍟
D26: =IFERROR($AW15*100/$AW$21,0) -> 0 | AY26: 4⍟
B27: DM112 | AY27: 5⍟
D28: =IFERROR($AW16*100/$AW$21,0) -> 0
B29: DM113
D30: =IFERROR($AW17*100/$AW$21,0) -> 0
B31: DM114
D32: =IFERROR($AW18*100/$AW$21,0) -> 0
B33: DM115
D34: =IFERROR($AW19*100/$AW$21,0) -> 0
B35: DM116
D36: =IFERROR($AW20*100/$AW$21,0) -> 0
A37: =CONCATENATE(Home!A43,Home!P41,"KPICreate.jpg") -> C:\Users\Zaharin\Desktop\Leadersense\Software\PowerExec-xL\Release Ver10.0\SAMPEL\SAMPELDM1KPICreate.jpg | D37: =D6+D8+D10+D12+D14+D16+D18+D20+D22+D24+D26+D28+D30+D32+D34+D36 -> 100 | E37: Empunya: | F37: Tandatangan | K37: Tarikh | M37: Diluluskan: | O37: Tandatangan | T37: Tarikh
D38: Form design by LEADERSENSE CONSULTING & SYSTEMS SDN BHD © 2016
A39: AA001
A40: AA002
A41: AA003
A42: AA004
A43: AA005
A44: AA006
A45: AA007
A46: AA008
A47: AA009
A48: AA010
A49: AA011
A50: AA012
A51: AA013
A52: AA014
A53: AA015
A54: AA016
A55: AA101
A56: AA102
A57: AA103
A58: AA104
A59: AA105
A60: AA106
A61: AA107
A62: AA108
A63: AA109
A64: AA110
A65: AA111
A66: AA112
A67: AA113
A68: AA114
A69: AA115
A70: AA116
A71: AA201
A72: AA202
A73: AA203
A74: AA204
A75: AA205
A76: AA206
A77: AA207
A78: AA208
A79: AA209
A80: AA210
A81: AA211
A82: AA212
A83: AA213
A84: AA214
A85: AA215
A86: AA216
A87: AA301
A88: AA302
A89: AA303
A90: AA304
A91: AA305
A92: AA306
A93: AA307
A94: AA308
A95: AA309
A96: AA310
A97: AA311
A98: AA312
A99: AA313
A100: AA314
A101: AA315
A102: AA316
A103: AA401
A104: AA402
A105: AA403
A106: AA404
A107: AA405
A108: AA406
A109: AA407
A110: AA408
A111: AA409
A112: AA410
A113: AA411
A114: AA412
A115: AA413
A116: AA414
A117: AA415
A118: AA416
A119: AA501
A120: AA502
A121: AA503
A122: AA504
A123: AA505
A124: AA506
A125: AA507
A126: AA508
A127: AA509
A128: AA510
A129: AA511
A130: AA512
A131: AA513
A132: AA514
A133: AA515
A134: AA516
A135: AA601
A136: AA602
A137: AA603
A138: AA604
A139: AA605
A140: AA606
A141: AA607
A142: AA608
A143: AA609
A144: AA610
A145: AA611
A146: AA612
A147: AA613
A148: AA614
A149: AA615
A150: AA616
A151: AA701
A152: AA702
A153: AA703
A154: AA704
A155: AA705
A156: AA706
A157: AA707
A158: AA708
A159: AA709
A160: AA710
A161: AA711
A162: AA712
A163: AA713
A164: AA714
A165: AA715
A166: AA716
A167: AA801
A168: AA802
A169: AA803
A170: AA804
A171: AA805
A172: AA806
A173: AA807
A174: AA808
A175: AA809
A176: AA810
A177: AA811
A178: AA812
A179: AA813
A180: AA814
A181: AA815
A182: AA816
A183: AA901
A184: AA902
A185: AA903
A186: AA904
A187: AA905
A188: AA906
A189: AA907
A190: AA908
A191: AA909
A192: AA910
A193: AA911
A194: AA912
A195: AA913
A196: AA914
A197: AA915
A198: AA916
A199: AB001
A200: AB002
... 15838 more rows

Sheet Wk Input
A1: Tarikh Hari Ini | G1: Jenis | H1: Wk Mula | I1: Wk Dead Line | J1: Minggu Ini | K1: 0 | L1: Wk 29-Dis | M1: Wk 5-Jan | N1: Wk 12-Jan | O1: Wk 19-Jan | P1: Wk 26-Jan | Q1: Wk 2-Feb | R1: Wk 9-Feb | S1: Wk 16-Feb | T1: Wk 23-Feb | U1: Wk 1-Mac | V1: Wk 8-Mac | W1: Wk 15-Mac | X1: Wk 22-Mac | Y1: Wk 29-Mac | Z1: Wk 5-Apr | AA1: Wk 12-Apr | AB1: Wk 19-Apr | AC1: Wk 26-Apr | AD1: Wk 3-Mei | AE1: Wk 10-Mei | AF1: Wk 17-Mei | AG1: Wk 24-Mei | AH1: Wk 31-Mei | AI1: Wk 7-Jun | AJ1: Wk 14-Jun | AK1: Wk 21-Jun | AL1: Wk 28-Jun | AM1: Wk 5-Jul | AN1: Wk 12-Jul | AO1: Wk 19-Jul | AP1: Wk 26-Jul | AQ1: Wk 2-Ogo | AR1: Wk 9-Ogo | AS1: Wk 16-Ogo | AT1: Wk 23-Ogo | AU1: Wk 30-Ogo | AV1: Wk 6-Sep | AW1: Wk 13-Sep | AX1: Wk 20-Sep | AY1: Wk 27-Sep | AZ1: Wk 4-Okt | BA1: Wk 11-Okt | BB1: Wk 18-Okt | BC1: Wk 25-Okt | BD1: Wk 1-Nov | BE1: Wk 8-Nov | BF1: Wk 15-Nov | BG1: Wk 22-Nov | BH1: Wk 29-Nov | BI1: Wk 6-Dis | BJ1: Wk 13-Dis | BK1: Wk 20-Dis | BM1: $L$5
A2: =TODAY() -> 2020-12-31 | C2: Deskripsi Spesifik KPI | D2: % Wajaran | E2: Metoda Ukuran | F2: SMART Sasaran | J2: =IF(OR(LEFT(J1,1)="M",LEFT(J1,1)="T"),WEEKNUM(A2)+((YEAR(A2)-A4)*52)-K1,J1) -> 53 | K2: =IF(J2>52,"BK",HLOOKUP(J2,L2:BK3,2,FALSE)) -> BK | L2: 1 | M2: 2 | N2: 3 | O2: 4 | P2: 5 | Q2: 6 | R2: 7 | S2: 8 | T2: 9 | U2: 10 | V2: 11 | W2: 12 | X2: 13 | Y2: 14 | Z2: 15 | AA2: 16 | AB2: 17 | AC2: 18 | AD2: 19 | AE2: 20 | AF2: 21 | AG2: 22 | AH2: 23 | AI2: 24 | AJ2: 25 | AK2: 26 | AL2: 27 | AM2: 28 | AN2: 29 | AO2: 30 | AP2: 31 | AQ2: 32 | AR2: 33 | AS2: 34 | AT2: 35 | AU2: 36 | AV2: 37 | AW2: 38 | AX2: 39 | AY2: 40 | AZ2: 41 | BA2: 42 | BB2: 43 | BC2: 44 | BD2: 45 | BE2: 46 | BF2: 47 | BG2: 48 | BH2: 49 | BI2: 50 | BJ2: 51 | BK2: 52 | BM2: =RIGHT(LEFT(BM1,3),2) -> L$
K3: =IF(J2>52,"BK",HLOOKUP(J2-1,L2:BK3,2,FALSE)) -> BK | L3: L | M3: M | N3: N | O3: O | P3: P | Q3: Q | R3: R | S3: S | T3: T | U3: U | V3: V | W3: W | X3: X | Y3: Y | Z3: Z | AA3: AA | AB3: AB | AC3: AC | AD3: AD | AE3: AE | AF3: AF | AG3: AG | AH3: AH | AI3: AI | AJ3: AJ | AK3: AK | AL3: AL | AM3: AM | AN3: AN | AO3: AO | AP3: AP | AQ3: AQ | AR3: AR | AS3: AS | AT3: AT | AU3: AU | AV3: AV | AW3: AW | AX3: AX | AY3: AY | AZ3: AZ | BA3: BA | BB3: BB | BC3: BC | BD3: BD | BE3: BE | BF3: BF | BG3: BG | BH3: BH | BI3: BI | BJ3: BJ | BK3: BK | BM3: =IF(RIGHT(BM2,1)="$",LEFT(BM2,1),BM2) -> L
A4: =KPICreate!A4 -> 2020 | B4: ID KPI | C4: =CONCATENATE(Home!H6,": ",Home!H10) -> ADAM NAUFAL HASMADI: PEN. KETUA PEMASARAN DAN PERKHIDMATAN | I4: Minggu Pilihan >> | K4: =IF(A21=0,"K",HLOOKUP(A21,L2:BK3,2,FALSE)) -> BK | L4: 1 | M4: 2 | N4: 3 | O4: 4 | P4: 5 | Q4: 6 | R4: 7 | S4: 8 | T4: 9 | U4: 10 | V4: 11 | W4: 12 | X4: 13 | Y4: 14 | Z4: 15 | AA4: 16 | AB4: 17 | AC4: 18 | AD4: 19 | AE4: 20 | AF4: 21 | AG4: 22 | AH4: 23 | AI4: 24 | AJ4: 25 | AK4: 26 | AL4: 27 | AM4: 28 | AN4: 29 | AO4: 30 | AP4: 31 | AQ4: 32 | AR4: 33 | AS4: 34 | AT4: 35 | AU4: 36 | AV4: 37 | AW4: 38 | AX4: 39 | AY4: 40 | AZ4: 41 | BA4: 42 | BB4: 43 | BC4: 44 | BD4: 45 | BE4: 46 | BF4: 47 | BG4: 48 | BH4: 49 | BI4: 50 | BJ4: 51 | BK4: 52 | BM4: =HLOOKUP(BM3,$L$3:$BK$4,2,FALSE) -> 1
B5: =KPICreate!B5 -> DM101 | C5: =IF(KPICreate!C5="","N/A",KPICreate!C5) -> WK01 Mencapai sasaran pendapatan korporat yang meningkat bagi Sektor Perumahan (RM Juta) | D5: =KPICreate!D6 -> 22.72727273 | E5: =IF(KPICreate!E5="","",KPICreate!E5) -> Number | F5: =IF(KPICreate!F5="","",KPICreate!F5) -> 38.5 | G5: =IF(KPICreate!G5="","A",KPICreate!G5) -> A | H5: =IF(KPICreate!H5="","",KPICreate!H5) -> 1 | I5: =IF(KPICreate!I5="","",KPICreate!I5) -> 52 | T5: 1.74 | V5: 2.65 | Z5: 5.18 | AI5: 7.09 | AT5: 9.27 | BC5: 15.6 | BF5: 18.97
B6: =KPICreate!B7 -> DM102 | C6: =IF(KPICreate!C7="","N/A",KPICreate!C7) -> BP03 Mengekalkan pembayaran pulang deposit pelanggan sewaan dalam tempoh yang optimum (Bil Hari) | D6: =KPICreate!D8 -> 13.63636364 | E6: =IF(KPICreate!E7="","",KPICreate!E7) -> MaxLimit | F6: =IF(KPICreate!F7="","",KPICreate!F7) -> 14 | G6: =IF(KPICreate!G7="","A",KPICreate!G7) -> M | H6: =IF(KPICreate!H7="","",KPICreate!H7) -> 1 | I6: =IF(KPICreate!I7="","",KPICreate!I7) -> 52 | P6: 14 | T6: 14 | Y6: 15 | AC6: 16 | AH6: 15 | AL6: 15 | AP6: 14 | AU6: 16 | AY6: 15 | BC6: 16 | BH6: 15 | BK6: 14
B7: =KPICreate!B9 -> DM103 | C7: =IF(KPICreate!C9="","N/A",KPICreate!C9) -> BP49 Mengekalkan Penghantaran shipment Pelanggan menepati sasaran | D7: =KPICreate!D10 -> 13.63636364 | E7: =IF(KPICreate!E9="","",KPICreate!E9) -> Percentage | F7: =IF(KPICreate!F9="","",KPICreate!F9) -> 95 | G7: =IF(KPICreate!G9="","A",KPICreate!G9) -> M | H7: =IF(KPICreate!H9="","",KPICreate!H9) -> 1 | I7: =IF(KPICreate!I9="","",KPICreate!I9) -> 52 | L7: 100 | M7: 100 | N7: 95 | O7: 85 | P7: 100 | Q7: 80 | R7: 100 | S7: 100 | T7: 100 | U7: 85 | V7: 100 | W7: 100 | X7: 80 | Y7: 100 | Z7: 100 | AA7: 100 | AB7: 100 | AC7: 95 | AD7: 100 | AE7: 95 | AF7: 100 | AG7: 100 | AH7: 95 | AI7: 100 | AJ7: 100 | AK7: 100 | AL7: 100 | AM7: 95 | AN7: 95 | AO7: 100 | AP7: 100 | AQ7: 85 | AR7: 100 | AS7: 100 | AT7: 80 | AU7: 100 | AV7: 100 | AW7: 95 | AX7: 100 | AY7: 100 | AZ7: 100 | BA7: 85 | BB7: 95 | BC7: 100 | BD7: 100 | BE7: 100 | BF7: 100 | BG7: 100 | BH7: 85 | BI7: 100 | BJ7: 100 | BK7: 100
B8: =KPICreate!B11 -> DM104 | C8: =IF(KPICreate!C11="","N/A",KPICreate!C11) -> BP19 Mencapai penyempurnaan survei kajian penyelidikan 5 Klien-Produk | D8: =KPICreate!D12 -> 18.18181818 | E8: =IF(KPICreate!E11="","",KPICreate!E11) -> Percentage | F8: =IF(KPICreate!F11="","",KPICreate!F11) -> 90 | G8: =IF(KPICreate!G11="","A",KPICreate!G11) -> A | H8: =IF(KPICreate!H11="","",KPICreate!H11) -> 1 | I8: =IF(KPICreate!I11="","",KPICreate!I11) -> 44 | U8: 1.315789474 | W8: 2.631578947 | Y8: 3.947368421 | Z8: 5.263157895 | AA8: 7.894736842 | AC8: 10.52631579 | AE8: 15.78947368 | AF8: 17.10526316 | AH8: 19.73684211 | AJ8: 25 | AK8: 28.94736842 | AM8: 36.84210526 | AO8: 44.73684211 | AP8: 48.68421053 | AR8: 56.57894737 | AT8: 64.47368421 | AU8: 68.42105263 | AW8: 72.36842105 | AY8: 80.26315789 | AZ8: 84.21052632 | BF8: 96.05263158 | BH8: 100
B9: =KPICreate!B13 -> DM105 | C9: =IF(KPICreate!C13="","N/A",KPICreate!C13) -> OR04 Mengekalkan penyempurnaan kerja-kerja adhoc pemasaran dan perkhidmatan seperti yang diperlukan oleh Jabatan | D9: =KPICreate!D14 -> 13.63636364 | E9: =IF(KPICreate!E13="","",KPICreate!E13) -> Percentage | F9: =IF(KPICreate!F13="","",KPICreate!F13) -> 95 | G9: =IF(KPICreate!G13="","A",KPICreate!G13) -> M | H9: =IF(KPICreate!H13="","",KPICreate!H13) -> 1 | I9: =IF(KPICreate!I13="","",KPICreate!I13) -> 52 | O9: 96.2962963 | R9: 100 | X9: 96.66666667 | AF9: 100 | AJ9: 93.33333333 | AL9: 100 | AO9: 93.33333333 | AW9: 100 | AZ9: 100 | BE9: 100
B10: =KPICreate!B15 -> DM106 | C10: =IF(KPICreate!C15="","N/A",KPICreate!C15) -> OR05 Mencapai pensijilan ISO18001:2007 oleh badan pensijilan | D10: =KPICreate!D16 -> 18.18181818 | E10: =IF(KPICreate!E15="","",KPICreate!E15) -> Yes/No | F10: =IF(KPICreate!F15="","",KPICreate!F15) -> Yes | G10: =IF(KPICreate!G15="","A",KPICreate!G15) -> A | H10: =IF(KPICreate!H15="","",KPICreate!H15) -> 10 | I10: =IF(KPICreate!I15="","",KPICreate!I15) -> 45 | BC10: Yes
B11: =KPICreate!B17 -> DM107 | C11: =IF(KPICreate!C17="","N/A",KPICreate!C17) -> N/A | D11: =KPICreate!D18 -> 0 | E11: =IF(KPICreate!E17="","",KPICreate!E17) ->  | F11: =IF(KPICreate!F17="","",KPICreate!F17) ->  | G11: =IF(KPICreate!G17="","A",KPICreate!G17) -> A | H11: =IF(KPICreate!H17="","",KPICreate!H17) ->  | I11: =IF(KPICreate!I17="","",KPICreate!I17) -> 
B12: =KPICreate!B19 -> DM108 | C12: =IF(KPICreate!C19="","N/A",KPICreate!C19) -> N/A | D12: =KPICreate!D20 -> 0 | E12: =IF(KPICreate!E19="","",KPICreate!E19) ->  | F12: =IF(KPICreate!F19="","",KPICreate!F19) ->  | G12: =IF(KPICreate!G19="","A",KPICreate!G19) -> A | H12: =IF(KPICreate!H19="","",KPICreate!H19) ->  | I12: =IF(KPICreate!I19="","",KPICreate!I19) -> 
B13: =KPICreate!B21 -> DM109 | C13: =IF(KPICreate!C21="","N/A",KPICreate!C21) -> N/A | D13: =KPICreate!D22 -> 0 | E13: =IF(KPICreate!E21="","",KPICreate!E21) ->  | F13: =IF(KPICreate!F21="","",KPICreate!F21) ->  | G13: =IF(KPICreate!G21="","A",KPICreate!G21) -> A | H13: =IF(KPICreate!H21="","",KPICreate!H21) ->  | I13: =IF(KPICreate!I21="","",KPICreate!I21) -> 
B14: =KPICreate!B23 -> DM110 | C14: =IF(KPICreate!C23="","N/A",KPICreate!C23) -> N/A | D14: =KPICreate!D24 -> 0 | E14: =IF(KPICreate!E23="","",KPICreate!E23) ->  | F14: =IF(KPICreate!F23="","",KPICreate!F23) ->  | G14: =IF(KPICreate!G23="","A",KPICreate!G23) -> A | H14: =IF(KPICreate!H23="","",KPICreate!H23) ->  | I14: =IF(KPICreate!I23="","",KPICreate!I23) -> 
B15: =KPICreate!B25 -> DM111 | C15: =IF(KPICreate!C25="","N/A",KPICreate!C25) -> N/A | D15: =KPICreate!D26 -> 0 | E15: =IF(KPICreate!E25="","",KPICreate!E25) ->  | F15: =IF(KPICreate!F25="","",KPICreate!F25) ->  | G15: =IF(KPICreate!G25="","A",KPICreate!G25) -> A | H15: =IF(KPICreate!H25="","",KPICreate!H25) ->  | I15: =IF(KPICreate!I25="","",KPICreate!I25) -> 
B16: =KPICreate!B27 -> DM112 | C16: =IF(KPICreate!C27="","N/A",KPICreate!C27) -> N/A | D16: =KPICreate!D28 -> 0 | E16: =IF(KPICreate!E27="","",KPICreate!E27) ->  | F16: =IF(KPICreate!F27="","",KPICreate!F27) ->  | G16: =IF(KPICreate!G27="","A",KPICreate!G27) -> A | H16: =IF(KPICreate!H27="","",KPICreate!H27) ->  | I16: =IF(KPICreate!I27="","",KPICreate!I27) -> 
B17: =KPICreate!B29 -> DM113 | C17: =IF(KPICreate!C29="","N/A",KPICreate!C29) -> N/A | D17: =KPICreate!D30 -> 0 | E17: =IF(KPICreate!E29="","",KPICreate!E29) ->  | F17: =IF(KPICreate!F29="","",KPICreate!F29) ->  | G17: =IF(KPICreate!G29="","A",KPICreate!G29) -> A | H17: =IF(KPICreate!H29="","",KPICreate!H29) ->  | I17: =IF(KPICreate!I29="","",KPICreate!I29) -> 
B18: =KPICreate!B31 -> DM114 | C18: =IF(KPICreate!C31="","N/A",KPICreate!C31) -> N/A | D18: =KPICreate!D32 -> 0 | E18: =IF(KPICreate!E31="","",KPICreate!E31) ->  | F18: =IF(KPICreate!F31="","",KPICreate!F31) ->  | G18: =IF(KPICreate!G31="","A",KPICreate!G31) -> A | H18: =IF(KPICreate!H31="","",KPICreate!H31) ->  | I18: =IF(KPICreate!I31="","",KPICreate!I31) -> 
B19: =KPICreate!B33 -> DM115 | C19: =IF(KPICreate!C33="","N/A",KPICreate!C33) -> N/A | D19: =KPICreate!D34 -> 0 | E19: =IF(KPICreate!E33="","",KPICreate!E33) ->  | F19: =IF(KPICreate!F33="","",KPICreate!F33) ->  | G19: =IF(KPICreate!G33="","A",KPICreate!G33) -> A | H19: =IF(KPICreate!H33="","",KPICreate!H33) ->  | I19: =IF(KPICreate!I33="","",KPICreate!I33) -> 
B20: =KPICreate!B35 -> DM116 | C20: =IF(KPICreate!C35="","N/A",KPICreate!C35) -> N/A | D20: =KPICreate!D36 -> 0 | E20: =IF(KPICreate!E35="","",KPICreate!E35) ->  | F20: =IF(KPICreate!F35="","",KPICreate!F35) ->  | G20: =IF(KPICreate!G35="","A",KPICreate!G35) -> A | H20: =IF(KPICreate!H35="","",KPICreate!H35) ->  | I20: =IF(KPICreate!I35="","",KPICreate!I35) -> 
A21: =IF(J2+B21<1,0,IF(J2+B21>52,52,J2+B21)) -> 52 | B21: 0 | C21: Wk Input Lock
C22: Form design by LEADERSENSE CONSULTING & SYSTEMS SDN BHD © 2017

Sheet KPIScore
A1: =KPICreate!A4 -> 2020 | B1: KPI Score Card | D1: =CONCATENATE(Home!H6,": ",Home!H10) -> ADAM NAUFAL HASMADI: PEN. KETUA PEMASARAN DAN PERKHIDMATAN
A2: =IFERROR(O21/C22*100,"N/A") -> 95.11655303 | B2: ='Wk Input'!A2 -> 2020-12-31 | D2: =Home!H16 -> SAMPEL CORPORATION LTD
H3: Minggu Ini: | I3: ='Wk Input'!J2 -> 53 | Q3: =IF(I3<1,1,IF(I3>52,52,I3)) -> 52
A4: ID KPI | B4: Deskripsi Spesifik KPI | C4: % Wajaran | D4: Metoda Ukuran | E4: SMART Sasaran | F4: Jenis | G4: Wk Mula | H4: Wk Dead Line | I4: Nilai Wk Konsol | J4: Skor Wk Konsol | K4: Kenakan Purata? | L4: Skor Larasan (1) | M4: Kenakan Deadline ? | N4: Skor Larasan (2) | O4: KPI Skor diWajar % | P4: Catatan | Q4: Ave | R4: DL
A5: ='Wk Input'!B5 -> DM101 | B5: ='Wk Input'!C5 -> WK01 Mencapai sasaran pendapatan korporat yang meningkat bagi Sektor Perumahan (RM Juta) | C5: ='Wk Input'!D5 -> 22.72727273 | D5: ='Wk Input'!E5 -> Number | E5: ='Wk Input'!F5 -> 38.5 | F5: ='Wk Input'!G5 -> A | G5: ='Wk Input'!H5 -> 1 | H5: ='Wk Input'!I5 -> 52 | I5: =HLOOKUP($Q$3,sample!$BN$2:$DM$37,21,FALSE) -> 38.2 | J5: =HLOOKUP($Q$3,sample!$DP$2:$FO$20,4,FALSE) -> 99.22077922 | L5: =IF(Q5,HLOOKUP($Q$3,sample!$DP$2:$FO$37,21,FALSE),J5) -> 99.22077922 | N5: =IF(R5,HLOOKUP($Q$3,sample!$HT$2:$JS$37,21,FALSE),L5) -> 99.22077922 | O5: =IFERROR(C5*N5*$C$22/($C$21*100),"") -> 22.5501771 | Q5: FALSE | R5: TRUE
A6: ='Wk Input'!B6 -> DM102 | B6: ='Wk Input'!C6 -> BP03 Mengekalkan pembayaran pulang deposit pelanggan sewaan dalam tempoh yang optimum (Bil Hari) | C6: ='Wk Input'!D6 -> 13.63636364 | D6: ='Wk Input'!E6 -> MaxLimit | E6: ='Wk Input'!F6 -> 14 | F6: ='Wk Input'!G6 -> M | G6: ='Wk Input'!H6 -> 1 | H6: ='Wk Input'!I6 -> 52 | I6: =HLOOKUP($Q$3,sample!$BN$2:$DM$37,22,FALSE) -> 14.92 | J6: =HLOOKUP($Q$3,sample!$DP$2:$FO$20,5,FALSE) -> 100 | L6: =IF(Q6,HLOOKUP($Q$3,sample!$DP$2:$FO$37,22,FALSE),J6) -> 67.26190476 | N6: =IF(R6,HLOOKUP($Q$3,sample!$HT$2:$JS$37,22,FALSE),L6) -> 67.26190476 | O6: =IFERROR(C6*N6*$C$22/($C$21*100),"") -> 9.172077922 | Q6: TRUE | R6: FALSE
A7: ='Wk Input'!B7 -> DM103 | B7: ='Wk Input'!C7 -> BP49 Mengekalkan Penghantaran shipment Pelanggan menepati sasaran | C7: ='Wk Input'!D7 -> 13.63636364 | D7: ='Wk Input'!E7 -> Percentage | E7: ='Wk Input'!F7 -> 95 | F7: ='Wk Input'!G7 -> M | G7: ='Wk Input'!H7 -> 1 | H7: ='Wk Input'!I7 -> 52 | I7: =HLOOKUP($Q$3,sample!$BN$2:$DM$37,23,FALSE) -> 96.48 | J7: =HLOOKUP($Q$3,sample!$DP$2:$FO$20,6,FALSE) -> 100 | L7: =IF(Q7,HLOOKUP($Q$3,sample!$DP$2:$FO$37,23,FALSE),J7) -> 100 | N7: =IF(R7,HLOOKUP($Q$3,sample!$HT$2:$JS$37,23,FALSE),L7) -> 100 | O7: 13.63636364 | Q7: TRUE | R7: FALSE
A8: ='Wk Input'!B8 -> DM104 | B8: ='Wk Input'!C8 -> BP19 Mencapai penyempurnaan survei kajian penyelidikan 5 Klien-Produk | C8: ='Wk Input'!D8 -> 18.18181818 | D8: ='Wk Input'!E8 -> Percentage | E8: ='Wk Input'!F8 -> 90 | F8: ='Wk Input'!G8 -> A | G8: ='Wk Input'!H8 -> 1 | H8: ='Wk Input'!I8 -> 44 | I8: =HLOOKUP($Q$3,sample!$BN$2:$DM$37,24,FALSE) -> 100 | J8: =HLOOKUP($Q$3,sample!$DP$2:$FO$20,7,FALSE) -> 100 | L8: =IF(Q8,HLOOKUP($Q$3,sample!$DP$2:$FO$37,24,FALSE),J8) -> 100 | N8: =IF(R8,HLOOKUP($Q$3,sample!$HT$2:$JS$37,24,FALSE),L8) -> 98.66863905 | O8: 17.93975256 | Q8: FALSE | R8: TRUE
A9: ='Wk Input'!B9 -> DM105 | B9: ='Wk Input'!C9 -> OR04 Mengekalkan penyempurnaan kerja-kerja adhoc pemasaran dan perkhidmatan seperti yang diperlukan oleh Jabatan | C9: ='Wk Input'!D9 -> 13.63636364 | D9: ='Wk Input'!E9 -> Percentage | E9: ='Wk Input'!F9 -> 95 | F9: ='Wk Input'!G9 -> M | G9: ='Wk Input'!H9 -> 1 | H9: ='Wk Input'!I9 -> 52 | I9: =HLOOKUP($Q$3,sample!$BN$2:$DM$37,25,FALSE) -> 97.96 | J9: =HLOOKUP($Q$3,sample!$DP$2:$FO$20,8,FALSE) ->  | L9: =IF(Q9,HLOOKUP($Q$3,sample!$DP$2:$FO$37,25,FALSE),J9) -> 100 | N9: =IF(R9,HLOOKUP($Q$3,sample!$HT$2:$JS$37,25,FALSE),L9) -> 100 | O9: 13.63636364 | Q9: TRUE | R9: FALSE
A10: ='Wk Input'!B10 -> DM106 | B10: ='Wk Input'!C10 -> OR05 Mencapai pensijilan ISO18001:2007 oleh badan pensijilan | C10: ='Wk Input'!D10 -> 18.18181818 | D10: ='Wk Input'!E10 -> Yes/No | E10: ='Wk Input'!F10 -> Yes | F10: ='Wk Input'!G10 -> A | G10: ='Wk Input'!H10 -> 10 | H10: ='Wk Input'!I10 -> 45 | I10: =HLOOKUP($Q$3,sample!$BN$2:$DM$37,26,FALSE) -> Yes | J10: =HLOOKUP($Q$3,sample!$DP$2:$FO$20,9,FALSE) -> 100 | L10: =IF(Q10,HLOOKUP($Q$3,sample!$DP$2:$FO$37,26,FALSE),J10) -> 100 | N10: =IF(R10,HLOOKUP($Q$3,sample!$HT$2:$JS$37,26,FALSE),L10) -> 100 | O10: 18.18181818 | Q10: FALSE | R10: TRUE
A11: ='Wk Input'!B11 -> DM107 | B11: ='Wk Input'!C11 -> N/A | C11: ='Wk Input'!D11 -> 0 | D11: ='Wk Input'!E11 ->  | E11: ='Wk Input'!F11 ->  | F11: ='Wk Input'!G11 -> A | G11: ='Wk Input'!H11 ->  | H11: ='Wk Input'!I11 ->  | I11: =HLOOKUP($Q$3,sample!$BN$2:$DM$37,27,FALSE) ->  | J11: =HLOOKUP($Q$3,sample!$DP$2:$FO$20,10,FALSE) ->  | L11: =IF(Q11,HLOOKUP($Q$3,sample!$DP$2:$FO$37,27,FALSE),J11) ->  | N11: =IF(R11,HLOOKUP($Q$3,sample!$HT$2:$JS$37,27,FALSE),L11) ->  | Q11: FALSE | R11: FALSE
A12: ='Wk Input'!B12 -> DM108 | B12: ='Wk Input'!C12 -> N/A | C12: ='Wk Input'!D12 -> 0 | D12: ='Wk Input'!E12 ->  | E12: ='Wk Input'!F12 ->  | F12: ='Wk Input'!G12 -> A | G12: ='Wk Input'!H12 ->  | H12: ='Wk Input'!I12 ->  | I12: =HLOOKUP($Q$3,sample!$BN$2:$DM$37,28,FALSE) ->  | J12: =HLOOKUP($Q$3,sample!$DP$2:$FO$20,11,FALSE) ->  | L12: =IF(Q12,HLOOKUP($Q$3,sample!$DP$2:$FO$37,28,FALSE),J12) ->  | N12: =IF(R12,HLOOKUP($Q$3,sample!$HT$2:$JS$37,28,FALSE),L12) ->  | Q12: FALSE | R12: FALSE
A13: ='Wk Input'!B13 -> DM109 | B13: ='Wk Input'!C13 -> N/A | C13: ='Wk Input'!D13 -> 0 | D13: ='Wk Input'!E13 ->  | E13: ='Wk Input'!F13 ->  | F13: ='Wk Input'!G13 -> A | G13: ='Wk Input'!H13 ->  | H13: ='Wk Input'!I13 ->  | I13: =HLOOKUP($Q$3,sample!$BN$2:$DM$37,29,FALSE) ->  | J13: =HLOOKUP($Q$3,sample!$DP$2:$FO$20,12,FALSE) ->  | L13: =IF(Q13,HLOOKUP($Q$3,sample!$DP$2:$FO$37,29,FALSE),J13) ->  | N13: =IF(R13,HLOOKUP($Q$3,sample!$HT$2:$JS$37,29,FALSE),L13) ->  | Q13: FALSE | R13: FALSE
A14: ='Wk Input'!B14 -> DM110 | B14: ='Wk Input'!C14 -> N/A | C14: ='Wk Input'!D14 -> 0 | D14: ='Wk Input'!E14 ->  | E14: ='Wk Input'!F14 ->  | F14: ='Wk Input'!G14 -> A | G14: ='Wk Input'!H14 ->  | H14: ='Wk Input'!I14 ->  | I14: =HLOOKUP($Q$3,sample!$BN$2:$DM$37,30,FALSE) ->  | J14: =HLOOKUP($Q$3,sample!$DP$2:$FO$20,13,FALSE) ->  | L14: =IF(Q14,HLOOKUP($Q$3,sample!$DP$2:$FO$37,30,FALSE),J14) ->  | N14: =IF(R14,HLOOKUP($Q$3,sample!$HT$2:$JS$37,30,FALSE),L14) ->  | Q14: FALSE | R14: FALSE
A15: ='Wk Input'!B15 -> DM111 | B15: ='Wk Input'!C15 -> N/A | C15: ='Wk Input'!D15 -> 0 | D15: ='Wk Input'!E15 ->  | E15: ='Wk Input'!F15 ->  | F15: ='Wk Input'!G15 -> A | G15: ='Wk Input'!H15 ->  | H15: ='Wk Input'!I15 ->  | I15: =HLOOKUP($Q$3,sample!$BN$2:$DM$37,31,FALSE) ->  | J15: =HLOOKUP($Q$3,sample!$DP$2:$FO$20,14,FALSE) ->  | L15: =IF(Q15,HLOOKUP($Q$3,sample!$DP$2:$FO$37,31,FALSE),J15) ->  | N15: =IF(R15,HLOOKUP($Q$3,sample!$HT$2:$JS$37,31,FALSE),L15) ->  | Q15: FALSE | R15: FALSE
A16: ='Wk Input'!B16 -> DM112 | B16: ='Wk Input'!C16 -> N/A | C16: ='Wk Input'!D16 -> 0 | D16: ='Wk Input'!E16 ->  | E16: ='Wk Input'!F16 ->  | F16: ='Wk Input'!G16 -> A | G16: ='Wk Input'!H16 ->  | H16: ='Wk Input'!I16 ->  | I16: =HLOOKUP($Q$3,sample!$BN$2:$DM$37,32,FALSE) ->  | J16: =HLOOKUP($Q$3,sample!$DP$2:$FO$20,15,FALSE) ->  | L16: =IF(Q16,HLOOKUP($Q$3,sample!$DP$2:$FO$37,32,FALSE),J16) ->  | N16: =IF(R16,HLOOKUP($Q$3,sample!$HT$2:$JS$37,32,FALSE),L16) ->  | Q16: FALSE | R16: FALSE
A17: ='Wk Input'!B17 -> DM113 | B17: ='Wk Input'!C17 -> N/A | C17: ='Wk Input'!D17 -> 0 | D17: ='Wk Input'!E17 ->  | E17: ='Wk Input'!F17 ->  | F17: ='Wk Input'!G17 -> A | G17: ='Wk Input'!H17 ->  | H17: ='Wk Input'!I17 ->  | I17: =HLOOKUP($Q$3,sample!$BN$2:$DM$37,33,FALSE) ->  | J17: =HLOOKUP($Q$3,sample!$DP$2:$FO$20,16,FALSE) ->  | L17: =IF(Q17,HLOOKUP($Q$3,sample!$DP$2:$FO$37,33,FALSE),J17) ->  | N17: =IF(R17,HLOOKUP($Q$3,sample!$HT$2:$JS$37,33,FALSE),L17) ->  | Q17: FALSE | R17: FALSE
A18: ='Wk Input'!B18 -> DM114 | B18: ='Wk Input'!C18 -> N/A | C18: ='Wk Input'!D18 -> 0 | D18: ='Wk Input'!E18 ->  | E18: ='Wk Input'!F18 ->  | F18: ='Wk Input'!G18 -> A | G18: ='Wk Input'!H18 ->  | H18: ='Wk Input'!I18 ->  | I18: =HLOOKUP($Q$3,sample!$BN$2:$DM$37,34,FALSE) ->  | J18: =HLOOKUP($Q$3,sample!$DP$2:$FO$20,17,FALSE) ->  | L18: =IF(Q18,HLOOKUP($Q$3,sample!$DP$2:$FO$37,34,FALSE),J18) ->  | N18: =IF(R18,HLOOKUP($Q$3,sample!$HT$2:$JS$37,34,FALSE),L18) ->  | Q18: FALSE | R18: FALSE
A19: ='Wk Input'!B19 -> DM115 | B19: ='Wk Input'!C19 -> N/A | C19: ='Wk Input'!D19 -> 0 | D19: ='Wk Input'!E19 ->  | E19: ='Wk Input'!F19 ->  | F19: ='Wk Input'!G19 -> A | G19: ='Wk Input'!H19 ->  | H19: ='Wk Input'!I19 ->  | I19: =HLOOKUP($Q$3,sample!$BN$2:$DM$37,35,FALSE) ->  | J19: =HLOOKUP($Q$3,sample!$DP$2:$FO$20,18,FALSE) ->  | L19: =IF(Q19,HLOOKUP($Q$3,sample!$DP$2:$FO$37,35,FALSE),J19) ->  | N19: =IF(R19,HLOOKUP($Q$3,sample!$HT$2:$JS$37,35,FALSE),L19) ->  | Q19: FALSE | R19: FALSE
A20: ='Wk Input'!B20 -> DM116 | B20: ='Wk Input'!C20 -> N/A | C20: ='Wk Input'!D20 -> 0 | D20: ='Wk Input'!E20 ->  | E20: ='Wk Input'!F20 ->  | F20: ='Wk Input'!G20 -> A | G20: ='Wk Input'!H20 ->  | H20: ='Wk Input'!I20 ->  | I20: =HLOOKUP($Q$3,sample!$BN$2:$DM$37,36,FALSE) ->  | J20: =HLOOKUP($Q$3,sample!$DP$2:$FO$20,19,FALSE) ->  | L20: =IF(Q20,HLOOKUP($Q$3,sample!$DP$2:$FO$37,36,FALSE),J20) ->  | N20: =IF(R20,HLOOKUP($Q$3,sample!$HT$2:$JS$37,36,FALSE),L20) ->  | Q20: FALSE | R20: FALSE
B21: Jumlah Wajaran % | C21: =SUM(C5:C20) -> 100 | E21: Kalkulasi Terakhir: | F21: =NOW()-0.125 -> 2020-12-31T04:30:22.740 | N21: Jumlah Skor KPI diWajar % | O21: =SUM(O5:O20) -> 95.11655303
B22: Use Base: | C22: 100 | K22: Lock Semua Skor Bermula dari Minggu: | L22: -1
B24: Form design by LEADERSENSE CONSULTING & SYSTEMS SDN BHD © 2017
K25: Lock | L25: =IF(I3+L22<1,"N/A",IF(I3+L22>52,52,I3+L22)) -> 52
K26: L5 | L26: =CHOOSE(L25,"L","M","N","O","P","Q","R","S","T","U","V","W","X","Y","Z","AA","AB","AC","AD","AE","AF","AG","AH","AI","AJ","AK","AL","AM","AN","AO","AP","AQ","AR","AS","AT","AU","AV","AW","AX","AY","AZ","BA","BB","BC","BD","BE","BF","BG","BH","BI","BJ","BK") -> BK
K27: BN5 | L27: =CHOOSE(L25,"BN","BO","BP","BQ","BR","BS","BT","BU","BV","BW","BX","BY","BZ","CA","CB","CC","CD","CE","CF","CG","CH","CI","CJ","CK","CL","CM","CN","CO","CP","CQ","CR","CS","CT","CU","CV","CW","CX","CY","CZ","DA","DB","DC","DD","DE","DF","DG","DH","DI","DJ","DK","DL","DM") -> DM
K28: DP5 | L28: =CHOOSE(L25,"DP","DQ","DR","DS","DT","DU","DV","DW","DX","DY","DZ","EA","EB","EC","ED","EE","EF","EG","EH","EI","EJ","EK","EL","EM","EN","EO","EP","EQ","ER","ES","ET","EU","EV","EW","EX","EY","EZ","FA","FB","FC","FD","FE","FF","FG","FH","FI","FJ","FK","FL","FM","FN","FO") -> FO
K29: FR5 | L29: =CHOOSE(L25,"HT","HU","HV","HW","HX","HY","HZ","IA","IB","IC","ID","IE","IF","IG","IH","II","IJ","IK","IL","IM","IN","IO","IP","IQ","IR","IS","IT","IU","IV","IW","IX","IY","IZ","JA","JB","JC","JD","JE","JF","JG","JH","JI","JJ","JK","JL","JM","JN","JO","JP","JQ","JR","JS") -> JS

Sheet MyChart
C1: KPI MyChart
A2: =KPICreate!A4 -> 2020 | L2: Minggu Ini: | M2: ='Wk Input'!J2 -> 53
C3: =Home!H6 -> ADAM NAUFAL HASMADI | F3: =IF(F$40='Wk Input'!$J$2,sample!BN47,"") ->  | G3: =IF(G$40='Wk Input'!$J$2,sample!BO47,"") ->  | H3: =IF(H$40='Wk Input'!$J$2,sample!BP47,"") ->  | I3: =IF(I$40='Wk Input'!$J$2,sample!BQ47,"") ->  | J3: =IF(J$40='Wk Input'!$J$2,sample!BR47,"") ->  | K3: =IF(K$40='Wk Input'!$J$2,sample!BS47,"") ->  | L3: =IF(L$40='Wk Input'!$J$2,sample!BT47,"") ->  | M3: =IF(M$40='Wk Input'!$J$2,sample!BU47,"") ->  | N3: =IF(N$40='Wk Input'!$J$2,sample!BV47,"") ->  | O3: =IF(O$40='Wk Input'!$J$2,sample!BW47,"") ->  | P3: =IF(P$40='Wk Input'!$J$2,sample!BX47,"") ->  | Q3: =IF(Q$40='Wk Input'!$J$2,sample!BY47,"") ->  | R3: =IF(R$40='Wk Input'!$J$2,sample!BZ47,"") ->  | S3: =IF(S$40='Wk Input'!$J$2,sample!CA47,"") ->  | T3: =IF(T$40='Wk Input'!$J$2,sample!CB47,"") ->  | U3: =IF(U$40='Wk Input'!$J$2,sample!CC47,"") ->  | V3: =IF(V$40='Wk Input'!$J$2,sample!CD47,"") ->  | W3: =IF(W$40='Wk Input'!$J$2,sample!CE47,"") ->  | X3: =IF(X$40='Wk Input'!$J$2,sample!CF47,"") ->  | Y3: =IF(Y$40='Wk Input'!$J$2,sample!CG47,"") ->  | Z3: =IF(Z$40='Wk Input'!$J$2,sample!CH47,"") ->  | AA3: =IF(AA$40='Wk Input'!$J$2,sample!CI47,"") ->  | AB3: =IF(AB$40='Wk Input'!$J$2,sample!CJ47,"") ->  | AC3: =IF(AC$40='Wk Input'!$J$2,sample!CK47,"") ->  | AD3: =IF(AD$40='Wk Input'!$J$2,sample!CL47,"") ->  | AE3: =IF(AE$40='Wk Input'!$J$2,sample!CM47,"") ->  | AF3: =IF(AF$40='Wk Input'!$J$2,sample!CN47,"") ->  | AG3: =IF(AG$40='Wk Input'!$J$2,sample!CO47,"") ->  | AH3: =IF(AH$40='Wk Input'!$J$2,sample!CP47,"") ->  | AI3: =IF(AI$40='Wk Input'!$J$2,sample!CQ47,"") ->  | AJ3: =IF(AJ$40='Wk Input'!$J$2,sample!CR47,"") ->  | AK3: =IF(AK$40='Wk Input'!$J$2,sample!CS47,"") ->  | AL3: =IF(AL$40='Wk Input'!$J$2,sample!CT47,"") ->  | AM3: =IF(AM$40='Wk Input'!$J$2,sample!CU47,"") ->  | AN3: =IF(AN$40='Wk Input'!$J$2,sample!CV47,"") ->  | AO3: =IF(AO$40='Wk Input'!$J$2,sample!CW47,"") ->  | AP3: =IF(AP$40='Wk Input'!$J$2,sample!CX47,"") ->  | AQ3: =IF(AQ$40='Wk Input'!$J$2,sample!CY47,"") ->  | AR3: =IF(AR$40='Wk Input'!$J$2,sample!CZ47,"") ->  | AS3: =IF(AS$40='Wk Input'!$J$2,sample!DA47,"") ->  | AT3: =IF(AT$40='Wk Input'!$J$2,sample!DB47,"") ->  | AU3: =IF(AU$40='Wk Input'!$J$2,sample!DC47,"") ->  | AV3: =IF(AV$40='Wk Input'!$J$2,sample!DD47,"") ->  | AW3: =IF(AW$40='Wk Input'!$J$2,sample!DE47,"") ->  | AX3: =IF(AX$40='Wk Input'!$J$2,sample!DF47,"") ->  | AY3: =IF(AY$40='Wk Input'!$J$2,sample!DG47,"") ->  | AZ3: =IF(AZ$40='Wk Input'!$J$2,sample!DH47,"") ->  | BA3: =IF(BA$40='Wk Input'!$J$2,sample!DI47,"") ->  | BB3: =IF(BB$40='Wk Input'!$J$2,sample!DJ47,"") ->  | BC3: =IF(BC$40='Wk Input'!$J$2,sample!DK47,"") ->  | BD3: =IF(BD$40='Wk Input'!$J$2,sample!DL47,"") ->  | BE3: =IF(BE$40='Wk Input'!$J$2,sample!DM47,"") -> 
C4: =Home!H10 -> PEN. KETUA PEMASARAN DAN PERKHIDMATAN | F4: =IF(sample!BN39,sample!BN40,"") ->  | G4: =IF(sample!BO39,sample!BO40,"") ->  | H4: =IF(sample!BP39,sample!BP40,"") -> 8 | I4: =IF(sample!BQ39,sample!BQ40,"") ->  | J4: =IF(sample!BR39,sample!BR40,"") ->  | K4: =IF(sample!BS39,sample!BS40,"") ->  | L4: =IF(sample!BT39,sample!BT40,"") ->  | M4: =IF(sample!BU39,sample!BU40,"") ->  | N4: =IF(sample!BV39,sample!BV40,"") ->  | O4: =IF(sample!BW39,sample!BW40,"") ->  | P4: =IF(sample!BX39,sample!BX40,"") ->  | Q4: =IF(sample!BY39,sample!BY40,"") ->  | R4: =IF(sample!BZ39,sample!BZ40,"") ->  | S4: =IF(sample!CA39,sample!CA40,"") ->  | T4: =IF(sample!CB39,sample!CB40,"") ->  | U4: =IF(sample!CC39,sample!CC40,"") ->  | V4: =IF(sample!CD39,sample!CD40,"") ->  | W4: =IF(sample!CE39,sample!CE40,"") ->  | X4: =IF(sample!CF39,sample!CF40,"") ->  | Y4: =IF(sample!CG39,sample!CG40,"") ->  | Z4: =IF(sample!CH39,sample!CH40,"") ->  | AA4: =IF(sample!CI39,sample!CI40,"") ->  | AB4: =IF(sample!CJ39,sample!CJ40,"") ->  | AC4: =IF(sample!CK39,sample!CK40,"") ->  | AD4: =IF(sample!CL39,sample!CL40,"") ->  | AE4: =IF(sample!CM39,sample!CM40,"") ->  | AF4: =IF(sample!CN39,sample!CN40,"") ->  | AG4: =IF(sample!CO39,sample!CO40,"") ->  | AH4: =IF(sample!CP39,sample!CP40,"") ->  | AI4: =IF(sample!CQ39,sample!CQ40,"") ->  | AJ4: =IF(sample!CR39,sample!CR40,"") ->  | AK4: =IF(sample!CS39,sample!CS40,"") ->  | AL4: =IF(sample!CT39,sample!CT40,"") ->  | AM4: =IF(sample!CU39,sample!CU40,"") ->  | AN4: =IF(sample!CV39,sample!CV40,"") ->  | AO4: =IF(sample!CW39,sample!CW40,"") ->  | AP4: =IF(sample!CX39,sample!CX40,"") ->  | AQ4: =IF(sample!CY39,sample!CY40,"") ->  | AR4: =IF(sample!CZ39,sample!CZ40,"") ->  | AS4: =IF(sample!DA39,sample!DA40,"") ->  | AT4: =IF(sample!DB39,sample!DB40,"") ->  | AU4: =IF(sample!DC39,sample!DC40,"") ->  | AV4: =IF(sample!DD39,sample!DD40,"") -> 2 | AW4: =IF(sample!DE39,sample!DE40,"") ->  | AX4: =IF(sample!DF39,sample!DF40,"") ->  | AY4: =IF(sample!DG39,sample!DG40,"") ->  | AZ4: =IF(sample!DH39,sample!DH40,"") ->  | BA4: =IF(sample!DI39,sample!DI40,"") ->  | BB4: =IF(sample!DJ39,sample!DJ40,"") ->  | BC4: =IF(sample!DK39,sample!DK40,"") ->  | BD4: =IF(sample!DL39,sample!DL40,"") ->  | BE4: =IF(sample!DM39,sample!DM40,"") -> 
C5: =Home!H16 -> SAMPEL CORPORATION LTD | F5: =IF(OR(sample!BN39,sample!BN43),"P"," ") ->  | G5: =IF(OR(sample!BO39,sample!BO43),"P"," ") ->  | H5: =IF(OR(sample!BP39,sample!BP43),"P"," ") -> P | I5: =IF(OR(sample!BQ39,sample!BQ43),"P"," ") ->  | J5: =IF(OR(sample!BR39,sample!BR43),"P"," ") ->  | K5: =IF(OR(sample!BS39,sample!BS43),"P"," ") ->  | L5: =IF(OR(sample!BT39,sample!BT43),"P"," ") ->  | M5: =IF(OR(sample!BU39,sample!BU43),"P"," ") ->  | N5: =IF(OR(sample!BV39,sample!BV43),"P"," ") ->  | O5: =IF(OR(sample!BW39,sample!BW43),"P"," ") ->  | P5: =IF(OR(sample!BX39,sample!BX43),"P"," ") ->  | Q5: =IF(OR(sample!BY39,sample!BY43),"P"," ") ->  | R5: =IF(OR(sample!BZ39,sample!BZ43),"P"," ") ->  | S5: =IF(OR(sample!CA39,sample!CA43),"P"," ") ->  | T5: =IF(OR(sample!CB39,sample!CB43),"P"," ") ->  | U5: =IF(OR(sample!CC39,sample!CC43),"P"," ") ->  | V5: =IF(OR(sample!CD39,sample!CD43),"P"," ") ->  | W5: =IF(OR(sample!CE39,sample!CE43),"P"," ") ->  | X5: =IF(OR(sample!CF39,sample!CF43),"P"," ") ->  | Y5: =IF(OR(sample!CG39,sample!CG43),"P"," ") ->  | Z5: =IF(OR(sample!CH39,sample!CH43),"P"," ") ->  | AA5: =IF(OR(sample!CI39,sample!CI43),"P"," ") ->  | AB5: =IF(OR(sample!CJ39,sample!CJ43),"P"," ") ->  | AC5: =IF(OR(sample!CK39,sample!CK43),"P"," ") ->  | AD5: =IF(OR(sample!CL39,sample!CL43),"P"," ") ->  | AE5: =IF(OR(sample!CM39,sample!CM43),"P"," ") ->  | AF5: =IF(OR(sample!CN39,sample!CN43),"P"," ") ->  | AG5: =IF(OR(sample!CO39,sample!CO43),"P"," ") ->  | AH5: =IF(OR(sample!CP39,sample!CP43),"P"," ") ->  | AI5: =IF(OR(sample!CQ39,sample!CQ43),"P"," ") ->  | AJ5: =IF(OR(sample!CR39,sample!CR43),"P"," ") ->  | AK5: =IF(OR(sample!CS39,sample!CS43),"P"," ") ->  | AL5: =IF(OR(sample!CT39,sample!CT43),"P"," ") -> P | AM5: =IF(OR(sample!CU39,sample!CU43),"P"," ") ->  | AN5: =IF(OR(sample!CV39,sample!CV43),"P"," ") ->  | AO5: =IF(OR(sample!CW39,sample!CW43),"P"," ") ->  | AP5: =IF(OR(sample!CX39,sample!CX43),"P"," ") ->  | AQ5: =IF(OR(sample!CY39,sample!CY43),"P"," ") ->  | AR5: =IF(OR(sample!CZ39,sample!CZ43),"P"," ") ->  | AS5: =IF(OR(sample!DA39,sample!DA43),"P"," ") ->  | AT5: =IF(OR(sample!DB39,sample!DB43),"P"," ") ->  | AU5: =IF(OR(sample!DC39,sample!DC43),"P"," ") ->  | AV5: =IF(OR(sample!DD39,sample!DD43),"P"," ") -> P | AW5: =IF(OR(sample!DE39,sample!DE43),"P"," ") ->  | AX5: =IF(OR(sample!DF39,sample!DF43),"P"," ") ->  | AY5: =IF(OR(sample!DG39,sample!DG43),"P"," ") ->  | AZ5: =IF(OR(sample!DH39,sample!DH43),"P"," ") ->  | BA5: =IF(OR(sample!DI39,sample!DI43),"P"," ") ->  | BB5: =IF(OR(sample!DJ39,sample!DJ43),"P"," ") ->  | BC5: =IF(OR(sample!DK39,sample!DK43),"P"," ") ->  | BD5: =IF(OR(sample!DL39,sample!DL43),"P"," ") ->  | BE5: =IF(OR(sample!DM39,sample!DM43),"P"," ") -> 
E6: Nilai Wk Konsol | F6: =IF(sample!BN43,sample!BN44,"") ->  | G6: =IF(sample!BO43,sample!BO44,"") ->  | H6: =IF(sample!BP43,sample!BP44,"") ->  | I6: =IF(sample!BQ43,sample!BQ44,"") ->  | J6: =IF(sample!BR43,sample!BR44,"") ->  | K6: =IF(sample!BS43,sample!BS44,"") ->  | L6: =IF(sample!BT43,sample!BT44,"") ->  | M6: =IF(sample!BU43,sample!BU44,"") ->  | N6: =IF(sample!BV43,sample!BV44,"") ->  | O6: =IF(sample!BW43,sample!BW44,"") ->  | P6: =IF(sample!BX43,sample!BX44,"") ->  | Q6: =IF(sample!BY43,sample!BY44,"") ->  | R6: =IF(sample!BZ43,sample!BZ44,"") ->  | S6: =IF(sample!CA43,sample!CA44,"") ->  | T6: =IF(sample!CB43,sample!CB44,"") ->  | U6: =IF(sample!CC43,sample!CC44,"") ->  | V6: =IF(sample!CD43,sample!CD44,"") ->  | W6: =IF(sample!CE43,sample!CE44,"") ->  | X6: =IF(sample!CF43,sample!CF44,"") ->  | Y6: =IF(sample!CG43,sample!CG44,"") ->  | Z6: =IF(sample!CH43,sample!CH44,"") ->  | AA6: =IF(sample!CI43,sample!CI44,"") ->  | AB6: =IF(sample!CJ43,sample!CJ44,"") ->  | AC6: =IF(sample!CK43,sample!CK44,"") ->  | AD6: =IF(sample!CL43,sample!CL44,"") ->  | AE6: =IF(sample!CM43,sample!CM44,"") ->  | AF6: =IF(sample!CN43,sample!CN44,"") ->  | AG6: =IF(sample!CO43,sample!CO44,"") ->  | AH6: =IF(sample!CP43,sample!CP44,"") ->  | AI6: =IF(sample!CQ43,sample!CQ44,"") ->  | AJ6: =IF(sample!CR43,sample!CR44,"") ->  | AK6: =IF(sample!CS43,sample!CS44,"") ->  | AL6: =IF(sample!CT43,sample!CT44,"") -> -4 | AM6: =IF(sample!CU43,sample!CU44,"") ->  | AN6: =IF(sample!CV43,sample!CV44,"") ->  | AO6: =IF(sample!CW43,sample!CW44,"") ->  | AP6: =IF(sample!CX43,sample!CX44,"") ->  | AQ6: =IF(sample!CY43,sample!CY44,"") ->  | AR6: =IF(sample!CZ43,sample!CZ44,"") ->  | AS6: =IF(sample!DA43,sample!DA44,"") ->  | AT6: =IF(sample!DB43,sample!DB44,"") ->  | AU6: =IF(sample!DC43,sample!DC44,"") ->  | AV6: =IF(sample!DD43,sample!DD44,"") ->  | AW6: =IF(sample!DE43,sample!DE44,"") ->  | AX6: =IF(sample!DF43,sample!DF44,"") ->  | AY6: =IF(sample!DG43,sample!DG44,"") ->  | AZ6: =IF(sample!DH43,sample!DH44,"") ->  | BA6: =IF(sample!DI43,sample!DI44,"") ->  | BB6: =IF(sample!DJ43,sample!DJ44,"") ->  | BC6: =IF(sample!DK43,sample!DK44,"") ->  | BD6: =IF(sample!DL43,sample!DL44,"") ->  | BE6: =IF(sample!DM43,sample!DM44,"") -> 
B7: ID KPI | C7: Deskripsi Spesifik KPI | D7: Sasaran
A8: ='Wk Input'!I5 -> 52 | B8: ='Wk Input'!B5 -> DM101 | C8: ='Wk Input'!C5 -> WK01 Mencapai sasaran pendapatan korporat yang meningkat bagi Sektor Perumahan (RM Juta) | D8: ='Wk Input'!F5 -> 38.5 | E8: =KPIScore!I5 -> 38.2 | F8: =sample!L22 -> 0 | G8: =sample!M22 -> 0 | H8: =sample!N22 -> 0 | I8: =sample!O22 -> 6.545454545 | J8: =sample!P22 -> 6.545454545 | K8: =sample!Q22 -> 9.532467532 | L8: =sample!R22 -> 9.532467532 | M8: =sample!S22 -> 9.532467532 | N8: =sample!T22 -> 14.05194805 | O8: =sample!U22 -> 14.05194805 | P8: =sample!V22 -> 16.41558442 | Q8: =sample!W22 -> 16.41558442 | R8: =sample!X22 -> 16.41558442 | S8: =sample!Y22 -> 16.41558442 | T8: =sample!Z22 -> 22.98701299 | U8: =sample!AA22 -> 22.98701299 | V8: =sample!AB22 -> 22.98701299 | W8: =sample!AC22 -> 26.49350649 | X8: =sample!AD22 -> 26.49350649 | Y8: =sample!AE22 -> 26.49350649 | Z8: =sample!AF22 -> 26.49350649 | AA8: =sample!AG22 -> 30.64935065 | AB8: =sample!AH22 -> 30.64935065 | AC8: =sample!AI22 -> 35.61038961 | AD8: =sample!AJ22 -> 35.61038961 | AE8: =sample!AK22 -> 40.96103896 | AF8: =sample!AL22 -> 40.96103896 | AG8: =sample!AM22 -> 40.96103896 | AH8: =sample!AN22 -> 44.75324675 | AI8: =sample!AO22 -> 44.75324675 | AJ8: =sample!AP22 -> 48.46753247 | AK8: =sample!AQ22 -> 48.46753247 | AL8: =sample!AR22 -> 48.46753247 | AM8: =sample!AS22 -> 48.46753247 | AN8: =sample!AT22 -> 54.12987013 | AO8: =sample!AU22 -> 54.5974026 | AP8: =sample!AV22 -> 54.5974026 | AQ8: =sample!AW22 -> 54.5974026 | AR8: =sample!AX22 -> 54.5974026 | AS8: =sample!AY22 -> 60.90909091 | AT8: =sample!AZ22 -> 60.90909091 | AU8: =sample!BA22 -> 60.90909091 | AV8: =sample!BB22 -> 60.90909091 | AW8: =sample!BC22 -> 77.35064935 | AX8: =sample!BD22 -> 77.35064935 | AY8: =sample!BE22 -> 77.35064935 | AZ8: =sample!BF22 -> 86.1038961 | BA8: =sample!BG22 -> 86.1038961 | BB8: =sample!BH22 -> 90.12987013 | BC8: =sample!BI22 -> 90.12987013 | BD8: =sample!BJ22 -> 90.12987013 | BE8: =sample!BK22 -> 99.22077922
A10: ='Wk Input'!I6 -> 52 | B10: ='Wk Input'!B6 -> DM102 | C10: ='Wk Input'!C6 -> BP03 Mengekalkan pembayaran pulang deposit pelanggan sewaan dalam tempoh yang optimum (Bil Hari) | D10: ='Wk Input'!F6 -> 14 | E10: =KPIScore!I6 -> 14.92 | F10: =sample!L23 ->  | G10: =sample!M23 ->  | H10: =sample!N23 ->  | I10: =sample!O23 ->  | J10: =sample!P23 -> 100 | K10: =sample!Q23 ->  | L10: =sample!R23 ->  | M10: =sample!S23 ->  | N10: =sample!T23 -> 100 | O10: =sample!U23 ->  | P10: =sample!V23 ->  | Q10: =sample!W23 ->  | R10: =sample!X23 ->  | S10: =sample!Y23 -> 64.28571429 | T10: =sample!Z23 ->  | U10: =sample!AA23 ->  | V10: =sample!AB23 ->  | W10: =sample!AC23 -> 28.57142857 | X10: =sample!AD23 ->  | Y10: =sample!AE23 ->  | Z10: =sample!AF23 ->  | AA10: =sample!AG23 ->  | AB10: =sample!AH23 -> 64.28571429 | AC10: =sample!AI23 ->  | AD10: =sample!AJ23 ->  | AE10: =sample!AK23 ->  | AF10: =sample!AL23 -> 64.28571429 | AG10: =sample!AM23 ->  | AH10: =sample!AN23 ->  | AI10: =sample!AO23 ->  | AJ10: =sample!AP23 -> 100 | AK10: =sample!AQ23 ->  | AL10: =sample!AR23 ->  | AM10: =sample!AS23 ->  | AN10: =sample!AT23 ->  | AO10: =sample!AU23 -> 28.57142857 | AP10: =sample!AV23 ->  | AQ10: =sample!AW23 ->  | AR10: =sample!AX23 ->  | AS10: =sample!AY23 -> 64.28571429 | AT10: =sample!AZ23 ->  | AU10: =sample!BA23 ->  | AV10: =sample!BB23 ->  | AW10: =sample!BC23 -> 28.57142857 | AX10: =sample!BD23 ->  | AY10: =sample!BE23 ->  | AZ10: =sample!BF23 ->  | BA10: =sample!BG23 ->  | BB10: =sample!BH23 -> 64.28571429 | BC10: =sample!BI23 ->  | BD10: =sample!BJ23 ->  | BE10: =sample!BK23 -> 100
A12: ='Wk Input'!I7 -> 52 | B12: ='Wk Input'!B7 -> DM103 | C12: ='Wk Input'!C7 -> BP49 Mengekalkan Penghantaran shipment Pelanggan menepati sasaran | D12: ='Wk Input'!F7 -> 95 | E12: =KPIScore!I7 -> 96.48 | F12: =sample!L24 -> 100 | G12: =sample!M24 -> 100 | H12: =sample!N24 -> 97.89473684 | I12: =sample!O24 -> 92.63157895 | J12: =sample!P24 -> 100 | K12: =sample!Q24 -> 88.42105263 | L12: =sample!R24 -> 100 | M12: =sample!S24 -> 100 | N12: =sample!T24 -> 100 | O12: =sample!U24 -> 91.57894737 | P12: =sample!V24 -> 100 | Q12: =sample!W24 -> 100 | R12: =sample!X24 -> 86.31578947 | S12: =sample!Y24 -> 100 | T12: =sample!Z24 -> 100 | U12: =sample!AA24 -> 100 | V12: =sample!AB24 -> 100 | W12: =sample!AC24 -> 100 | X12: =sample!AD24 -> 100 | Y12: =sample!AE24 -> 100 | Z12: =sample!AF24 -> 100 | AA12: =sample!AG24 -> 96.84210526 | AB12: =sample!AH24 -> 100 | AC12: =sample!AI24 -> 100 | AD12: =sample!AJ24 -> 100 | AE12: =sample!AK24 -> 100 | AF12: =sample!AL24 -> 100 | AG12: =sample!AM24 -> 100 | AH12: =sample!AN24 -> 100 | AI12: =sample!AO24 -> 100 | AJ12: =sample!AP24 -> 100 | AK12: =sample!AQ24 -> 92.63157895 | AL12: =sample!AR24 -> 100 | AM12: =sample!AS24 -> 100 | AN12: =sample!AT24 -> 86.31578947 | AO12: =sample!AU24 -> 100 | AP12: =sample!AV24 -> 100 | AQ12: =sample!AW24 -> 100 | AR12: =sample!AX24 -> 100 | AS12: =sample!AY24 -> 100 | AT12: =sample!AZ24 -> 100 | AU12: =sample!BA24 -> 92.63157895 | AV12: =sample!BB24 -> 100 | AW12: =sample!BC24 -> 100 | AX12: =sample!BD24 -> 100 | AY12: =sample!BE24 -> 100 | AZ12: =sample!BF24 -> 100 | BA12: =sample!BG24 -> 100 | BB12: =sample!BH24 -> 92.63157895 | BC12: =sample!BI24 -> 100 | BD12: =sample!BJ24 -> 100 | BE12: =sample!BK24 -> 100
A14: ='Wk Input'!I8 -> 44 | B14: ='Wk Input'!B8 -> DM104 | C14: ='Wk Input'!C8 -> BP19 Mencapai penyempurnaan survei kajian penyelidikan 5 Klien-Produk | D14: ='Wk Input'!F8 -> 90 | E14: =KPIScore!I8 -> 100 | F14: =sample!L25 -> 0 | G14: =sample!M25 -> 0 | H14: =sample!N25 -> 0 | I14: =sample!O25 -> 0 | J14: =sample!P25 -> 0 | K14: =sample!Q25 -> 0.438596491 | L14: =sample!R25 -> 0.438596491 | M14: =sample!S25 -> 0.877192982 | N14: =sample!T25 -> 0.877192982 | O14: =sample!U25 -> 2.339181287 | P14: =sample!V25 -> 2.777777778 | Q14: =sample!W25 -> 4.678362573 | R14: =sample!X25 -> 4.678362573 | S14: =sample!Y25 -> 6.578947368 | T14: =sample!Z25 -> 7.602339181 | U14: =sample!AA25 -> 11.40350877 | V14: =sample!AB25 -> 11.84210526 | W14: =sample!AC25 -> 13.88888889 | X14: =sample!AD25 -> 14.76608187 | Y14: =sample!AE25 -> 18.85964912 | Z14: =sample!AF25 -> 21.6374269 | AA14: =sample!AG25 -> 22.95321637 | AB14: =sample!AH25 -> 25 | AC14: =sample!AI25 -> 27.63157895 | AD14: =sample!AJ25 -> 31.7251462 | AE14: =sample!AK25 -> 37.42690058 | AF14: =sample!AL25 -> 38.74269006 | AG14: =sample!AM25 -> 44.88304094 | AH14: =sample!AN25 -> 47.51461988 | AI14: =sample!AO25 -> 53.65497076 | AJ14: =sample!AP25 -> 59.35672515 | AK14: =sample!AQ25 -> 59.35672515 | AL14: =sample!AR25 -> 65.49707602 | AM14: =sample!AS25 -> 65.49707602 | AN14: =sample!AT25 -> 72.95321637 | AO14: =sample!AU25 -> 76.02339181 | AP14: =sample!AV25 -> 77.33918129 | AQ14: =sample!AW25 -> 80.40935673 | AR14: =sample!AX25 -> 83.04093567 | AS14: =sample!AY25 -> 89.18128655 | AT14: =sample!AZ25 -> 92.25146199 | AU14: =sample!BA25 -> 92.25146199 | AV14: =sample!BB25 -> 93.56725146 | AW14: =sample!BC25 -> 93.56725146 | AX14: =sample!BD25 -> 97.51461988 | AY14: =sample!BE25 -> 97.51461988 | AZ14: =sample!BF25 -> 100 | BA14: =sample!BG25 -> 100 | BB14: =sample!BH25 -> 100 | BC14: =sample!BI25 -> 100 | BD14: =sample!BJ25 -> 100 | BE14: =sample!BK25 -> 100
A16: ='Wk Input'!I9 -> 52 | B16: ='Wk Input'!B9 -> DM105 | C16: ='Wk Input'!C9 -> OR04 Mengekalkan penyempurnaan kerja-kerja adhoc pemasaran dan perkhidmatan seperti yang diperlukan oleh Jabatan | D16: ='Wk Input'!F9 -> 95 | E16: =KPIScore!I9 -> 97.96 | F16: =sample!L26 ->  | G16: =sample!M26 ->  | H16: =sample!N26 ->  | I16: =sample!O26 -> 100 | J16: =sample!P26 ->  | K16: =sample!Q26 ->  | L16: =sample!R26 -> 100 | M16: =sample!S26 ->  | N16: =sample!T26 ->  | O16: =sample!U26 ->  | P16: =sample!V26 ->  | Q16: =sample!W26 ->  | R16: =sample!X26 -> 100 | S16: =sample!Y26 ->  | T16: =sample!Z26 ->  | U16: =sample!AA26 ->  | V16: =sample!AB26 ->  | W16: =sample!AC26 ->  | X16: =sample!AD26 ->  | Y16: =sample!AE26 ->  | Z16: =sample!AF26 -> 100 | AA16: =sample!AG26 ->  | AB16: =sample!AH26 ->  | AC16: =sample!AI26 ->  | AD16: =sample!AJ26 -> 98.24561404 | AE16: =sample!AK26 ->  | AF16: =sample!AL26 -> 100 | AG16: =sample!AM26 ->  | AH16: =sample!AN26 ->  | AI16: =sample!AO26 -> 98.24561404 | AJ16: =sample!AP26 ->  | AK16: =sample!AQ26 ->  | AL16: =sample!AR26 ->  | AM16: =sample!AS26 ->  | AN16: =sample!AT26 ->  | AO16: =sample!AU26 ->  | AP16: =sample!AV26 ->  | AQ16: =sample!AW26 -> 100 | AR16: =sample!AX26 ->  | AS16: =sample!AY26 ->  | AT16: =sample!AZ26 -> 100 | AU16: =sample!BA26 ->  | AV16: =sample!BB26 ->  | AW16: =sample!BC26 ->  | AX16: =sample!BD26 ->  | AY16: =sample!BE26 -> 100 | AZ16: =sample!BF26 ->  | BA16: =sample!BG26 ->  | BB16: =sample!BH26 ->  | BC16: =sample!BI26 ->  | BD16: =sample!BJ26 ->  | BE16: =sample!BK26 -> 
A18: ='Wk Input'!I10 -> 45 | B18: ='Wk Input'!B10 -> DM106 | C18: ='Wk Input'!C10 -> OR05 Mencapai pensijilan ISO18001:2007 oleh badan pensijilan | D18: ='Wk Input'!F10 -> Yes | E18: =KPIScore!I10 -> Yes | F18: =sample!L27 ->  | G18: =sample!M27 ->  | H18: =sample!N27 ->  | I18: =sample!O27 ->  | J18: =sample!P27 ->  | K18: =sample!Q27 ->  | L18: =sample!R27 ->  | M18: =sample!S27 ->  | N18: =sample!T27 ->  | O18: =sample!U27 -> 0 | P18: =sample!V27 -> 0 | Q18: =sample!W27 -> 0 | R18: =sample!X27 -> 0 | S18: =sample!Y27 -> 0 | T18: =sample!Z27 -> 0 | U18: =sample!AA27 -> 0 | V18: =sample!AB27 -> 0 | W18: =sample!AC27 -> 0 | X18: =sample!AD27 -> 0 | Y18: =sample!AE27 -> 0 | Z18: =sample!AF27 -> 0 | AA18: =sample!AG27 -> 0 | AB18: =sample!AH27 -> 0 | AC18: =sample!AI27 -> 0 | AD18: =sample!AJ27 -> 0 | AE18: =sample!AK27 -> 0 | AF18: =sample!AL27 -> 0 | AG18: =sample!AM27 -> 0 | AH18: =sample!AN27 -> 0 | AI18: =sample!AO27 -> 0 | AJ18: =sample!AP27 -> 0 | AK18: =sample!AQ27 -> 0 | AL18: =sample!AR27 -> 0 | AM18: =sample!AS27 -> 0 | AN18: =sample!AT27 -> 0 | AO18: =sample!AU27 -> 0 | AP18: =sample!AV27 -> 0 | AQ18: =sample!AW27 -> 0 | AR18: =sample!AX27 -> 0 | AS18: =sample!AY27 -> 0 | AT18: =sample!AZ27 -> 0 | AU18: =sample!BA27 -> 0 | AV18: =sample!BB27 -> 0 | AW18: =sample!BC27 -> 100 | AX18: =sample!BD27 -> 100 | AY18: =sample!BE27 -> 100 | AZ18: =sample!BF27 -> 100 | BA18: =sample!BG27 -> 100 | BB18: =sample!BH27 -> 100 | BC18: =sample!BI27 -> 100 | BD18: =sample!BJ27 -> 100 | BE18: =sample!BK27 -> 100
A20: ='Wk Input'!I11 ->  | B20: ='Wk Input'!B11 -> DM107 | C20: ='Wk Input'!C11 -> N/A | D20: ='Wk Input'!F11 ->  | E20: =KPIScore!I11 ->  | F20: =sample!L28 ->  | G20: =sample!M28 ->  | H20: =sample!N28 ->  | I20: =sample!O28 ->  | J20: =sample!P28 ->  | K20: =sample!Q28 ->  | L20: =sample!R28 ->  | M20: =sample!S28 ->  | N20: =sample!T28 ->  | O20: =sample!U28 ->  | P20: =sample!V28 ->  | Q20: =sample!W28 ->  | R20: =sample!X28 ->  | S20: =sample!Y28 ->  | T20: =sample!Z28 ->  | U20: =sample!AA28 ->  | V20: =sample!AB28 ->  | W20: =sample!AC28 ->  | X20: =sample!AD28 ->  | Y20: =sample!AE28 ->  | Z20: =sample!AF28 ->  | AA20: =sample!AG28 ->  | AB20: =sample!AH28 ->  | AC20: =sample!AI28 ->  | AD20: =sample!AJ28 ->  | AE20: =sample!AK28 ->  | AF20: =sample!AL28 ->  | AG20: =sample!AM28 ->  | AH20: =sample!AN28 ->  | AI20: =sample!AO28 ->  | AJ20: =sample!AP28 ->  | AK20: =sample!AQ28 ->  | AL20: =sample!AR28 ->  | AM20: =sample!AS28 ->  | AN20: =sample!AT28 ->  | AO20: =sample!AU28 ->  | AP20: =sample!AV28 ->  | AQ20: =sample!AW28 ->  | AR20: =sample!AX28 ->  | AS20: =sample!AY28 ->  | AT20: =sample!AZ28 ->  | AU20: =sample!BA28 ->  | AV20: =sample!BB28 ->  | AW20: =sample!BC28 ->  | AX20: =sample!BD28 ->  | AY20: =sample!BE28 ->  | AZ20: =sample!BF28 ->  | BA20: =sample!BG28 ->  | BB20: =sample!BH28 ->  | BC20: =sample!BI28 ->  | BD20: =sample!BJ28 ->  | BE20: =sample!BK28 -> 
A22: ='Wk Input'!I12 ->  | B22: ='Wk Input'!B12 -> DM108 | C22: ='Wk Input'!C12 -> N/A | D22: ='Wk Input'!F12 ->  | E22: =KPIScore!I12 ->  | F22: =sample!L29 ->  | G22: =sample!M29 ->  | H22: =sample!N29 ->  | I22: =sample!O29 ->  | J22: =sample!P29 ->  | K22: =sample!Q29 ->  | L22: =sample!R29 ->  | M22: =sample!S29 ->  | N22: =sample!T29 ->  | O22: =sample!U29 ->  | P22: =sample!V29 ->  | Q22: =sample!W29 ->  | R22: =sample!X29 ->  | S22: =sample!Y29 ->  | T22: =sample!Z29 ->  | U22: =sample!AA29 ->  | V22: =sample!AB29 ->  | W22: =sample!AC29 ->  | X22: =sample!AD29 ->  | Y22: =sample!AE29 ->  | Z22: =sample!AF29 ->  | AA22: =sample!AG29 ->  | AB22: =sample!AH29 ->  | AC22: =sample!AI29 ->  | AD22: =sample!AJ29 ->  | AE22: =sample!AK29 ->  | AF22: =sample!AL29 ->  | AG22: =sample!AM29 ->  | AH22: =sample!AN29 ->  | AI22: =sample!AO29 ->  | AJ22: =sample!AP29 ->  | AK22: =sample!AQ29 ->  | AL22: =sample!AR29 ->  | AM22: =sample!AS29 ->  | AN22: =sample!AT29 ->  | AO22: =sample!AU29 ->  | AP22: =sample!AV29 ->  | AQ22: =sample!AW29 ->  | AR22: =sample!AX29 ->  | AS22: =sample!AY29 ->  | AT22: =sample!AZ29 ->  | AU22: =sample!BA29 ->  | AV22: =sample!BB29 ->  | AW22: =sample!BC29 ->  | AX22: =sample!BD29 ->  | AY22: =sample!BE29 ->  | AZ22: =sample!BF29 ->  | BA22: =sample!BG29 ->  | BB22: =sample!BH29 ->  | BC22: =sample!BI29 ->  | BD22: =sample!BJ29 ->  | BE22: =sample!BK29 -> 
A24: ='Wk Input'!I13 ->  | B24: ='Wk Input'!B13 -> DM109 | C24: ='Wk Input'!C13 -> N/A | D24: ='Wk Input'!F13 ->  | E24: =KPIScore!I13 ->  | F24: =sample!L30 ->  | G24: =sample!M30 ->  | H24: =sample!N30 ->  | I24: =sample!O30 ->  | J24: =sample!P30 ->  | K24: =sample!Q30 ->  | L24: =sample!R30 ->  | M24: =sample!S30 ->  | N24: =sample!T30 ->  | O24: =sample!U30 ->  | P24: =sample!V30 ->  | Q24: =sample!W30 ->  | R24: =sample!X30 ->  | S24: =sample!Y30 ->  | T24: =sample!Z30 ->  | U24: =sample!AA30 ->  | V24: =sample!AB30 ->  | W24: =sample!AC30 ->  | X24: =sample!AD30 ->  | Y24: =sample!AE30 ->  | Z24: =sample!AF30 ->  | AA24: =sample!AG30 ->  | AB24: =sample!AH30 ->  | AC24: =sample!AI30 ->  | AD24: =sample!AJ30 ->  | AE24: =sample!AK30 ->  | AF24: =sample!AL30 ->  | AG24: =sample!AM30 ->  | AH24: =sample!AN30 ->  | AI24: =sample!AO30 ->  | AJ24: =sample!AP30 ->  | AK24: =sample!AQ30 ->  | AL24: =sample!AR30 ->  | AM24: =sample!AS30 ->  | AN24: =sample!AT30 ->  | AO24: =sample!AU30 ->  | AP24: =sample!AV30 ->  | AQ24: =sample!AW30 ->  | AR24: =sample!AX30 ->  | AS24: =sample!AY30 ->  | AT24: =sample!AZ30 ->  | AU24: =sample!BA30 ->  | AV24: =sample!BB30 ->  | AW24: =sample!BC30 ->  | AX24: =sample!BD30 ->  | AY24: =sample!BE30 ->  | AZ24: =sample!BF30 ->  | BA24: =sample!BG30 ->  | BB24: =sample!BH30 ->  | BC24: =sample!BI30 ->  | BD24: =sample!BJ30 ->  | BE24: =sample!BK30 -> 
A26: ='Wk Input'!I14 ->  | B26: ='Wk Input'!B14 -> DM110 | C26: ='Wk Input'!C14 -> N/A | D26: ='Wk Input'!F14 ->  | E26: =KPIScore!I14 ->  | F26: =sample!L31 ->  | G26: =sample!M31 ->  | H26: =sample!N31 ->  | I26: =sample!O31 ->  | J26: =sample!P31 ->  | K26: =sample!Q31 ->  | L26: =sample!R31 ->  | M26: =sample!S31 ->  | N26: =sample!T31 ->  | O26: =sample!U31 ->  | P26: =sample!V31 ->  | Q26: =sample!W31 ->  | R26: =sample!X31 ->  | S26: =sample!Y31 ->  | T26: =sample!Z31 ->  | U26: =sample!AA31 ->  | V26: =sample!AB31 ->  | W26: =sample!AC31 ->  | X26: =sample!AD31 ->  | Y26: =sample!AE31 ->  | Z26: =sample!AF31 ->  | AA26: =sample!AG31 ->  | AB26: =sample!AH31 ->  | AC26: =sample!AI31 ->  | AD26: =sample!AJ31 ->  | AE26: =sample!AK31 ->  | AF26: =sample!AL31 ->  | AG26: =sample!AM31 ->  | AH26: =sample!AN31 ->  | AI26: =sample!AO31 ->  | AJ26: =sample!AP31 ->  | AK26: =sample!AQ31 ->  | AL26: =sample!AR31 ->  | AM26: =sample!AS31 ->  | AN26: =sample!AT31 ->  | AO26: =sample!AU31 ->  | AP26: =sample!AV31 ->  | AQ26: =sample!AW31 ->  | AR26: =sample!AX31 ->  | AS26: =sample!AY31 ->  | AT26: =sample!AZ31 ->  | AU26: =sample!BA31 ->  | AV26: =sample!BB31 ->  | AW26: =sample!BC31 ->  | AX26: =sample!BD31 ->  | AY26: =sample!BE31 ->  | AZ26: =sample!BF31 ->  | BA26: =sample!BG31 ->  | BB26: =sample!BH31 ->  | BC26: =sample!BI31 ->  | BD26: =sample!BJ31 ->  | BE26: =sample!BK31 -> 
A28: ='Wk Input'!I15 ->  | B28: ='Wk Input'!B15 -> DM111 | C28: ='Wk Input'!C15 -> N/A | D28: ='Wk Input'!F15 ->  | E28: =KPIScore!I15 ->  | F28: =sample!L32 ->  | G28: =sample!M32 ->  | H28: =sample!N32 ->  | I28: =sample!O32 ->  | J28: =sample!P32 ->  | K28: =sample!Q32 ->  | L28: =sample!R32 ->  | M28: =sample!S32 ->  | N28: =sample!T32 ->  | O28: =sample!U32 ->  | P28: =sample!V32 ->  | Q28: =sample!W32 ->  | R28: =sample!X32 ->  | S28: =sample!Y32 ->  | T28: =sample!Z32 ->  | U28: =sample!AA32 ->  | V28: =sample!AB32 ->  | W28: =sample!AC32 ->  | X28: =sample!AD32 ->  | Y28: =sample!AE32 ->  | Z28: =sample!AF32 ->  | AA28: =sample!AG32 ->  | AB28: =sample!AH32 ->  | AC28: =sample!AI32 ->  | AD28: =sample!AJ32 ->  | AE28: =sample!AK32 ->  | AF28: =sample!AL32 ->  | AG28: =sample!AM32 ->  | AH28: =sample!AN32 ->  | AI28: =sample!AO32 ->  | AJ28: =sample!AP32 ->  | AK28: =sample!AQ32 ->  | AL28: =sample!AR32 ->  | AM28: =sample!AS32 ->  | AN28: =sample!AT32 ->  | AO28: =sample!AU32 ->  | AP28: =sample!AV32 ->  | AQ28: =sample!AW32 ->  | AR28: =sample!AX32 ->  | AS28: =sample!AY32 ->  | AT28: =sample!AZ32 ->  | AU28: =sample!BA32 ->  | AV28: =sample!BB32 ->  | AW28: =sample!BC32 ->  | AX28: =sample!BD32 ->  | AY28: =sample!BE32 ->  | AZ28: =sample!BF32 ->  | BA28: =sample!BG32 ->  | BB28: =sample!BH32 ->  | BC28: =sample!BI32 ->  | BD28: =sample!BJ32 ->  | BE28: =sample!BK32 -> 
A30: ='Wk Input'!I16 ->  | B30: ='Wk Input'!B16 -> DM112 | C30: ='Wk Input'!C16 -> N/A | D30: ='Wk Input'!F16 ->  | E30: =KPIScore!I16 ->  | F30: =sample!L33 ->  | G30: =sample!M33 ->  | H30: =sample!N33 ->  | I30: =sample!O33 ->  | J30: =sample!P33 ->  | K30: =sample!Q33 ->  | L30: =sample!R33 ->  | M30: =sample!S33 ->  | N30: =sample!T33 ->  | O30: =sample!U33 ->  | P30: =sample!V33 ->  | Q30: =sample!W33 ->  | R30: =sample!X33 ->  | S30: =sample!Y33 ->  | T30: =sample!Z33 ->  | U30: =sample!AA33 ->  | V30: =sample!AB33 ->  | W30: =sample!AC33 ->  | X30: =sample!AD33 ->  | Y30: =sample!AE33 ->  | Z30: =sample!AF33 ->  | AA30: =sample!AG33 ->  | AB30: =sample!AH33 ->  | AC30: =sample!AI33 ->  | AD30: =sample!AJ33 ->  | AE30: =sample!AK33 ->  | AF30: =sample!AL33 ->  | AG30: =sample!AM33 ->  | AH30: =sample!AN33 ->  | AI30: =sample!AO33 ->  | AJ30: =sample!AP33 ->  | AK30: =sample!AQ33 ->  | AL30: =sample!AR33 ->  | AM30: =sample!AS33 ->  | AN30: =sample!AT33 ->  | AO30: =sample!AU33 ->  | AP30: =sample!AV33 ->  | AQ30: =sample!AW33 ->  | AR30: =sample!AX33 ->  | AS30: =sample!AY33 ->  | AT30: =sample!AZ33 ->  | AU30: =sample!BA33 ->  | AV30: =sample!BB33 ->  | AW30: =sample!BC33 ->  | AX30: =sample!BD33 ->  | AY30: =sample!BE33 ->  | AZ30: =sample!BF33 ->  | BA30: =sample!BG33 ->  | BB30: =sample!BH33 ->  | BC30: =sample!BI33 ->  | BD30: =sample!BJ33 ->  | BE30: =sample!BK33 -> 
A32: ='Wk Input'!I17 ->  | B32: ='Wk Input'!B17 -> DM113 | C32: ='Wk Input'!C17 -> N/A | D32: ='Wk Input'!F17 ->  | E32: =KPIScore!I17 ->  | F32: =sample!L34 ->  | G32: =sample!M34 ->  | H32: =sample!N34 ->  | I32: =sample!O34 ->  | J32: =sample!P34 ->  | K32: =sample!Q34 ->  | L32: =sample!R34 ->  | M32: =sample!S34 ->  | N32: =sample!T34 ->  | O32: =sample!U34 ->  | P32: =sample!V34 ->  | Q32: =sample!W34 ->  | R32: =sample!X34 ->  | S32: =sample!Y34 ->  | T32: =sample!Z34 ->  | U32: =sample!AA34 ->  | V32: =sample!AB34 ->  | W32: =sample!AC34 ->  | X32: =sample!AD34 ->  | Y32: =sample!AE34 ->  | Z32: =sample!AF34 ->  | AA32: =sample!AG34 ->  | AB32: =sample!AH34 ->  | AC32: =sample!AI34 ->  | AD32: =sample!AJ34 ->  | AE32: =sample!AK34 ->  | AF32: =sample!AL34 ->  | AG32: =sample!AM34 ->  | AH32: =sample!AN34 ->  | AI32: =sample!AO34 ->  | AJ32: =sample!AP34 ->  | AK32: =sample!AQ34 ->  | AL32: =sample!AR34 ->  | AM32: =sample!AS34 ->  | AN32: =sample!AT34 ->  | AO32: =sample!AU34 ->  | AP32: =sample!AV34 ->  | AQ32: =sample!AW34 ->  | AR32: =sample!AX34 ->  | AS32: =sample!AY34 ->  | AT32: =sample!AZ34 ->  | AU32: =sample!BA34 ->  | AV32: =sample!BB34 ->  | AW32: =sample!BC34 ->  | AX32: =sample!BD34 ->  | AY32: =sample!BE34 ->  | AZ32: =sample!BF34 ->  | BA32: =sample!BG34 ->  | BB32: =sample!BH34 ->  | BC32: =sample!BI34 ->  | BD32: =sample!BJ34 ->  | BE32: =sample!BK34 -> 
A34: ='Wk Input'!I18 ->  | B34: ='Wk Input'!B18 -> DM114 | C34: ='Wk Input'!C18 -> N/A | D34: ='Wk Input'!F18 ->  | E34: =KPIScore!I18 ->  | F34: =sample!L35 ->  | G34: =sample!M35 ->  | H34: =sample!N35 ->  | I34: =sample!O35 ->  | J34: =sample!P35 ->  | K34: =sample!Q35 ->  | L34: =sample!R35 ->  | M34: =sample!S35 ->  | N34: =sample!T35 ->  | O34: =sample!U35 ->  | P34: =sample!V35 ->  | Q34: =sample!W35 ->  | R34: =sample!X35 ->  | S34: =sample!Y35 ->  | T34: =sample!Z35 ->  | U34: =sample!AA35 ->  | V34: =sample!AB35 ->  | W34: =sample!AC35 ->  | X34: =sample!AD35 ->  | Y34: =sample!AE35 ->  | Z34: =sample!AF35 ->  | AA34: =sample!AG35 ->  | AB34: =sample!AH35 ->  | AC34: =sample!AI35 ->  | AD34: =sample!AJ35 ->  | AE34: =sample!AK35 ->  | AF34: =sample!AL35 ->  | AG34: =sample!AM35 ->  | AH34: =sample!AN35 ->  | AI34: =sample!AO35 ->  | AJ34: =sample!AP35 ->  | AK34: =sample!AQ35 ->  | AL34: =sample!AR35 ->  | AM34: =sample!AS35 ->  | AN34: =sample!AT35 ->  | AO34: =sample!AU35 ->  | AP34: =sample!AV35 ->  | AQ34: =sample!AW35 ->  | AR34: =sample!AX35 ->  | AS34: =sample!AY35 ->  | AT34: =sample!AZ35 ->  | AU34: =sample!BA35 ->  | AV34: =sample!BB35 ->  | AW34: =sample!BC35 ->  | AX34: =sample!BD35 ->  | AY34: =sample!BE35 ->  | AZ34: =sample!BF35 ->  | BA34: =sample!BG35 ->  | BB34: =sample!BH35 ->  | BC34: =sample!BI35 ->  | BD34: =sample!BJ35 ->  | BE34: =sample!BK35 -> 
A36: ='Wk Input'!I19 ->  | B36: ='Wk Input'!B19 -> DM115 | C36: ='Wk Input'!C19 -> N/A | D36: ='Wk Input'!F19 ->  | E36: =KPIScore!I19 ->  | F36: =sample!L36 ->  | G36: =sample!M36 ->  | H36: =sample!N36 ->  | I36: =sample!O36 ->  | J36: =sample!P36 ->  | K36: =sample!Q36 ->  | L36: =sample!R36 ->  | M36: =sample!S36 ->  | N36: =sample!T36 ->  | O36: =sample!U36 ->  | P36: =sample!V36 ->  | Q36: =sample!W36 ->  | R36: =sample!X36 ->  | S36: =sample!Y36 ->  | T36: =sample!Z36 ->  | U36: =sample!AA36 ->  | V36: =sample!AB36 ->  | W36: =sample!AC36 ->  | X36: =sample!AD36 ->  | Y36: =sample!AE36 ->  | Z36: =sample!AF36 ->  | AA36: =sample!AG36 ->  | AB36: =sample!AH36 ->  | AC36: =sample!AI36 ->  | AD36: =sample!AJ36 ->  | AE36: =sample!AK36 ->  | AF36: =sample!AL36 ->  | AG36: =sample!AM36 ->  | AH36: =sample!AN36 ->  | AI36: =sample!AO36 ->  | AJ36: =sample!AP36 ->  | AK36: =sample!AQ36 ->  | AL36: =sample!AR36 ->  | AM36: =sample!AS36 ->  | AN36: =sample!AT36 ->  | AO36: =sample!AU36 ->  | AP36: =sample!AV36 ->  | AQ36: =sample!AW36 ->  | AR36: =sample!AX36 ->  | AS36: =sample!AY36 ->  | AT36: =sample!AZ36 ->  | AU36: =sample!BA36 ->  | AV36: =sample!BB36 ->  | AW36: =sample!BC36 ->  | AX36: =sample!BD36 ->  | AY36: =sample!BE36 ->  | AZ36: =sample!BF36 ->  | BA36: =sample!BG36 ->  | BB36: =sample!BH36 ->  | BC36: =sample!BI36 ->  | BD36: =sample!BJ36 ->  | BE36: =sample!BK36 -> 
A38: ='Wk Input'!I20 ->  | B38: ='Wk Input'!B20 -> DM116 | C38: ='Wk Input'!C20 -> N/A | D38: ='Wk Input'!F20 ->  | E38: =KPIScore!I20 ->  | F38: =sample!L37 ->  | G38: =sample!M37 ->  | H38: =sample!N37 ->  | I38: =sample!O37 ->  | J38: =sample!P37 ->  | K38: =sample!Q37 ->  | L38: =sample!R37 ->  | M38: =sample!S37 ->  | N38: =sample!T37 ->  | O38: =sample!U37 ->  | P38: =sample!V37 ->  | Q38: =sample!W37 ->  | R38: =sample!X37 ->  | S38: =sample!Y37 ->  | T38: =sample!Z37 ->  | U38: =sample!AA37 ->  | V38: =sample!AB37 ->  | W38: =sample!AC37 ->  | X38: =sample!AD37 ->  | Y38: =sample!AE37 ->  | Z38: =sample!AF37 ->  | AA38: =sample!AG37 ->  | AB38: =sample!AH37 ->  | AC38: =sample!AI37 ->  | AD38: =sample!AJ37 ->  | AE38: =sample!AK37 ->  | AF38: =sample!AL37 ->  | AG38: =sample!AM37 ->  | AH38: =sample!AN37 ->  | AI38: =sample!AO37 ->  | AJ38: =sample!AP37 ->  | AK38: =sample!AQ37 ->  | AL38: =sample!AR37 ->  | AM38: =sample!AS37 ->  | AN38: =sample!AT37 ->  | AO38: =sample!AU37 ->  | AP38: =sample!AV37 ->  | AQ38: =sample!AW37 ->  | AR38: =sample!AX37 ->  | AS38: =sample!AY37 ->  | AT38: =sample!AZ37 ->  | AU38: =sample!BA37 ->  | AV38: =sample!BB37 ->  | AW38: =sample!BC37 ->  | AX38: =sample!BD37 ->  | AY38: =sample!BE37 ->  | AZ38: =sample!BF37 ->  | BA38: =sample!BG37 ->  | BB38: =sample!BH37 ->  | BC38: =sample!BI37 ->  | BD38: =sample!BJ37 ->  | BE38: =sample!BK37 -> 
E40: Minggu | F40: 1 | G40: 2 | H40: 3 | I40: 4 | J40: 5 | K40: 6 | L40: 7 | M40: 8 | N40: 9 | O40: 10 | P40: 11 | Q40: 12 | R40: 13 | S40: 14 | T40: 15 | U40: 16 | V40: 17 | W40: 18 | X40: 19 | Y40: 20 | Z40: 21 | AA40: 22 | AB40: 23 | AC40: 24 | AD40: 25 | AE40: 26 | AF40: 27 | AG40: 28 | AH40: 29 | AI40: 30 | AJ40: 31 | AK40: 32 | AL40: 33 | AM40: 34 | AN40: 35 | AO40: 36 | AP40: 37 | AQ40: 38 | AR40: 39 | AS40: 40 | AT40: 41 | AU40: 42 | AV40: 43 | AW40: 44 | AX40: 45 | AY40: 46 | AZ40: 47 | BA40: 48 | BB40: 49 | BC40: 50 | BD40: 51 | BE40: 52
C42: Form design by LEADERSENSE CONSULTING & SYSTEMS SDN BHD © 2017

Sheet MyDashboard
A1: =KPICreate!A4 -> 2020 | C1: KPI MyDashboard
B3: =Home!H6 -> ADAM NAUFAL HASMADI | J3: =Home!$H$12 -> PEMASARAN DAN PERKHIDMATAN
B4: =Home!H10 -> PEN. KETUA PEMASARAN DAN PERKHIDMATAN | J4: =Home!$H$16 -> SAMPEL CORPORATION LTD
I5: Minggu Ini: | J5: ='Wk Input'!J2 -> 53
B6: Speedometer Data | D6: Series Level | I6: Speedometer Data | L6: Series Level | M6: Speedometer Data | P6: Series Level | Q6: Speedometer Data | T6: Series Level | U6: Speedometer Data | X6: Series Level
B7: Start | C7: 0 | D7: 0 | I7: Start | K7: 0 | L7: 0 | M7: Start | O7: 0 | P7: 0 | Q7: Start | S7: 0 | T7: 0 | U7: Start | W7: 0 | X7: 0
B8: Red | C8: 20 | D8: 20 | I8: Red | K8: 20 | L8: 20 | M8: Red | O8: 20 | P8: 20 | Q8: Red | S8: 20 | T8: 20 | U8: Red | W8: 20 | X8: 20
B9: Orange | C9: 30 | D9: 50 | I9: Orange | K9: 30 | L9: 50 | M9: Orange | O9: 30 | P9: 50 | Q9: Orange | S9: 30 | T9: 50 | U9: Orange | W9: 30 | X9: 50
B10: Yellow | C10: 30 | D10: 80 | I10: Yellow | K10: 30 | L10: 80 | M10: Yellow | O10: 30 | P10: 80 | Q10: Yellow | S10: 30 | T10: 80 | U10: Yellow | W10: 30 | X10: 80
B11: Yellow-Green | C11: 10 | D11: 90 | I11: Yellow-Green | K11: 10 | L11: 90 | M11: Yellow-Green | O11: 10 | P11: 90 | Q11: Yellow-Green | S11: 10 | T11: 90 | U11: Yellow-Green | W11: 10 | X11: 90
B12: Green | C12: 10 | D12: 100 | I12: Green | K12: 10 | L12: 100 | M12: Green | O12: 10 | P12: 100 | Q12: Green | S12: 10 | T12: 100 | U12: Green | W12: 10 | X12: 100
B13: Blank area | C13: 100 | I13: Blank area | K13: 100 | M13: Blank area | O13: 100 | Q13: Blank area | S13: 100 | U13: Blank area | W13: 100
B14: Pointer Data | I14: Pointer Data | M14: Pointer Data | Q14: Pointer Data | U14: Pointer Data
B15: KPI Score | C15: =KPIScore!O21 -> 95.11655303 | I15: KPI Score | K15: =KPIScore!N5 -> 99.22077922 | M15: KPI Score | O15: =KPIScore!N6 -> 67.26190476 | Q15: KPI Score | S15: =KPIScore!N7 -> 100 | U15: KPI Score | W15: =KPIScore!N8 -> 98.66863905
B16: Needle size | C16: 2 | I16: Needle size | K16: 2 | M16: Needle size | O16: 2 | Q16: Needle size | S16: 2 | U16: Needle size | W16: 2
B17: End | C17: =SUM(C7:C13)-SUM(C15:C16) -> 102.883447 | I17: End | K17: =SUM(K7:K13)-SUM(K15:K16) -> 98.77922078 | M17: End | O17: =SUM(O7:O13)-SUM(O15:O16) -> 130.7380952 | Q17: End | S17: =SUM(S7:S13)-SUM(S15:S16) -> 98 | U17: End | W17: =SUM(W7:W13)-SUM(W15:W16) -> 99.33136095
I18: =KPIScore!B5 -> WK01 Mencapai sasaran pendapatan korporat yang meningkat bagi Sektor Perumahan (RM Juta) | M18: =KPIScore!B6 -> BP03 Mengekalkan pembayaran pulang deposit pelanggan sewaan dalam tempoh yang optimum (Bil Hari) | Q18: =KPIScore!B7 -> BP49 Mengekalkan Penghantaran shipment Pelanggan menepati sasaran | U18: =KPIScore!B8 -> BP19 Mencapai penyempurnaan survei kajian penyelidikan 5 Klien-Produk
I19: =K15 -> 99.22077922 | M19: =O15 -> 67.26190476 | Q19: =S15 -> 100 | U19: =W15 -> 98.66863905
I20: Speedometer Data | L20: Series Level | M20: Speedometer Data | P20: Series Level | Q20: Speedometer Data | T20: Series Level | U20: Speedometer Data | X20: Series Level
I21: Start | K21: 0 | L21: 0 | M21: Start | O21: 0 | P21: 0 | Q21: Start | S21: 0 | T21: 0 | U21: Start | W21: 0 | X21: 0
I22: Red | K22: 20 | L22: 20 | M22: Red | O22: 20 | P22: 20 | Q22: Red | S22: 20 | T22: 20 | U22: Red | W22: 20 | X22: 20
I23: Orange | K23: 30 | L23: 50 | M23: Orange | O23: 30 | P23: 50 | Q23: Orange | S23: 30 | T23: 50 | U23: Orange | W23: 30 | X23: 50
I24: Yellow | K24: 30 | L24: 80 | M24: Yellow | O24: 30 | P24: 80 | Q24: Yellow | S24: 30 | T24: 80 | U24: Yellow | W24: 30 | X24: 80
I25: Yellow-Green | K25: 10 | L25: 90 | M25: Yellow-Green | O25: 10 | P25: 90 | Q25: Yellow-Green | S25: 10 | T25: 90 | U25: Yellow-Green | W25: 10 | X25: 90
I26: Green | K26: 10 | L26: 100 | M26: Green | O26: 10 | P26: 100 | Q26: Green | S26: 10 | T26: 100 | U26: Green | W26: 10 | X26: 100
I27: Blank area | K27: 100 | M27: Blank area | O27: 100 | Q27: Blank area | S27: 100 | U27: Blank area | W27: 100
A28: =KPIScore!N21 -> Jumlah Skor KPI diWajar % | I28: Pointer Data | M28: Pointer Data | Q28: Pointer Data | U28: Pointer Data
I29: KPI Score | K29: =KPIScore!N9 -> 100 | M29: KPI Score | O29: =KPIScore!N10 -> 100 | Q29: KPI Score | S29: =KPIScore!N11 ->  | U29: KPI Score | W29: =KPIScore!N12 -> 
I30: Needle size | K30: 2 | M30: Needle size | O30: 2 | Q30: Needle size | S30: 2 | U30: Needle size | W30: 2
I31: End | K31: =SUM(K21:K27)-SUM(K29:K30) -> 98 | M31: End | O31: =SUM(O21:O27)-SUM(O29:O30) -> 98 | Q31: End | S31: =SUM(S21:S27)-SUM(S29:S30) -> 198 | U31: End | W31: =SUM(W21:W27)-SUM(W29:W30) -> 198
A32: =C15 -> 95.11655303 | I32: =KPIScore!B9 -> OR04 Mengekalkan penyempurnaan kerja-kerja adhoc pemasaran dan perkhidmatan seperti yang diperlukan oleh Jabatan | M32: =KPIScore!B10 -> OR05 Mencapai pensijilan ISO18001:2007 oleh badan pensijilan | Q32: =KPIScore!B11 -> N/A | U32: =KPIScore!B12 -> N/A
I33: =K29 -> 100 | M33: =O29 -> 100 | Q33: =S29 ->  | U33: =W29 -> 
A34: Speedometer Data | C34: Series Level | D34: Speedometer Data | F34: Series Level | G34: Speedometer Data | I34: Series Level | J34: Speedometer Data | L34: Series Level | M34: Speedometer Data | O34: Series Level | P34: Speedometer Data | R34: Series Level | S34: Speedometer Data | U34: Series Level | V34: Speedometer Data | X34: Series Level
A35: Start | B35: 0 | C35: 0 | D35: Start | E35: 0 | F35: 0 | G35: Start | H35: 0 | I35: 0 | J35: Start | K35: 0 | L35: 0 | M35: Start | N35: 0 | O35: 0 | P35: Start | Q35: 0 | R35: 0 | S35: Start | T35: 0 | U35: 0 | V35: Start | W35: 0 | X35: 0
A36: Red | B36: 20 | C36: 20 | D36: Red | E36: 20 | F36: 20 | G36: Red | H36: 20 | I36: 20 | J36: Red | K36: 20 | L36: 20 | M36: Red | N36: 20 | O36: 20 | P36: Red | Q36: 20 | R36: 20 | S36: Red | T36: 20 | U36: 20 | V36: Red | W36: 20 | X36: 20
A37: Orange | B37: 30 | C37: 50 | D37: Orange | E37: 30 | F37: 50 | G37: Orange | H37: 30 | I37: 50 | J37: Orange | K37: 30 | L37: 50 | M37: Orange | N37: 30 | O37: 50 | P37: Orange | Q37: 30 | R37: 50 | S37: Orange | T37: 30 | U37: 50 | V37: Orange | W37: 30 | X37: 50
A38: Yellow | B38: 30 | C38: 80 | D38: Yellow | E38: 30 | F38: 80 | G38: Yellow | H38: 30 | I38: 80 | J38: Yellow | K38: 30 | L38: 80 | M38: Yellow | N38: 30 | O38: 80 | P38: Yellow | Q38: 30 | R38: 80 | S38: Yellow | T38: 30 | U38: 80 | V38: Yellow | W38: 30 | X38: 80
A39: Yellow-Green | B39: 10 | C39: 90 | D39: Yellow-Green | E39: 10 | F39: 90 | G39: Yellow-Green | H39: 10 | I39: 90 | J39: Yellow-Green | K39: 10 | L39: 90 | M39: Yellow-Green | N39: 10 | O39: 90 | P39: Yellow-Green | Q39: 10 | R39: 90 | S39: Yellow-Green | T39: 10 | U39: 90 | V39: Yellow-Green | W39: 10 | X39: 90
A40: Green | B40: 10 | C40: 100 | D40: Green | E40: 10 | F40: 100 | G40: Green | H40: 10 | I40: 100 | J40: Green | K40: 10 | L40: 100 | M40: Green | N40: 10 | O40: 100 | P40: Green | Q40: 10 | R40: 100 | S40: Green | T40: 10 | U40: 100 | V40: Green | W40: 10 | X40: 100
A41: Blank area | B41: 100 | D41: Blank area | E41: 100 | G41: Blank area | H41: 100 | J41: Blank area | K41: 100 | M41: Blank area | N41: 100 | P41: Blank area | Q41: 100 | S41: Blank area | T41: 100 | V41: Blank area | W41: 100
A42: Pointer Data | D42: Pointer Data | G42: Pointer Data | J42: Pointer Data | M42: Pointer Data | P42: Pointer Data | S42: Pointer Data | V42: Pointer Data
A43: KPI Score | B43: =KPIScore!N13 ->  | D43: KPI Score | E43: =KPIScore!N14 ->  | G43: KPI Score | H43: =KPIScore!N15 ->  | J43: KPI Score | K43: =KPIScore!N16 ->  | M43: KPI Score | N43: =KPIScore!N17 ->  | P43: KPI Score | Q43: =KPIScore!N18 ->  | S43: KPI Score | T43: =KPIScore!N19 ->  | V43: KPI Score | W43: =KPIScore!N20 -> 
A44: Needle size | B44: 2 | D44: Needle size | E44: 2 | G44: Needle size | H44: 2 | J44: Needle size | K44: 2 | M44: Needle size | N44: 2 | P44: Needle size | Q44: 2 | S44: Needle size | T44: 2 | V44: Needle size | W44: 2
A45: End | B45: =SUM(B35:B41)-SUM(B43:B44) -> 198 | D45: End | E45: =SUM(E35:E41)-SUM(E43:E44) -> 198 | G45: End | H45: =SUM(H35:H41)-SUM(H43:H44) -> 198 | J45: End | K45: =SUM(K35:K41)-SUM(K43:K44) -> 198 | M45: End | N45: =SUM(N35:N41)-SUM(N43:N44) -> 198 | P45: End | Q45: =SUM(Q35:Q41)-SUM(Q43:Q44) -> 198 | S45: End | T45: =SUM(T35:T41)-SUM(T43:T44) -> 198 | V45: End | W45: =SUM(W35:W41)-SUM(W43:W44) -> 198
A46: =KPIScore!B13 -> N/A | D46: =KPIScore!B14 -> N/A | G46: =KPIScore!B15 -> N/A | J46: =KPIScore!B16 -> N/A | M46: =KPIScore!B17 -> N/A | P46: =KPIScore!B18 -> N/A | S46: =KPIScore!B19 -> N/A | V46: =KPIScore!B20 -> N/A
A47: =B43 ->  | D47: =E43 ->  | G47: =H43 ->  | J47: =K43 ->  | M47: =N43 ->  | P47: =Q43 ->  | S47: =T43 ->  | V47: =W43 -> 
G49: Form Design by: Leadersense Consulting & Systems Sdn Bhd @2017

Sheet CorpGraphs
B1: Corporate Graphs | L1: Minggu ini: | M1: =KPICreate!A4 -> 2020 | O1: =Home!H16 -> SAMPEL CORPORATION LTD
L2: ='Wk Input'!J2 -> 53 | AK2: 1 | AL2: 2 | AM2: 3 | AN2: 4 | AO2: 5 | AP2: 6 | AQ2: 7 | AR2: 8 | AS2: 9 | AT2: 10 | AU2: 11 | AV2: 12 | AW2: 13 | AX2: 14 | AY2: 15 | AZ2: 16 | BA2: 17 | BB2: 18 | BC2: 19 | BD2: 20 | BE2: 21 | BF2: 22 | BG2: 23 | BH2: 24 | BI2: 25 | BJ2: 26 | BK2: 27 | BL2: 28 | BM2: 29 | BN2: 30 | BO2: 31 | BP2: 32 | BQ2: 33 | BR2: 34 | BS2: 35 | BT2: 36 | BU2: 37 | BV2: 38 | BW2: 39 | BX2: 40 | BY2: 41 | BZ2: 42 | CA2: 43 | CB2: 44 | CC2: 45 | CD2: 46 | CE2: 47 | CF2: 48 | CG2: 49 | CH2: 50 | CI2: 51 | CJ2: 52 | CL2: =IF($L$2>52,52,$L$2) -> 52
P3: MD/CEO kumpulan telah berkongsi geraf2 ini dengan anda: | AG3: KPI Ref ID | AH3: Description | AI3: MType | AJ3: Sasaran | AK3: Wk 1 | AL3: Wk 2 | AM3: Wk 3 | AN3: Wk 4 | AO3: Wk 5 | AP3: Wk 6 | AQ3: Wk 7 | AR3: Wk 8 | AS3: Wk 9 | AT3: Wk 10 | AU3: Wk 11 | AV3: Wk 12 | AW3: Wk 13 | AX3: Wk 14 | AY3: Wk 15 | AZ3: Wk 16 | BA3: Wk 17 | BB3: Wk 18 | BC3: Wk 19 | BD3: Wk 20 | BE3: Wk 21 | BF3: Wk 22 | BG3: Wk 23 | BH3: Wk 24 | BI3: Wk 25 | BJ3: Wk 26 | BK3: Wk 27 | BL3: Wk 28 | BM3: Wk 29 | BN3: Wk 30 | BO3: Wk 31 | BP3: Wk 32 | BQ3: Wk 33 | BR3: Wk 34 | BS3: Wk 35 | BT3: Wk 36 | BU3: Wk 37 | BV3: Wk 38 | BW3: Wk 39 | BX3: Wk 40 | BY3: Wk 41 | BZ3: Wk 42 | CA3: Wk 43 | CB3: Wk 44 | CC3: Wk 45 | CD3: Wk 46 | CE3: Wk 47 | CF3: Wk 48 | CG3: Wk 49 | CH3: Wk 50 | CI3: Wk 51 | CJ3: Wk 52 | CM3: 1 | CN3: 2 | CO3: 3 | CP3: 4 | CQ3: 5 | CR3: 6 | CS3: 7 | CT3: 8 | CU3: 9 | CV3: 10 | CW3: 11 | CX3: 12 | CY3: 13 | CZ3: 14 | DA3: 15 | DB3: 16 | DC3: 17 | DD3: 18 | DE3: 19 | DF3: 20 | DG3: 21 | DH3: 22 | DI3: 23 | DJ3: 24 | DK3: 25 | DL3: 26 | DM3: 27 | DN3: 28 | DO3: 29 | DP3: 30 | DQ3: 31 | DR3: 32 | DS3: 33 | DT3: 34 | DU3: 35 | DV3: 36 | DW3: 37 | DX3: 38 | DY3: 39 | DZ3: 40 | EA3: 41 | EB3: 42 | EC3: 43 | ED3: 44 | EE3: 45 | EF3: 46 | EG3: 47 | EH3: 48 | EI3: 49 | EJ3: 50 | EK3: 51 | EL3: 52
B5: ❶ | C5: ID KPI: | D5: =AG8 -> AA001 | F5: Nilai Wk: | G5: =INDEX($AK8:$CJ8,,$CL$2) ->  | H5: Skor %: | I5: =INDEX($CM9:$EL9,,$CL$2) -> 98.164 | K5: ❷ | L5: ID KPI: | M5: =AG10 -> AA005 | O5: Nilai Wk: | P5: =INDEX($AK10:$CJ10,,$CL$2) ->  | Q5: Skor %: | R5: =INDEX($CM11:$EL11,,$CL$2) -> 90.658 | T5: ❸ | U5: ID KPI: | V5: =AG12 -> AA103 | X5: Nilai Wk: | Y5: =INDEX($AK12:$CJ12,,$CL$2) ->  | Z5: Skor %: | AA5: =INDEX($CM13:$EL13,,$CL$2) -> 92.75541126
C6: Deskripsi KPI: | D6: =AH8 -> WK01 Mencapai sasaran pendapatan korporat yang meningkat (RM Juta) | L6: Deskripsi KPI: | M6: =AH10 -> WR11 Mencapai Pensijilan Korporat ISO9001:2015 | U6: Deskripsi KPI: | V6: =AH12 -> WP31 Mengekalkan pencapaian Service Level Agreement 5 Klien Tertinggi
AF7: FALSE
AF8: AA001 | AG8: AA001 | AH8: WK01 Mencapai sasaran pendapatan korporat yang meningkat (RM Juta) | AI8: 1A | AJ8: Nilai Konsol | AK8: 0 | AL8: 0 | AM8: 0 | AN8: 2.52 | AO8: 4.03 | AP8: 6.375 | AQ8: 7.875 | AR8: 10.875 | AS8: 10.875 | AT8: 10.875 | AU8: 13.5 | AV8: 18 | AW8: 18.75 | AX8: 18.75 | AY8: 21 | AZ8: 21 | BA8: 21 | BB8: 23.25 | BC8: 24.75 | BD8: 25.5 | BE8: 25.64 | BF8: 27.46 | BG8: 27.653 | BH8: 29.786 | BI8: 30.211 | BJ8: 32.365 | BK8: 32.659 | BL8: 32.859 | BM8: 35.182 | BN8: 36.224 | BO8: 38.566 | BP8: 39.973 | BQ8: 40.204 | BR8: 40.949 | BS8: 43.411 | BT8: 43.602 | BU8: 43.959 | BV8: 44.342 | BW8: 44.559 | BX8: 48.266 | BY8: 49.426 | BZ8: 50.306 | CA8: 51.159 | CB8: 58.554 | CC8: 58.929 | CD8: 58.953 | CE8: 63.571 | CF8: 64.779 | CG8: 66.912 | CL8: A | CM8: 0 | CN8: 0 | CO8: 0 | CP8: 3.36 | CQ8: 5.373333333 | CR8: 8.5 | CS8: 10.5 | CT8: 14.5 | CU8: 14.5 | CV8: 14.5 | CW8: 18 | CX8: 24 | CY8: 25 | CZ8: 25 | DA8: 28 | DB8: 28 | DC8: 28 | DD8: 31 | DE8: 33 | DF8: 34 | DG8: 34.18666667 | DH8: 36.61333333 | DI8: 36.87066667 | DJ8: 39.71466667 | DK8: 40.28133333 | DL8: 43.15333333 | DM8: 43.54533333 | DN8: 43.812 | DO8: 46.90933333 | DP8: 48.29866667 | DQ8: 51.42133333 | DR8: 53.29733333 | DS8: 53.60533333 | DT8: 54.59866667 | DU8: 57.88133333 | DV8: 58.136 | DW8: 58.612 | DX8: 59.12266667 | DY8: 59.412 | DZ8: 64.35466667 | EA8: 65.90133333 | EB8: 67.07466667 | EC8: 68.212 | ED8: 78.072 | EE8: 78.572 | EF8: 78.604 | EG8: 84.76133333 | EH8: 86.372 | EI8: 89.216 | EJ8: 89.588 | EK8: 91.58133333 | EL8: 98.164
AF9: AA005 | AJ9: Sasaran | AK9: 75 | AL9: 75 | AM9: 75 | AN9: 75 | AO9: 75 | AP9: 75 | AQ9: 75 | AR9: 75 | AS9: 75 | AT9: 75 | AU9: 75 | AV9: 75 | AW9: 75 | AX9: 75 | AY9: 75 | AZ9: 75 | BA9: 75 | BB9: 75 | BC9: 75 | BD9: 75 | BE9: 75 | BF9: 75 | BG9: 75 | BH9: 75 | BI9: 75 | BJ9: 75 | BK9: 75 | BL9: 75 | BM9: 75 | BN9: 75 | BO9: 75 | BP9: 75 | BQ9: 75 | BR9: 75 | BS9: 75 | BT9: 75 | BU9: 75 | BV9: 75 | BW9: 75 | BX9: 75 | BY9: 75 | BZ9: 75 | CA9: 75 | CB9: 75 | CC9: 75 | CD9: 75 | CE9: 75 | CF9: 75 | CG9: 75 | CH9: 75 | CI9: 75 | CJ9: 75 | CM9: 0 | CN9: 0 | CO9: 0 | CP9: 3.36 | CQ9: 5.373333333 | CR9: 8.5 | CS9: 10.5 | CT9: 14.5 | CU9: 14.5 | CV9: 14.5 | CW9: 18 | CX9: 24 | CY9: 25 | CZ9: 25 | DA9: 28 | DB9: 28 | DC9: 28 | DD9: 31 | DE9: 33 | DF9: 34 | DG9: 34.18666667 | DH9: 36.61333333 | DI9: 36.87066667 | DJ9: 39.71466667 | DK9: 40.28133333 | DL9: 43.15333333 | DM9: 43.54533333 | DN9: 43.812 | DO9: 46.90933333 | DP9: 48.29866667 | DQ9: 51.42133333 | DR9: 53.29733333 | DS9: 53.60533333 | DT9: 54.59866667 | DU9: 57.88133333 | DV9: 58.136 | DW9: 58.612 | DX9: 59.12266667 | DY9: 59.412 | DZ9: 64.35466667 | EA9: 65.90133333 | EB9: 67.07466667 | EC9: 68.212 | ED9: 78.072 | EE9: 78.572 | EF9: 78.604 | EG9: 84.76133333 | EH9: 86.372 | EI9: 89.216 | EJ9: 89.588 | EK9: 91.58133333 | EL9: 98.164
AF10: AA103 | AG10: AA005 | AH10: WR11 Mencapai Pensijilan Korporat ISO9001:2015 | AI10: 1A | AJ10: Nilai Konsol | AK10: 0 | AL10: 0 | AM10: 0 | AN10: 1.5 | AO10: 1.5 | AP10: 1.5 | AQ10: 4.5 | AR10: 6 | AS10: 9 | AT10: 10.5 | AU10: 15.5 | AV10: 17.249 | AW10: 18.584 | AX10: 18.584 | AY10: 20.252 | AZ10: 21.752 | BA10: 21.815 | BB10: 21.815 | BC10: 24.979 | BD10: 26.416 | BE10: 26.542 | BF10: 27.126 | BG10: 30.5 | BH10: 32 | BI10: 35.5 | BJ10: 35.749 | BK10: 39 | BL10: 39 | BM10: 40.752 | BN10: 42.003 | BO10: 46 | BP10: 46.9 | BQ10: 48.816 | BR10: 50.415 | BS10: 52.2 | BT10: 54.2 | BU10: 55.7 | BV10: 58.813 | BW10: 58.813 | BX10: 60.813 | BY10: 70.624 | BZ10: 70.624 | CA10: 74.292 | CB10: 74.624 | CC10: 76.124 | CD10: 81.332 | CE10: 81.395 | CF10: 85.1 | CG10: 86 | CL10: A | CM10: 0 | CN10: 0 | CO10: 0 | CP10: 1.5 | CQ10: 1.5 | CR10: 1.5 | CS10: 4.5 | CT10: 6 | CU10: 9 | CV10: 10.5 | CW10: 15.5 | CX10: 17.249 | CY10: 18.584 | CZ10: 18.584 | DA10: 20.252 | DB10: 21.752 | DC10: 21.815 | DD10: 21.815 | DE10: 24.979 | DF10: 26.416 | DG10: 26.542 | DH10: 27.126 | DI10: 30.5 | DJ10: 32 | DK10: 35.5 | DL10: 35.749 | DM10: 39 | DN10: 39 | DO10: 40.752 | DP10: 42.003 | DQ10: 46 | DR10: 46.9 | DS10: 48.816 | DT10: 50.415 | DU10: 52.2 | DV10: 54.2 | DW10: 55.7 | DX10: 58.813 | DY10: 58.813 | DZ10: 60.813 | EA10: 70.624 | EB10: 70.624 | EC10: 74.292 | ED10: 74.624 | EE10: 76.124 | EF10: 81.332 | EG10: 81.395 | EH10: 85.1 | EI10: 86 | EJ10: 87.2 | EK10: 88.574 | EL10: 90.658
AF11: AA104 | AJ11: Sasaran | AK11: 100 | AL11: 100 | AM11: 100 | AN11: 100 | AO11: 100 | AP11: 100 | AQ11: 100 | AR11: 100 | AS11: 100 | AT11: 100 | AU11: 100 | AV11: 100 | AW11: 100 | AX11: 100 | AY11: 100 | AZ11: 100 | BA11: 100 | BB11: 100 | BC11: 100 | BD11: 100 | BE11: 100 | BF11: 100 | BG11: 100 | BH11: 100 | BI11: 100 | BJ11: 100 | BK11: 100 | BL11: 100 | BM11: 100 | BN11: 100 | BO11: 100 | BP11: 100 | BQ11: 100 | BR11: 100 | BS11: 100 | BT11: 100 | BU11: 100 | BV11: 100 | BW11: 100 | BX11: 100 | BY11: 100 | BZ11: 100 | CA11: 100 | CB11: 100 | CC11: 100 | CD11: 100 | CE11: 100 | CF11: 100 | CG11: 100 | CH11: 100 | CI11: 100 | CJ11: 100 | CM11: 0 | CN11: 0 | CO11: 0 | CP11: 1.5 | CQ11: 1.5 | CR11: 1.5 | CS11: 4.5 | CT11: 6 | CU11: 9 | CV11: 10.5 | CW11: 15.5 | CX11: 17.249 | CY11: 18.584 | CZ11: 18.584 | DA11: 20.252 | DB11: 21.752 | DC11: 21.815 | DD11: 21.815 | DE11: 24.979 | DF11: 26.416 | DG11: 26.542 | DH11: 27.126 | DI11: 30.5 | DJ11: 32 | DK11: 35.5 | DL11: 35.749 | DM11: 39 | DN11: 39 | DO11: 40.752 | DP11: 42.003 | DQ11: 46 | DR11: 46.9 | DS11: 48.816 | DT11: 50.415 | DU11: 52.2 | DV11: 54.2 | DW11: 55.7 | DX11: 58.813 | DY11: 58.813 | DZ11: 60.813 | EA11: 70.624 | EB11: 70.624 | EC11: 74.292 | ED11: 74.624 | EE11: 76.124 | EF11: 81.332 | EG11: 81.395 | EH11: 85.1 | EI11: 86 | EJ11: 87.2 | EK11: 88.574 | EL11: 90.658
AF12: AA202 | AG12: AA103 | AH12: WP31 Mengekalkan pencapaian Service Level Agreement 5 Klien Tertinggi | AI12: 1M | AJ12: Nilai Konsol | AO12: 94 | AS12: 89.5 | AX12: 95.5 | BB12: 92 | BG12: 54 | BK12: 90 | BO12: 92.5 | BT12: 91.5 | BX12: 93.5 | CB12: 95.5 | CG12: 98.5 | CL12: M | CQ12: 94 | CU12: 91.75 | CZ12: 93 | DD12: 92.75 | DI12: 92.9 | DM12: 92.3 | DQ12: 92.35714286 | DV12: 92.19642857 | DZ12: 92.33333333 | ED12: 92.66666667 | EI12: 93.20909091 | EL12: 93.60227273
AJ13: Sasaran | AK13: 100 | AL13: 100 | AM13: 100 | AN13: 100 | AO13: 100 | AP13: 100 | AQ13: 100 | AR13: 100 | AS13: 100 | AT13: 100 | AU13: 100 | AV13: 100 | AW13: 100 | AX13: 100 | AY13: 100 | AZ13: 100 | BA13: 100 | BB13: 100 | BC13: 100 | BD13: 100 | BE13: 100 | BF13: 100 | BG13: 100 | BH13: 100 | BI13: 100 | BJ13: 100 | BK13: 100 | BL13: 100 | BM13: 100 | BN13: 100 | BO13: 100 | BP13: 100 | BQ13: 100 | BR13: 100 | BS13: 100 | BT13: 100 | BU13: 100 | BV13: 100 | BW13: 100 | BX13: 100 | BY13: 100 | BZ13: 100 | CA13: 100 | CB13: 100 | CC13: 100 | CD13: 100 | CE13: 100 | CF13: 100 | CG13: 100 | CH13: 100 | CI13: 100 | CJ13: 100 | CQ13: 94 | CR13: 94 | CS13: 94 | CT13: 94 | CU13: 92.875 | CV13: 92.875 | CW13: 92.875 | CX13: 92.875 | CY13: 92.875 | CZ13: 92.91666667 | DA13: 92.91666667 | DB13: 92.91666667 | DC13: 92.91666667 | DD13: 92.875 | DE13: 92.875 | DF13: 92.875 | DG13: 92.875 | DH13: 92.875 | DI13: 92.88 | DJ13: 92.88 | DK13: 92.88 | DL13: 92.88 | DM13: 92.78333333 | DN13: 92.78333333 | DO13: 92.78333333 | DP13: 92.78333333 | DQ13: 92.72244898 | DR13: 92.72244898 | DS13: 92.72244898 | DT13: 92.72244898 | DU13: 92.72244898 | DV13: 92.65669643 | DW13: 92.65669643 | DX13: 92.65669643 | DY13: 92.65669643 | DZ13: 92.6207672 | EA13: 92.6207672 | EB13: 92.6207672 | EC13: 92.6207672 | ED13: 92.62535714 | EE13: 92.62535714 | EF13: 92.62535714 | EG13: 92.62535714 | EH13: 92.62535714 | EI13: 92.67842385 | EJ13: 92.67842385 | EK13: 92.67842385 | EL13: 92.75541126
AF14: BD003
AF15: BH004
AF16: BM303
AF17: BE304
AF18: BE203
AF23: FALSE
B29: ❹ | C29: ID KPI: | D29: =AG32 -> AA104 | F29: Nilai Wk: | G29: =INDEX($AK32:$CJ32,,$CL$2) ->  | H29: Skor %: | I29: =INDEX($CM33:$EL33,,$CL$2) -> 69.140625 | K29: ❺ | L29: ID KPI: | M29: =AG34 -> AA202 | O29: Nilai Wk: | P29: =INDEX($AK34:$CJ34,,$CL$2) ->  | Q29: Skor %: | R29: =INDEX($CM35:$EL35,,$CL$2) -> 100 | T29: ❻ | U29: ID KPI: | V29: =AG36 ->  | X29: Nilai Wk: | Y29: =INDEX($AK36:$CJ36,,$CL$2) ->  | Z29: Skor %: | AA29: =INDEX($CM37:$EL37,,$CL$2) -> 
C30: Deskripsi KPI: | D30: =AH32 -> WM18 Mencapai penyempurnaan program Pelan Penggantian Anggota | L30: Deskripsi KPI: | M30: =AH34 -> WM31 Mencapai pelaksanaan program Kompetensi Teknologi untuk Kecemerlangan anggota | U30: Deskripsi KPI: | V30: =AH36 -> 
AG32: AA104 | AH32: WM18 Mencapai penyempurnaan program Pelan Penggantian Anggota | AI32: 1A | AJ32: Nilai Konsol | AK32: 0 | AL32: 1.875 | AM32: 2 | AN32: 2.8125 | AO32: 3 | AP32: 4 | AQ32: 4 | AR32: 4.6875 | AS32: 5 | AT32: 7 | AU32: 7 | AV32: 7.5 | AW32: 10.6285 | AX32: 11.9375 | AY32: 15.941 | AZ32: 15.941 | BA32: 15.941 | BB32: 17.5 | BC32: 17.5 | BD32: 18.25 | BE32: 20 | BF32: 20 | BG32: 23 | BH32: 23 | BI32: 23 | BJ32: 24.066 | BK32: 26.625 | BL32: 26.625 | BM32: 26.625 | BN32: 27.1875 | BO32: 28.125 | BP32: 31.125 | BQ32: 31.125 | BR32: 31.875 | BS32: 35.125 | BT32: 39.5 | BU32: 39.5 | BV32: 39.5 | BW32: 41.875 | BX32: 42.8125 | BY32: 44.5625 | BZ32: 44.5625 | CA32: 49.0625 | CB32: 49.0625 | CC32: 50.9375 | CD32: 50.9375 | CE32: 50.9375 | CF32: 50.9375 | CG32: 50.9375 | CL32: A | CM32: 0 | CN32: 2.34375 | CO32: 2.5 | CP32: 3.515625 | CQ32: 3.75 | CR32: 5 | CS32: 5 | CT32: 5.859375 | CU32: 6.25 | CV32: 8.75 | CW32: 8.75 | CX32: 9.375 | CY32: 13.285625 | CZ32: 14.921875 | DA32: 19.92625 | DB32: 19.92625 | DC32: 19.92625 | DD32: 21.875 | DE32: 21.875 | DF32: 22.8125 | DG32: 25 | DH32: 25 | DI32: 28.75 | DJ32: 28.75 | DK32: 28.75 | DL32: 30.0825 | DM32: 33.28125 | DN32: 33.28125 | DO32: 33.28125 | DP32: 33.984375 | DQ32: 35.15625 | DR32: 38.90625 | DS32: 38.90625 | DT32: 39.84375 | DU32: 43.90625 | DV32: 49.375 | DW32: 49.375 | DX32: 49.375 | DY32: 52.34375 | DZ32: 53.515625 | EA32: 55.703125 | EB32: 55.703125 | EC32: 61.328125 | ED32: 61.328125 | EE32: 63.671875 | EF32: 63.671875 | EG32: 63.671875 | EH32: 63.671875 | EI32: 63.671875 | EJ32: 66.953125 | EK32: 66.953125 | EL32: 69.140625
AJ33: Sasaran | AK33: 80 | AL33: 80 | AM33: 80 | AN33: 80 | AO33: 80 | AP33: 80 | AQ33: 80 | AR33: 80 | AS33: 80 | AT33: 80 | AU33: 80 | AV33: 80 | AW33: 80 | AX33: 80 | AY33: 80 | AZ33: 80 | BA33: 80 | BB33: 80 | BC33: 80 | BD33: 80 | BE33: 80 | BF33: 80 | BG33: 80 | BH33: 80 | BI33: 80 | BJ33: 80 | BK33: 80 | BL33: 80 | BM33: 80 | BN33: 80 | BO33: 80 | BP33: 80 | BQ33: 80 | BR33: 80 | BS33: 80 | BT33: 80 | BU33: 80 | BV33: 80 | BW33: 80 | BX33: 80 | BY33: 80 | BZ33: 80 | CA33: 80 | CB33: 80 | CC33: 80 | CD33: 80 | CE33: 80 | CF33: 80 | CG33: 80 | CH33: 80 | CI33: 80 | CJ33: 80 | CM33: 0 | CN33: 2.34375 | CO33: 2.5 | CP33: 3.515625 | CQ33: 3.75 | CR33: 5 | CS33: 5 | CT33: 5.859375 | CU33: 6.25 | CV33: 8.75 | CW33: 8.75 | CX33: 9.375 | CY33: 13.285625 | CZ33: 14.921875 | DA33: 19.92625 | DB33: 19.92625 | DC33: 19.92625 | DD33: 21.875 | DE33: 21.875 | DF33: 22.8125 | DG33: 25 | DH33: 25 | DI33: 28.75 | DJ33: 28.75 | DK33: 28.75 | DL33: 30.0825 | DM33: 33.28125 | DN33: 33.28125 | DO33: 33.28125 | DP33: 33.984375 | DQ33: 35.15625 | DR33: 38.90625 | DS33: 38.90625 | DT33: 39.84375 | DU33: 43.90625 | DV33: 49.375 | DW33: 49.375 | DX33: 49.375 | DY33: 52.34375 | DZ33: 53.515625 | EA33: 55.703125 | EB33: 55.703125 | EC33: 61.328125 | ED33: 61.328125 | EE33: 63.671875 | EF33: 63.671875 | EG33: 63.671875 | EH33: 63.671875 | EI33: 63.671875 | EJ33: 66.953125 | EK33: 66.953125 | EL33: 69.140625
AG34: AA202 | AH34: WM31 Mencapai pelaksanaan program Kompetensi Teknologi untuk Kecemerlangan anggota | AI34: 1A | AJ34: Nilai Konsol | AK34: 0 | AL34: 6 | AM34: 6 | AN34: 6 | AO34: 6 | AP34: 10 | AQ34: 10 | AR34: 17.91666667 | AS34: 17.91666667 | AT34: 17.91666667 | AU34: 19.41666667 | AV34: 28.25 | AW34: 32.625 | AX34: 32.625 | AY34: 32.625 | AZ34: 32.625 | BA34: 35.54166667 | BB34: 35.54166667 | BC34: 35.54166667 | BD34: 35.54166667 | BE34: 41.375 | BF34: 41.375 | BG34: 41.375 | BH34: 41.375 | BI34: 41.375 | BJ34: 47.271 | BK34: 47.271 | BL34: 49.611 | BM34: 49.611 | BN34: 49.611 | BO34: 52.098 | BP34: 52.098 | BQ34: 52.098 | BR34: 56.895 | BS34: 56.895 | BT34: 59.922 | BU34: 59.922 | BV34: 59.922 | BW34: 64.941 | BX34: 64.941 | BY34: 64.941 | BZ34: 68.282 | CA34: 68.282 | CB34: 72.861 | CC34: 72.861 | CD34: 72.861 | CE34: 74.917 | CF34: 74.917 | CG34: 74.917 | CL34: A | CM34: 0 | CN34: 7.5 | CO34: 7.5 | CP34: 7.5 | CQ34: 7.5 | CR34: 12.5 | CS34: 12.5 | CT34: 22.39583334 | CU34: 22.39583334 | CV34: 22.39583334 | CW34: 24.27083334 | CX34: 35.3125 | CY34: 40.78125 | CZ34: 40.78125 | DA34: 40.78125 | DB34: 40.78125 | DC34: 44.42708334 | DD34: 44.42708334 | DE34: 44.42708334 | DF34: 44.42708334 | DG34: 51.71875 | DH34: 51.71875 | DI34: 51.71875 | DJ34: 51.71875 | DK34: 51.71875 | DL34: 59.08875 | DM34: 59.08875 | DN34: 62.01375 | DO34: 62.01375 | DP34: 62.01375 | DQ34: 65.1225 | DR34: 65.1225 | DS34: 65.1225 | DT34: 71.11875 | DU34: 71.11875 | DV34: 74.9025 | DW34: 74.9025 | DX34: 74.9025 | DY34: 81.17625 | DZ34: 81.17625 | EA34: 81.17625 | EB34: 85.3525 | EC34: 85.3525 | ED34: 91.07625 | EE34: 91.07625 | EF34: 91.07625 | EG34: 93.64625 | EH34: 93.64625 | EI34: 93.64625 | EJ34: 97.4075 | EK34: 100 | EL34: 100
AJ35: Sasaran | AK35: 80 | AL35: 80 | AM35: 80 | AN35: 80 | AO35: 80 | AP35: 80 | AQ35: 80 | AR35: 80 | AS35: 80 | AT35: 80 | AU35: 80 | AV35: 80 | AW35: 80 | AX35: 80 | AY35: 80 | AZ35: 80 | BA35: 80 | BB35: 80 | BC35: 80 | BD35: 80 | BE35: 80 | BF35: 80 | BG35: 80 | BH35: 80 | BI35: 80 | BJ35: 80 | BK35: 80 | BL35: 80 | BM35: 80 | BN35: 80 | BO35: 80 | BP35: 80 | BQ35: 80 | BR35: 80 | BS35: 80 | BT35: 80 | BU35: 80 | BV35: 80 | BW35: 80 | BX35: 80 | BY35: 80 | BZ35: 80 | CA35: 80 | CB35: 80 | CC35: 80 | CD35: 80 | CE35: 80 | CF35: 80 | CG35: 80 | CH35: 80 | CI35: 80 | CJ35: 80 | CM35: 0 | CN35: 7.5 | CO35: 7.5 | CP35: 7.5 | CQ35: 7.5 | CR35: 12.5 | CS35: 12.5 | CT35: 22.39583334 | CU35: 22.39583334 | CV35: 22.39583334 | CW35: 24.27083334 | CX35: 35.3125 | CY35: 40.78125 | CZ35: 40.78125 | DA35: 40.78125 | DB35: 40.78125 | DC35: 44.42708334 | DD35: 44.42708334 | DE35: 44.42708334 | DF35: 44.42708334 | DG35: 51.71875 | DH35: 51.71875 | DI35: 51.71875 | DJ35: 51.71875 | DK35: 51.71875 | DL35: 59.08875 | DM35: 59.08875 | DN35: 62.01375 | DO35: 62.01375 | DP35: 62.01375 | DQ35: 65.1225 | DR35: 65.1225 | DS35: 65.1225 | DT35: 71.11875 | DU35: 71.11875 | DV35: 74.9025 | DW35: 74.9025 | DX35: 74.9025 | DY35: 81.17625 | DZ35: 81.17625 | EA35: 81.17625 | EB35: 85.3525 | EC35: 85.3525 | ED35: 91.07625 | EE35: 91.07625 | EF35: 91.07625 | EG35: 93.64625 | EH35: 93.64625 | EI35: 93.64625 | EJ35: 97.4075 | EK35: 100 | EL35: 100
AJ36: Nilai Konsol
AJ37: Sasaran
B53: ❼ | C53: ID KPI: | D53: =AG56 -> BD003 | F53: Nilai Wk: | G53: =INDEX($AK56:$CJ56,,$CL$2) ->  | H53: Skor %: | I53: =INDEX($CM57:$EL57,,$CL$2) -> 86.746 | K53: ❽ | L53: ID KPI: | M53: =AG58 -> BH004 | O53: Nilai Wk: | P53: =INDEX($AK58:$CJ58,,$CL$2) ->  | Q53: Skor %: | R53: =INDEX($CM59:$EL59,,$CL$2) -> 100 | T53: ❾ | U53: ID KPI: | V53: =AG60 -> BM303 | X53: Nilai Wk: | Y53: =INDEX($AK60:$CJ60,,$CL$2) ->  | Z53: Skor %: | AA53: =INDEX($CM61:$EL61,,$CL$2) -> 100
C54: Deskripsi KPI: | D54: =AH56 -> BK27 Mencapai penyempurnaan Latihan New Age Marketing | L54: Deskripsi KPI: | M54: =AH58 -> BR14 Mencapai penyediaan Prosidur Operasi Proses Jualan yang baru – Proses Service Delivery | U54: Deskripsi KPI: | V54: =AH60 -> BP19 Mencapai penyempurnaan survei kajian penyelidikan 5 Klien-Produk
AG56: BD003 | AH56: BK27 Mencapai penyempurnaan Latihan New Age Marketing | AI56: 1A | AJ56: Nilai Konsol | AK56: 0 | AL56: 0 | AM56: 0 | AN56: 0 | AO56: 0 | AP56: 0 | AQ56: 2.868 | AR56: 5.399 | AS56: 9.589 | AT56: 9.589 | AU56: 12.94 | AV56: 13.699 | AW56: 15.843 | AX56: 15.843 | AY56: 18.947 | AZ56: 25.569 | BA56: 25.569 | BB56: 26.889 | BC56: 29.855 | BD56: 34.079 | BE56: 34.079 | BF56: 34.079 | BG56: 36.868 | BH56: 38.922 | BI56: 40.142 | BJ56: 40.142 | BK56: 42.947 | BL56: 42.947 | BM56: 44.827 | BN56: 45.937 | BO56: 45.937 | BP56: 45.937 | BQ56: 47.729 | BR56: 48.927 | BS56: 50.399 | BT56: 50.399 | BU56: 52.156 | BV56: 56.936 | BW56: 58.023 | BX56: 61.023 | BY56: 66.048 | BZ56: 66.048 | CA56: 68.386 | CB56: 73.254 | CC56: 77.855 | CD56: 77.855 | CE56: 79.654 | CF56: 80.892 | CG56: 80.892 | CL56: A | CM56: 0 | CN56: 0 | CO56: 0 | CP56: 0 | CQ56: 0 | CR56: 0 | CS56: 2.868 | CT56: 5.399 | CU56: 9.589 | CV56: 9.589 | CW56: 12.94 | CX56: 13.699 | CY56: 15.843 | CZ56: 15.843 | DA56: 18.947 | DB56: 25.569 | DC56: 25.569 | DD56: 26.889 | DE56: 29.855 | DF56: 34.079 | DG56: 34.079 | DH56: 34.079 | DI56: 36.868 | DJ56: 38.922 | DK56: 40.142 | DL56: 40.142 | DM56: 42.947 | DN56: 42.947 | DO56: 44.827 | DP56: 45.937 | DQ56: 45.937 | DR56: 45.937 | DS56: 47.729 | DT56: 48.927 | DU56: 50.399 | DV56: 50.399 | DW56: 52.156 | DX56: 56.936 | DY56: 58.023 | DZ56: 61.023 | EA56: 66.048 | EB56: 66.048 | EC56: 68.386 | ED56: 73.254 | EE56: 77.855 | EF56: 77.855 | EG56: 79.654 | EH56: 80.892 | EI56: 80.892 | EJ56: 82.392 | EK56: 84.958 | EL56: 86.746
AJ57: Sasaran | AK57: 100 | AL57: 100 | AM57: 100 | AN57: 100 | AO57: 100 | AP57: 100 | AQ57: 100 | AR57: 100 | AS57: 100 | AT57: 100 | AU57: 100 | AV57: 100 | AW57: 100 | AX57: 100 | AY57: 100 | AZ57: 100 | BA57: 100 | BB57: 100 | BC57: 100 | BD57: 100 | BE57: 100 | BF57: 100 | BG57: 100 | BH57: 100 | BI57: 100 | BJ57: 100 | BK57: 100 | BL57: 100 | BM57: 100 | BN57: 100 | BO57: 100 | BP57: 100 | BQ57: 100 | BR57: 100 | BS57: 100 | BT57: 100 | BU57: 100 | BV57: 100 | BW57: 100 | BX57: 100 | BY57: 100 | BZ57: 100 | CA57: 100 | CB57: 100 | CC57: 100 | CD57: 100 | CE57: 100 | CF57: 100 | CG57: 100 | CH57: 100 | CI57: 100 | CJ57: 100 | CM57: 0 | CN57: 0 | CO57: 0 | CP57: 0 | CQ57: 0 | CR57: 0 | CS57: 2.868 | CT57: 5.399 | CU57: 9.589 | CV57: 9.589 | CW57: 12.94 | CX57: 13.699 | CY57: 15.843 | CZ57: 15.843 | DA57: 18.947 | DB57: 25.569 | DC57: 25.569 | DD57: 26.889 | DE57: 29.855 | DF57: 34.079 | DG57: 34.079 | DH57: 34.079 | DI57: 36.868 | DJ57: 38.922 | DK57: 40.142 | DL57: 40.142 | DM57: 42.947 | DN57: 42.947 | DO57: 44.827 | DP57: 45.937 | DQ57: 45.937 | DR57: 45.937 | DS57: 47.729 | DT57: 48.927 | DU57: 50.399 | DV57: 50.399 | DW57: 52.156 | DX57: 56.936 | DY57: 58.023 | DZ57: 61.023 | EA57: 66.048 | EB57: 66.048 | EC57: 68.386 | ED57: 73.254 | EE57: 77.855 | EF57: 77.855 | EG57: 79.654 | EH57: 80.892 | EI57: 80.892 | EJ57: 82.392 | EK57: 84.958 | EL57: 86.746
AG58: BH004 | AH58: BR14 Mencapai penyediaan Prosidur Operasi Proses Jualan yang baru – Proses Service Delivery | AI58: 1A | AJ58: Nilai Konsol | AK58: 0 | AL58: 0 | AM58: 0 | AN58: 0 | AO58: 6.835 | AP58: 14.859 | AQ58: 15.441 | AR58: 19.036 | AS58: 24.448 | AT58: 25.434 | AU58: 25.513 | AV58: 27.336 | AW58: 27.688 | AX58: 28.416 | AY58: 32.584 | AZ58: 39.414 | BA58: 39.428 | BB58: 39.462 | BC58: 43.492 | BD58: 46.924 | BE58: 47.716 | BF58: 48.938 | BG58: 49.441 | BH58: 52.559 | BI58: 54.987 | BJ58: 55.001 | BK58: 55.52 | BL58: 56.584 | BM58: 58.672 | BN58: 59.574 | BO58: 60.782 | BP58: 60.796 | BQ58: 61.302 | BR58: 62.564 | BS58: 64.244 | BT58: 65.036 | BU58: 68.001 | BV58: 69.795 | BW58: 70.596 | BX58: 74.66 | BY58: 81.893 | BZ58: 81.907 | CA58: 82.959 | CB58: 86.891 | CC58: 90.7 | CD58: 91.714 | CE58: 92.227 | CF58: 94.529 | CG58: 96.737 | CL58: A | CM58: 0 | CN58: 0 | CO58: 0 | CP58: 0 | CQ58: 6.835 | CR58: 14.859 | CS58: 15.441 | CT58: 19.036 | CU58: 24.448 | CV58: 25.434 | CW58: 25.513 | CX58: 27.336 | CY58: 27.688 | CZ58: 28.416 | DA58: 32.584 | DB58: 39.414 | DC58: 39.428 | DD58: 39.462 | DE58: 43.492 | DF58: 46.924 | DG58: 47.716 | DH58: 48.938 | DI58: 49.441 | DJ58: 52.559 | DK58: 54.987 | DL58: 55.001 | DM58: 55.52 | DN58: 56.584 | DO58: 58.672 | DP58: 59.574 | DQ58: 60.782 | DR58: 60.796 | DS58: 61.302 | DT58: 62.564 | DU58: 64.244 | DV58: 65.036 | DW58: 68.001 | DX58: 69.795 | DY58: 70.596 | DZ58: 74.66 | EA58: 81.893 | EB58: 81.907 | EC58: 82.959 | ED58: 86.891 | EE58: 90.7 | EF58: 91.714 | EG58: 92.227 | EH58: 94.529 | EI58: 96.737 | EJ58: 100 | EK58: 100 | EL58: 100
AJ59: Sasaran | AK59: 100 | AL59: 100 | AM59: 100 | AN59: 100 | AO59: 100 | AP59: 100 | AQ59: 100 | AR59: 100 | AS59: 100 | AT59: 100 | AU59: 100 | AV59: 100 | AW59: 100 | AX59: 100 | AY59: 100 | AZ59: 100 | BA59: 100 | BB59: 100 | BC59: 100 | BD59: 100 | BE59: 100 | BF59: 100 | BG59: 100 | BH59: 100 | BI59: 100 | BJ59: 100 | BK59: 100 | BL59: 100 | BM59: 100 | BN59: 100 | BO59: 100 | BP59: 100 | BQ59: 100 | BR59: 100 | BS59: 100 | BT59: 100 | BU59: 100 | BV59: 100 | BW59: 100 | BX59: 100 | BY59: 100 | BZ59: 100 | CA59: 100 | CB59: 100 | CC59: 100 | CD59: 100 | CE59: 100 | CF59: 100 | CG59: 100 | CH59: 100 | CI59: 100 | CJ59: 100 | CM59: 0 | CN59: 0 | CO59: 0 | CP59: 0 | CQ59: 6.835 | CR59: 14.859 | CS59: 15.441 | CT59: 19.036 | CU59: 24.448 | CV59: 25.434 | CW59: 25.513 | CX59: 27.336 | CY59: 27.688 | CZ59: 28.416 | DA59: 32.584 | DB59: 39.414 | DC59: 39.428 | DD59: 39.462 | DE59: 43.492 | DF59: 46.924 | DG59: 47.716 | DH59: 48.938 | DI59: 49.441 | DJ59: 52.559 | DK59: 54.987 | DL59: 55.001 | DM59: 55.52 | DN59: 56.584 | DO59: 58.672 | DP59: 59.574 | DQ59: 60.782 | DR59: 60.796 | DS59: 61.302 | DT59: 62.564 | DU59: 64.244 | DV59: 65.036 | DW59: 68.001 | DX59: 69.795 | DY59: 70.596 | DZ59: 74.66 | EA59: 81.893 | EB59: 81.907 | EC59: 82.959 | ED59: 86.891 | EE59: 90.7 | EF59: 91.714 | EG59: 92.227 | EH59: 94.529 | EI59: 96.737 | EJ59: 100 | EK59: 100 | EL59: 100
AG60: BM303 | AH60: BP19 Mencapai penyempurnaan survei kajian penyelidikan 5 Klien-Produk | AI60: 1A | AJ60: Nilai Konsol | AK60: 0 | AL60: 0 | AM60: 0 | AN60: 0 | AO60: 0 | AP60: 0.39 | AQ60: 0.39 | AR60: 0.79 | AS60: 0.79 | AT60: 2.11 | AU60: 2.5 | AV60: 4.21 | AW60: 4.21 | AX60: 5.92 | AY60: 6.84 | AZ60: 10.26 | BA60: 10.66 | BB60: 12.5 | BC60: 13.29 | BD60: 16.97 | BE60: 19.47 | BF60: 20.66 | BG60: 22.5 | BH60: 24.87 | BI60: 28.55 | BJ60: 33.68 | BK60: 34.87 | BL60: 40.39 | BM60: 42.76 | BN60: 48.29 | BO60: 53.42 | BP60: 53.42 | BQ60: 58.95 | BR60: 58.95 | BS60: 65.66 | BT60: 68.42 | BU60: 69.61 | BV60: 72.37 | BW60: 74.74 | BX60: 80.26 | BY60: 83.03 | BZ60: 83.03 | CA60: 84.21 | CB60: 84.21 | CC60: 87.76 | CD60: 87.76 | CE60: 97.24 | CF60: 97.24 | CG60: 100 | CL60: A | CM60: 0 | CN60: 0 | CO60: 0 | CP60: 0 | CQ60: 0 | CR60: 0.4333333333 | CS60: 0.4333333333 | CT60: 0.8777777778 | CU60: 0.8777777778 | CV60: 2.344444444 | CW60: 2.777777778 | CX60: 4.677777778 | CY60: 4.677777778 | CZ60: 6.577777778 | DA60: 7.6 | DB60: 11.4 | DC60: 11.84444444 | DD60: 13.88888889 | DE60: 14.76666667 | DF60: 18.85555556 | DG60: 21.63333333 | DH60: 22.95555556 | DI60: 25 | DJ60: 27.63333333 | DK60: 31.72222222 | DL60: 37.42222222 | DM60: 38.74444444 | DN60: 44.87777778 | DO60: 47.51111111 | DP60: 53.65555556 | DQ60: 59.35555556 | DR60: 59.35555556 | DS60: 65.5 | DT60: 65.5 | DU60: 72.95555556 | DV60: 76.02222222 | DW60: 77.34444444 | DX60: 80.41111111 | DY60: 83.04444444 | DZ60: 89.17777778 | EA60: 92.25555556 | EB60: 92.25555556 | EC60: 93.56666667 | ED60: 93.56666667 | EE60: 97.51111111 | EF60: 97.51111111 | EG60: 100 | EH60: 100 | EI60: 100 | EJ60: 100 | EK60: 100 | EL60: 100
AJ61: Sasaran | AK61: 90 | AL61: 90 | AM61: 90 | AN61: 90 | AO61: 90 | AP61: 90 | AQ61: 90 | AR61: 90 | AS61: 90 | AT61: 90 | AU61: 90 | AV61: 90 | AW61: 90 | AX61: 90 | AY61: 90 | AZ61: 90 | BA61: 90 | BB61: 90 | BC61: 90 | BD61: 90 | BE61: 90 | BF61: 90 | BG61: 90 | BH61: 90 | BI61: 90 | BJ61: 90 | BK61: 90 | BL61: 90 | BM61: 90 | BN61: 90 | BO61: 90 | BP61: 90 | BQ61: 90 | BR61: 90 | BS61: 90 | BT61: 90 | BU61: 90 | BV61: 90 | BW61: 90 | BX61: 90 | BY61: 90 | BZ61: 90 | CA61: 90 | CB61: 90 | CC61: 90 | CD61: 90 | CE61: 90 | CF61: 90 | CG61: 90 | CH61: 90 | CI61: 90 | CJ61: 90 | CM61: 0 | CN61: 0 | CO61: 0 | CP61: 0 | CQ61: 0 | CR61: 0.4333333333 | CS61: 0.4333333333 | CT61: 0.8777777778 | CU61: 0.8777777778 | CV61: 2.344444444 | CW61: 2.777777778 | CX61: 4.677777778 | CY61: 4.677777778 | CZ61: 6.577777778 | DA61: 7.6 | DB61: 11.4 | DC61: 11.84444444 | DD61: 13.88888889 | DE61: 14.76666667 | DF61: 18.85555556 | DG61: 21.63333333 | DH61: 22.95555556 | DI61: 25 | DJ61: 27.63333333 | DK61: 31.72222222 | DL61: 37.42222222 | DM61: 38.74444444 | DN61: 44.87777778 | DO61: 47.51111111 | DP61: 53.65555556 | DQ61: 59.35555556 | DR61: 59.35555556 | DS61: 65.5 | DT61: 65.5 | DU61: 72.95555556 | DV61: 76.02222222 | DW61: 77.34444444 | DX61: 80.41111111 | DY61: 83.04444444 | DZ61: 89.17777778 | EA61: 92.25555556 | EB61: 92.25555556 | EC61: 93.56666667 | ED61: 93.56666667 | EE61: 97.51111111 | EF61: 97.51111111 | EG61: 100 | EH61: 100 | EI61: 100 | EJ61: 100 | EK61: 100 | EL61: 100
B77: ❿ | C77: ID KPI: | D77: =AG80 -> BE304 | F77: Nilai Wk: | G77: =INDEX($AK80:$CJ80,,$CL$2) ->  | H77: Skor %: | I77: =INDEX($CM81:$EL81,,$CL$2) -> 99.43473193 | K77: ⓫ | L77: ID KPI: | M77: =AG82 -> BE203 | O77: Nilai Wk: | P77: =INDEX($AK82:$CJ82,,$CL$2) ->  | Q77: Skor %: | R77: =INDEX($CM83:$EL83,,$CL$2) -> 88.52083333 | T77: ⓬ | U77: ID KPI: | V77: =AG84 ->  | X77: Nilai Wk: | Y77: =INDEX($AK84:$CJ84,,$CL$2) ->  | Z77: Skor %: | AA77: =INDEX($CM85:$EL85,,$CL$2) -> 
C78: Deskripsi KPI: | D78: =AH80 -> BR22 Mengekalkan kestabilan dan kesediaan sistem ICT pengguna dalaman | L78: Deskripsi KPI: | M78: =AH82 -> BP08 Mengekalkan purata pencapaian 4-bintang dalam kepuasan pengguna bulanan | U78: Deskripsi KPI: | V78: =AH84 -> 
AG80: BE304 | AH80: BR22 Mengekalkan kestabilan dan kesediaan sistem ICT pengguna dalaman | AI80: 1M | AJ80: Nilai Konsol | AK80: 100 | AL80: 100 | AM80: 97.4 | AN80: 100 | AO80: 100 | AP80: 99.4 | AQ80: 100 | AR80: 100 | AS80: 100 | AT80: 100 | AU80: 93.5 | AV80: 100 | AW80: 100 | AX80: 100 | AY80: 100 | AZ80: 93.6 | BA80: 100 | BB80: 100 | BC80: 100 | BD80: 100 | BE80: 100 | BF80: 98.9 | BG80: 100 | BH80: 100 | BI80: 100 | BJ80: 100 | BK80: 94.5 | BL80: 100 | BM80: 99.4 | BN80: 100 | BO80: 100 | BP80: 100 | BQ80: 96.2 | BR80: 100 | BS80: 100 | BT80: 100 | BU80: 100 | BV80: 99.6 | BW80: 100 | BX80: 97.9 | BY80: 100 | BZ80: 100 | CA80: 100 | CB80: 100 | CC80: 99.4 | CD80: 93.4 | CE80: 100 | CF80: 100 | CG80: 100 | CL80: M | CM80: 100 | CN80: 100 | CO80: 98.38383838 | CP80: 100 | CQ80: 100 | CR80: 100 | CS80: 100 | CT80: 100 | CU80: 100 | CV80: 100 | CW80: 94.44444444 | CX80: 100 | CY80: 100 | CZ80: 100 | DA80: 100 | DB80: 94.54545455 | DC80: 100 | DD80: 100 | DE80: 100 | DF80: 100 | DG80: 100 | DH80: 99.8989899 | DI80: 100 | DJ80: 100 | DK80: 100 | DL80: 100 | DM80: 95.45454545 | DN80: 100 | DO80: 100 | DP80: 100 | DQ80: 100 | DR80: 100 | DS80: 97.17171717 | DT80: 100 | DU80: 100 | DV80: 100 | DW80: 100 | DX80: 100 | DY80: 100 | DZ80: 98.88888889 | EA80: 100 | EB80: 100 | EC80: 100 | ED80: 100 | EE80: 100 | EF80: 94.34343434 | EG80: 100 | EH80: 100 | EI80: 100 | EJ80: 100 | EK80: 97.47474747 | EL80: 100
AJ81: Sasaran | AK81: 99 | AL81: 99 | AM81: 99 | AN81: 99 | AO81: 99 | AP81: 99 | AQ81: 99 | AR81: 99 | AS81: 99 | AT81: 99 | AU81: 99 | AV81: 99 | AW81: 99 | AX81: 99 | AY81: 99 | AZ81: 99 | BA81: 99 | BB81: 99 | BC81: 99 | BD81: 99 | BE81: 99 | BF81: 99 | BG81: 99 | BH81: 99 | BI81: 99 | BJ81: 99 | BK81: 99 | BL81: 99 | BM81: 99 | BN81: 99 | BO81: 99 | BP81: 99 | BQ81: 99 | BR81: 99 | BS81: 99 | BT81: 99 | BU81: 99 | BV81: 99 | BW81: 99 | BX81: 99 | BY81: 99 | BZ81: 99 | CA81: 99 | CB81: 99 | CC81: 99 | CD81: 99 | CE81: 99 | CF81: 99 | CG81: 99 | CH81: 99 | CI81: 99 | CJ81: 99 | CM81: 100 | CN81: 100 | CO81: 99.46127946 | CP81: 99.5959596 | CQ81: 99.67676768 | CR81: 99.73063973 | CS81: 99.76911977 | CT81: 99.7979798 | CU81: 99.82042649 | CV81: 99.83838384 | CW81: 99.34802571 | CX81: 99.4023569 | CY81: 99.44832945 | CZ81: 99.48773449 | DA81: 99.52188552 | DB81: 99.21085859 | DC81: 99.25727867 | DD81: 99.29854097 | DE81: 99.33545986 | DF81: 99.36868687 | DG81: 99.3987494 | DH81: 99.4214876 | DI81: 99.44664032 | DJ81: 99.46969697 | DK81: 99.49090909 | DL81: 99.51048951 | DM81: 99.36026936 | DN81: 99.38311688 | DO81: 99.40438871 | DP81: 99.42424242 | DQ81: 99.44281525 | DR81: 99.46022727 | DS81: 99.39087848 | DT81: 99.40879382 | DU81: 99.42568543 | DV81: 99.44163861 | DW81: 99.45672946 | DX81: 99.47102605 | DY81: 99.48458948 | DZ81: 99.46969697 | EA81: 99.48263119 | EB81: 99.49494949 | EC81: 99.50669486 | ED81: 99.51790634 | EE81: 99.52861953 | EF81: 99.41589811 | EG81: 99.42832581 | EH81: 99.44023569 | EI81: 99.45165945 | EJ81: 99.46262626 | EK81: 99.42364825 | EL81: 99.43473193
AG82: BE203 | AH82: BP08 Mengekalkan purata pencapaian 4-bintang dalam kepuasan pengguna bulanan | AI82: 1M | AJ82: Nilai Konsol | AN82: 3.845 | AR82: 3.427 | AW82: 3.286 | BA82: 3.489 | BE82: 3.682 | BJ82: 3.428 | BN82: 3.288 | BR82: 3.593 | BW82: 3.576 | CA82: 3.796 | CE82: 3.499 | CL82: M | CP82: 96.125 | CT82: 85.675 | CY82: 82.15 | DC82: 87.225 | DG82: 92.05 | DL82: 85.7 | DP82: 82.2 | DT82: 89.825 | DY82: 89.4 | EC82: 94.9 | EG82: 87.475 | EL82: 89.525
AJ83: Sasaran | AK83: 4 | AL83: 4 | AM83: 4 | AN83: 4 | AO83: 4 | AP83: 4 | AQ83: 4 | AR83: 4 | AS83: 4 | AT83: 4 | AU83: 4 | AV83: 4 | AW83: 4 | AX83: 4 | AY83: 4 | AZ83: 4 | BA83: 4 | BB83: 4 | BC83: 4 | BD83: 4 | BE83: 4 | BF83: 4 | BG83: 4 | BH83: 4 | BI83: 4 | BJ83: 4 | BK83: 4 | BL83: 4 | BM83: 4 | BN83: 4 | BO83: 4 | BP83: 4 | BQ83: 4 | BR83: 4 | BS83: 4 | BT83: 4 | BU83: 4 | BV83: 4 | BW83: 4 | BX83: 4 | BY83: 4 | BZ83: 4 | CA83: 4 | CB83: 4 | CC83: 4 | CD83: 4 | CE83: 4 | CF83: 4 | CG83: 4 | CH83: 4 | CI83: 4 | CJ83: 4 | CP83: 96.125 | CQ83: 96.125 | CR83: 96.125 | CS83: 96.125 | CT83: 90.9 | CU83: 90.9 | CV83: 90.9 | CW83: 90.9 | CX83: 90.9 | CY83: 87.98333333 | CZ83: 87.98333333 | DA83: 87.98333333 | DB83: 87.98333333 | DC83: 87.79375 | DD83: 87.79375 | DE83: 87.79375 | DF83: 87.79375 | DG83: 88.645 | DH83: 88.645 | DI83: 88.645 | DJ83: 88.645 | DK83: 88.645 | DL83: 88.15416667 | DM83: 88.15416667 | DN83: 88.15416667 | DO83: 88.15416667 | DP83: 87.30357143 | DQ83: 87.30357143 | DR83: 87.30357143 | DS83: 87.30357143 | DT83: 87.61875 | DU83: 87.61875 | DV83: 87.61875 | DW83: 87.61875 | DX83: 87.61875 | DY83: 87.81666667 | DZ83: 87.81666667 | EA83: 87.81666667 | EB83: 87.81666667 | EC83: 88.525 | ED83: 88.525 | EE83: 88.525 | EF83: 88.525 | EG83: 88.42954545 | EH83: 88.42954545 | EI83: 88.42954545 | EJ83: 88.42954545 | EK83: 88.42954545 | EL83: 88.52083333
AJ84: Nilai Konsol
AJ85: Sasaran
B101: ⓭ | C101: ID KPI: | D101: =AG104 ->  | F101: Nilai Wk: | G101: =INDEX($AK104:$CJ104,,$CL$2) ->  | H101: Skor %: | I101: =INDEX($CM105:$EL105,,$CL$2) ->  | K101: ⓮ | L101: ID KPI: | M101: =AG106 ->  | O101: Nilai Wk: | P101: =INDEX($AK106:$CJ106,,$CL$2) ->  | Q101: Skor %: | R101: =INDEX($CM107:$EL107,,$CL$2) ->  | T101: ⓯ | U101: ID KPI: | V101: =AG108 ->  | X101: Nilai Wk: | Y101: =INDEX($AK108:$CJ108,,$CL$2) ->  | Z101: Skor %: | AA101: =INDEX($CM109:$EL109,,$CL$2) -> 
C102: Deskripsi KPI: | D102: =AH104 ->  | L102: Deskripsi KPI: | M102: =AH106 ->  | U102: Deskripsi KPI: | V102: =AH108 -> 
AJ104: Nilai Konsol
AJ105: Sasaran
AJ106: Nilai Konsol
AJ107: Sasaran
AJ108: Nilai Konsol
AJ109: Sasaran
I124: Form design by LEADERSENSE CONSULTING & SYSTEMS SDN BHD © 2017 | V124: Kalkulasi Terakhir: | W124: =NOW()-0.125 -> 2020-12-31T04:30:22.740 | CC124: 0 | CD124: 0 | CE124: 0 | CF124: 0 | CG124: 0 | CH124: 0 | CI124: 0 | CJ124: 0

Sheet Competencies
A1: KOMPETENSI | D1: Nama: | E1: =Home!H6 -> ADAM NAUFAL HASMADI | P1: 1 ⍟ | Q1: =Home!H14 -> 15
D2: Jawatan: | E2: =Home!H10 -> PEN. KETUA PEMASARAN DAN PERKHIDMATAN | P2: 2 ⍟ | Q2: =HLOOKUP($Q$1,D257:AA258,2,FALSE) -> 
B3: 2020 | C3: Versi | D3: Bahagian: | E3: =Home!H12 -> PEMASARAN DAN PERKHIDMATAN | P3: 3 ⍟ | Q3: =HLOOKUP(Q1,$D$257:$AA$309,53,FALSE) -> 
C4: =B204 -> 20 | D4: Organisasi: | E4: =Home!H16 -> SAMPEL CORPORATION LTD | P4: 4 ⍟
A5: A) KOMPETENSI INSANIAH | H5: Minggu Ini: | I5: ='Wk Input'!J2 -> 53 | K5: Skala Penilaian | P5: Range = | Q5: =HLOOKUP(Q3,$B$311:$K$312,2,FALSE) -> 
B6: Kategori | C6: Kompetensi | D6: Tahap di Ekspektasi | E6: Keterangan Tahap yang di Ekspektasi | I6: Saiz Wajaran | J6: Wajaran % | K6: Tengah Tahun | L6: Akhir Tahun | M6: Skor diwajar
A7: 1 | B7: Kualiti Peribadi | C7: Keberkesanan Komunikasi | D7: 3 | E7: • Berkebolehan menyampaikan maksud, pendapat, kefahaman atau arahan secara lisan dan tulisan berkaitan dengan bidang tugas merangkumi penguasaan bahasa melalui tulisan dan lisan dengan menggunakan tatabahasa dan persembahan yang baik. | I7: 3 ⍟ | J7: =Q7/Q$26*100 -> 21.42857143 | K7: 5 | L7: 7 | M7: =J7*L7/10 -> 15 | P7: =IF(OR(C7="",I7=""),0,LEFT(I7,1)) -> 3 | Q7: =_xlfn.NUMBERVALUE(P7) -> 3
A8: 2 | B8: Kualiti Peribadi | C8: Kebolehan Mengelola | D8: 3 | E8: • Berkeupayaan dan berkebolehan menggembeleng segala sumber dalam kawalannya seperti kewangan, tenaga manusia, peralatan dan maklumat bagi merancang, mengatur, membahagi dan mengendalikan sesuatu tugas untuk mencapai objektif organisasi. | I8: 3 ⍟ | J8: =Q8/Q$26*100 -> 21.42857143 | K8: 5 | L8: 6 | M8: =J8*L8/10 -> 12.85714286 | P8: =IF(OR(C8="",I8=""),0,LEFT(I8,1)) -> 3 | Q8: =_xlfn.NUMBERVALUE(P8) -> 3
A9: 3 | B9: Kualiti Peribadi | C9: Proaktif dan Inovatif | D9: 3 | E9: • Berkebolehan menjangka kemungkinan • Berkebolehan mencipta dan mengeluarkan idea baru • Berkebolehan membuat pembaharuan bagi mempertingkatkan kualiti dan produktiviti organisasi | I9: 3 ⍟ | J9: 21.42857143 | K9: 4 | L9: 7 | M9: 15 | P9: 3 | Q9: 3
A10: 4 | B10: Pengetahuan dan Kemahiran | C10: Ilmu Pengetahuan dan Kemahiran dalam bidang Kerja | D10: 2 | E10: • Mempunyai ilmu pengetahuan dan kemahiran dalam menghasilkan kerja meliputi kebolehan mengenalpasti, menganalisis, serta menyelesaikan masalah. | I10: 3 ⍟ | J10: 21.42857143 | K10: 4 | L10: 6 | M10: 12.85714286 | P10: 3 | Q10: 3
A11: 5 | B11: Pengetahuan dan Kemahiran | C11: Pelaksanaan Dasar, Peraturan dan Arahan Pentadbiran | D11: 2 | E11: • Berkebolehan menghayati dan melaksanakan peraturan dan arahan pentadbiran berkaitan dengan bidang tugasnya. | I11: 2 ⍟ | J11: 14.28571429 | K11: 5 | L11: 7 | M11: 10 | P11: 2 | Q11: 2
A12: 6 | B12: N/A | J12: 0 | M12: 0 | P12: 0 | Q12: 0
A13: 7 | B13: N/A | J13: 0 | M13: 0 | P13: 0 | Q13: 0
A14: 8 | B14: N/A | J14: 0 | M14: 0 | P14: 0 | Q14: 0
A15: 9 | B15: N/A | J15: 0 | M15: 0 | P15: 0 | Q15: 0
A16: 10 | B16: N/A | J16: 0 | M16: 0 | P16: 0 | Q16: 0
A17: 11 | B17: N/A | J17: 0 | M17: 0 | P17: 0 | Q17: 0
A18: 12 | B18: N/A | J18: 0 | M18: 0 | P18: 0 | Q18: 0
A19: 13 | B19: N/A | J19: 0 | M19: 0 | P19: 0 | Q19: 0
A20: 14 | B20: N/A | J20: 0 | M20: 0 | P20: 0 | Q20: 0
A21: 15 | B21: N/A | J21: 0 | M21: 0 | P21: 0 | Q21: 0
A22: 16 | B22: N/A | J22: 0 | M22: 0 | P22: 0 | Q22: 0
A23: 17 | B23: N/A | J23: 0 | M23: 0 | P23: 0 | Q23: 0
A24: 18 | B24: N/A | J24: 0 | M24: 0 | P24: 0 | Q24: 0
A25: 19 | B25: N/A | J25: 0 | M25: 0 | P25: 0 | Q25: 0
M26: =IFERROR(SUM(M7:M25),0) -> 65.71428571 | P26: =SUM(Q7:Q25) -> 14 | Q26: =IF(P26=0,1,P26) -> 14
M28: Kompetensi Muka 1/2
A30: KOMPETENSI | D30: Nama: | E30: ADAM NAUFAL HASMADI
D31: Jawatan: | E31: MARKETING AND SERVICES ASSISTANT MANAGER
B32: 2020 | D32: Bahagian: | E32: MARKETING AND SERVICES
D33: Organisasi: | E33: SAMPLE CORPORATION LTD
A34: B) KOMPETENSI TEKNIKAL | H34: Minggu Ini: | I34: ='Wk Input'!J2 -> 53 | K34: Skala Penilaian
B35: Kategori | C35: Kompetensi | D35: Tahap di Ekspektasi | E35: Keterangan Tahap yang di Ekspektasi | I35: Saiz Wajaran | J35: Wajaran % | K35: Tengah Tahun | L35: Akhir Tahun | M35: Skor diwajar
A36: 1 | B36: Literasi Komputer | C36: Microsoft PowerPoint | D36: 4 | E36: • Mempunyai pengetahuan secukupnya tentang penggunaan aplikasi ini sehingga dapat menghasilkan bahan persembahan dan berinteraksi dengan menggunakan ciri-ciri audio, video dan animasi yang terdapat padanya. | I36: 3 ⍟ | J36: =Q36/Q$55*100 -> 33.33333333 | L36: 6 | M36: 20 | P36: =IF(OR(C36="",I36=""),0,LEFT(I36,1)) -> 3 | Q36: =_xlfn.NUMBERVALUE(P36) -> 3
A37: 2 | B37: Pemasaran Digital | C37: Pengiklanan Digital | D37: 3 | E37: • Mempunyai pengetahuan dan kebolehan untuk mencipta pengiklanan menerusi Media Sosial termasuk Facebook, Instagram dan Vimeo. • Mempunyai pengetahuan dan kebolehan untuk penyebaran pengiklanan menerusi Emel dan platfom Mobil. | I37: 3 ⍟ | J37: =Q37/Q$55*100 -> 33.33333333 | L37: 6 | M37: 20 | P37: =IF(OR(C37="",I37=""),0,LEFT(I37,1)) -> 3 | Q37: =_xlfn.NUMBERVALUE(P37) -> 3
A38: 3 | B38: Analitik Digital | C38: Pengawasan dan Pengukuran | D38: 2 | E38: • Mempunyai pengetahuan asas berkenaan kawalan dan pengukuran media sosial termasuk analisa sentimen dan capaian • Mempunyai pengetahuan asas berkenaan teknik penggunaan Search Engine Optimization, dan kawalan Kandungan | I38: 3 ⍟ | J38: 33.33333333 | L38: 6 | M38: 20 | P38: 3 | Q38: 3
A39: 4 | J39: 0 | M39: 0 | P39: 0 | Q39: 0
A40: 5 | J40: 0 | M40: 0 | P40: 0 | Q40: 0
A41: 6 | J41: 0 | M41: 0 | P41: 0 | Q41: 0
A42: 7 | J42: 0 | M42: 0 | P42: 0 | Q42: 0
A43: 8 | J43: 0 | M43: 0 | P43: 0 | Q43: 0
A44: 9 | J44: 0 | M44: 0 | P44: 0 | Q44: 0
A45: 10 | J45: 0 | M45: 0 | P45: 0 | Q45: 0
A46: 11 | J46: 0 | M46: 0 | P46: 0 | Q46: 0
A47: 12 | J47: 0 | M47: 0 | P47: 0 | Q47: 0
A48: 13 | J48: 0 | M48: 0 | P48: 0 | Q48: 0
A49: 14 | J49: 0 | M49: 0 | P49: 0 | Q49: 0
A50: 15 | J50: 0 | M50: 0 | P50: 0 | Q50: 0
A51: 16 | J51: 0 | M51: 0 | P51: 0 | Q51: 0
A52: 17 | J52: 0 | M52: 0 | P52: 0 | Q52: 0
A53: 18 | J53: 0 | M53: 0 | P53: 0 | Q53: 0
A54: 19 | J54: 0 | M54: 0 | P54: 0 | Q54: 0
M55: =IFERROR(SUM(M36:M54),0) -> 60 | P55: =SUM(Q36:Q54) -> 9 | Q55: =IF(P55=0,1,P55) -> 9
B57: A form by Leadersense Consulting & Systems Sdn Bhd @2017 | F57: =CONCATENATE(Home!Y1,"Static.xlsx") -> SAMPELStatic.xlsx | M57: Kompetensi Muka 2/2
B204: =sample!C204 -> 20 | C204: =sample!D204 -> 43831 | D204: =sample!E204 -> 1 | E204: =sample!F204 -> 2 | F204: =sample!G204 -> 3 | G204: =sample!H204 -> 4
A205: =A259 ->  | B205: =sample!C205 -> 0 | C205: =sample!D205 -> 0 | D205: =sample!E205 -> 0 | E205: =sample!F205 -> 0 | F205: =sample!G205 -> 0 | G205: =sample!H205 -> 0
A206: =A260 ->  | B206: =sample!C206 -> 0 | C206: =sample!D206 -> 0 | D206: =sample!E206 -> 0 | E206: =sample!F206 -> 0 | F206: =sample!G206 -> 0 | G206: =sample!H206 -> 0
B207: =sample!C207 -> 0 | C207: =sample!D207 -> 0 | D207: =sample!E207 -> 0 | E207: =sample!F207 -> 0 | F207: =sample!G207 -> 0 | G207: =sample!H207 -> 0
B208: =sample!C208 -> 0 | C208: =sample!D208 -> 0 | D208: =sample!E208 -> 0 | E208: =sample!F208 -> 0 | F208: =sample!G208 -> 0 | G208: =sample!H208 -> 0
B209: =sample!C209 -> 0 | C209: =sample!D209 -> 0 | D209: =sample!E209 -> 0 | E209: =sample!F209 -> 0 | F209: =sample!G209 -> 0 | G209: =sample!H209 -> 0
B210: =sample!C210 -> 0 | C210: =sample!D210 -> 0 | D210: =sample!E210 -> 0 | E210: =sample!F210 -> 0 | F210: =sample!G210 -> 0 | G210: =sample!H210 -> 0
B211: =sample!C211 -> 0 | C211: =sample!D211 -> 0 | D211: =sample!E211 -> 0 | E211: =sample!F211 -> 0 | F211: =sample!G211 -> 0 | G211: =sample!H211 -> 0
B212: =sample!C212 -> 0 | C212: =sample!D212 -> 0 | D212: =sample!E212 -> 0 | E212: =sample!F212 -> 0 | F212: =sample!G212 -> 0 | G212: =sample!H212 -> 0
B213: =sample!C213 -> 0 | C213: =sample!D213 -> 0 | D213: =sample!E213 -> 0 | E213: =sample!F213 -> 0 | F213: =sample!G213 -> 0 | G213: =sample!H213 -> 1.15
B214: =sample!C214 -> 100 | C214: =sample!D214 -> 100 | D214: =sample!E214 -> 85 | E214: =sample!F214 -> 100 | F214: =sample!G214 -> 100 | G214: =sample!H214 -> 100
B215: =sample!C215 -> 71.5 | C215: =sample!D215 -> 75.2 | D215: =sample!E215 -> 75.9 | E215: =sample!F215 -> 70.6 | F215: =sample!G215 -> 70.9 | G215: =sample!H215 -> 71.2
B216: =sample!C216 -> 75 | C216: =sample!D216 -> 80 | D216: =sample!E216 -> 70 | E216: =sample!F216 -> 60 | F216: =sample!G216 -> 55 | G216: =sample!H216 -> 55
B217: =sample!C217 -> 0 | C217: =sample!D217 -> 0 | D217: =sample!E217 -> 0 | E217: =sample!F217 -> 0 | F217: =sample!G217 -> No | G217: =sample!H217 -> No
B218: =sample!C218 -> 0 | C218: =sample!D218 -> 0 | D218: =sample!E218 -> 0 | E218: =sample!F218 -> 0 | F218: =sample!G218 -> 0 | G218: =sample!H218 -> 0
B219: =sample!C219 -> 0 | C219: =sample!D219 -> 0 | D219: =sample!E219 -> 0 | E219: =sample!F219 -> 0 | F219: =sample!G219 -> 0 | G219: =sample!H219 -> 0
B220: =sample!C220 -> 0 | C220: =sample!D220 -> 0 | D220: =sample!E220 -> 0 | E220: =sample!F220 -> 0 | F220: =sample!G220 -> 0 | G220: =sample!H220 -> 0
B221: =sample!C221 -> 0 | C221: =sample!D221 -> 0 | D221: =sample!E221 -> 0 | E221: =sample!F221 -> 0 | F221: =sample!G221 -> 0 | G221: =sample!H221 -> 0
B222: =sample!C222 -> 0 | C222: =sample!D222 -> 0 | D222: =sample!E222 -> 0 | E222: =sample!F222 -> 0 | F222: =sample!G222 -> 0 | G222: =sample!H222 -> 0
B223: =sample!C223 -> 0 | C223: =sample!D223 -> 0 | D223: =sample!E223 -> 0 | E223: =sample!F223 -> 0 | F223: =sample!G223 -> 0 | G223: =sample!H223 -> 0
B224: =sample!C224 -> 0 | C224: =sample!D224 -> 0 | D224: =sample!E224 -> 0 | E224: =sample!F224 -> 0 | F224: =sample!G224 -> 0 | G224: =sample!H224 -> 0
B225: =sample!C225 -> 0 | C225: =sample!D225 -> 0 | D225: =sample!E225 -> 0 | E225: =sample!F225 -> 0 | F225: =sample!G225 -> 0 | G225: =sample!H225 -> 0
B226: =sample!C226 -> 0 | C226: =sample!D226 -> 0 | D226: =sample!E226 -> 0 | E226: =sample!F226 -> 0 | F226: =sample!G226 -> 0 | G226: =sample!H226 -> 0
B227: =sample!C227 -> 0 | C227: =sample!D227 -> 0 | D227: =sample!E227 -> 0 | E227: =sample!F227 -> 0 | F227: =sample!G227 -> 0 | G227: =sample!H227 -> 0
B228: =sample!C228 -> 0 | C228: =sample!D228 -> 0 | D228: =sample!E228 -> 0 | E228: =sample!F228 -> 0 | F228: =sample!G228 -> 0 | G228: =sample!H228 -> 0
B229: =sample!C229 -> KPI ID | C229: =sample!D229 -> Received | D229: =sample!E229 -> KPI Description | E229: =sample!F229 -> % Weight | F229: =sample!G229 -> Measure | G229: =sample!H229 -> SMART Target
B230: =sample!C230 -> CG801 | C230: =sample!D230 -> DM101 | D230: =sample!E230 -> WK01 Mencapai sasaran pendapatan korporat yang meningkat bagi Sektor Perumahan (RM Juta) | E230: =sample!F230 -> 29.41176471 | F230: =sample!G230 -> Number | G230: =sample!H230 -> 10
B231: =sample!C231 -> CG802 | C231: =sample!D231 -> DM103 | D231: =sample!E231 -> BP49 Mengekalkan Penghantaran shipment Pelanggan menepati sasaran - Zon Timur | E231: =sample!F231 -> 23.52941176 | F231: =sample!G231 -> Percentage | G231: =sample!H231 -> 95
B232: =sample!C232 -> CG803 | C232: =sample!D232 -> *** | D232: =sample!E232 -> BP20 Mengekalkan tahap tinggi peratusan Servis Aduan diselesai menepati sasaran (peratusan) | E232: =sample!F232 -> 17.64705882 | F232: =sample!G232 -> MinLimit | G232: =sample!H232 -> 80
B233: =sample!C233 -> CG804 | C233: =sample!D233 -> *** | D233: =sample!E233 -> BP34 Mengekalkan Penghantaran shipment Pelanggan menepati sasaran – servis Penjejakan Penghantaran | E233: =sample!F233 -> 11.76470588 | F233: =sample!G233 -> Percentage | G233: =sample!H233 -> 95
B234: =sample!C234 -> CG805 | C234: =sample!D234 -> *** | D234: =sample!E234 -> BR55 Mencapai pelaksanaan Sistem Tiket Aduan STARSYS yang baru | E234: =sample!F234 -> 17.64705882 | F234: =sample!G234 -> Yes/No | G234: =sample!H234 -> Yes
B235: =sample!C235 -> CG806 | C235: =sample!D235 -> *** | D235: =sample!E235 -> N/A | E235: =sample!F235 -> 0 | F235: =sample!G235 -> 0 | G235: =sample!H235 -> 0
B236: =sample!C236 -> CG807 | C236: =sample!D236 -> *** | D236: =sample!E236 -> N/A | E236: =sample!F236 -> 0 | F236: =sample!G236 -> 0 | G236: =sample!H236 -> 0
B237: =sample!C237 -> CG808 | C237: =sample!D237 -> *** | D237: =sample!E237 -> N/A | E237: =sample!F237 -> 0 | F237: =sample!G237 -> 0 | G237: =sample!H237 -> 0
B238: =sample!C238 -> CG809 | C238: =sample!D238 -> *** | D238: =sample!E238 -> N/A | E238: =sample!F238 -> 0 | F238: =sample!G238 -> 0 | G238: =sample!H238 -> 0
B239: =sample!C239 -> CG810 | C239: =sample!D239 -> *** | D239: =sample!E239 -> N/A | E239: =sample!F239 -> 0 | F239: =sample!G239 -> 0 | G239: =sample!H239 -> 0
B240: =sample!C240 -> CG811 | C240: =sample!D240 -> *** | D240: =sample!E240 -> N/A | E240: =sample!F240 -> 0 | F240: =sample!G240 -> 0 | G240: =sample!H240 -> 0
B241: =sample!C241 -> CG812 | C241: =sample!D241 -> *** | D241: =sample!E241 -> N/A | E241: =sample!F241 -> 0 | F241: =sample!G241 -> 0 | G241: =sample!H241 -> 0
B242: =sample!C242 -> CG813 | C242: =sample!D242 -> *** | D242: =sample!E242 -> N/A | E242: =sample!F242 -> 0 | F242: =sample!G242 -> 0 | G242: =sample!H242 -> 0
B243: =sample!C243 -> CG814 | C243: =sample!D243 -> *** | D243: =sample!E243 -> N/A | E243: =sample!F243 -> 0 | F243: =sample!G243 -> 0 | G243: =sample!H243 -> 0
B244: =sample!C244 -> CG815 | C244: =sample!D244 -> *** | D244: =sample!E244 -> N/A | E244: =sample!F244 -> 0 | F244: =sample!G244 -> 0 | G244: =sample!H244 -> 0
B245: =sample!C245 -> CG816 | C245: =sample!D245 -> *** | D245: =sample!E245 -> N/A | E245: =sample!F245 -> 0 | F245: =sample!G245 -> 0 | G245: =sample!H245 -> 0
B246: =sample!C246 -> 0 | C246: =sample!D246 -> 0 | D246: =sample!E246 -> 0 | E246: =sample!F246 -> 0 | F246: =sample!G246 -> 0 | G246: =sample!H246 -> 0
B247: =sample!C247 -> 0 | C247: =sample!D247 -> 0 | D247: =sample!E247 -> 0 | E247: =sample!F247 -> 0 | F247: =sample!G247 -> 0 | G247: =sample!H247 -> 0
B248: =sample!C248 -> 0 | C248: =sample!D248 -> 0 | D248: =sample!E248 -> 0 | E248: =sample!F248 -> 2.52 | F248: =sample!G248 -> 2.52 | G248: =sample!H248 -> 2.52
B249: =sample!C249 -> 95 | C249: =sample!D249 -> 88 | D249: =sample!E249 -> 90 | E249: =sample!F249 -> 88 | F249: =sample!G249 -> 87 | G249: =sample!H249 -> 83
B250: =sample!C250 -> 0 | C250: =sample!D250 -> 0 | D250: =sample!E250 -> 0 | E250: =sample!F250 -> 0 | F250: =sample!G250 -> 0 | G250: =sample!H250 -> 1.32
B251: =sample!C251 -> 0 | C251: =sample!D251 -> 0 | D251: =sample!E251 -> 0 | E251: =sample!F251 -> 0 | F251: =sample!G251 -> 0 | G251: =sample!H251 -> 0
B252: =sample!C252 -> 0 | C252: =sample!D252 -> 0 | D252: =sample!E252 -> 0 | E252: =sample!F252 -> 0 | F252: =sample!G252 -> 0 | G252: =sample!H252 -> 0
B253: =sample!C253 -> 0 | C253: =sample!D253 -> 0 | D253: =sample!E253 -> 0 | E253: =sample!F253 -> 0 | F253: =sample!G253 -> 0 | G253: =sample!H253 -> 0
B254: =sample!C254 -> 0 | C254: =sample!D254 -> 0 | D254: =sample!E254 -> 0 | E254: =sample!F254 -> 0 | F254: =sample!G254 -> 0 | G254: =sample!H254 -> 0
D257: =sample!E257 -> 0 | E257: =sample!F257 -> 0 | F257: =sample!G257 -> 0 | G257: =sample!H257 -> 0 | H257: =sample!I257 -> 0 | I257: =sample!J257 -> 0 | J257: =sample!K257 -> 0 | K257: =sample!L257 -> 0 | L257: =sample!M257 -> 0 | M257: =sample!N257 -> 0 | N257: =sample!O257 -> 0 | O257: =sample!P257 -> 0 | P257: =sample!Q257 -> 0 | Q257: =sample!R257 -> 0 | R257: =sample!S257 -> 0 | S257: =sample!T257 -> 0 | T257: =sample!U257 -> 0 | U257: =sample!V257 -> 0 | V257: =sample!W257 -> 0 | W257: =sample!X257 -> 0 | X257: =sample!Y257 -> 0 | Y257: =sample!Z257 -> 0 | Z257: =sample!AA257 -> 0 | AA257: =sample!AB257 -> 0
D258: 1 | E258: 2 | F258: 3 | G258: 4 | H258: 5 | I258: 6 | J258: 7 | K258: 8 | L258: 9 | M258: 10 | N258: 11 | O258: 12 | P258: 13 | Q258: 14 | R258: 15 | S258: 16 | T258: 17 | U258: 18 | V258: 19 | W258: 20 | X258: 21 | Y258: 22 | Z258: 23 | AA258: 24 | AC258: 0
A259: =IF(AC259=AC258,"N/A",AC259) ->  | B259: =sample!C259 -> 0 | C259: =sample!D259 -> 0 | D259: =sample!E259 -> 0 | E259: =sample!F259 -> 0 | F259: =sample!G259 -> 0 | G259: =sample!H259 -> 0 | H259: =sample!I259 -> 0 | I259: =sample!J259 -> 0 | J259: =sample!K259 -> 0 | K259: =sample!L259 -> 0 | L259: =sample!M259 -> 0 | M259: =sample!N259 -> 0 | N259: =sample!O259 -> 0 | O259: =sample!P259 -> 0 | P259: =sample!Q259 -> 0 | Q259: =sample!R259 -> 0 | R259: =sample!S259 -> 0 | S259: =sample!T259 -> 0 | T259: =sample!U259 -> 0 | U259: =sample!V259 -> 0 | V259: =sample!W259 -> 0 | W259: =sample!X259 -> 0 | X259: =sample!Y259 -> 0 | Y259: =sample!Z259 -> 0 | Z259: =sample!AA259 -> 0 | AA259: =sample!AB259 -> 0 | AC259: =IF(INDEX(D259:AA259,$Q$2)="N/A",AC258,AC258+1) -> 
A260: =IF(AC260=AC259,"N/A",AC260) ->  | B260: =sample!C260 -> 0 | C260: =sample!D260 -> 0 | D260: =sample!E260 -> 0 | E260: =sample!F260 -> 0 | F260: =sample!G260 -> 0 | G260: =sample!H260 -> 0 | H260: =sample!I260 -> 0 | I260: =sample!J260 -> 0 | J260: =sample!K260 -> 0 | K260: =sample!L260 -> 0 | L260: =sample!M260 -> 0 | M260: =sample!N260 -> 0 | N260: =sample!O260 -> 0 | O260: =sample!P260 -> 0 | P260: =sample!Q260 -> 0 | Q260: =sample!R260 -> 0 | R260: =sample!S260 -> 0 | S260: =sample!T260 -> 0 | T260: =sample!U260 -> 0 | U260: =sample!V260 -> 0 | V260: =sample!W260 -> 0 | W260: =sample!X260 -> 0 | X260: =sample!Y260 -> 0 | Y260: =sample!Z260 -> 0 | Z260: =sample!AA260 -> 0 | AA260: =sample!AB260 -> 0 | AC260: =IF(INDEX(D260:AA260,$Q$2)="N/A",AC259,AC259+1) -> 
B261: =sample!C261 -> 0 | C261: =sample!D261 -> 0 | D261: =sample!E261 -> 0 | E261: =sample!F261 -> 0 | F261: =sample!G261 -> 0 | G261: =sample!H261 -> 0 | H261: =sample!I261 -> 0 | I261: =sample!J261 -> 0 | J261: =sample!K261 -> 0 | K261: =sample!L261 -> 0 | L261: =sample!M261 -> 0 | M261: =sample!N261 -> 0 | N261: =sample!O261 -> 0 | O261: =sample!P261 -> 0 | P261: =sample!Q261 -> 0 | Q261: =sample!R261 -> 0 | R261: =sample!S261 -> 0 | S261: =sample!T261 -> 0 | T261: =sample!U261 -> 0 | U261: =sample!V261 -> 0 | V261: =sample!W261 -> 0 | W261: =sample!X261 -> 0 | X261: =sample!Y261 -> 0 | Y261: =sample!Z261 -> 0 | Z261: =sample!AA261 -> 0 | AA261: =sample!AB261 -> 0
B262: =sample!C262 -> 0 | C262: =sample!D262 -> 0 | D262: =sample!E262 -> 0 | E262: =sample!F262 -> 0 | F262: =sample!G262 -> 0 | G262: =sample!H262 -> 0 | H262: =sample!I262 -> 0 | I262: =sample!J262 -> 0 | J262: =sample!K262 -> 0 | K262: =sample!L262 -> 0 | L262: =sample!M262 -> 0 | M262: =sample!N262 -> 0 | N262: =sample!O262 -> 0 | O262: =sample!P262 -> 0 | P262: =sample!Q262 -> 0 | Q262: =sample!R262 -> 0 | R262: =sample!S262 -> 0 | S262: =sample!T262 -> 0 | T262: =sample!U262 -> 0 | U262: =sample!V262 -> 0 | V262: =sample!W262 -> 0 | W262: =sample!X262 -> 0 | X262: =sample!Y262 -> 0 | Y262: =sample!Z262 -> 0 | Z262: =sample!AA262 -> 0 | AA262: =sample!AB262 -> 0
B263: =sample!C263 -> KPI ID | C263: =sample!D263 -> Received | D263: =sample!E263 -> KPI Description | E263: =sample!F263 -> % Weight | F263: =sample!G263 -> Measure | G263: =sample!H263 -> SMART Target | H263: =sample!I263 -> Type | I263: =sample!J263 -> Start Wk | J263: =sample!K263 -> Deadline | K263: =sample!L263 -> Cascade Down | L263: =sample!M263 -> Own Contrib | M263: =sample!N263 -> Cascade 1 Ref | N263: =sample!O263 -> Contrib | O263: =sample!P263 -> Cascade 2 Ref | P263: =sample!Q263 -> Contrib | Q263: =sample!R263 -> Cascade 3 Ref | R263: =sample!S263 -> Contrib | S263: =sample!T263 -> Cascade 4 Ref | T263: =sample!U263 -> Contrib | U263: =sample!V263 -> Cascade 5 Ref | V263: =sample!W263 -> Contrib | W263: =sample!X263 -> 0 | X263: =sample!Y263 -> 0 | Y263: =sample!Z263 -> 0 | Z263: =sample!AA263 -> 0 | AA263: =sample!AB263 -> 0
B264: =sample!C264 -> DK601 | C264: =sample!D264 -> *** | D264: =sample!E264 -> BM57 Mencapai penyempurnaan kehadiran Value Competency Training (Bil. Hari) | E264: =sample!F264 -> 12.5 | F264: =sample!G264 -> Number | G264: =sample!H264 -> 7 | H264: =sample!I264 -> A | I264: =sample!J264 -> 1 | J264: =sample!K264 -> 44 | K264: =sample!L264 -> No | L264: =sample!M264 -> 100 | M264: =sample!N264 -> *** | N264: =sample!O264 -> 0 | O264: =sample!P264 -> *** | P264: =sample!Q264 -> 0 | Q264: =sample!R264 -> *** | R264: =sample!S264 -> 0 | S264: =sample!T264 -> *** | T264: =sample!U264 -> 0 | U264: =sample!V264 -> *** | V264: =sample!W264 -> 0 | W264: =sample!X264 -> 0 | X264: =sample!Y264 -> 0 | Y264: =sample!Z264 -> 0 | Z264: =sample!AA264 -> 0 | AA264: =sample!AB264 -> 0
B265: =sample!C265 -> DK602 | C265: =sample!D265 -> DM101 | D265: =sample!E265 -> WK01 Mencapai sasaran pendapatan korporat yang meningkat bagi Sektor Perumahan (RM Juta) | E265: =sample!F265 -> 31.25 | F265: =sample!G265 -> Number | G265: =sample!H265 -> 10 | H265: =sample!I265 -> A | I265: =sample!J265 -> 1 | J265: =sample!K265 -> 52 | K265: =sample!L265 -> No | L265: =sample!M265 -> 100 | M265: =sample!N265 -> *** | N265: =sample!O265 -> 0 | O265: =sample!P265 -> *** | P265: =sample!Q265 -> 0 | Q265: =sample!R265 -> *** | R265: =sample!S265 -> 0 | S265: =sample!T265 -> *** | T265: =sample!U265 -> 0 | U265: =sample!V265 -> *** | V265: =sample!W265 -> 0 | W265: =sample!X265 -> 0 | X265: =sample!Y265 -> 0 | Y265: =sample!Z265 -> 0 | Z265: =sample!AA265 -> 2.52 | AA265: =sample!AB265 -> 0
B266: =sample!C266 -> DK603 | C266: =sample!D266 -> *** | D266: =sample!E266 -> BP49 Mengekalkan Penghantaran shipment Pelanggan menepati sasaran (peratusan) | E266: =sample!F266 -> 18.75 | F266: =sample!G266 -> MinLimit | G266: =sample!H266 -> 95 | H266: =sample!I266 -> M | I266: =sample!J266 -> 1 | J266: =sample!K266 -> 52 | K266: =sample!L266 -> No | L266: =sample!M266 -> 100 | M266: =sample!N266 -> *** | N266: =sample!O266 -> 0 | O266: =sample!P266 -> *** | P266: =sample!Q266 -> 0 | Q266: =sample!R266 -> *** | R266: =sample!S266 -> 0 | S266: =sample!T266 -> *** | T266: =sample!U266 -> 0 | U266: =sample!V266 -> *** | V266: =sample!W266 -> 0 | W266: =sample!X266 -> 95 | X266: =sample!Y266 -> 88 | Y266: =sample!Z266 -> 90 | Z266: =sample!AA266 -> 88 | AA266: =sample!AB266 -> 87
B267: =sample!C267 -> DK604 | C267: =sample!D267 -> DM104 | D267: =sample!E267 -> BP19 Mencapai penyempurnaan survei kajian penyelidikan 5 Klien-Produk | E267: =sample!F267 -> 18.75 | F267: =sample!G267 -> Percentage | G267: =sample!H267 -> 90 | H267: =sample!I267 -> A | I267: =sample!J267 -> 1 | J267: =sample!K267 -> 44 | K267: =sample!L267 -> No | L267: =sample!M267 -> 100 | M267: =sample!N267 -> *** | N267: =sample!O267 -> 0 | O267: =sample!P267 -> *** | P267: =sample!Q267 -> 0 | Q267: =sample!R267 -> *** | R267: =sample!S267 -> 0 | S267: =sample!T267 -> *** | T267: =sample!U267 -> 0 | U267: =sample!V267 -> *** | V267: =sample!W267 -> 0 | W267: =sample!X267 -> 0 | X267: =sample!Y267 -> 0 | Y267: =sample!Z267 -> 0 | Z267: =sample!AA267 -> 0 | AA267: =sample!AB267 -> 0
B268: =sample!C268 -> DK605 | C268: =sample!D268 -> *** | D268: =sample!E268 -> BR54 Mencapai pelaksanaan Sistem Penjejakan Penghantaran LOGIX yang baru | E268: =sample!F268 -> 18.75 | F268: =sample!G268 -> Yes/No | G268: =sample!H268 -> Yes | H268: =sample!I268 -> A | I268: =sample!J268 -> 10 | J268: =sample!K268 -> 36 | K268: =sample!L268 -> No | L268: =sample!M268 -> 100 | M268: =sample!N268 -> *** | N268: =sample!O268 -> 0 | O268: =sample!P268 -> *** | P268: =sample!Q268 -> 0 | Q268: =sample!R268 -> *** | R268: =sample!S268 -> 0 | S268: =sample!T268 -> *** | T268: =sample!U268 -> 0 | U268: =sample!V268 -> *** | V268: =sample!W268 -> 0 | W268: =sample!X268 -> 0 | X268: =sample!Y268 -> 0 | Y268: =sample!Z268 -> 0 | Z268: =sample!AA268 -> 0 | AA268: =sample!AB268 -> 0
B269: =sample!C269 -> DK606 | C269: =sample!D269 -> *** | D269: =sample!E269 -> N/A | E269: =sample!F269 -> 0 | F269: =sample!G269 -> 0 | G269: =sample!H269 -> 0 | H269: =sample!I269 -> A | I269: =sample!J269 -> 0 | J269: =sample!K269 -> 0 | K269: =sample!L269 -> 0 | L269: =sample!M269 -> 0 | M269: =sample!N269 -> *** | N269: =sample!O269 -> 0 | O269: =sample!P269 -> *** | P269: =sample!Q269 -> 0 | Q269: =sample!R269 -> *** | R269: =sample!S269 -> 0 | S269: =sample!T269 -> *** | T269: =sample!U269 -> 0 | U269: =sample!V269 -> *** | V269: =sample!W269 -> 0 | W269: =sample!X269 -> 0 | X269: =sample!Y269 -> 0 | Y269: =sample!Z269 -> 0 | Z269: =sample!AA269 -> 0 | AA269: =sample!AB269 -> 0
B270: =sample!C270 -> DK607 | C270: =sample!D270 -> *** | D270: =sample!E270 -> N/A | E270: =sample!F270 -> 0 | F270: =sample!G270 -> 0 | G270: =sample!H270 -> 0 | H270: =sample!I270 -> A | I270: =sample!J270 -> 0 | J270: =sample!K270 -> 0 | K270: =sample!L270 -> 0 | L270: =sample!M270 -> 0 | M270: =sample!N270 -> *** | N270: =sample!O270 -> 0 | O270: =sample!P270 -> *** | P270: =sample!Q270 -> 0 | Q270: =sample!R270 -> *** | R270: =sample!S270 -> 0 | S270: =sample!T270 -> *** | T270: =sample!U270 -> 0 | U270: =sample!V270 -> *** | V270: =sample!W270 -> 0 | W270: =sample!X270 -> 0 | X270: =sample!Y270 -> 0 | Y270: =sample!Z270 -> 0 | Z270: =sample!AA270 -> 0 | AA270: =sample!AB270 -> 0
B271: =sample!C271 -> DK608 | C271: =sample!D271 -> *** | D271: =sample!E271 -> N/A | E271: =sample!F271 -> 0 | F271: =sample!G271 -> 0 | G271: =sample!H271 -> 0 | H271: =sample!I271 -> A | I271: =sample!J271 -> 0 | J271: =sample!K271 -> 0 | K271: =sample!L271 -> 0 | L271: =sample!M271 -> 0 | M271: =sample!N271 -> *** | N271: =sample!O271 -> 0 | O271: =sample!P271 -> *** | P271: =sample!Q271 -> 0 | Q271: =sample!R271 -> *** | R271: =sample!S271 -> 0 | S271: =sample!T271 -> *** | T271: =sample!U271 -> 0 | U271: =sample!V271 -> *** | V271: =sample!W271 -> 0 | W271: =sample!X271 -> 0 | X271: =sample!Y271 -> 0 | Y271: =sample!Z271 -> 0 | Z271: =sample!AA271 -> 0 | AA271: =sample!AB271 -> 0
B272: =sample!C272 -> DK609 | C272: =sample!D272 -> *** | D272: =sample!E272 -> N/A | E272: =sample!F272 -> 0 | F272: =sample!G272 -> 0 | G272: =sample!H272 -> 0 | H272: =sample!I272 -> A | I272: =sample!J272 -> 0 | J272: =sample!K272 -> 0 | K272: =sample!L272 -> 0 | L272: =sample!M272 -> 0 | M272: =sample!N272 -> *** | N272: =sample!O272 -> 0 | O272: =sample!P272 -> *** | P272: =sample!Q272 -> 0 | Q272: =sample!R272 -> *** | R272: =sample!S272 -> 0 | S272: =sample!T272 -> *** | T272: =sample!U272 -> 0 | U272: =sample!V272 -> *** | V272: =sample!W272 -> 0 | W272: =sample!X272 -> 0 | X272: =sample!Y272 -> 0 | Y272: =sample!Z272 -> 0 | Z272: =sample!AA272 -> 0 | AA272: =sample!AB272 -> 0
B273: =sample!C273 -> DK610 | C273: =sample!D273 -> *** | D273: =sample!E273 -> N/A | E273: =sample!F273 -> 0 | F273: =sample!G273 -> 0 | G273: =sample!H273 -> 0 | H273: =sample!I273 -> A | I273: =sample!J273 -> 0 | J273: =sample!K273 -> 0 | K273: =sample!L273 -> 0 | L273: =sample!M273 -> 0 | M273: =sample!N273 -> *** | N273: =sample!O273 -> 0 | O273: =sample!P273 -> *** | P273: =sample!Q273 -> 0 | Q273: =sample!R273 -> *** | R273: =sample!S273 -> 0 | S273: =sample!T273 -> *** | T273: =sample!U273 -> 0 | U273: =sample!V273 -> *** | V273: =sample!W273 -> 0 | W273: =sample!X273 -> 0 | X273: =sample!Y273 -> 0 | Y273: =sample!Z273 -> 0 | Z273: =sample!AA273 -> 0 | AA273: =sample!AB273 -> 0
B274: =sample!C274 -> DK611 | C274: =sample!D274 -> *** | D274: =sample!E274 -> N/A | E274: =sample!F274 -> 0 | F274: =sample!G274 -> 0 | G274: =sample!H274 -> 0 | H274: =sample!I274 -> A | I274: =sample!J274 -> 0 | J274: =sample!K274 -> 0 | K274: =sample!L274 -> 0 | L274: =sample!M274 -> 0 | M274: =sample!N274 -> *** | N274: =sample!O274 -> 0 | O274: =sample!P274 -> *** | P274: =sample!Q274 -> 0 | Q274: =sample!R274 -> *** | R274: =sample!S274 -> 0 | S274: =sample!T274 -> *** | T274: =sample!U274 -> 0 | U274: =sample!V274 -> *** | V274: =sample!W274 -> 0 | W274: =sample!X274 -> 0 | X274: =sample!Y274 -> 0 | Y274: =sample!Z274 -> 0 | Z274: =sample!AA274 -> 0 | AA274: =sample!AB274 -> 0
B275: =sample!C275 -> DK612 | C275: =sample!D275 -> *** | D275: =sample!E275 -> N/A | E275: =sample!F275 -> 0 | F275: =sample!G275 -> 0 | G275: =sample!H275 -> 0 | H275: =sample!I275 -> A | I275: =sample!J275 -> 0 | J275: =sample!K275 -> 0 | K275: =sample!L275 -> 0 | L275: =sample!M275 -> 0 | M275: =sample!N275 -> *** | N275: =sample!O275 -> 0 | O275: =sample!P275 -> *** | P275: =sample!Q275 -> 0 | Q275: =sample!R275 -> *** | R275: =sample!S275 -> 0 | S275: =sample!T275 -> *** | T275: =sample!U275 -> 0 | U275: =sample!V275 -> *** | V275: =sample!W275 -> 0 | W275: =sample!X275 -> 0 | X275: =sample!Y275 -> 0 | Y275: =sample!Z275 -> 0 | Z275: =sample!AA275 -> 0 | AA275: =sample!AB275 -> 0
B276: =sample!C276 -> DK613 | C276: =sample!D276 -> *** | D276: =sample!E276 -> N/A | E276: =sample!F276 -> 0 | F276: =sample!G276 -> 0 | G276: =sample!H276 -> 0 | H276: =sample!I276 -> A | I276: =sample!J276 -> 0 | J276: =sample!K276 -> 0 | K276: =sample!L276 -> 0 | L276: =sample!M276 -> 0 | M276: =sample!N276 -> *** | N276: =sample!O276 -> 0 | O276: =sample!P276 -> *** | P276: =sample!Q276 -> 0 | Q276: =sample!R276 -> *** | R276: =sample!S276 -> 0 | S276: =sample!T276 -> *** | T276: =sample!U276 -> 0 | U276: =sample!V276 -> *** | V276: =sample!W276 -> 0 | W276: =sample!X276 -> 0 | X276: =sample!Y276 -> 0 | Y276: =sample!Z276 -> 0 | Z276: =sample!AA276 -> 0 | AA276: =sample!AB276 -> 0
B277: =sample!C277 -> DK614 | C277: =sample!D277 -> *** | D277: =sample!E277 -> N/A | E277: =sample!F277 -> 0 | F277: =sample!G277 -> 0 | G277: =sample!H277 -> 0 | H277: =sample!I277 -> A | I277: =sample!J277 -> 0 | J277: =sample!K277 -> 0 | K277: =sample!L277 -> 0 | L277: =sample!M277 -> 0 | M277: =sample!N277 -> *** | N277: =sample!O277 -> 0 | O277: =sample!P277 -> *** | P277: =sample!Q277 -> 0 | Q277: =sample!R277 -> *** | R277: =sample!S277 -> 0 | S277: =sample!T277 -> *** | T277: =sample!U277 -> 0 | U277: =sample!V277 -> *** | V277: =sample!W277 -> 0 | W277: =sample!X277 -> 0 | X277: =sample!Y277 -> 0 | Y277: =sample!Z277 -> 0 | Z277: =sample!AA277 -> 0 | AA277: =sample!AB277 -> 0
B278: =sample!C278 -> DK615 | C278: =sample!D278 -> *** | D278: =sample!E278 -> N/A | E278: =sample!F278 -> 0 | F278: =sample!G278 -> 0 | G278: =sample!H278 -> 0 | H278: =sample!I278 -> A | I278: =sample!J278 -> 0 | J278: =sample!K278 -> 0 | K278: =sample!L278 -> 0 | L278: =sample!M278 -> 0 | M278: =sample!N278 -> *** | N278: =sample!O278 -> 0 | O278: =sample!P278 -> *** | P278: =sample!Q278 -> 0 | Q278: =sample!R278 -> *** | R278: =sample!S278 -> 0 | S278: =sample!T278 -> *** | T278: =sample!U278 -> 0 | U278: =sample!V278 -> *** | V278: =sample!W278 -> 0 | W278: =sample!X278 -> 0 | X278: =sample!Y278 -> 0 | Y278: =sample!Z278 -> 0 | Z278: =sample!AA278 -> 0 | AA278: =sample!AB278 -> 0
B279: =sample!C279 -> DK616 | C279: =sample!D279 -> *** | D279: =sample!E279 -> N/A | E279: =sample!F279 -> 0 | F279: =sample!G279 -> 0 | G279: =sample!H279 -> 0 | H279: =sample!I279 -> A | I279: =sample!J279 -> 0 | J279: =sample!K279 -> 0 | K279: =sample!L279 -> 0 | L279: =sample!M279 -> 0 | M279: =sample!N279 -> *** | N279: =sample!O279 -> 0 | O279: =sample!P279 -> *** | P279: =sample!Q279 -> 0 | Q279: =sample!R279 -> *** | R279: =sample!S279 -> 0 | S279: =sample!T279 -> *** | T279: =sample!U279 -> 0 | U279: =sample!V279 -> *** | V279: =sample!W279 -> 0 | W279: =sample!X279 -> 0 | X279: =sample!Y279 -> 0 | Y279: =sample!Z279 -> 0 | Z279: =sample!AA279 -> 0 | AA279: =sample!AB279 -> 0
B280: =sample!C280 -> 0 | C280: =sample!D280 -> 0 | D280: =sample!E280 -> 0 | E280: =sample!F280 -> 0 | F280: =sample!G280 -> 0 | G280: =sample!H280 -> 0 | H280: =sample!I280 -> 0 | I280: =sample!J280 -> 0 | J280: =sample!K280 -> 0 | K280: =sample!L280 -> 0 | L280: =sample!M280 -> 0 | M280: =sample!N280 -> 0 | N280: =sample!O280 -> 0 | O280: =sample!P280 -> 0 | P280: =sample!Q280 -> 0 | Q280: =sample!R280 -> 0 | R280: =sample!S280 -> 0 | S280: =sample!T280 -> 0 | T280: =sample!U280 -> 0 | U280: =sample!V280 -> 0 | V280: =sample!W280 -> 0 | W280: =sample!X280 -> 0 | X280: =sample!Y280 -> 0 | Y280: =sample!Z280 -> 0 | Z280: =sample!AA280 -> 0 | AA280: =sample!AB280 -> 0
B281: =sample!C281 -> 0 | C281: =sample!D281 -> 0 | D281: =sample!E281 -> 0 | E281: =sample!F281 -> 0 | F281: =sample!G281 -> 0 | G281: =sample!H281 -> 0 | H281: =sample!I281 -> 0 | I281: =sample!J281 -> 0 | J281: =sample!K281 -> 0 | K281: =sample!L281 -> 0 | L281: =sample!M281 -> 0 | M281: =sample!N281 -> 0 | N281: =sample!O281 -> 0 | O281: =sample!P281 -> 0 | P281: =sample!Q281 -> 0 | Q281: =sample!R281 -> 0 | R281: =sample!S281 -> 0 | S281: =sample!T281 -> 0 | T281: =sample!U281 -> 0 | U281: =sample!V281 -> 0 | V281: =sample!W281 -> 0 | W281: =sample!X281 -> 0 | X281: =sample!Y281 -> 0 | Y281: =sample!Z281 -> 0 | Z281: =sample!AA281 -> 0 | AA281: =sample!AB281 -> 0
B282: =sample!C282 -> 0 | C282: =sample!D282 -> 0 | D282: =sample!E282 -> 0 | E282: =sample!F282 -> 0 | F282: =sample!G282 -> 0 | G282: =sample!H282 -> 0 | H282: =sample!I282 -> 0 | I282: =sample!J282 -> 0 | J282: =sample!K282 -> 0 | K282: =sample!L282 -> 0 | L282: =sample!M282 -> 0 | M282: =sample!N282 -> 0 | N282: =sample!O282 -> 0 | O282: =sample!P282 -> 0 | P282: =sample!Q282 -> 0 | Q282: =sample!R282 -> 0 | R282: =sample!S282 -> 0 | S282: =sample!T282 -> 0 | T282: =sample!U282 -> 0 | U282: =sample!V282 -> 0 | V282: =sample!W282 -> 0 | W282: =sample!X282 -> 0 | X282: =sample!Y282 -> 0 | Y282: =sample!Z282 -> 0 | Z282: =sample!AA282 -> 0 | AA282: =sample!AB282 -> 0
B283: =sample!C283 -> 0 | C283: =sample!D283 -> 0 | D283: =sample!E283 -> 0 | E283: =sample!F283 -> 0 | F283: =sample!G283 -> 0 | G283: =sample!H283 -> 0 | H283: =sample!I283 -> 0 | I283: =sample!J283 -> 0 | J283: =sample!K283 -> 0 | K283: =sample!L283 -> 0 | L283: =sample!M283 -> 0 | M283: =sample!N283 -> 0 | N283: =sample!O283 -> 0 | O283: =sample!P283 -> 0 | P283: =sample!Q283 -> 0 | Q283: =sample!R283 -> 0 | R283: =sample!S283 -> 0 | S283: =sample!T283 -> 0 | T283: =sample!U283 -> 0 | U283: =sample!V283 -> 0 | V283: =sample!W283 -> 0 | W283: =sample!X283 -> 0 | X283: =sample!Y283 -> 0 | Y283: =sample!Z283 -> 0 | Z283: =sample!AA283 -> 0 | AA283: =sample!AB283 -> 0
B284: =sample!C284 -> 0 | C284: =sample!D284 -> 0 | D284: =sample!E284 -> 0 | E284: =sample!F284 -> 0 | F284: =sample!G284 -> 0 | G284: =sample!H284 -> 0 | H284: =sample!I284 -> 0 | I284: =sample!J284 -> 0 | J284: =sample!K284 -> 0 | K284: =sample!L284 -> 0 | L284: =sample!M284 -> 0 | M284: =sample!N284 -> 0 | N284: =sample!O284 -> 0 | O284: =sample!P284 -> 0 | P284: =sample!Q284 -> 0 | Q284: =sample!R284 -> 0 | R284: =sample!S284 -> 0 | S284: =sample!T284 -> 0 | T284: =sample!U284 -> 0 | U284: =sample!V284 -> 0 | V284: =sample!W284 -> 0 | W284: =sample!X284 -> 0 | X284: =sample!Y284 -> 0 | Y284: =sample!Z284 -> 0 | Z284: =sample!AA284 -> 0 | AA284: =sample!AB284 -> 0
B285: =sample!C285 -> 0 | C285: =sample!D285 -> 0 | D285: =sample!E285 -> 0 | E285: =sample!F285 -> 0 | F285: =sample!G285 -> 0 | G285: =sample!H285 -> 0 | H285: =sample!I285 -> 0 | I285: =sample!J285 -> 0 | J285: =sample!K285 -> 0 | K285: =sample!L285 -> 0 | L285: =sample!M285 -> 0 | M285: =sample!N285 -> 0 | N285: =sample!O285 -> 0 | O285: =sample!P285 -> 0 | P285: =sample!Q285 -> 0 | Q285: =sample!R285 -> 0 | R285: =sample!S285 -> 0 | S285: =sample!T285 -> 0 | T285: =sample!U285 -> 0 | U285: =sample!V285 -> 0 | V285: =sample!W285 -> 0 | W285: =sample!X285 -> 0 | X285: =sample!Y285 -> 0 | Y285: =sample!Z285 -> 0 | Z285: =sample!AA285 -> 0 | AA285: =sample!AB285 -> 0
B286: =sample!C286 -> 0 | C286: =sample!D286 -> 0 | D286: =sample!E286 -> 0 | E286: =sample!F286 -> 0 | F286: =sample!G286 -> 0 | G286: =sample!H286 -> 0 | H286: =sample!I286 -> 0 | I286: =sample!J286 -> 0 | J286: =sample!K286 -> 0 | K286: =sample!L286 -> 0 | L286: =sample!M286 -> 0 | M286: =sample!N286 -> 0 | N286: =sample!O286 -> 0 | O286: =sample!P286 -> 0 | P286: =sample!Q286 -> 0 | Q286: =sample!R286 -> 0 | R286: =sample!S286 -> 0 | S286: =sample!T286 -> 0 | T286: =sample!U286 -> 0 | U286: =sample!V286 -> 0 | V286: =sample!W286 -> 0 | W286: =sample!X286 -> 0 | X286: =sample!Y286 -> 0 | Y286: =sample!Z286 -> 0 | Z286: =sample!AA286 -> 0 | AA286: =sample!AB286 -> 0
B287: =sample!C287 -> 0 | C287: =sample!D287 -> 0 | D287: =sample!E287 -> 0 | E287: =sample!F287 -> 0 | F287: =sample!G287 -> 0 | G287: =sample!H287 -> 0 | H287: =sample!I287 -> 0 | I287: =sample!J287 -> 0 | J287: =sample!K287 -> 0 | K287: =sample!L287 -> 0 | L287: =sample!M287 -> 0 | M287: =sample!N287 -> 0 | N287: =sample!O287 -> 0 | O287: =sample!P287 -> 0 | P287: =sample!Q287 -> 0 | Q287: =sample!R287 -> 0 | R287: =sample!S287 -> 0 | S287: =sample!T287 -> 0 | T287: =sample!U287 -> 0 | U287: =sample!V287 -> 0 | V287: =sample!W287 -> 0 | W287: =sample!X287 -> 0 | X287: =sample!Y287 -> 0 | Y287: =sample!Z287 -> 0 | Z287: =sample!AA287 -> 0 | AA287: =sample!AB287 -> 0
B288: =sample!C288 -> 0 | C288: =sample!D288 -> 0 | D288: =sample!E288 -> 0 | E288: =sample!F288 -> 0 | F288: =sample!G288 -> 0 | G288: =sample!H288 -> 0 | H288: =sample!I288 -> 0 | I288: =sample!J288 -> 0 | J288: =sample!K288 -> 0 | K288: =sample!L288 -> 0 | L288: =sample!M288 -> 0 | M288: =sample!N288 -> 0 | N288: =sample!O288 -> 0 | O288: =sample!P288 -> 0 | P288: =sample!Q288 -> 0 | Q288: =sample!R288 -> 0 | R288: =sample!S288 -> 0 | S288: =sample!T288 -> 0 | T288: =sample!U288 -> 0 | U288: =sample!V288 -> 0 | V288: =sample!W288 -> 0 | W288: =sample!X288 -> 0 | X288: =sample!Y288 -> 0 | Y288: =sample!Z288 -> 0 | Z288: =sample!AA288 -> 0 | AA288: =sample!AB288 -> 0
B289: =sample!C289 -> 0 | C289: =sample!D289 -> 0 | D289: =sample!E289 -> 0 | E289: =sample!F289 -> 0 | F289: =sample!G289 -> 0 | G289: =sample!H289 -> 0 | H289: =sample!I289 -> 0 | I289: =sample!J289 -> 0 | J289: =sample!K289 -> 0 | K289: =sample!L289 -> 0 | L289: =sample!M289 -> 0 | M289: =sample!N289 -> 0 | N289: =sample!O289 -> 0 | O289: =sample!P289 -> 0 | P289: =sample!Q289 -> 0 | Q289: =sample!R289 -> 0 | R289: =sample!S289 -> 0 | S289: =sample!T289 -> 0 | T289: =sample!U289 -> 0 | U289: =sample!V289 -> 0 | V289: =sample!W289 -> 0 | W289: =sample!X289 -> 0 | X289: =sample!Y289 -> 0 | Y289: =sample!Z289 -> 0 | Z289: =sample!AA289 -> 0 | AA289: =sample!AB289 -> 0
B290: =sample!C290 -> 0 | C290: =sample!D290 -> 0 | D290: =sample!E290 -> 0 | E290: =sample!F290 -> 0 | F290: =sample!G290 -> 0 | G290: =sample!H290 -> 0 | H290: =sample!I290 -> 0 | I290: =sample!J290 -> 0 | J290: =sample!K290 -> 0 | K290: =sample!L290 -> 0 | L290: =sample!M290 -> 0 | M290: =sample!N290 -> 0 | N290: =sample!O290 -> 0 | O290: =sample!P290 -> 0 | P290: =sample!Q290 -> 0 | Q290: =sample!R290 -> 0 | R290: =sample!S290 -> 0 | S290: =sample!T290 -> 0 | T290: =sample!U290 -> 0 | U290: =sample!V290 -> 0 | V290: =sample!W290 -> 0 | W290: =sample!X290 -> 0 | X290: =sample!Y290 -> 0 | Y290: =sample!Z290 -> 0 | Z290: =sample!AA290 -> 0 | AA290: =sample!AB290 -> 0
B291: =sample!C291 -> 0 | C291: =sample!D291 -> 0 | D291: =sample!E291 -> 0 | E291: =sample!F291 -> 0 | F291: =sample!G291 -> 0 | G291: =sample!H291 -> 0 | H291: =sample!I291 -> 0 | I291: =sample!J291 -> 0 | J291: =sample!K291 -> 0 | K291: =sample!L291 -> 0 | L291: =sample!M291 -> 0 | M291: =sample!N291 -> 0 | N291: =sample!O291 -> 0 | O291: =sample!P291 -> 0 | P291: =sample!Q291 -> 0 | Q291: =sample!R291 -> 0 | R291: =sample!S291 -> 0 | S291: =sample!T291 -> 0 | T291: =sample!U291 -> 0 | U291: =sample!V291 -> 0 | V291: =sample!W291 -> 0 | W291: =sample!X291 -> 0 | X291: =sample!Y291 -> 0 | Y291: =sample!Z291 -> 0 | Z291: =sample!AA291 -> 0 | AA291: =sample!AB291 -> 0
B292: =sample!C292 -> 0 | C292: =sample!D292 -> 0 | D292: =sample!E292 -> 0 | E292: =sample!F292 -> 0 | F292: =sample!G292 -> 0 | G292: =sample!H292 -> 0 | H292: =sample!I292 -> 0 | I292: =sample!J292 -> 0 | J292: =sample!K292 -> 0 | K292: =sample!L292 -> 0 | L292: =sample!M292 -> 0 | M292: =sample!N292 -> 0 | N292: =sample!O292 -> 0 | O292: =sample!P292 -> 0 | P292: =sample!Q292 -> 0 | Q292: =sample!R292 -> 0 | R292: =sample!S292 -> 0 | S292: =sample!T292 -> 0 | T292: =sample!U292 -> 0 | U292: =sample!V292 -> 0 | V292: =sample!W292 -> 0 | W292: =sample!X292 -> 0 | X292: =sample!Y292 -> 0 | Y292: =sample!Z292 -> 0 | Z292: =sample!AA292 -> 0 | AA292: =sample!AB292 -> 0
B293: =sample!C293 -> 0 | C293: =sample!D293 -> 0 | D293: =sample!E293 -> 0 | E293: =sample!F293 -> 0 | F293: =sample!G293 -> 0 | G293: =sample!H293 -> 0 | H293: =sample!I293 -> 0 | I293: =sample!J293 -> 0 | J293: =sample!K293 -> 0 | K293: =sample!L293 -> 0 | L293: =sample!M293 -> 0 | M293: =sample!N293 -> 0 | N293: =sample!O293 -> 0 | O293: =sample!P293 -> 0 | P293: =sample!Q293 -> 0 | Q293: =sample!R293 -> 0 | R293: =sample!S293 -> 0 | S293: =sample!T293 -> 0 | T293: =sample!U293 -> 0 | U293: =sample!V293 -> 0 | V293: =sample!W293 -> 0 | W293: =sample!X293 -> 0 | X293: =sample!Y293 -> 0 | Y293: =sample!Z293 -> 0 | Z293: =sample!AA293 -> 0 | AA293: =sample!AB293 -> 0
B294: =sample!C294 -> 0 | C294: =sample!D294 -> 0 | D294: =sample!E294 -> 0 | E294: =sample!F294 -> 0 | F294: =sample!G294 -> 0 | G294: =sample!H294 -> 0 | H294: =sample!I294 -> 0 | I294: =sample!J294 -> 0 | J294: =sample!K294 -> 0 | K294: =sample!L294 -> 0 | L294: =sample!M294 -> 0 | M294: =sample!N294 -> 0 | N294: =sample!O294 -> 0 | O294: =sample!P294 -> 0 | P294: =sample!Q294 -> 0 | Q294: =sample!R294 -> 0 | R294: =sample!S294 -> 0 | S294: =sample!T294 -> 0 | T294: =sample!U294 -> 0 | U294: =sample!V294 -> 0 | V294: =sample!W294 -> 0 | W294: =sample!X294 -> 0 | X294: =sample!Y294 -> 0 | Y294: =sample!Z294 -> 0 | Z294: =sample!AA294 -> 0 | AA294: =sample!AB294 -> 0
B295: =sample!C295 -> 0 | C295: =sample!D295 -> 0 | D295: =sample!E295 -> 0 | E295: =sample!F295 -> 0 | F295: =sample!G295 -> 0 | G295: =sample!H295 -> 0 | H295: =sample!I295 -> 0 | I295: =sample!J295 -> 0 | J295: =sample!K295 -> 0 | K295: =sample!L295 -> 0 | L295: =sample!M295 -> 0 | M295: =sample!N295 -> 0 | N295: =sample!O295 -> 0 | O295: =sample!P295 -> 0 | P295: =sample!Q295 -> 0 | Q295: =sample!R295 -> 0 | R295: =sample!S295 -> 0 | S295: =sample!T295 -> 0 | T295: =sample!U295 -> 0 | U295: =sample!V295 -> 0 | V295: =sample!W295 -> 0 | W295: =sample!X295 -> 0 | X295: =sample!Y295 -> 0 | Y295: =sample!Z295 -> 0 | Z295: =sample!AA295 -> 0 | AA295: =sample!AB295 -> 0
B296: =sample!C296 -> 0 | C296: =sample!D296 -> 0 | D296: =sample!E296 -> 0 | E296: =sample!F296 -> 0 | F296: =sample!G296 -> 0 | G296: =sample!H296 -> 0 | H296: =sample!I296 -> 0 | I296: =sample!J296 -> 0 | J296: =sample!K296 -> 0 | K296: =sample!L296 -> 0 | L296: =sample!M296 -> 0 | M296: =sample!N296 -> 0 | N296: =sample!O296 -> 0 | O296: =sample!P296 -> 0 | P296: =sample!Q296 -> 0 | Q296: =sample!R296 -> 0 | R296: =sample!S296 -> 0 | S296: =sample!T296 -> 0 | T296: =sample!U296 -> 0 | U296: =sample!V296 -> 0 | V296: =sample!W296 -> 0 | W296: =sample!X296 -> 0 | X296: =sample!Y296 -> 0 | Y296: =sample!Z296 -> 0 | Z296: =sample!AA296 -> 0 | AA296: =sample!AB296 -> 0
B297: =sample!C297 -> 0 | C297: =sample!D297 -> 0 | D297: =sample!E297 -> 0 | E297: =sample!F297 -> 0 | F297: =sample!G297 -> 0 | G297: =sample!H297 -> 0 | H297: =sample!I297 -> 0 | I297: =sample!J297 -> 0 | J297: =sample!K297 -> 0 | K297: =sample!L297 -> 0 | L297: =sample!M297 -> 0 | M297: =sample!N297 -> 0 | N297: =sample!O297 -> 0 | O297: =sample!P297 -> 0 | P297: =sample!Q297 -> 0 | Q297: =sample!R297 -> 0 | R297: =sample!S297 -> 0 | S297: =sample!T297 -> 0 | T297: =sample!U297 -> 0 | U297: =sample!V297 -> 0 | V297: =sample!W297 -> 0 | W297: =sample!X297 -> 0 | X297: =sample!Y297 -> 0 | Y297: =sample!Z297 -> 0 | Z297: =sample!AA297 -> 0 | AA297: =sample!AB297 -> 0
B298: =sample!C298 -> 0 | C298: =sample!D298 -> 0 | D298: =sample!E298 -> 0 | E298: =sample!F298 -> 0 | F298: =sample!G298 -> 0 | G298: =sample!H298 -> 0 | H298: =sample!I298 -> 0 | I298: =sample!J298 -> 0 | J298: =sample!K298 -> 0 | K298: =sample!L298 -> 0 | L298: =sample!M298 -> 0 | M298: =sample!N298 -> 0 | N298: =sample!O298 -> 0 | O298: =sample!P298 -> 0 | P298: =sample!Q298 -> 0 | Q298: =sample!R298 -> 0 | R298: =sample!S298 -> 0 | S298: =sample!T298 -> 0 | T298: =sample!U298 -> 0 | U298: =sample!V298 -> 0 | V298: =sample!W298 -> 0 | W298: =sample!X298 -> 0 | X298: =sample!Y298 -> 0 | Y298: =sample!Z298 -> 0 | Z298: =sample!AA298 -> 0 | AA298: =sample!AB298 -> 0
B299: =sample!C299 -> 0 | C299: =sample!D299 -> 0 | D299: =sample!E299 -> 0 | E299: =sample!F299 -> 0 | F299: =sample!G299 -> 0 | G299: =sample!H299 -> 0 | H299: =sample!I299 -> 0 | I299: =sample!J299 -> 0 | J299: =sample!K299 -> 0 | K299: =sample!L299 -> 0 | L299: =sample!M299 -> 0 | M299: =sample!N299 -> 0 | N299: =sample!O299 -> 0 | O299: =sample!P299 -> 0 | P299: =sample!Q299 -> 0 | Q299: =sample!R299 -> 0 | R299: =sample!S299 -> 0 | S299: =sample!T299 -> 0 | T299: =sample!U299 -> 0 | U299: =sample!V299 -> 0 | V299: =sample!W299 -> 0 | W299: =sample!X299 -> 0 | X299: =sample!Y299 -> 0 | Y299: =sample!Z299 -> 0 | Z299: =sample!AA299 -> 0 | AA299: =sample!AB299 -> 0
B300: =sample!C300 -> 0 | C300: =sample!D300 -> 0 | D300: =sample!E300 -> 0 | E300: =sample!F300 -> 0 | F300: =sample!G300 -> 0 | G300: =sample!H300 -> 0 | H300: =sample!I300 -> 0 | I300: =sample!J300 -> 0 | J300: =sample!K300 -> 0 | K300: =sample!L300 -> 0 | L300: =sample!M300 -> 0 | M300: =sample!N300 -> 0 | N300: =sample!O300 -> 0 | O300: =sample!P300 -> 0 | P300: =sample!Q300 -> 0 | Q300: =sample!R300 -> 0 | R300: =sample!S300 -> 0 | S300: =sample!T300 -> 0 | T300: =sample!U300 -> 0 | U300: =sample!V300 -> 0 | V300: =sample!W300 -> 0 | W300: =sample!X300 -> 0 | X300: =sample!Y300 -> 0 | Y300: =sample!Z300 -> 0 | Z300: =sample!AA300 -> 0 | AA300: =sample!AB300 -> 0
B301: =sample!C301 -> 0 | C301: =sample!D301 -> 0 | D301: =sample!E301 -> 0 | E301: =sample!F301 -> 0 | F301: =sample!G301 -> 0 | G301: =sample!H301 -> 0 | H301: =sample!I301 -> 0 | I301: =sample!J301 -> 0 | J301: =sample!K301 -> 0 | K301: =sample!L301 -> 0 | L301: =sample!M301 -> 0 | M301: =sample!N301 -> 0 | N301: =sample!O301 -> 0 | O301: =sample!P301 -> 0 | P301: =sample!Q301 -> 0 | Q301: =sample!R301 -> 0 | R301: =sample!S301 -> 0 | S301: =sample!T301 -> 0 | T301: =sample!U301 -> 0 | U301: =sample!V301 -> 0 | V301: =sample!W301 -> 0 | W301: =sample!X301 -> 0 | X301: =sample!Y301 -> 0 | Y301: =sample!Z301 -> 0 | Z301: =sample!AA301 -> 0 | AA301: =sample!AB301 -> 0
B302: =sample!C302 -> 0 | C302: =sample!D302 -> 0 | D302: =sample!E302 -> 0 | E302: =sample!F302 -> 0 | F302: =sample!G302 -> 0 | G302: =sample!H302 -> 0 | H302: =sample!I302 -> 0 | I302: =sample!J302 -> 0 | J302: =sample!K302 -> 0 | K302: =sample!L302 -> 0 | L302: =sample!M302 -> 0 | M302: =sample!N302 -> 0 | N302: =sample!O302 -> 0 | O302: =sample!P302 -> 0 | P302: =sample!Q302 -> 0 | Q302: =sample!R302 -> 0 | R302: =sample!S302 -> 0 | S302: =sample!T302 -> 0 | T302: =sample!U302 -> 0 | U302: =sample!V302 -> 0 | V302: =sample!W302 -> 0 | W302: =sample!X302 -> 0 | X302: =sample!Y302 -> 0 | Y302: =sample!Z302 -> 0 | Z302: =sample!AA302 -> 0 | AA302: =sample!AB302 -> 0
B303: =sample!C303 -> 0 | C303: =sample!D303 -> 0 | D303: =sample!E303 -> 0 | E303: =sample!F303 -> 0 | F303: =sample!G303 -> 0 | G303: =sample!H303 -> 0 | H303: =sample!I303 -> 0 | I303: =sample!J303 -> 0 | J303: =sample!K303 -> 0 | K303: =sample!L303 -> 0 | L303: =sample!M303 -> 0 | M303: =sample!N303 -> 0 | N303: =sample!O303 -> 0 | O303: =sample!P303 -> 0 | P303: =sample!Q303 -> 0 | Q303: =sample!R303 -> 0 | R303: =sample!S303 -> 0 | S303: =sample!T303 -> 0 | T303: =sample!U303 -> 0 | U303: =sample!V303 -> 0 | V303: =sample!W303 -> 0 | W303: =sample!X303 -> 0 | X303: =sample!Y303 -> 0 | Y303: =sample!Z303 -> 0 | Z303: =sample!AA303 -> 0 | AA303: =sample!AB303 -> 0
B304: =sample!C304 -> 0 | C304: =sample!D304 -> 0 | D304: =sample!E304 -> 0 | E304: =sample!F304 -> 0 | F304: =sample!G304 -> 0 | G304: =sample!H304 -> 0 | H304: =sample!I304 -> 0 | I304: =sample!J304 -> 0 | J304: =sample!K304 -> 0 | K304: =sample!L304 -> 0 | L304: =sample!M304 -> 0 | M304: =sample!N304 -> 0 | N304: =sample!O304 -> 0 | O304: =sample!P304 -> 0 | P304: =sample!Q304 -> 0 | Q304: =sample!R304 -> 0 | R304: =sample!S304 -> 0 | S304: =sample!T304 -> 0 | T304: =sample!U304 -> 0 | U304: =sample!V304 -> 0 | V304: =sample!W304 -> 0 | W304: =sample!X304 -> 0 | X304: =sample!Y304 -> 0 | Y304: =sample!Z304 -> 0 | Z304: =sample!AA304 -> 0 | AA304: =sample!AB304 -> 0
B305: =sample!C305 -> 0 | C305: =sample!D305 -> 0 | D305: =sample!E305 -> 0 | E305: =sample!F305 -> 0 | F305: =sample!G305 -> 0 | G305: =sample!H305 -> 0 | H305: =sample!I305 -> 0 | I305: =sample!J305 -> 0 | J305: =sample!K305 -> 0 | K305: =sample!L305 -> 0 | L305: =sample!M305 -> 0 | M305: =sample!N305 -> 0 | N305: =sample!O305 -> 0 | O305: =sample!P305 -> 0 | P305: =sample!Q305 -> 0 | Q305: =sample!R305 -> 0 | R305: =sample!S305 -> 0 | S305: =sample!T305 -> 0 | T305: =sample!U305 -> 0 | U305: =sample!V305 -> 0 | V305: =sample!W305 -> 0 | W305: =sample!X305 -> 0 | X305: =sample!Y305 -> 0 | Y305: =sample!Z305 -> 0 | Z305: =sample!AA305 -> 0 | AA305: =sample!AB305 -> 0
B306: =sample!C306 -> 0 | C306: =sample!D306 -> 0 | D306: =sample!E306 -> 0 | E306: =sample!F306 -> 0 | F306: =sample!G306 -> 0 | G306: =sample!H306 -> 0 | H306: =sample!I306 -> 0 | I306: =sample!J306 -> 0 | J306: =sample!K306 -> 0 | K306: =sample!L306 -> 0 | L306: =sample!M306 -> 0 | M306: =sample!N306 -> 0 | N306: =sample!O306 -> 0 | O306: =sample!P306 -> 0 | P306: =sample!Q306 -> 0 | Q306: =sample!R306 -> 0 | R306: =sample!S306 -> 0 | S306: =sample!T306 -> 0 | T306: =sample!U306 -> 0 | U306: =sample!V306 -> 0 | V306: =sample!W306 -> 0 | W306: =sample!X306 -> 0 | X306: =sample!Y306 -> 0 | Y306: =sample!Z306 -> 0 | Z306: =sample!AA306 -> 0 | AA306: =sample!AB306 -> 0
B307: =sample!C307 -> 0 | C307: =sample!D307 -> 0 | D307: =sample!E307 -> 0 | E307: =sample!F307 -> 0 | F307: =sample!G307 -> 0 | G307: =sample!H307 -> 0 | H307: =sample!I307 -> 0 | I307: =sample!J307 -> 0 | J307: =sample!K307 -> 0 | K307: =sample!L307 -> 0 | L307: =sample!M307 -> 0 | M307: =sample!N307 -> 0 | N307: =sample!O307 -> 0 | O307: =sample!P307 -> 0 | P307: =sample!Q307 -> 0 | Q307: =sample!R307 -> 0 | R307: =sample!S307 -> 0 | S307: =sample!T307 -> 0 | T307: =sample!U307 -> 0 | U307: =sample!V307 -> 0 | V307: =sample!W307 -> 0 | W307: =sample!X307 -> 0 | X307: =sample!Y307 -> 0 | Y307: =sample!Z307 -> 0 | Z307: =sample!AA307 -> 0 | AA307: =sample!AB307 -> 0
B308: =sample!C308 -> 0 | C308: =sample!D308 -> 0 | D308: =sample!E308 -> 0 | E308: =sample!F308 -> 0 | F308: =sample!G308 -> 0 | G308: =sample!H308 -> 0 | H308: =sample!I308 -> 0 | I308: =sample!J308 -> 0 | J308: =sample!K308 -> 0 | K308: =sample!L308 -> 0 | L308: =sample!M308 -> 0 | M308: =sample!N308 -> 0 | N308: =sample!O308 -> 0 | O308: =sample!P308 -> 0 | P308: =sample!Q308 -> 0 | Q308: =sample!R308 -> 0 | R308: =sample!S308 -> 0 | S308: =sample!T308 -> 0 | T308: =sample!U308 -> 0 | U308: =sample!V308 -> 0 | V308: =sample!W308 -> 0 | W308: =sample!X308 -> 0 | X308: =sample!Y308 -> 0 | Y308: =sample!Z308 -> 0 | Z308: =sample!AA308 -> 0 | AA308: =sample!AB308 -> 0
D309: =sample!E309 -> 0 | E309: =sample!F309 -> 0 | F309: =sample!G309 -> 0 | G309: =sample!H309 -> 0 | H309: =sample!I309 -> 0 | I309: =sample!J309 -> 0 | J309: =sample!K309 -> 0 | K309: =sample!L309 -> 0 | L309: =sample!M309 -> 0 | M309: =sample!N309 -> 0 | N309: =sample!O309 -> 0 | O309: =sample!P309 -> 0 | P309: =sample!Q309 -> 0 | Q309: =sample!R309 -> 0 | R309: =sample!S309 -> 0 | S309: =sample!T309 -> 0 | T309: =sample!U309 -> 0 | U309: =sample!V309 -> 0 | V309: =sample!W309 -> 0 | W309: =sample!X309 -> 0 | X309: =sample!Y309 -> 0 | Y309: =sample!Z309 -> 0 | Z309: =sample!AA309 -> 0 | AA309: =sample!AB309 -> 0
B311: =sample!C311 -> 0 | E311: =sample!F311 -> 0 | H311: =sample!I311 -> 0 | K311: =sample!L311 -> 0
B312: =MAX(B314:B335) -> 0 | E312: =MAX(E314:E335) -> 0 | H312: =MAX(H314:H335) -> 0 | K312: =MAX(K314:K335) -> 0
B314: =sample!C314 -> 0 | E314: =sample!F314 -> 0 | H314: =sample!I314 -> 0 | K314: =sample!L314 -> 0
B315: =sample!C315 -> 0 | E315: =sample!F315 -> 0 | H315: =sample!I315 -> 0 | K315: =sample!L315 -> 0
B316: =sample!C316 -> 0 | E316: =sample!F316 -> 0 | H316: =sample!I316 -> 0 | K316: =sample!L316 -> 0
B317: =sample!C317 -> 0 | E317: =sample!F317 -> 0 | H317: =sample!I317 -> 0 | K317: =sample!L317 -> 0
B318: =sample!C318 -> 0 | E318: =sample!F318 -> 0 | H318: =sample!I318 -> 0 | K318: =sample!L318 -> 0
B319: =sample!C319 -> 0 | E319: =sample!F319 -> 0 | H319: =sample!I319 -> 0 | K319: =sample!L319 -> 0
B320: =sample!C320 -> 0 | E320: =sample!F320 -> 0 | H320: =sample!I320 -> 0 | K320: =sample!L320 -> 0
B321: =sample!C321 -> 0 | E321: =sample!F321 -> 0 | H321: =sample!I321 -> 0 | K321: =sample!L321 -> 0
B322: =sample!C322 -> 0 | E322: =sample!F322 -> 0 | H322: =sample!I322 -> 0 | K322: =sample!L322 -> 0
B323: =sample!C323 -> 0 | E323: =sample!F323 -> 0 | H323: =sample!I323 -> 0 | K323: =sample!L323 -> 0
B326: =sample!C326 -> 0 | E326: =sample!F326 -> 0 | H326: =sample!I326 -> 0 | K326: =sample!L326 -> 0
B327: =sample!C327 -> 0 | E327: =sample!F327 -> 0 | H327: =sample!I327 -> 0 | K327: =sample!L327 -> 0
B328: =sample!C328 -> 0 | E328: =sample!F328 -> 0 | H328: =sample!I328 -> 0 | K328: =sample!L328 -> 0
B329: =sample!C329 -> 0 | E329: =sample!F329 -> 0 | H329: =sample!I329 -> 0 | K329: =sample!L329 -> 0
B330: =sample!C330 -> 0 | E330: =sample!F330 -> 0 | H330: =sample!I330 -> 0 | K330: =sample!L330 -> 0
B331: =sample!C331 -> 0 | E331: =sample!F331 -> 0 | H331: =sample!I331 -> 0 | K331: =sample!L331 -> 0
B332: =sample!C332 -> 0 | E332: =sample!F332 -> 0 | H332: =sample!I332 -> 0 | K332: =sample!L332 -> 0
B333: =sample!C333 -> 0 | E333: =sample!F333 -> 0 | H333: =sample!I333 -> 0 | K333: =sample!L333 -> 0
B334: =sample!C334 -> 0 | E334: =sample!F334 -> 0 | H334: =sample!I334 -> 0 | K334: =sample!L334 -> 0
B335: =sample!C335 -> 0 | E335: =sample!F335 -> 0 | H335: =sample!I335 -> 0 | K335: =sample!L335 -> 0

Sheet 360Eval
X1: 2020 | Y1: =KPICreate!A4 -> 2020 | Z1: ='Wk Input'!A2 -> 44196 | AE1: =IFERROR(MATCH("OOP",AD1:AD76,0),0) -> 13 | AI1: =CONCATENATE("SELF",Home!Z1) -> SELFDM1 | AJ1: Superior
X2: 2020-11-01 | Y2: =EDATE(X2,12*(Y1-X1)) -> 44136 | Z2: =IF(sample!KT20="",Y2,sample!KT20) -> 44105 | AE2: =IF(AE1=0,0,INDEX(D1:D76,AE1)) -> Apa hubungan anda dengan Penerima Maklumbalas? Saya adalah… | AG2: =TEXT(Z2,"DD/MM/YYYY") -> 01/10/2020 | AJ2: Peer
X3: 2020-12-31 | Y3: =EDATE(X3,12*(Y1-X1)) -> 44196 | Z3: =IF(sample!KU20="",Y3,sample!KU20) -> 44196 | AG3: =TEXT(Z3,"DD/MM/YYYY") -> 31/12/2020 | AJ3: Subordinate
D4: =Y1 -> 2020 | F4: 360° EVALUATION | Z4: =IF(AC78=0,10,IF(Z1<Z2,9,IF(Z1<Z3,IF(AA11=7,8,IF(AA11=6,IF(AD11,IF(AD12,5,4),6),IF(AK13,2,3))),IF(AND(AA11=7,AD11),7,IF(AA11=7,6,1))))) -> 1 | AJ4: Internal Customer
D5: Salam Sejahtera | Y5: 1 | Z5: 2 | AA5: 3 | AB5: 4 | AC5: 5 | AD5: 6 | AE5: 7 | AF5: 8 | AG5: 9 | AH5: 10 | AJ5: Team Member
D6: =INDEX(Y6:AH6,Z4) -> Survei 360° Evaluation kini sudah ditutup. Anda boleh gunakan muka ini untuk melihat skor anda sendiri, jika ada, di bawah 'Lihat Skor Saya'. Sila Refresh untuk dapatkan kemaskini muka ini yang terkini. | Y6: Survei 360° Evaluation kini sudah ditutup. Anda boleh gunakan muka ini untuk melihat skor anda sendiri, jika ada, di bawah 'Lihat Skor Saya'. Sila Refresh untuk dapatkan kemaskini muka ini yang terkini. | Z6: Anda telah terpilih untuk memberi maklumbalas terhadap anggota di bawah. Sila gunakan borang ini untuk memberi maklumbalas tentang sikap yang biasa ditunjukkan oleh anggota ini. Segala maklumbalas anda adalah sulit, dan penerima maklumbalas tidak akan melihat borang ini. | AA6: Tidak ada 360° Evaluation (lagi) untuk anda membuat penilaian. Sila Refresh untuk dapatkan kemaskini muka ini yang terkini. | AB6: Sila berikan maklumbalas di bawah untuk menilai diri anda sendiri sebaik mungkin secara jujur. Penilaian diri tidak memberi impak kepada skor anda, tetapi ianya berguna sebagai perbandingan bagaimana diri anda dinilai oleh orang lain. Anda hanya boleh melakukan ini sekali sahaja. Segala maklumbalas anda adalah sulit. | AC6: Maaf, anda tidak boleh melakukan penilaian 360° Evaluation untuk diri sendiri lebih dari sekali! | AD6: Maaf, and belum terpilih untuk dinilai secara 360° Evaluation. Sila Refresh untuk dapatkan kemaskini muka ini yang terkini. | AE6: Sila rujuk kepada Skor bagaimana anda dinilai oleh orang lain berbanding penilaian diri anda sendiri, bagi setiap Nilai Bersama di bawah. Sila Refresh untuk dapatkan kemaskini muka ini yang terkini. | AF6: Maaf! Skor anda belum lagi diproses dan dikeluarkan. Skor anda akan dikeluarkan pada 31/12/2021. Sila Refresh untuk dapatkan kemaskini muka ini yang terkini. | AG6: Survei 360° Evaluation belum lagi dimulakan. Ia akan hanya bermula pada 01/11/2021. Sila Refresh untuk dapatkan kemaskini muka ini yang terkini. | AH6: Sila Refresh untuk dapatkan kemaskini muka ini yang terkini. | AJ6: Self
AG7: Ref ID | AH7: Recipient | AI7: Evaluator | AJ7: Relation | AK7: Date | AL7: 1.1 | AM7: 1.2 | AN7: 1.3 | AO7: 1.4 | AP7: 1.5 | AQ7: 1.6 | AR7: Group 1 | AS7: 2.1 | AT7: 2.2 | AU7: 2.3 | AV7: 2.4 | AW7: 2.5 | AX7: 2.6 | AY7: Group 2 | AZ7: 3.1 | BA7: 3.2 | BB7: 3.3 | BC7: 3.4 | BD7: 3.5 | BE7: 3.6 | BF7: Group 3 | BG7: 4.1 | BH7: 4.2 | BI7: 4.3 | BJ7: 4.4 | BK7: 4.5 | BL7: 4.6 | BM7: Group 4 | BN7: 5.1 | BO7: 5.2 | BP7: 5.3 | BQ7: 5.4 | BR7: 5.5 | BS7: 5.6 | BT7: Group 5 | BU7: 6.1 | BV7: 6.2 | BW7: 6.3 | BX7: 6.4 | BY7: 6.5 | BZ7: 6.6 | CA7: Group 6 | CB7: 7.1 | CC7: 7.2 | CD7: 7.3 | CE7: 7.4 | CF7: 7.5 | CG7: 7.6 | CH7: Group 7
D8: Kini: | E8: =IF(OR($AA$11=6,$AA$11=7),"SELF",IF($AK$13,INDEX($AK$1:$AK$175,$AK$14),"NONE")) -> NONE | G8: Seterusnya: | H8: =IF(AM13,INDEX($AK$1:$AK$175,AM14),"") ->  | I8: =IF(AN13,INDEX($AK$1:$AK$175,AN14),"") ->  | R8: Sila Lengkapkan sebelum: | S8: =Z3-1 -> 2020-12-30 | AG8: =IF(E8="SELF",AI1,E8) -> NONE | AH8: =IF(E8="SELF",AI8,INDEX(AL$1:AL$175,AK14)) -> AA1 | AJ8: =AD13 -> OOP | AK8: =Z1 -> 44196 | AL8: =AD17 -> OOP | AM8: =AD18 -> OOP | AN8: =AD19 -> OOP | AO8: =AD20 -> OOP | AP8: =AD21 -> OOP | AQ8: =AD22 -> OPO | AR8: =AD23 -> 0 | AS8: =AD26 -> OOP | AT8: =AD27 -> OOP | AU8: =AD28 -> OOP | AV8: =AD29 -> OOP | AW8: =AD30 -> OOP | AX8: =AD31 -> OPO | AY8: =AD32 -> 0 | AZ8: =AD35 -> OOP | BA8: =AD36 -> OOP | BB8: =AD37 -> OOP | BC8: =AD38 -> OOP | BD8: =AD39 -> OPO | BE8: =AD40 -> OPO | BF8: =AD41 -> 0 | BG8: =AD44 -> OOP | BH8: =AD45 -> OOP | BI8: =AD46 -> OOP | BJ8: =AD47 -> OPO | BK8: =AD48 -> OPO | BL8: =AD49 -> OPO | BM8: =AD50 -> 0 | BN8: =AD53 -> OPO | BO8: =AD54 -> OPO | BP8: =AD55 -> OPO | BQ8: =AD56 -> OPO | BR8: =AD57 -> OPO | BS8: =AD58 -> OPO | BT8: =AD59 -> N/A | BU8: =AD62 -> OPO | BV8: =AD63 -> OPO | BW8: =AD64 -> OPO | BX8: =AD65 -> OPO | BY8: =AD66 -> OPO | BZ8: =AD67 -> OPO | CA8: =AD68 -> N/A | CB8: =AD71 -> OPO | CC8: =AD72 -> OPO | CD8: =AD73 -> OPO | CE8: =AD74 -> OPO | CF8: =AD75 -> OPO | CG8: =AD76 -> OPO | CH8: =AD77 -> N/A
S9: Tiada Evaluation akan diproses selepas tarikh ini.
D10: Nama Penerima Maklumbalas: | F10: =IF(OR($AA$11=6,$AA$11=7),Home!H6,IF($AK$13,INDEX($AM$1:$AM$175,$AK$14),"")) ->  | M10: Apa hubungan anda dengan Penerima Maklumbalas? Saya adalah… | AA10: Answer
D11: Jawatan: | F11: =IF(OR($AA$11=6,$AA$11=7),Home!H10,IF($AK$13,INDEX($AN$1:$AN$175,$AK$14),"")) ->  | AC11: Self Asses | AD11: =sample!KS20 -> FALSE
D12: Bahagian: | F12: =IF(OR($AA$11=6,$AA$11=7),Home!H12,IF($AK$13,INDEX($AO$1:$AO$175,$AK$14),"")) ->  | AC12: Self Done | AD12: =IF(COUNTIF($AI:$AI,AI1)>1,TRUE,FALSE) -> FALSE | AL12: Offset | AM12: =MATCH("TRUE",OFFSET($AJ$1,AK14,0,175-AK14,1),0) -> 3 | AN12: =MATCH("TRUE",OFFSET($AJ$1,AM14,0,175-AM14,1),0) -> 3 | AO12: =MATCH("TRUE",OFFSET($AJ$1,AN14,0,175-AN14,1),0) -> 1 | AP12: 7 | AQ12: 1
D13: =M10 -> Apa hubungan anda dengan Penerima Maklumbalas? Saya adalah… | AD13: =IFERROR(INDEX($AJ$1:$AJ$6,$AA$11),"OOP") -> OOP | AK13: =IF($Z$1>=$Z$3,FALSE,ISNUMBER(AK14)) -> FALSE | AM13: =IF($Z$1>=$Z$3,FALSE,ISNUMBER(AM12)) -> FALSE | AN13: FALSE | AO13: FALSE | AP13: FALSE | AQ13: FALSE | AR13: FALSE | AS13: FALSE
D14: Arahan: Sila tandakan tahap Nilai Bersama yang berkenaan yang ditunjukkan oleh anggota ini sebagaimana dalam pemerhatian anda, berpandukan soalan-soalan bagi setiap Nilai tersebut. Gunakan N/O (berkecuali) sekiranya anda tidak berada dalam situasi yang memungkinkan anda untuk dapat memerhatikan sikap tersebut. | AH14: =COUNTA(AI:AI)+13 -> 31 | AJ14: Row | AK14: =IFERROR(IF(OR(AA11=6,AA11=7),15,MATCH("TRUE",AJ$1:AJ$175,0)),"NONE") -> 16 | AM14: =AK14+AM12 -> 19 | AN14: =AM14+AN12 -> 22 | AO14: =AN14+AO12 -> 23 | AP14: 30 | AQ14: 31
AB15: V & Q | AC15: Factor | AI15: Ref Done | AJ15: Match | AK15: Ref ID | AL15: Recipient | AM15: Rec Name | AN15: Rec Pos | AO15: Rec Dept
D16: #1 | E16: Nilai Bersama: | G16: =IF(sample!Q345="","",sample!Q345) -> DISIPLIN | N16: N/O=Berkecuali | P16: 1=Sangat Rendah | R16: 5=Sangat Tinggi | AC16: =IF(G16="",0,1) -> 1 | AI16: 20305 | AJ16: =IFERROR(IF(AK16=0,"",MATCH(AK16,$AI:$AI,0)),"TRUE") -> TRUE | AK16: =sample!MI5 -> 20260 | AL16: =sample!MJ5 -> AA1 | AM16: =sample!MK5 -> ARNOLD HICKS | AN16: =sample!ML5 -> EKSEKUTIF OPERASI | AO16: =sample!MM5 -> OPERASI
D17: 1.1 | E17: =IF(sample!Q346="","",sample!Q346) -> Adakah anggota ini menunjukkan kepatuhan yang baik terhadap proses dan prosidur kerja yang ada? | AC17: =IF(OR(AA17=1,E17=""),0,1)*AC$16 -> 1 | AD17: =IF(AC17=0,"OPO",IF(AA17="","OOP",(AA17-1)/5)) -> OOP | AI17: 20710 | AJ17: =IFERROR(IF(AK17=0,"",MATCH(AK17,$AI:$AI,0)),"TRUE") -> 16 | AK17: =sample!MI6 -> 20305 | AL17: =sample!MJ6 -> AA2 | AM17: =sample!MK6 -> KIMBERLY ZIMMER | AN17: =sample!ML6 -> EKSEKUTIF PEMASARAN | AO17: =sample!MM6 -> PEMASARAN PRODUK
D18: 1.2 | E18: =IF(sample!Q347="","",sample!Q347) -> Adakah anggota ini menunjukkan pengurusan-masa yang bijak sewaktu bekerja? | AC18: 1 | AD18: =IF(AC18=0,"OPO",IF(AA18="","OOP",(AA18-1)/5)) -> OOP | AI18: 20485 | AJ18: 26 | AK18: =sample!MI7 -> 20350 | AL18: =sample!MJ7 -> AA3 | AM18: =sample!MK7 -> RALPH EDGE | AN18: =sample!ML7 -> EKSEKUTIF PEMASARAN PRODUK | AO18: =sample!MM7 -> PEMASARAN PRODUK
D19: 1.3 | E19: =IF(sample!Q348="","",sample!Q348) -> Adakah anggota ini menunjukkan ketrampilan yang baik dari segi pemakaian dan dandanan diri di tempat kerja? | AC19: 1 | AD19: OOP | AI19: 20440 | AJ19: TRUE | AK19: =sample!MI8 -> 20395 | AL19: =sample!MJ8 -> AA4 | AM19: =sample!MK8 -> KATHIE MELLON | AN19: =sample!ML8 -> EKSEKUTIF PEMASARAN PRODUK | AO19: =sample!MM8 -> PEMASARAN PRODUK
D20: 1.4 | E20: =IF(sample!Q349="","",sample!Q349) -> Adakah anggota ini menunjukkan kesungguhan untuk menyiapkan tugasan kerja seperti yang dijadualkan? | AC20: 1 | AD20: OOP | AI20: 20620 | AJ20: 19 | AK20: =sample!MI9 -> 20440 | AL20: =sample!MJ9 -> AA5 | AM20: =sample!MK9 -> KYLE JENNINGS | AN20: =sample!ML9 -> KONSULTAN TEKNOLOGI | AO20: =sample!MM9 -> TEKNOLOGI
D21: 1.5 | E21: =IF(sample!Q350="","",sample!Q350) -> Adakah anggota ini menunjukkan penjagaan kebersihan yang baik di tempat kerja? | AC21: 1 | AD21: OOP | AI21: 20665 | AJ21: 18 | AK21: =sample!MI10 -> 20485 | AL21: =sample!MJ10 -> AA6 | AM21: =sample!MK10 -> ROSIE BERTSAUGY | AN21: =sample!ML10 -> EKSEKUTIF PEMASARAN PRODUK | AO21: =sample!MM10 -> PEMASARAN PRODUK
D22: 1.6 | E22: =IF(sample!Q351="","",sample!Q351) ->  | AC22: 0 | AD22: OPO | AI22: 20800 | AJ22: TRUE | AK22: =sample!MI11 -> 20530 | AL22: =sample!MJ11 -> AA7 | AM22: =sample!MK11 -> CARLOS PURBELL | AN22: =sample!ML11 -> EKSEKUTIF KANAN PEMASARAN PRODUK | AO22: =sample!MM11 -> PEMASARAN PRODUK
D23: Skor Anda : | F23: =IF($AA$11=7,IF(sample!OI5="","",sample!OI5),"") ->  | H23: Penilaian-Sendiri : | J23: =IF($AA$11=7,IF(sample!OI20="","",sample!OI20),"") ->  | AB23: Total Grp | AC23: =SUM(AC17:AC22) -> 5 | AD23: =IFERROR(SUM(AD17:AD22)/AC23,"N/A") -> 0 | AI23: 20755 | AJ23: TRUE | AK23: =sample!MI12 -> 20575 | AL23: =sample!MJ12 -> AA8 | AM23: =sample!MK12 -> JOSHUA TERRANCE | AN23: =sample!ML12 -> EKSEKUTIF PEMASARAN | AO23: =sample!MM12 -> PEMASARAN PRODUK
AI24: 21025 | AJ24: 20 | AK24: =sample!MI13 -> 20620 | AL24: =sample!MJ13 -> AA9 | AM24: =sample!MK13 -> EVERETT LUBAK | AN24: =sample!ML13 -> EKSEKUTIF LOGISTIK | AO24: =sample!MM13 -> LOGISTIK
D25: #2 | E25: Nilai Bersama: | G25: =IF(sample!Q354="","",sample!Q354) -> KERJA BERPASUKAN | N25: N/O=Berkecuali | P25: 1=Sangat Rendah | R25: 5=Sangat Tinggi | AC25: =IF(G25="",0,1) -> 1 | AI25: 21070 | AJ25: 21 | AK25: =sample!MI14 -> 20665 | AL25: =sample!MJ14 -> AB1 | AM25: =sample!MK14 -> CLAUDE RICHARD | AN25: =sample!ML14 -> EKSEKUTIF PEMASARAN | AO25: =sample!MM14 -> PEMASARAN PRODUK
D26: 2.1 | E26: =IF(sample!Q355="","",sample!Q355) -> Adakah anggota ini menghormati arahan dan matlamat bersama pasukan? | AC26: =IF(OR(AA26=1,E26=""),0,1)*AC$25 -> 1 | AD26: =IF(AC26=0,"OPO",IF(AA26="","OOP",(AA26-1)/5)) -> OOP | AI26: 20350 | AJ26: 17 | AK26: =sample!MI15 -> 20710 | AL26: =sample!MJ15 -> AB2 | AM26: =sample!MK15 -> JULIE DANNIELSON | AN26: =sample!ML15 -> EKSEKUTIF KANAN OPERASI | AO26: =sample!MM15 -> OPERASI
D27: 2.2 | E27: =IF(sample!Q356="","",sample!Q356) -> Adakah anggota ini menyumbang secara aktif sewaktu aktiviti berpasukan? | AC27: 1 | AD27: =IF(AC27=0,"OPO",IF(AA27="","OOP",(AA27-1)/5)) -> OOP | AI27: 20980 | AJ27: 23 | AK27: =sample!MI16 -> 20755 | AL27: =sample!MJ16 -> AB3 | AM27: =sample!MK16 -> SOPHIE HENDERLAIN | AN27: =sample!ML16 -> EKSEKUTIF OPERASI | AO27: =sample!MM16 -> OPERASI
D28: 2.3 | E28: =IF(sample!Q357="","",sample!Q357) -> Adakah anggota ini menunjukkan sikap berlapang untuk menerima perbezaan pendapat? | AC28: 1 | AD28: OOP | AI28: 20845 | AJ28: 22 | AK28: =sample!MI17 -> 20800 | AL28: =sample!MJ17 -> AB4 | AM28: =sample!MK17 -> JOSEPH COBS | AN28: =sample!ML17 -> KONSULTAN TEKNOLOGI | AO28: =sample!MM17 -> TEKNOLOGI
D29: 2.4 | E29: =IF(sample!Q358="","",sample!Q358) -> Adakah anggota ini cuba menyelesaikan sebarang konflik peribadi secara baik? | AC29: 1 | AD29: OOP | AI29: 21160 | AJ29: 28 | AK29: =sample!MI18 -> 20845 | AL29: =sample!MJ18 -> AB5 | AM29: =sample!MK18 -> RAMON EDAL | AN29: =sample!ML18 -> EKSEKUTIF OPERASI | AO29: =sample!MM18 -> OPERASI
D30: 2.5 | E30: =IF(sample!Q359="","",sample!Q359) -> Adakah anggota ini membantu memberi motivasi kepada rakan pasukan di sekelilingnya? | AC30: 1 | AD30: OOP | AI30: 21115 | AJ30: TRUE | AK30: =sample!MI19 -> 20890 | AL30: =sample!MJ19 -> AB6 | AM30: =sample!MK19 -> CHRISTINA AIMFORD | AN30: =sample!ML19 -> EKSEKUTIF OPERASI | AO30: =sample!MM19 -> OPERASI
D31: 2.6 | E31: =IF(sample!Q360="","",sample!Q360) ->  | AC31: 0 | AD31: OPO | AJ31: TRUE | AK31: =sample!MI20 -> 20935 | AL31: =sample!MJ20 -> AB7 | AM31: =sample!MK20 -> CEDRIC OKADA | AN31: =sample!ML20 -> EKSEKUTIF KANAN OPERASI | AO31: =sample!MM20 -> OPERASI
D32: Skor Anda : | F32: =IF($AA$11=7,IF(sample!OJ5="","",sample!OJ5),"") ->  | H32: Penilaian-Sendiri : | J32: =IF($AA$11=7,IF(sample!OJ20="","",sample!OJ20),"") ->  | AB32: Total Grp | AC32: =SUM(AC26:AC31) -> 5 | AD32: =IFERROR(SUM(AD26:AD31)/AC32,"N/A") -> 0 | AJ32: 27 | AK32: =sample!MN5 -> 20980 | AL32: =sample!MO5 -> AB8 | AM32: =sample!MP5 -> SOPHIE SPENCER | AN32: =sample!MQ5 -> PENOLONG PENGURUS LOGISTIK | AO32: =sample!MR5 -> LOGISTIK
AJ33: 24 | AK33: =sample!MN6 -> 21025 | AL33: =sample!MO6 -> AB9 | AM33: =sample!MP6 -> BOBBY ANTOOM | AN33: =sample!MQ6 -> PENGURUS LOGISTIK | AO33: =sample!MR6 -> LOGISTIK
D34: #3 | E34: Nilai Bersama: | G34: =IF(sample!Q363="","",sample!Q363) -> INTEGRITI | N34: N/O=Berkecuali | P34: 1=Sangat Rendah | R34: 5=Sangat Tinggi | AC34: =IF(G34="",0,1) -> 1 | AJ34: 25 | AK34: =sample!MN7 -> 21070 | AL34: =sample!MO7 -> AC0 | AM34: =sample!MP7 -> CHRISTOPHER TIMBERLAIN | AN34: =sample!MQ7 -> PENGURUS OPERASI | AO34: =sample!MR7 -> OPERASI
D35: 3.1 | E35: =IF(sample!Q364="","",sample!Q364) -> Adakah anggota ini memberikan contoh positif: "Cakap serupa bikin"? | AC35: =IF(OR(AA35=1,E35=""),0,1)*AC$34 -> 1 | AD35: =IF(AC35=0,"OPO",IF(AA35="","OOP",(AA35-1)/5)) -> OOP | AJ35: 30 | AK35: =sample!MN8 -> 21115 | AL35: =sample!MO8 -> AC1 | AM35: =sample!MP8 -> SEAN LIPTON | AN35: =sample!MQ8 -> PENGURUS JUALAN | AO35: =sample!MR8 -> JUALAN
D36: 3.2 | E36: =IF(sample!Q365="","",sample!Q365) -> Adakah anggota ini mencermati rahsia apabila menangani isu yang sensitif? | AC36: 1 | AD36: =IF(AC36=0,"OPO",IF(AA36="","OOP",(AA36-1)/5)) -> OOP | AJ36: 29 | AK36: =sample!MN9 -> 21160 | AL36: =sample!MO9 -> AC2 | AM36: =sample!MP9 -> LUIS NAGES | AN36: =sample!MQ9 -> PENOLONG PENGURUS JUALAN | AO36: =sample!MR9 -> JUALAN
D37: 3.3 | E37: =IF(sample!Q366="","",sample!Q366) -> Adakah anggota ini menunjukkan kesanggupan bertanggungjawab terhadap kesilapan yang berlaku dalam pengawasannya? | AC37: 1 | AD37: OOP | AJ37: 1 | AK37: =sample!MN10 -> SELFDM1 | AL37: =sample!MO10 -> 0 | AM37: =sample!MP10 -> 0 | AN37: =sample!MQ10 -> 0 | AO37: =sample!MR10 -> 0
D38: 3.4 | E38: =IF(sample!Q367="","",sample!Q367) -> Adakah anggota ini menunjukkan sikap membuat keputusan baik memenuhi keperluan organisasi tanpa berat sebelah atau kepentingan peribadi? | AC38: 1 | AD38: OOP | AK38: =sample!MN11 -> 0 | AL38: =sample!MO11 -> 0 | AM38: =sample!MP11 -> 0 | AN38: =sample!MQ11 -> 0 | AO38: =sample!MR11 -> 0
D39: 3.5 | E39: =IF(sample!Q368="","",sample!Q368) ->  | AC39: 0 | AD39: OPO | AK39: =sample!MN12 -> 0 | AL39: =sample!MO12 -> 0 | AM39: =sample!MP12 -> 0 | AN39: =sample!MQ12 -> 0 | AO39: =sample!MR12 -> 0
D40: 3.6 | E40: =IF(sample!Q369="","",sample!Q369) ->  | AC40: 0 | AD40: OPO | AK40: =sample!MN13 -> 0 | AL40: =sample!MO13 -> 0 | AM40: =sample!MP13 -> 0 | AN40: =sample!MQ13 -> 0 | AO40: =sample!MR13 -> 0
D41: Skor Anda : | F41: =IF($AA$11=7,IF(sample!OK5="","",sample!OK5),"") ->  | H41: Penilaian-Sendiri : | J41: =IF($AA$11=7,IF(sample!OK20="","",sample!OK20),"") ->  | AB41: Total Grp | AC41: =SUM(AC35:AC40) -> 4 | AD41: =IFERROR(SUM(AD35:AD40)/AC41,"N/A") -> 0 | AK41: =sample!MN14 -> 0 | AL41: =sample!MO14 -> 0 | AM41: =sample!MP14 -> 0 | AN41: =sample!MQ14 -> 0 | AO41: =sample!MR14 -> 0
AK42: =sample!MN15 -> 0 | AL42: =sample!MO15 -> 0 | AM42: =sample!MP15 -> 0 | AN42: =sample!MQ15 -> 0 | AO42: =sample!MR15 -> 0
D43: #4 | E43: Nilai Bersama: | G43: =IF(sample!Q372="","",sample!Q372) -> KREATIF | N43: N/O=Berkecuali | P43: 1=Sangat Rendah | R43: 5=Sangat Tinggi | AC43: =IF(G43="",0,1) -> 1 | AK43: =sample!MN16 -> 0 | AL43: =sample!MO16 -> 0 | AM43: =sample!MP16 -> 0 | AN43: =sample!MQ16 -> 0 | AO43: =sample!MR16 -> 0
D44: 4.1 | E44: =IF(sample!Q373="","",sample!Q373) -> Apakah anggota ini ada memberi idea/ peluang baik yang baru? | AC44: =IF(OR(AA44=1,E44=""),0,1)*AC$43 -> 1 | AD44: =IF(AC44=0,"OPO",IF(AA44="","OOP",(AA44-1)/5)) -> OOP | AK44: =sample!MN17 -> 0 | AL44: =sample!MO17 -> 0 | AM44: =sample!MP17 -> 0 | AN44: =sample!MQ17 -> 0 | AO44: =sample!MR17 -> 0
D45: 4.2 | E45: =IF(sample!Q374="","",sample!Q374) -> Apakah anggota ini menunjukkan pengetahuan yang mendalam dalam bidang kerjanya? | AC45: 1 | AD45: =IF(AC45=0,"OPO",IF(AA45="","OOP",(AA45-1)/5)) -> OOP | AK45: =sample!MN18 -> 0 | AL45: =sample!MO18 -> 0 | AM45: =sample!MP18 -> 0 | AN45: =sample!MQ18 -> 0 | AO45: =sample!MR18 -> 0
D46: 4.3 | E46: =IF(sample!Q375="","",sample!Q375) -> Apakah anggota ini menunjukkan kreativiti yang baik dengan memberikan penyelesaian alternatif terhadap masalah? | AC46: 1 | AD46: OOP | AK46: =sample!MN19 -> 0 | AL46: =sample!MO19 -> 0 | AM46: =sample!MP19 -> 0 | AN46: =sample!MQ19 -> 0 | AO46: =sample!MR19 -> 0
D47: 4.4 | E47: =IF(sample!Q376="","",sample!Q376) ->  | AC47: 0 | AD47: OPO | AK47: =sample!MN20 -> 0 | AL47: =sample!MO20 -> 0 | AM47: =sample!MP20 -> 0 | AN47: =sample!MQ20 -> 0 | AO47: =sample!MR20 -> 0
D48: 4.5 | E48: =IF(sample!Q377="","",sample!Q377) ->  | AC48: 0 | AD48: OPO | AK48: =sample!MS5 -> 0 | AL48: =sample!MT5 -> 0 | AM48: =sample!MU5 -> 0 | AN48: =sample!MV5 -> 0 | AO48: =sample!MW5 -> 0
D49: 4.6 | E49: =IF(sample!Q378="","",sample!Q378) ->  | AC49: 0 | AD49: OPO | AK49: =sample!MS6 -> 0 | AL49: =sample!MT6 -> 0 | AM49: =sample!MU6 -> 0 | AN49: =sample!MV6 -> 0 | AO49: =sample!MW6 -> 0
D50: Skor Anda : | F50: =IF($AA$11=7,IF(sample!OL5="","",sample!OL5),"") ->  | H50: Penilaian-Sendiri : | J50: =IF($AA$11=7,IF(sample!OL20="","",sample!OL20),"") ->  | AB50: Total Grp | AC50: =SUM(AC44:AC49) -> 3 | AD50: =IFERROR(SUM(AD44:AD49)/AC50,"N/A") -> 0 | AK50: =sample!MS7 -> 0 | AL50: =sample!MT7 -> 0 | AM50: =sample!MU7 -> 0 | AN50: =sample!MV7 -> 0 | AO50: =sample!MW7 -> 0
AK51: =sample!MS8 -> 0 | AL51: =sample!MT8 -> 0 | AM51: =sample!MU8 -> 0 | AN51: =sample!MV8 -> 0 | AO51: =sample!MW8 -> 0
D52: #5 | E52: Nilai Bersama: | G52: =IF(sample!Q381="","",sample!Q381) ->  | N52: N/O=Berkecuali | P52: 1=Sangat Rendah | R52: 5=Sangat Tinggi | AC52: =IF(G52="",0,1) -> 0 | AK52: =sample!MS9 -> 0 | AL52: =sample!MT9 -> 0 | AM52: =sample!MU9 -> 0 | AN52: =sample!MV9 -> 0 | AO52: =sample!MW9 -> 0
D53: 5.1 | E53: =IF(sample!Q382="","",sample!Q382) ->  | AC53: =IF(OR(AA53=1,E53=""),0,1)*AC$52 -> 0 | AD53: =IF(AC53=0,"OPO",IF(AA53="","OOP",(AA53-1)/5)) -> OPO | AK53: =sample!MS10 -> 0 | AL53: =sample!MT10 -> 0 | AM53: =sample!MU10 -> 0 | AN53: =sample!MV10 -> 0 | AO53: =sample!MW10 -> 0
D54: 5.2 | E54: =IF(sample!Q383="","",sample!Q383) ->  | AC54: 0 | AD54: =IF(AC54=0,"OPO",IF(AA54="","OOP",(AA54-1)/5)) -> OPO | AK54: =sample!MS11 -> 0 | AL54: =sample!MT11 -> 0 | AM54: =sample!MU11 -> 0 | AN54: =sample!MV11 -> 0 | AO54: =sample!MW11 -> 0
D55: 5.3 | E55: =IF(sample!Q384="","",sample!Q384) ->  | AC55: 0 | AD55: OPO | AK55: =sample!MS12 -> 0 | AL55: =sample!MT12 -> 0 | AM55: =sample!MU12 -> 0 | AN55: =sample!MV12 -> 0 | AO55: =sample!MW12 -> 0
D56: 5.4 | E56: =IF(sample!Q385="","",sample!Q385) ->  | AC56: 0 | AD56: OPO | AK56: =sample!MS13 -> 0 | AL56: =sample!MT13 -> 0 | AM56: =sample!MU13 -> 0 | AN56: =sample!MV13 -> 0 | AO56: =sample!MW13 -> 0
D57: 5.5 | E57: =IF(sample!Q386="","",sample!Q386) ->  | AC57: 0 | AD57: OPO | AK57: =sample!MS14 -> 0 | AL57: =sample!MT14 -> 0 | AM57: =sample!MU14 -> 0 | AN57: =sample!MV14 -> 0 | AO57: =sample!MW14 -> 0
D58: 5.6 | E58: =IF(sample!Q387="","",sample!Q387) ->  | AC58: 0 | AD58: OPO | AK58: =sample!MS15 -> 0 | AL58: =sample!MT15 -> 0 | AM58: =sample!MU15 -> 0 | AN58: =sample!MV15 -> 0 | AO58: =sample!MW15 -> 0
D59: Skor Anda : | F59: =IF($AA$11=7,IF(sample!OM5="","",sample!OM5),"") ->  | H59: Penilaian-Sendiri : | J59: =IF($AA$11=7,IF(sample!OM20="","",sample!OM20),"") ->  | AB59: Total Grp | AC59: =SUM(AC53:AC58) -> 0 | AD59: =IFERROR(SUM(AD53:AD58)/AC59,"N/A") -> N/A | AK59: =sample!MS16 -> 0 | AL59: =sample!MT16 -> 0 | AM59: =sample!MU16 -> 0 | AN59: =sample!MV16 -> 0 | AO59: =sample!MW16 -> 0
AK60: =sample!MS17 -> 0 | AL60: =sample!MT17 -> 0 | AM60: =sample!MU17 -> 0 | AN60: =sample!MV17 -> 0 | AO60: =sample!MW17 -> 0
D61: #6 | E61: Nilai Bersama: | G61: =IF(sample!Q390="","",sample!Q390) ->  | N61: N/O=Berkecuali | P61: 1=Sangat Rendah | R61: 5=Sangat Tinggi | AC61: =IF(G61="",0,1) -> 0 | AK61: =sample!MS18 -> 0 | AL61: =sample!MT18 -> 0 | AM61: =sample!MU18 -> 0 | AN61: =sample!MV18 -> 0 | AO61: =sample!MW18 -> 0
D62: 6.1 | E62: =IF(sample!Q391="","",sample!Q391) ->  | AC62: =IF(OR(AA62=1,E62=""),0,1)*AC$61 -> 0 | AD62: =IF(AC62=0,"OPO",IF(AA62="","OOP",(AA62-1)/5)) -> OPO | AK62: =sample!MS19 -> 0 | AL62: =sample!MT19 -> 0 | AM62: =sample!MU19 -> 0 | AN62: =sample!MV19 -> 0 | AO62: =sample!MW19 -> 0
D63: 6.2 | E63: =IF(sample!Q392="","",sample!Q392) ->  | AC63: 0 | AD63: =IF(AC63=0,"OPO",IF(AA63="","OOP",(AA63-1)/5)) -> OPO | AK63: =sample!MS20 -> 0 | AL63: =sample!MT20 -> 0 | AM63: =sample!MU20 -> 0 | AN63: =sample!MV20 -> 0 | AO63: =sample!MW20 -> 0
D64: 6.3 | E64: =IF(sample!Q393="","",sample!Q393) ->  | AC64: 0 | AD64: OPO | AK64: =sample!MX5 -> 0 | AL64: =sample!MY5 -> 0 | AM64: =sample!MZ5 -> 0 | AN64: =sample!NA5 -> 0 | AO64: =sample!NB5 -> 0
D65: 6.4 | E65: =IF(sample!Q394="","",sample!Q394) ->  | AC65: 0 | AD65: OPO | AK65: =sample!MX6 -> 0 | AL65: =sample!MY6 -> 0 | AM65: =sample!MZ6 -> 0 | AN65: =sample!NA6 -> 0 | AO65: =sample!NB6 -> 0
D66: 6.5 | E66: =IF(sample!Q395="","",sample!Q395) ->  | AC66: 0 | AD66: OPO | AK66: =sample!MX7 -> 0 | AL66: =sample!MY7 -> 0 | AM66: =sample!MZ7 -> 0 | AN66: =sample!NA7 -> 0 | AO66: =sample!NB7 -> 0
D67: 6.6 | E67: =IF(sample!Q396="","",sample!Q396) ->  | AC67: 0 | AD67: OPO | AK67: =sample!MX8 -> 0 | AL67: =sample!MY8 -> 0 | AM67: =sample!MZ8 -> 0 | AN67: =sample!NA8 -> 0 | AO67: =sample!NB8 -> 0
D68: Skor Anda : | F68: =IF($AA$11=7,IF(sample!ON5="","",sample!ON5),"") ->  | H68: Penilaian-Sendiri : | J68: =IF($AA$11=7,IF(sample!ON20="","",sample!ON20),"") ->  | AB68: Total Grp | AC68: =SUM(AC62:AC67) -> 0 | AD68: =IFERROR(SUM(AD62:AD67)/AC68,"N/A") -> N/A | AK68: =sample!MX9 -> 0 | AL68: =sample!MY9 -> 0 | AM68: =sample!MZ9 -> 0 | AN68: =sample!NA9 -> 0 | AO68: =sample!NB9 -> 0
AK69: =sample!MX10 -> 0 | AL69: =sample!MY10 -> 0 | AM69: =sample!MZ10 -> 0 | AN69: =sample!NA10 -> 0 | AO69: =sample!NB10 -> 0
D70: #7 | E70: Nilai Bersama: | G70: =IF(sample!Q399="","",sample!Q399) ->  | N70: N/O=Berkecuali | P70: 1=Sangat Rendah | R70: 5=Sangat Tinggi | AC70: =IF(G70="",0,1) -> 0 | AK70: =sample!MX11 -> 0 | AL70: =sample!MY11 -> 0 | AM70: =sample!MZ11 -> 0 | AN70: =sample!NA11 -> 0 | AO70: =sample!NB11 -> 0
D71: 7.1 | E71: =IF(sample!Q400="","",sample!Q400) ->  | AC71: =IF(OR(AA71=1,E71=""),0,1)*AC$70 -> 0 | AD71: =IF(AC71=0,"OPO",IF(AA71="","OOP",(AA71-1)/5)) -> OPO | AK71: =sample!MX12 -> 0 | AL71: =sample!MY12 -> 0 | AM71: =sample!MZ12 -> 0 | AN71: =sample!NA12 -> 0 | AO71: =sample!NB12 -> 0
D72: 7.2 | E72: =IF(sample!Q401="","",sample!Q401) ->  | AC72: 0 | AD72: =IF(AC72=0,"OPO",IF(AA72="","OOP",(AA72-1)/5)) -> OPO | AK72: =sample!MX13 -> 0 | AL72: =sample!MY13 -> 0 | AM72: =sample!MZ13 -> 0 | AN72: =sample!NA13 -> 0 | AO72: =sample!NB13 -> 0
D73: 7.3 | E73: =IF(sample!Q402="","",sample!Q402) ->  | AC73: 0 | AD73: OPO | AK73: =sample!MX14 -> 0 | AL73: =sample!MY14 -> 0 | AM73: =sample!MZ14 -> 0 | AN73: =sample!NA14 -> 0 | AO73: =sample!NB14 -> 0
D74: 7.4 | E74: =IF(sample!Q403="","",sample!Q403) ->  | AC74: 0 | AD74: OPO | AK74: =sample!MX15 -> 0 | AL74: =sample!MY15 -> 0 | AM74: =sample!MZ15 -> 0 | AN74: =sample!NA15 -> 0 | AO74: =sample!NB15 -> 0
D75: 7.5 | E75: =IF(sample!Q404="","",sample!Q404) ->  | AC75: 0 | AD75: OPO | AK75: =sample!MX16 -> 0 | AL75: =sample!MY16 -> 0 | AM75: =sample!MZ16 -> 0 | AN75: =sample!NA16 -> 0 | AO75: =sample!NB16 -> 0
D76: 7.6 | E76: =IF(sample!Q405="","",sample!Q405) ->  | AC76: 0 | AD76: OPO | AK76: =sample!MX17 -> 0 | AL76: =sample!MY17 -> 0 | AM76: =sample!MZ17 -> 0 | AN76: =sample!NA17 -> 0 | AO76: =sample!NB17 -> 0
D77: Skor Anda : | F77: =IF($AA$11=7,IF(sample!OO5="","",sample!OO5),"") ->  | H77: Penilaian-Sendiri : | J77: =IF($AA$11=7,IF(sample!OO20="","",sample!OO20),"") ->  | AB77: Total Grp | AC77: =SUM(AC71:AC76) -> 0 | AD77: =IFERROR(SUM(AD71:AD76)/AC77,"N/A") -> N/A | AK77: =sample!MX18 -> 0 | AL77: =sample!MY18 -> 0 | AM77: =sample!MZ18 -> 0 | AN77: =sample!NA18 -> 0 | AO77: =sample!NB18 -> 0
P78: Jumlah Skor Anda % : | S78: =IF($AA$11=7,IF(sample!OP5="","",sample!OP5*100),"") ->  | AB78: TOTAL | AC78: =AC23+AC32+AC41+AC50+AC59+AC68+AC77 -> 17 | AK78: =sample!MX19 -> 0 | AL78: =sample!MY19 -> 0 | AM78: =sample!MZ19 -> 0 | AN78: =sample!NA19 -> 0 | AO78: =sample!NB19 -> 0
AK79: =sample!MX20 -> 0 | AL79: =sample!MY20 -> 0 | AM79: =sample!MZ20 -> 0 | AN79: =sample!NA20 -> 0 | AO79: =sample!NB20 -> 0
F80: A form by Leadersense Consulting & Systems Sdn Bhd @2020 | L80: =KPICreate!U38 -> 0 | M80: =KPICreate!T38 -> 0 | N80: =CONCATENATE(Home!Y1,"Static.xlsx") -> SAMPELStatic.xlsx | O80: =CONCATENATE(Home!R43,N80) -> C:\Users\Zaharin\Desktop\Leadersense\Software\PowerExec-xL\Release Ver10.0\SAMPEL\SAMPELStatic.xlsx | P80: =KPICreate!N38 -> 0 | Q80: =KPICreate!P38 -> 0 | R80: =KPICreate!Q38 -> 0 | S80: =KPICreate!R38 -> 0 | T80: =KPICreate!S38 -> 0 | AK80: =sample!NC5 -> 0 | AL80: =sample!ND5 -> 0 | AM80: =sample!NE5 -> 0 | AN80: =sample!NF5 -> 0 | AO80: =sample!NG5 -> 0
AJ81: =IFERROR(IF(AK81=0,"",MATCH(AK81,$AI:$AI,0)),"TRUE") ->  | AK81: =sample!NC6 -> 0 | AL81: =sample!ND6 -> 0 | AM81: =sample!NE6 -> 0 | AN81: =sample!NF6 -> 0 | AO81: =sample!NG6 -> 0
AK82: =sample!NC7 -> 0 | AL82: =sample!ND7 -> 0 | AM82: =sample!NE7 -> 0 | AN82: =sample!NF7 -> 0 | AO82: =sample!NG7 -> 0
AK83: =sample!NC8 -> 0 | AL83: =sample!ND8 -> 0 | AM83: =sample!NE8 -> 0 | AN83: =sample!NF8 -> 0 | AO83: =sample!NG8 -> 0
AK84: =sample!NC9 -> 0 | AL84: =sample!ND9 -> 0 | AM84: =sample!NE9 -> 0 | AN84: =sample!NF9 -> 0 | AO84: =sample!NG9 -> 0
AK85: =sample!NC10 -> 0 | AL85: =sample!ND10 -> 0 | AM85: =sample!NE10 -> 0 | AN85: =sample!NF10 -> 0 | AO85: =sample!NG10 -> 0
AK86: =sample!NC11 -> 0 | AL86: =sample!ND11 -> 0 | AM86: =sample!NE11 -> 0 | AN86: =sample!NF11 -> 0 | AO86: =sample!NG11 -> 0
AK87: =sample!NC12 -> 0 | AL87: =sample!ND12 -> 0 | AM87: =sample!NE12 -> 0 | AN87: =sample!NF12 -> 0 | AO87: =sample!NG12 -> 0
AK88: =sample!NC13 -> 0 | AL88: =sample!ND13 -> 0 | AM88: =sample!NE13 -> 0 | AN88: =sample!NF13 -> 0 | AO88: =sample!NG13 -> 0
AK89: =sample!NC14 -> 0 | AL89: =sample!ND14 -> 0 | AM89: =sample!NE14 -> 0 | AN89: =sample!NF14 -> 0 | AO89: =sample!NG14 -> 0
AK90: =sample!NC15 -> 0 | AL90: =sample!ND15 -> 0 | AM90: =sample!NE15 -> 0 | AN90: =sample!NF15 -> 0 | AO90: =sample!NG15 -> 0
AK91: =sample!NC16 -> 0 | AL91: =sample!ND16 -> 0 | AM91: =sample!NE16 -> 0 | AN91: =sample!NF16 -> 0 | AO91: =sample!NG16 -> 0
AK92: =sample!NC17 -> 0 | AL92: =sample!ND17 -> 0 | AM92: =sample!NE17 -> 0 | AN92: =sample!NF17 -> 0 | AO92: =sample!NG17 -> 0
AK93: =sample!NC18 -> 0 | AL93: =sample!ND18 -> 0 | AM93: =sample!NE18 -> 0 | AN93: =sample!NF18 -> 0 | AO93: =sample!NG18 -> 0
AK94: =sample!NC19 -> 0 | AL94: =sample!ND19 -> 0 | AM94: =sample!NE19 -> 0 | AN94: =sample!NF19 -> 0 | AO94: =sample!NG19 -> 0
AK95: =sample!NC20 -> 0 | AL95: =sample!ND20 -> 0 | AM95: =sample!NE20 -> 0 | AN95: =sample!NF20 -> 0 | AO95: =sample!NG20 -> 0
AK96: =sample!NH5 -> 0 | AL96: =sample!NI5 -> 0 | AM96: =sample!NJ5 -> 0 | AN96: =sample!NK5 -> 0 | AO96: =sample!NL5 -> 0
AK97: =sample!NH6 -> 0 | AL97: =sample!NI6 -> 0 | AM97: =sample!NJ6 -> 0 | AN97: =sample!NK6 -> 0 | AO97: =sample!NL6 -> 0
AK98: =sample!NH7 -> 0 | AL98: =sample!NI7 -> 0 | AM98: =sample!NJ7 -> 0 | AN98: =sample!NK7 -> 0 | AO98: =sample!NL7 -> 0
AK99: =sample!NH8 -> 0 | AL99: =sample!NI8 -> 0 | AM99: =sample!NJ8 -> 0 | AN99: =sample!NK8 -> 0 | AO99: =sample!NL8 -> 0
AK100: =sample!NH9 -> 0 | AL100: =sample!NI9 -> 0 | AM100: =sample!NJ9 -> 0 | AN100: =sample!NK9 -> 0 | AO100: =sample!NL9 -> 0
AK101: =sample!NH10 -> 0 | AL101: =sample!NI10 -> 0 | AM101: =sample!NJ10 -> 0 | AN101: =sample!NK10 -> 0 | AO101: =sample!NL10 -> 0
AK102: =sample!NH11 -> 0 | AL102: =sample!NI11 -> 0 | AM102: =sample!NJ11 -> 0 | AN102: =sample!NK11 -> 0 | AO102: =sample!NL11 -> 0
AK103: =sample!NH12 -> 0 | AL103: =sample!NI12 -> 0 | AM103: =sample!NJ12 -> 0 | AN103: =sample!NK12 -> 0 | AO103: =sample!NL12 -> 0
AK104: =sample!NH13 -> 0 | AL104: =sample!NI13 -> 0 | AM104: =sample!NJ13 -> 0 | AN104: =sample!NK13 -> 0 | AO104: =sample!NL13 -> 0
AK105: =sample!NH14 -> 0 | AL105: =sample!NI14 -> 0 | AM105: =sample!NJ14 -> 0 | AN105: =sample!NK14 -> 0 | AO105: =sample!NL14 -> 0
AK106: =sample!NH15 -> 0 | AL106: =sample!NI15 -> 0 | AM106: =sample!NJ15 -> 0 | AN106: =sample!NK15 -> 0 | AO106: =sample!NL15 -> 0
AK107: =sample!NH16 -> 0 | AL107: =sample!NI16 -> 0 | AM107: =sample!NJ16 -> 0 | AN107: =sample!NK16 -> 0 | AO107: =sample!NL16 -> 0
AK108: =sample!NH17 -> 0 | AL108: =sample!NI17 -> 0 | AM108: =sample!NJ17 -> 0 | AN108: =sample!NK17 -> 0 | AO108: =sample!NL17 -> 0
AK109: =sample!NH18 -> 0 | AL109: =sample!NI18 -> 0 | AM109: =sample!NJ18 -> 0 | AN109: =sample!NK18 -> 0 | AO109: =sample!NL18 -> 0
AK110: =sample!NH19 -> 0 | AL110: =sample!NI19 -> 0 | AM110: =sample!NJ19 -> 0 | AN110: =sample!NK19 -> 0 | AO110: =sample!NL19 -> 0
AK111: =sample!NH20 -> 0 | AL111: =sample!NI20 -> 0 | AM111: =sample!NJ20 -> 0 | AN111: =sample!NK20 -> 0 | AO111: =sample!NL20 -> 0
AK112: =sample!NM5 -> 0 | AL112: =sample!NN5 -> 0 | AM112: =sample!NO5 -> 0 | AN112: =sample!NP5 -> 0 | AO112: =sample!NQ5 -> 0
AK113: =sample!NM6 -> 0 | AL113: =sample!NN6 -> 0 | AM113: =sample!NO6 -> 0 | AN113: =sample!NP6 -> 0 | AO113: =sample!NQ6 -> 0
AK114: =sample!NM7 -> 0 | AL114: =sample!NN7 -> 0 | AM114: =sample!NO7 -> 0 | AN114: =sample!NP7 -> 0 | AO114: =sample!NQ7 -> 0
AK115: =sample!NM8 -> 0 | AL115: =sample!NN8 -> 0 | AM115: =sample!NO8 -> 0 | AN115: =sample!NP8 -> 0 | AO115: =sample!NQ8 -> 0
AK116: =sample!NM9 -> 0 | AL116: =sample!NN9 -> 0 | AM116: =sample!NO9 -> 0 | AN116: =sample!NP9 -> 0 | AO116: =sample!NQ9 -> 0
AK117: =sample!NM10 -> 0 | AL117: =sample!NN10 -> 0 | AM117: =sample!NO10 -> 0 | AN117: =sample!NP10 -> 0 | AO117: =sample!NQ10 -> 0
AK118: =sample!NM11 -> 0 | AL118: =sample!NN11 -> 0 | AM118: =sample!NO11 -> 0 | AN118: =sample!NP11 -> 0 | AO118: =sample!NQ11 -> 0
AK119: =sample!NM12 -> 0 | AL119: =sample!NN12 -> 0 | AM119: =sample!NO12 -> 0 | AN119: =sample!NP12 -> 0 | AO119: =sample!NQ12 -> 0
AK120: =sample!NM13 -> 0 | AL120: =sample!NN13 -> 0 | AM120: =sample!NO13 -> 0 | AN120: =sample!NP13 -> 0 | AO120: =sample!NQ13 -> 0
AK121: =sample!NM14 -> 0 | AL121: =sample!NN14 -> 0 | AM121: =sample!NO14 -> 0 | AN121: =sample!NP14 -> 0 | AO121: =sample!NQ14 -> 0
AK122: =sample!NM15 -> 0 | AL122: =sample!NN15 -> 0 | AM122: =sample!NO15 -> 0 | AN122: =sample!NP15 -> 0 | AO122: =sample!NQ15 -> 0
AK123: =sample!NM16 -> 0 | AL123: =sample!NN16 -> 0 | AM123: =sample!NO16 -> 0 | AN123: =sample!NP16 -> 0 | AO123: =sample!NQ16 -> 0
AK124: =sample!NM17 -> 0 | AL124: =sample!NN17 -> 0 | AM124: =sample!NO17 -> 0 | AN124: =sample!NP17 -> 0 | AO124: =sample!NQ17 -> 0
AK125: =sample!NM18 -> 0 | AL125: =sample!NN18 -> 0 | AM125: =sample!NO18 -> 0 | AN125: =sample!NP18 -> 0 | AO125: =sample!NQ18 -> 0
AK126: =sample!NM19 -> 0 | AL126: =sample!NN19 -> 0 | AM126: =sample!NO19 -> 0 | AN126: =sample!NP19 -> 0 | AO126: =sample!NQ19 -> 0
AK127: =sample!NM20 -> 0 | AL127: =sample!NN20 -> 0 | AM127: =sample!NO20 -> 0 | AN127: =sample!NP20 -> 0 | AO127: =sample!NQ20 -> 0
AK128: =sample!NR5 -> 0 | AL128: =sample!NS5 -> 0 | AM128: =sample!NT5 -> 0 | AN128: =sample!NU5 -> 0 | AO128: =sample!NV5 -> 0
AK129: =sample!NR6 -> 0 | AL129: =sample!NS6 -> 0 | AM129: =sample!NT6 -> 0 | AN129: =sample!NU6 -> 0 | AO129: =sample!NV6 -> 0
AK130: =sample!NR7 -> 0 | AL130: =sample!NS7 -> 0 | AM130: =sample!NT7 -> 0 | AN130: =sample!NU7 -> 0 | AO130: =sample!NV7 -> 0
AK131: =sample!NR8 -> 0 | AL131: =sample!NS8 -> 0 | AM131: =sample!NT8 -> 0 | AN131: =sample!NU8 -> 0 | AO131: =sample!NV8 -> 0
AK132: =sample!NR9 -> 0 | AL132: =sample!NS9 -> 0 | AM132: =sample!NT9 -> 0 | AN132: =sample!NU9 -> 0 | AO132: =sample!NV9 -> 0
AK133: =sample!NR10 -> 0 | AL133: =sample!NS10 -> 0 | AM133: =sample!NT10 -> 0 | AN133: =sample!NU10 -> 0 | AO133: =sample!NV10 -> 0
AK134: =sample!NR11 -> 0 | AL134: =sample!NS11 -> 0 | AM134: =sample!NT11 -> 0 | AN134: =sample!NU11 -> 0 | AO134: =sample!NV11 -> 0
AK135: =sample!NR12 -> 0 | AL135: =sample!NS12 -> 0 | AM135: =sample!NT12 -> 0 | AN135: =sample!NU12 -> 0 | AO135: =sample!NV12 -> 0
AK136: =sample!NR13 -> 0 | AL136: =sample!NS13 -> 0 | AM136: =sample!NT13 -> 0 | AN136: =sample!NU13 -> 0 | AO136: =sample!NV13 -> 0
AK137: =sample!NR14 -> 0 | AL137: =sample!NS14 -> 0 | AM137: =sample!NT14 -> 0 | AN137: =sample!NU14 -> 0 | AO137: =sample!NV14 -> 0
AK138: =sample!NR15 -> 0 | AL138: =sample!NS15 -> 0 | AM138: =sample!NT15 -> 0 | AN138: =sample!NU15 -> 0 | AO138: =sample!NV15 -> 0
AK139: =sample!NR16 -> 0 | AL139: =sample!NS16 -> 0 | AM139: =sample!NT16 -> 0 | AN139: =sample!NU16 -> 0 | AO139: =sample!NV16 -> 0
AK140: =sample!NR17 -> 0 | AL140: =sample!NS17 -> 0 | AM140: =sample!NT17 -> 0 | AN140: =sample!NU17 -> 0 | AO140: =sample!NV17 -> 0
AK141: =sample!NR18 -> 0 | AL141: =sample!NS18 -> 0 | AM141: =sample!NT18 -> 0 | AN141: =sample!NU18 -> 0 | AO141: =sample!NV18 -> 0
AK142: =sample!NR19 -> 0 | AL142: =sample!NS19 -> 0 | AM142: =sample!NT19 -> 0 | AN142: =sample!NU19 -> 0 | AO142: =sample!NV19 -> 0
AK143: =sample!NR20 -> 0 | AL143: =sample!NS20 -> 0 | AM143: =sample!NT20 -> 0 | AN143: =sample!NU20 -> 0 | AO143: =sample!NV20 -> 0
AK144: =sample!NW5 -> 0 | AL144: =sample!NX5 -> 0 | AM144: =sample!NY5 -> 0 | AN144: =sample!NZ5 -> 0 | AO144: =sample!OA5 -> 0
AJ145: =IFERROR(IF(AK145=0,"",MATCH(AK145,$AI:$AI,0)),"TRUE") ->  | AK145: =sample!NW6 -> 0 | AL145: =sample!NX6 -> 0 | AM145: =sample!NY6 -> 0 | AN145: =sample!NZ6 -> 0 | AO145: =sample!OA6 -> 0
AK146: =sample!NW7 -> 0 | AL146: =sample!NX7 -> 0 | AM146: =sample!NY7 -> 0 | AN146: =sample!NZ7 -> 0 | AO146: =sample!OA7 -> 0
AK147: =sample!NW8 -> 0 | AL147: =sample!NX8 -> 0 | AM147: =sample!NY8 -> 0 | AN147: =sample!NZ8 -> 0 | AO147: =sample!OA8 -> 0
AK148: =sample!NW9 -> 0 | AL148: =sample!NX9 -> 0 | AM148: =sample!NY9 -> 0 | AN148: =sample!NZ9 -> 0 | AO148: =sample!OA9 -> 0
AK149: =sample!NW10 -> 0 | AL149: =sample!NX10 -> 0 | AM149: =sample!NY10 -> 0 | AN149: =sample!NZ10 -> 0 | AO149: =sample!OA10 -> 0
AK150: =sample!NW11 -> 0 | AL150: =sample!NX11 -> 0 | AM150: =sample!NY11 -> 0 | AN150: =sample!NZ11 -> 0 | AO150: =sample!OA11 -> 0
AK151: =sample!NW12 -> 0 | AL151: =sample!NX12 -> 0 | AM151: =sample!NY12 -> 0 | AN151: =sample!NZ12 -> 0 | AO151: =sample!OA12 -> 0
AK152: =sample!NW13 -> 0 | AL152: =sample!NX13 -> 0 | AM152: =sample!NY13 -> 0 | AN152: =sample!NZ13 -> 0 | AO152: =sample!OA13 -> 0
AK153: =sample!NW14 -> 0 | AL153: =sample!NX14 -> 0 | AM153: =sample!NY14 -> 0 | AN153: =sample!NZ14 -> 0 | AO153: =sample!OA14 -> 0
AK154: =sample!NW15 -> 0 | AL154: =sample!NX15 -> 0 | AM154: =sample!NY15 -> 0 | AN154: =sample!NZ15 -> 0 | AO154: =sample!OA15 -> 0
AK155: =sample!NW16 -> 0 | AL155: =sample!NX16 -> 0 | AM155: =sample!NY16 -> 0 | AN155: =sample!NZ16 -> 0 | AO155: =sample!OA16 -> 0
AK156: =sample!NW17 -> 0 | AL156: =sample!NX17 -> 0 | AM156: =sample!NY17 -> 0 | AN156: =sample!NZ17 -> 0 | AO156: =sample!OA17 -> 0
AK157: =sample!NW18 -> 0 | AL157: =sample!NX18 -> 0 | AM157: =sample!NY18 -> 0 | AN157: =sample!NZ18 -> 0 | AO157: =sample!OA18 -> 0
AK158: =sample!NW19 -> 0 | AL158: =sample!NX19 -> 0 | AM158: =sample!NY19 -> 0 | AN158: =sample!NZ19 -> 0 | AO158: =sample!OA19 -> 0
AK159: =sample!NW20 -> 0 | AL159: =sample!NX20 -> 0 | AM159: =sample!NY20 -> 0 | AN159: =sample!NZ20 -> 0 | AO159: =sample!OA20 -> 0
AK160: =sample!OB5 -> 0 | AL160: =sample!OC5 -> 0 | AM160: =sample!OD5 -> 0 | AN160: =sample!OE5 -> 0 | AO160: =sample!OF5 -> 0
AK161: =sample!OB6 -> 0 | AL161: =sample!OC6 -> 0 | AM161: =sample!OD6 -> 0 | AN161: =sample!OE6 -> 0 | AO161: =sample!OF6 -> 0
AK162: =sample!OB7 -> 0 | AL162: =sample!OC7 -> 0 | AM162: =sample!OD7 -> 0 | AN162: =sample!OE7 -> 0 | AO162: =sample!OF7 -> 0
AK163: =sample!OB8 -> 0 | AL163: =sample!OC8 -> 0 | AM163: =sample!OD8 -> 0 | AN163: =sample!OE8 -> 0 | AO163: =sample!OF8 -> 0
AK164: =sample!OB9 -> 0 | AL164: =sample!OC9 -> 0 | AM164: =sample!OD9 -> 0 | AN164: =sample!OE9 -> 0 | AO164: =sample!OF9 -> 0
AK165: =sample!OB10 -> 0 | AL165: =sample!OC10 -> 0 | AM165: =sample!OD10 -> 0 | AN165: =sample!OE10 -> 0 | AO165: =sample!OF10 -> 0
AK166: =sample!OB11 -> 0 | AL166: =sample!OC11 -> 0 | AM166: =sample!OD11 -> 0 | AN166: =sample!OE11 -> 0 | AO166: =sample!OF11 -> 0
AK167: =sample!OB12 -> 0 | AL167: =sample!OC12 -> 0 | AM167: =sample!OD12 -> 0 | AN167: =sample!OE12 -> 0 | AO167: =sample!OF12 -> 0
AK168: =sample!OB13 -> 0 | AL168: =sample!OC13 -> 0 | AM168: =sample!OD13 -> 0 | AN168: =sample!OE13 -> 0 | AO168: =sample!OF13 -> 0
AK169: =sample!OB14 -> 0 | AL169: =sample!OC14 -> 0 | AM169: =sample!OD14 -> 0 | AN169: =sample!OE14 -> 0 | AO169: =sample!OF14 -> 0
AK170: =sample!OB15 -> 0 | AL170: =sample!OC15 -> 0 | AM170: =sample!OD15 -> 0 | AN170: =sample!OE15 -> 0 | AO170: =sample!OF15 -> 0
AK171: =sample!OB16 -> 0 | AL171: =sample!OC16 -> 0 | AM171: =sample!OD16 -> 0 | AN171: =sample!OE16 -> 0 | AO171: =sample!OF16 -> 0
AK172: =sample!OB17 -> 0 | AL172: =sample!OC17 -> 0 | AM172: =sample!OD17 -> 0 | AN172: =sample!OE17 -> 0 | AO172: =sample!OF17 -> 0
AK173: =sample!OB18 -> 0 | AL173: =sample!OC18 -> 0 | AM173: =sample!OD18 -> 0 | AN173: =sample!OE18 -> 0 | AO173: =sample!OF18 -> 0
AK174: =sample!OB19 -> 0 | AL174: =sample!OC19 -> 0 | AM174: =sample!OD19 -> 0 | AN174: =sample!OE19 -> 0 | AO174: =sample!OF19 -> 0
AK175: =sample!OB20 -> 0 | AL175: =sample!OC20 -> 0 | AM175: =sample!OD20 -> 0 | AN175: =sample!OE20 -> 0 | AO175: =sample!OF20 -> 0

Sheet GYCards
AY1: Search on Green = | AZ1: TRUE | BA1: $B$20 | BH1: =C2-2000 -> 20 | FTP1: NOK
C2: =KPICreate!A4 -> 2020 | D2: =Home!H16 -> SAMPEL CORPORATION LTD | M2: =KPICreate!A4 -> 2020 | N2: =Home!H16 -> SAMPEL CORPORATION LTD | AY2: Authorized = | AZ2: =sample!KR20 -> FALSE | BA2: =LEN(BA1)-3 -> 2 | BB2: =ROW(INDIRECT($BA$1)) -> 20
AZ3: Row & Col | BA3: =IF(LEFT(BA1,2)="$B",RIGHT(BA1,BA2),BA6) -> 20 | BB3: =COLUMN(INDIRECT($BA$1)) -> 2 | BC3: =MATCH($D$9,sample!$LW$1:$LW$1001,0) -> 873 | BR3: Row & Col | BS3: =IF(LEFT(BA1,2)="$L",RIGHT(BA1,BA2),BS6) -> 19 | BT3: =COLUMN(INDIRECT($BA$1)) -> 2 | BU3: =MATCH($N$9,sample!$LW$1:$LW$1001,0) -> 873
C4: No. Kad: | D4: =IF($BA$16,$BA$10,INDEX(BB1:BB1536,$BA$3)) -> 4320AB0G0023 | F4: Tarikh Keluar: | G4: =IF($BA$16,TODAY(),INDEX(BC1:BC1536,$BA$3)) -> 2020-10-21 | M4: No. Kad: | N4: =IF($BS$16,$BS$10,INDEX(BT1:BT1536,$BS$3)) -> 3320AC0Y0008 | P4: Tarikh Keluar: | Q4: =IF($BS$16,TODAY(),INDEX(BU1:BU1536,$BS$3)) -> 2020-08-11 | AZ4: Last Iss No | BA4: =BA6-36 -> -16 | BR4: Last Iss No | BS4: =BS6-36 -> -17
C5: Dikeluar oleh: | D5: =IF($BA$16,Home!$Z$1,INDEX(BD1:BD1536,$BA$3)) -> AB0 | E5: =IF($BA$16,Home!$H$6,INDEX(BE1:BE1536,$BA$3)) -> BASIRAH BASIR | M5: Dikeluar oleh: | N5: =IF($BS$16,Home!$Z$1,INDEX(BV1:BV1536,$BS$3)) -> AC0 | O5: =IF($BS$16,Home!$H$6,INDEX(BW1:BW1536,$BS$3)) -> CHEWAN CHEMAT | AZ5: Iss Blanks | BA5: =COUNTIF($C$19:$C$33,"") -> 13 | BR5: Iss Blanks | BS5: =COUNTIF($M$19:$M$33,"") -> 14
C6: Jawatan: | D6: =IF($BA$16,Home!$H$10,INDEX(BF1:BF1536,$BA$3)) -> VP KEWANGAN | I6: O | M6: Jawatan: | N6: =IF($BS$16,Home!$H$10,INDEX(BX1:BX1536,$BS$3)) -> VP OPERASI PERNIAGAAN | S6: O | AZ6: Last Iss Row | BA6: =33-BA5 -> 20 | BR6: Last Iss Row | BS6: =33-BS5 -> 19
C7: Bahagian: | D7: =IF($BA$16,Home!$H$12,INDEX(BG1:BG1536,$BA$3)) -> KEWANGAN | M7: Bahagian: | N7: =IF($BS$16,Home!$H$12,INDEX(BY1:BY1536,$BS$3)) -> OPERASI PERNIAGAAN | AZ7: New Iss Row | BA7: =IF(BA5=1500,37,BA6+36) -> 56 | BR7: New Iss Row | BS7: =IF(BS5=1500,37,BS6+1) -> 20
C8: Diberi kepada: | M8: Diberi kepada: | AZ8: Issue Counter | BA8: 0 | BR8: Issue Counter | BS8: 0
C9: ID Pengguna: | D9: DM1 | E9: =IFERROR(IF($BA$16,INDEX(sample!LX1:LX1001,$BC$3),INDEX(BI1:BI1536,$BA$3)),"") -> ADAM NAUFAL HASMADI | M9: ID Pengguna: | N9: DM1 | O9: =IFERROR(IF($BS$16,INDEX(sample!LX1:LX1001,$BU$3),INDEX(CA1:CA1536,$BS$3)),"") -> ADAM NAUFAL HASMADI | AZ9: Next Issue | BA9: =TEXT(BA8+1,"0000") -> 0001 | BR9: Next Issue | BS9: =TEXT(BS8+1,"0000") -> 0001
C10: Jawatan: | D10: =IFERROR(IF($BA$16,INDEX(sample!LY1:LY1001,$BC$3),INDEX(BJ1:BJ1536,$BA$3)),"") -> PEN. KETUA PEMASARAN DAN PERKHIDMATAN | M10: Jawatan: | N10: =IFERROR(IF($BS$16,INDEX(sample!LY1:LY1001,$BU$3),INDEX(CB1:CB1536,$BS$3)),"") -> PEN. KETUA PEMASARAN DAN PERKHIDMATAN | AZ10: Next Card No. | BA10: =CONCATENATE(S17,BH1,Home!Z1,"G",BA9) -> 5320DM1G0001 | BR10: Next Card No. | BS10: =CONCATENATE(S17,BH1,Home!Z1,"Y",BS9) -> 5320DM1Y0001
C11: Bahagian: | D11: =IFERROR(IF($BA$16,INDEX(sample!LZ1:LZ1001,$BC$3),INDEX(BK1:BK1536,$BA$3)),"") -> PEMASARAN DAN PERKHIDMATAN | I11: Mata: | M11: Bahagian: | N11: =IFERROR(IF($BS$16,INDEX(sample!LZ1:LZ1001,$BU$3),INDEX(CC1:CC1536,$BS$3)),"") -> PEMASARAN DAN PERKHIDMATAN | S11: Mata: | AZ11: Rec Blanks | BA11: =COUNTBLANK($D$19:$D$33) -> 13 | BR11: Rec Blanks | BS11: =COUNTBLANK($N$19:$N$33) -> 14
C12: No. Merit: | D12: M10 | E12: =IFERROR(IF($BA$16,INDEX(sample!G345:G374,$BC$12),INDEX(BM1:BM1536,$BA$3)),"") -> Menyumbang usaha kerja yang signifikan melebihi dari keperluan Bahagian/ Unit/ JD sendiri | I12: =IFERROR(IF($BA$16,INDEX(sample!H345:H374,$BC$12),INDEX(BN1:BN1536,$BA$3)),"") -> 2 | M12: No. DeMerit: | N12: D08 | O12: =IFERROR(IF($BS$16,INDEX(sample!K345:K374,$BU$12),INDEX(CE1:CE1536,$BS$3)),"") -> Tidak hadir ke mesyuarat dalaman berjadual tanpa notis dan tanpa alasan munasabah | S12: =IFERROR(IF($BS$16,INDEX(sample!L345:L374,$BU$12),INDEX(CF1:CF1536,$BS$3)),"") -> -4 | AZ12: Last Rec Row | BA12: =15-BA11+18 -> 20 | BC12: =MATCH($D$12,sample!$F$345:$F$374,0) -> 10 | BR12: Last Rec Row | BS12: =15-BS11+18 -> 19 | BU12: =MATCH($N$12,sample!$J$345:$J$374,0) -> 8
C13: Catatan Tambahan: | H13: Tarikh Berlaku: | I13: 2020-10-19 | M13: Catatan Tambahan: | R13: Tarikh Berlaku: | S13: 2020-08-09 | AZ13: New Rec Row | BA13: =BA12+1 -> 21 | BR13: New Rec Row | BS13: =BS12+1 -> 20
C14: Membantu Divisyen Kewangan untuk memulih hutang lapuk daripada klien ABCD Sdn Bhd secara mempamirkan pengurusan pelanggan yang baik. | M14: Tidak hadir ke Mesyuarat Operasi Perkhidmatan No. 6/20 tanpa notis. | AZ14: Start Row | BA14: =BA6 -> 20
D16: VIEW MODE ONLY | N16: VIEW MODE ONLY | BA16: FALSE | BS16: FALSE
A17: Tahniah! Anda telah menerima Green Card yang berikut: | H17: Mata Agg Semasa: | I17: =INDEX(sample!BN47:DM47,,$U$17) -> 60 | K17: Amaran! Anda telah menerima Yellow Card yang berikut: | R17: Minggu Ini: | S17: ='Wk Input'!J2 -> 53 | U17: =IF(S17<1,1,IF(S17>52,52,S17)) -> 52
A18: No. | C18: No. Kad | D18: Tarikh Keluar | E18: No. Merit | F18: Deskripsi: | I18: Mata: | K18: No. | M18: No. Kad | N18: Tarikh Keluar | O18: No. DeMerit | P18: Deskripsi: | S18: Mata: | BA18: No. | BB18: Card No. | BC18: Issued Date. | BD18: Issued By ID | BE18: Issued By Name | BF18: Position: | BG18: Department: | BH18: Issued To ID | BI18: Issued To Name | BJ18: Position: | BK18: Department: | BL18: Merit No. | BM18: Description: | BN18: Points: | BO18: DoDeed: | BP18: Remarks: | BQ18: Status: | BS18: No. | BT18: Card No. | BU18: Issued Date. | BV18: Issued By ID | BW18: Issued By Name | BX18: Position: | BY18: Department: | BZ18: Issued To ID | CA18: Issued To Name | CB18: Position: | CC18: Department: | CD18: DeMerit No. | CE18: Description: | CF18: Points: | CG18: DoDeed: | CH18: Remarks: | CI18: Status:
A19: 1 | C19: =IF(BB19="","",BB19) -> 0320AA0G0001 | D19: =IF(BC19="","",BC19) -> 2020-01-14 | E19: =IF(BL19="","",BL19) -> M03 | F19: =IF(BM19="","",BM19) -> Menerima pujian/pengiktirafan bertulis dari klien | G19: =IF(BJ19="","",BJ19) -> PEN. KETUA PEMASARAN DAN PERKHIDMATAN | H19: PEMASARAN DAN PERKHIDMATAN | I19: =IF(BN19="","",BN19) -> 8 | K19: 1 | M19: =IF(BT19="","",BT19) -> 3320AC0Y0008 | N19: =IF(BU19="","",BU19) -> 2020-08-11 | O19: =IF(CD19="","",CD19) -> D08 | P19: =IF(CE19="","",CE19) -> Tidak hadir ke mesyuarat dalaman berjadual tanpa notis dan tanpa alasan munasabah | Q19: =IF(CB19="","",CB19) -> PEN. KETUA PEMASARAN DAN PERKHIDMATAN | R19: PEMASARAN DAN PERKHIDMATAN | S19: =IF(CF19="","",CF19) -> -4 | BB19: 0320AA0G0001 | BC19: 43844 | BD19: AA0 | BE19: AMRAN ADAMS | BF19: MANAGING DIRECTOR | BG19: CEO OFFICE | BH19: DM1 | BI19: ADAM NAUFAL HASMADI | BJ19: PEN. KETUA PEMASARAN DAN PERKHIDMATAN | BK19: PEMASARAN DAN PERKHIDMATAN | BL19: M03 | BM19: Menerima pujian/pengiktirafan bertulis dari klien | BN19: 8 | BO19: 43842 | BP19: Surat penghargaan dari Presiden Persatuan Penduduk Taman Aman Jaya | BQ19: Issued | BT19: 3320AC0Y0008 | BU19: 44054 | BV19: AC0 | BW19: CHEWAN CHEMAT | BX19: VP OPERASI PERNIAGAAN | BY19: OPERASI PERNIAGAAN | BZ19: DM1 | CA19: ADAM NAUFAL HASMADI | CB19: PEN. KETUA PEMASARAN DAN PERKHIDMATAN | CC19: PEMASARAN DAN PERKHIDMATAN | CD19: D08 | CE19: Tidak hadir ke mesyuarat dalaman berjadual tanpa notis dan tanpa alasan munasabah | CF19: -4 | CG19: 44052 | CH19: Tidak hadir ke Mesyuarat Operasi Perkhidmatan No. 6/20 tanpa notis. | CI19: Issued
A20: 2 | C20: =IF(BB20="","",BB20) -> 4320AB0G0023 | D20: 2020-10-21 | E20: =IF(BL20="","",BL20) -> M10 | F20: Menyumbang usaha kerja yang signifikan melebihi dari keperluan Bahagian/ Unit/ JD sendiri | G20: PEN. KETUA PEMASARAN DAN PERKHIDMATAN | H20: PEMASARAN DAN PERKHIDMATAN | I20: =IF(BN20="","",BN20) -> 2 | K20: 2 | M20: =IF(BT20="","",BT20) ->  | O20: =IF(CD20="","",CD20) ->  | S20: =IF(CF20="","",CF20) ->  | BB20: 4320AB0G0023 | BC20: 44125 | BD20: AB0 | BE20: BASIRAH BASIR | BF20: VP KEWANGAN | BG20: KEWANGAN | BH20: DM1 | BI20: ADAM NAUFAL HASMADI | BJ20: PEN. KETUA PEMASARAN DAN PERKHIDMATAN | BK20: PEMASARAN DAN PERKHIDMATAN | BL20: M10 | BM20: Menyumbang usaha kerja yang signifikan melebihi dari keperluan Bahagian/ Unit/ JD sendiri | BN20: 2 | BO20: 44123 | BP20: Membantu Divisyen Kewangan untuk memulih hutang lapuk daripada klien ABCD Sdn Bhd secara mempamirkan pengurusan pelanggan yang baik. | BQ20: Issued
A21: 3 | K21: 3
A22: 4 | F22: =IF(BM22="","",BM22) ->  | K22: 4
A23: 5 | K23: 5
A24: 6 | K24: 6
A25: 7 | K25: 7
A26: 8 | K26: 8
A27: 9 | K27: 9
A28: 10 | K28: 10
A29: 11 | K29: 11
A30: 12 | K30: 12
A31: 13 | K31: 13
A32: 14 | K32: 14
A33: 15 | K33: 15
C35: A form by Leadersense Consulting & Systems Sdn Bhd @2020 | G35: =CONCATENATE(Home!#REF!,"GCard.gif") ->  | H35: =CONCATENATE(Home!#REF!,"YCard.gif") -> 
AT36: No. | AU36: User ID: | AV36: User Name: | AW36: Position: | AX36: Department: | BA36: =BA8 -> 0 | BB36: Card No. | BC36: Issued Date. | BD36: Issued By ID | BE36: Issued By Name | BF36: Position: | BG36: Department: | BH36: Issued To ID | BI36: Issued To Name | BJ36: Position: | BK36: Department: | BL36: Merit No. | BM36: Description: | BN36: Points: | BO36: DoDeed: | BP36: Remarks: | BQ36: Status: | BS36: =BS8 -> 0 | BT36: Card No. | BU36: Issued Date. | BV36: Issued By ID | BW36: Issued By Name | BX36: Position: | BY36: Department: | BZ36: Issued To ID | CA36: Issued To Name | CB36: Position: | CC36: Department: | CD36: DeMerit No. | CE36: Description: | CF36: Points: | CG36: DoDeed: | CH36: Remarks: | CI36: Status:
BA37: 1 | BS37: 1
BA38: 2 | BS38: 2
BA39: 3 | BS39: 3
BA40: 4 | BS40: 4
BA41: 5 | BS41: 5
BA42: 6 | BS42: 6
BA43: 7 | BS43: 7
BA44: 8 | BS44: 8
BA45: 9 | BS45: 9
BA46: 10 | BS46: 10
BA47: 11 | BS47: 11
BA48: 12 | BS48: 12
BA49: 13 | BS49: 13
BA50: 14 | BS50: 14
BA51: 15 | BS51: 15
BA52: 16 | BS52: 16
BA53: 17 | BS53: 17
BA54: 18 | BS54: 18
BA55: 19 | BS55: 19
BA56: 20 | BS56: 20
BA57: 21 | BS57: 21
BA58: 22 | BS58: 22
BA59: 23 | BS59: 23
BA60: 24 | BS60: 24
BA61: 25 | BS61: 25
BA62: 26 | BS62: 26
BA63: 27 | BS63: 27
BA64: 28 | BS64: 28
BA65: 29 | BS65: 29
BA66: 30 | BS66: 30
BA67: 31 | BS67: 31
BA68: 32 | BS68: 32
BA69: 33 | BS69: 33
BA70: 34 | BS70: 34
BA71: 35 | BS71: 35
BA72: 36 | BS72: 36
BA73: 37 | BS73: 37
BA74: 38 | BS74: 38
BA75: 39 | BS75: 39
BA76: 40 | BS76: 40
BA77: 41 | BS77: 41
BA78: 42 | BS78: 42
BA79: 43 | BS79: 43
BA80: 44 | BS80: 44
BA81: 45 | BS81: 45
BA82: 46 | BS82: 46
BA83: 47 | BS83: 47
BA84: 48 | BS84: 48
BA85: 49 | BS85: 49
BA86: 50 | BS86: 50
BA87: 51 | BS87: 51
BA88: 52 | BS88: 52
BA89: 53 | BS89: 53
BA90: 54 | BS90: 54
BA91: 55 | BS91: 55
BA92: 56 | BS92: 56
BA93: 57 | BS93: 57
BA94: 58 | BS94: 58
BA95: 59 | BS95: 59
BA96: 60 | BS96: 60
BA97: 61 | BS97: 61
BA98: 62 | BS98: 62
BA99: 63 | BS99: 63
BA100: 64 | BS100: 64
BA101: 65 | BS101: 65
BA102: 66 | BS102: 66
BA103: 67 | BS103: 67
BA104: 68 | BS104: 68
BA105: 69 | BS105: 69
BA106: 70 | BS106: 70
BA107: 71 | BS107: 71
BA108: 72 | BS108: 72
BA109: 73 | BS109: 73
BA110: 74 | BS110: 74
BA111: 75 | BS111: 75
BA112: 76 | BS112: 76
BA113: 77 | BS113: 77
BA114: 78 | BS114: 78
BA115: 79 | BS115: 79
BA116: 80 | BS116: 80
BA117: 81 | BS117: 81
BA118: 82 | BS118: 82
BA119: 83 | BS119: 83
BA120: 84 | BS120: 84
BA121: 85 | BS121: 85
BA122: 86 | BS122: 86
BA123: 87 | BS123: 87
BA124: 88 | BS124: 88
BA125: 89 | BS125: 89
BA126: 90 | BS126: 90
BA127: 91 | BS127: 91
BA128: 92 | BS128: 92
BA129: 93 | BS129: 93
BA130: 94 | BS130: 94
BA131: 95 | BS131: 95
BA132: 96 | BS132: 96
BA133: 97 | BS133: 97
BA134: 98 | BS134: 98
BA135: 99 | BS135: 99
BA136: 100 | BS136: 100
BA137: 101 | BS137: 101
BA138: 102 | BS138: 102
BA139: 103 | BS139: 103
BA140: 104 | BS140: 104
BA141: 105 | BS141: 105
BA142: 106 | BS142: 106
BA143: 107 | BS143: 107
BA144: 108 | BS144: 108
BA145: 109 | BS145: 109
BA146: 110 | BS146: 110
BA147: 111 | BS147: 111
BA148: 112 | BS148: 112
BA149: 113 | BS149: 113
BA150: 114 | BS150: 114
BA151: 115 | BS151: 115
BA152: 116 | BS152: 116
BA153: 117 | BS153: 117
BA154: 118 | BS154: 118
BA155: 119 | BS155: 119
BA156: 120 | BS156: 120
BA157: 121 | BS157: 121
BA158: 122 | BS158: 122
BA159: 123 | BS159: 123
BA160: 124 | BS160: 124
BA161: 125 | BS161: 125
BA162: 126 | BS162: 126
BA163: 127 | BS163: 127
BA164: 128 | BS164: 128
BA165: 129 | BS165: 129
BA166: 130 | BS166: 130
BA167: 131 | BS167: 131
BA168: 132 | BS168: 132
BA169: 133 | BS169: 133
BA170: 134 | BS170: 134
BA171: 135 | BS171: 135
BA172: 136 | BS172: 136
BA173: 137 | BS173: 137
BA174: 138 | BS174: 138
BA175: 139 | BS175: 139
BA176: 140 | BS176: 140
BA177: 141 | BS177: 141
BA178: 142 | BS178: 142
BA179: 143 | BS179: 143
BA180: 144 | BS180: 144
BA181: 145 | BS181: 145
BA182: 146 | BS182: 146
BA183: 147 | BS183: 147
BA184: 148 | BS184: 148
BA185: 149 | BS185: 149
BA186: 150 | BS186: 150
BA187: 151 | BS187: 151
BA188: 152 | BS188: 152
BA189: 153 | BS189: 153
BA190: 154 | BS190: 154
BA191: 155 | BS191: 155
BA192: 156 | BS192: 156
BA193: 157 | BS193: 157
BA194: 158 | BS194: 158
BA195: 159 | BS195: 159
BA196: 160 | BS196: 160
BA197: 161 | BS197: 161
BA198: 162 | BS198: 162
BA199: 163 | BS199: 163
BA200: 164 | BS200: 164
BA201: 165 | BS201: 165
BA202: 166 | BS202: 166
... 360 more rows

Sheet DM103
B1: SIMPLE RANKING Simpeo Benchmarks Series | D1: =Home!H16 -> SAMPEL CORPORATION LTD
B2: =KPICreate!A4 -> 2020
D3: ID KPI: | E3: DM103
B4: Nama: | C4: =Home!H6 -> ADAM NAUFAL HASMADI | D4: Deskripsi KPI: | E4: =IF(ISBLANK(VLOOKUP(E3,KPICreate!B5:C36,2)),"",VLOOKUP(E3,KPICreate!B5:C36,2)) -> BP49 Mengekalkan Penghantaran shipment Pelanggan menepati sasaran | AV4: =IF(AV6="N/A","N/A","Ok") -> Ok
B5: Jawatan: | C5: =Home!H10 -> PEN. KETUA PEMASARAN DAN PERKHIDMATAN | AV5: =IF(AV7="N/A","N/A","Ok") -> Ok
B6: Bahagian: | C6: =Home!H12 -> PEMASARAN DAN PERKHIDMATAN | AV6: =IFERROR(CHOOSE(E7,"L","M","N","O","P","Q","R","S","T","U","V","W","X","Y","Z","AA","AB","AC","AD","AE","AF","AG","AH","AI","AJ","AK","AL","AM","AN","AO","AP","AQ","AR","AS","AT","AU","AV","AW","AX","AY","AZ","BA","BB","BC","BD","BE","BF","BG","BH","BI","BJ","BK","BK"),"N/A") -> L
B7: Skor: | D7: Minggu Pilihan: | E7: ='Wk Input'!BM4 -> 1 | AV7: =IFERROR(CHOOSE(RIGHT(E3,2),5,6,7,8,9,10,11,12,13,14,15,16,17,18,19),"N/A") -> 7
B8: =IFERROR(K56/100*K58,"") -> 90 | C8: Deskripsi Rank | G8: Wajaran % | K8: Jumlah % | M8: Catatan
F9: Off | G9: 1« | H9: 2« | I9: 3« | J9: 4«
B10: A | C10: Taipkan Deskripsi Tajuk A di sini | F10: 3x ⍟⍟⍟ | AV10: Sel Wgt | AW10: =IFERROR(VALUE(LEFT(F10,1))+1,1) -> 4 | AX10: =AW10-1 -> 3 | AY10: =AX10/AX61*100 -> 75 | AZ10: =IFERROR(AY10,"N/A") -> 75
A11: (Zero)Worst <--- Rank ---> Best(Full) | B11: Best = 1 | C11: Kesemua Penghantaran shipment berjaya menepati masa | H11: =IF(AZ10=0,"N/A",AZ10) -> 75 | K11: =IF(H11="N/A","N/A",AZ11) -> 75 | AV11: Sel Rank | AW11: 13 | AX11: =IF(C11="",0,1) -> 1 | AY11: =AW11-(14-AX24) -> 5 | AZ11: =IFERROR(AY10*AY12/AY24,"N/A") -> 75 | BA11: =IF(AZ11="N/A",0,AZ11) -> 75
B12: 2 | C12: 3 atau kurang Penghantaran shipment terlewat | AX12: =IF(C12="",0,1) -> 1 | AY12: =IF(AY11<0,0,AY11) -> 5
B13: 3 | C13: 6 atau kurang Penghantaran shipment terlewat | AX13: 1
B14: 4 | C14: 9 atau kurang Penghantaran shipment terlewat | AX14: 1
B15: 5 | C15: 12 atau kurang Penghantaran shipment terlewat | AX15: 1
B16: 6 | C16: Lebih dari 12 Penghantaran shipment terlewat | AX16: 1
B17: 7 | AX17: 0
B18: 8 | AX18: 0
B19: 9 | AX19: 0
B20: 10 | AX20: 0 | KL20: TRUE
B21: 11 | AX21: 0
B22: 12 | AX22: 0
B23: 13 | AX23: 0
AX24: =SUM(AX11:AX23) -> 6 | AY24: =AX24-1 -> 5
F25: Off | G25: 1« | H25: 2« | I25: 3« | J25: 4«
B26: B | C26: Taipkan Deskripsi Tajuk B di sini | F26: 1x ⍟ | AV26: Sel Wgt | AW26: =IFERROR(VALUE(LEFT(F26,1))+1,1) -> 2 | AX26: =AW26-1 -> 1 | AY26: =AX26/AX61*100 -> 25 | AZ26: =IFERROR(AY26,"N/A") -> 25
A27: (Zero)Worst <--- Rank ---> Best(Full) | B27: Best = 1 | C27: Tiada pemulangan atau pecah sewaktu dalam transit | H27: =IF(AZ26=0,"N/A",AZ26) -> 25 | K27: =IF(H27="N/A","N/A",AZ27) -> 15 | AV27: Sel Rank | AW27: 11 | AX27: =IF(C27="",0,1) -> 1 | AY27: =AW27-(14-AX40) -> 3 | AZ27: =IFERROR(AY26*AY28/AY40,"N/A") -> 15 | BA27: =IF(AZ27="N/A",0,1) -> 1
B28: 2 | C28: 2 atau kurang Pemulangan atau pecah sewaktu dalam transit | AX28: 1 | AY28: =IF(AY27<0,0,AY27) -> 3
B29: 3 | C29: 4 atau kurang Pemulangan atau pecah sewaktu dalam transit | AX29: 1
B30: 4 | C30: 6 atau kurang Pemulangan atau pecah sewaktu dalam transit | AX30: 1
B31: 5 | C31: 8 atau kurang Pemulangan atau pecah sewaktu dalam transit | AX31: 1
B32: 6 | C32: Lebih dari 8 Pemulangan atau pecah sewaktu dalam transit | AX32: 1
B33: 7 | AX33: 0
B34: 8 | AX34: 0
B35: 9 | AX35: 0
B36: 10 | AX36: 0
B37: 11 | AX37: 0
B38: 12 | AX38: 0
B39: 13 | AX39: 0
AX40: =SUM(AX27:AX39) -> 6 | AY40: =AX40-1 -> 5
F41: Off | G41: 1« | H41: 2« | I41: 3« | J41: 4«
B42: C | C42: Taipkan Deskripsi Tajuk C di sini | F42: Off | AV42: Sel Wgt | AW42: =IFERROR(VALUE(LEFT(F42,1))+1,1) -> 1 | AX42: =AW42-1 -> 0 | AY42: =AX42/AX61*100 -> 0 | AZ42: =IFERROR(AY42,"N/A") -> 0
A43: (Zero)Worst <--- Rank ---> Best(Full) | B43: Best = 1 | H43: =IF(AZ42=0,"N/A",AZ42) -> N/A | K43: =IF(H43="N/A","N/A",AZ43) -> N/A | AV43: Sel Rank | AW43: 1 | AX43: =IF(C43="",0,1) -> 0 | AY43: =AW43-(14-AX60) -> -13 | AZ43: =IFERROR(AY42*AY44/AY60,"N/A") -> 0 | BA43: =IF(AZ43="N/A",0,1) -> 1
B44: 2 | AX44: 0 | AY44: =IF(AY43<0,0,AY43) -> 0
B45: 3 | AX45: 0
B46: 4 | AX46: 0
B47: 5 | AX47: 0
B48: 6 | AX48: 0
B49: 7 | AX49: 0
B50: 8 | AX50: 0
B51: 9 | AX51: 0
B52: 10 | AX52: 0
B53: 11 | AX53: 0
B54: 12 | AX54: 0
B55: 13 | AX55: 0
K56: =BA62 -> 90
J58: Use Base: | K58: 100
G60: A Form by Leadersense Consulting & Systems Sdn Bhd | AX60: =SUM(AX43:AX55) -> 0 | AY60: =AX60-1 -> -1
F61: Off | AW61: Weight x | AX61: =AX10+AX26+AX42 -> 4 | BA61: =BA11+BA27+BA43 -> 77
F62: 1x ⍟ | AZ62: =(AZ11+AZ27+AZ43)*BA61/BA61 -> 90 | BA62: =IFERROR(AZ62,"N/A") -> 90
F63: 2x ⍟⍟
F64: 3x ⍟⍟⍟
F65: 4x ⍟⍟⍟⍟

Sheet DM104
C1: Simple PROJECT Simpeo Benchmarks Series | F1: =KPICreate!A4 -> 2020 | N1: =Home!$H$16 -> SAMPEL CORPORATION LTD
C2: Nama: | D2: =Home!H6 -> ADAM NAUFAL HASMADI | K2: ID KPI: | L2: DM104 | AK2: =IF(AK4="N/A","N/A","Ok") -> Ok
C3: Jawatan: | D3: =Home!H10 -> PEN. KETUA PEMASARAN DAN PERKHIDMATAN | K3: Deskripsi KPI: | L3: =IF(ISBLANK(VLOOKUP(L2,KPICreate!B5:C36,2)),"",VLOOKUP(L2,KPICreate!B5:C36,2)) -> BP19 Mencapai penyempurnaan survei kajian penyelidikan 5 Klien-Produk | AK3: =IF(AK5="N/A","N/A","Ok") -> Ok
C4: Bahagian: | D4: =Home!H12 -> PEMASARAN DAN PERKHIDMATAN | AK4: =IFERROR(CHOOSE(L5,"L","M","N","O","P","Q","R","S","T","U","V","W","X","Y","Z","AA","AB","AC","AD","AE","AF","AG","AH","AI","AJ","AK","AL","AM","AN","AO","AP","AQ","AR","AS","AT","AU","AV","AW","AX","AY","AZ","BA","BB","BC","BD","BE","BF","BG","BH","BI","BJ","BK","BK"),"N/A") -> L
C5: Skor: | D5: Minggu Deadline: | E5: =IF(ISBLANK(VLOOKUP(L2,KPICreate!B5:I36,8)),"",VLOOKUP(L2,KPICreate!B5:I36,8)) -> 44 | K5: Minggu Pilihan: | L5: ='Wk Input'!BM4 -> 1 | P5: % | U5: % | Z5: % | AF5: % | AK5: =IFERROR(CHOOSE(RIGHT(L2,2),5,6,7,8,9,10,11,12,13,14,15,16,17,18,19),"N/A") -> 8
C6: =IFERROR(AF45/100*AF47,"") -> 1.315789474 | O6: 80 | U6: 10 | Z6: 10 | AF6: =O6+U6+Z6 -> 100
G8: Saiz Wajaran | N8: Selesai Tugas | T8: Kualiti Kerja | Y8: Ikut Bajet/Masa | AD8: Lupakan | AF8: Skor Baris | AH8: Catatan
A9: Tajuk | B9: No | C9: Deskripsi Tugasan | G9: ⍟ 1x | H9: ⍟⍟ 2x | I9: ⍟⍟⍟ 3x | J9: ⍟⍟⍟⍟ 4x | L9: Wajar % | N9: Belum Mula | O9: Permulaan | P9: DalamProgres | Q9: Lanjut | R9: Selesai | T9: Tidak Diguna | U9: « Poor | V9: «« Fair | W9: «««Meet | Y9: Tidak Diguna | Z9: « Poor | AA9: «« Fair | AB9: «««Meet | AJ9: H | AK9: W | AL9: C | AM9: Q | AN9: B | AO9: F | AP9: H | AQ9: C | AR9: Q | AS9: B | AT9: Full Line Total | AU9: C | AV9: Q | AW9: B
A10: þ | C10: Projek survei Kajian penyelidikan Klien-Produk | K10: =IF(OR(C10="",AJ10,AO10),0,AK10) -> 0 | L10: =K10/K$45*100 -> 0 | AF10: =IFERROR(L10*AY10,"N/A") -> 0 | AJ10: =IF($A10="þ",TRUE,FALSE) -> TRUE | AK10: =IFERROR(VALUE(LEFT($G10,1)),0) -> 0 | AL10: 1 | AM10: 4 | AN10: 4 | AO10: FALSE | AP10: =IF(AJ10,0,1) -> 0 | AQ10: =O$6 -> 80 | AR10: =IF(AM10=1,0,U$6) -> 10 | AS10: =IF(AN10=1,0,Z$6) -> 10 | AT10: =SUM(AQ10:AS10) -> 100 | AU10: =(AL10-1)/4*AQ10 -> 0 | AV10: =(AL10-1)/4*(AM10-1)/3*AR10 -> 0 | AW10: =(AL10-1)/4*(AN10-1)/3*AS10 -> 0 | AX10: =SUM(AU10:AW10) -> 0 | AY10: =IFERROR(AX10/AT10,"N/A") -> 0
A11: ¨ | B11: 1 | C11: Kenalpasti 5 produk untuk tujuan penyelidikan | G11: 1x ⍟ | K11: 1 | L11: 5.263157895 | AF11: 1.315789474 | AJ11: =IF($A11="þ",TRUE,FALSE) -> FALSE | AK11: =IFERROR(VALUE(LEFT($G11,1)),0) -> 1 | AL11: 2 | AM11: 4 | AN11: 4 | AO11: FALSE | AP11: 1 | AQ11: 80 | AR11: 10 | AS11: 10 | AT11: 100 | AU11: =(AL11-1)/4*AQ11 -> 20 | AV11: =(AL11-1)/4*(AM11-1)/3*AR11 -> 2.5 | AW11: =(AL11-1)/4*(AN11-1)/3*AS11 -> 2.5 | AX11: 25 | AY11: 0.25
A12: ¨ | B12: 2 | C12: Sediakan soalan-selidik kajian & metoda | G12: 2x ⍟⍟ | K12: 2 | L12: 10.52631579 | AF12: 0 | AJ12: FALSE | AK12: 2 | AL12: 1 | AM12: 4 | AN12: 4 | AO12: FALSE | AP12: 1 | AQ12: 80 | AR12: 10 | AS12: 10 | AT12: 100 | AU12: 0 | AV12: 0 | AW12: 0 | AX12: 0 | AY12: 0
A13: ¨ | B13: 3 | C13: Kenalpasti segmen pasaran untuk menjalankan penyelidikan | G13: 1x ⍟ | K13: 1 | L13: 5.263157895 | AF13: 0 | AJ13: FALSE | AK13: 1 | AL13: 1 | AM13: 4 | AN13: 4 | AO13: FALSE | AP13: 1 | AQ13: 80 | AR13: 10 | AS13: 10 | AT13: 100 | AU13: 0 | AV13: 0 | AW13: 0 | AX13: 0 | AY13: 0
A14: ¨ | B14: 4 | C14: Lakukan kajian penyelidikan Klien-produk no. 1 | G14: 3x ⍟⍟⍟ | K14: 3 | L14: 15.78947368 | AF14: 0 | AJ14: FALSE | AK14: 3 | AL14: 1 | AM14: 4 | AN14: 4 | AO14: FALSE | AP14: 1 | AQ14: 80 | AR14: 10 | AS14: 10 | AT14: 100 | AU14: 0 | AV14: 0 | AW14: 0 | AX14: 0 | AY14: 0
A15: ¨ | B15: 5 | C15: Lakukan kajian penyelidikan Klien-produk no. 2 | G15: 3x ⍟⍟⍟ | K15: 3 | L15: 15.78947368 | AF15: 0 | AJ15: FALSE | AK15: 3 | AL15: 1 | AM15: 4 | AN15: 4 | AO15: FALSE | AP15: 1 | AQ15: 80 | AR15: 10 | AS15: 10 | AT15: 100 | AU15: 0 | AV15: 0 | AW15: 0 | AX15: 0 | AY15: 0
A16: ¨ | B16: 6 | C16: Lakukan kajian penyelidikan Klien-produk no. 3 | G16: 3x ⍟⍟⍟ | K16: 3 | L16: 15.78947368 | AF16: 0 | AJ16: FALSE | AK16: 3 | AL16: 1 | AM16: 4 | AN16: 4 | AO16: FALSE | AP16: 1 | AQ16: 80 | AR16: 10 | AS16: 10 | AT16: 100 | AU16: 0 | AV16: 0 | AW16: 0 | AX16: 0 | AY16: 0
A17: ¨ | B17: 7 | C17: Lakukan kajian penyelidikan Klien-produk no. 4 | G17: 3x ⍟⍟⍟ | K17: 3 | L17: 15.78947368 | AF17: 0 | AJ17: FALSE | AK17: 3 | AL17: 1 | AM17: 4 | AN17: 4 | AO17: FALSE | AP17: 1 | AQ17: 80 | AR17: 10 | AS17: 10 | AT17: 100 | AU17: 0 | AV17: 0 | AW17: 0 | AX17: 0 | AY17: 0
A18: ¨ | B18: 8 | C18: Lakukan kajian penyelidikan Klien-produk no. 5 | G18: 3x ⍟⍟⍟ | K18: 3 | L18: 15.78947368 | AF18: 0 | AJ18: FALSE | AK18: 3 | AL18: 1 | AM18: 4 | AN18: 4 | AO18: FALSE | AP18: 1 | AQ18: 80 | AR18: 10 | AS18: 10 | AT18: 100 | AU18: 0 | AV18: 0 | AW18: 0 | AX18: 0 | AY18: 0
A19: ¨ | K19: 0 | L19: 0 | AF19: 0 | AJ19: FALSE | AK19: 0 | AL19: 1 | AM19: 4 | AN19: 4 | AO19: FALSE | AP19: 1 | AQ19: 80 | AR19: 10 | AS19: 10 | AT19: 100 | AU19: 0 | AV19: 0 | AW19: 0 | AX19: 0 | AY19: 0
A20: ¨ | K20: 0 | L20: 0 | AF20: 0 | AJ20: FALSE | AK20: 0 | AL20: 1 | AM20: 4 | AN20: 4 | AO20: FALSE | AP20: 1 | AQ20: 80 | AR20: 10 | AS20: 10 | AT20: 100 | AU20: 0 | AV20: 0 | AW20: 0 | AX20: 0 | AY20: 0 | KL20: TRUE
A21: ¨ | K21: 0 | L21: 0 | AF21: 0 | AJ21: FALSE | AK21: 0 | AL21: 1 | AM21: 4 | AN21: 4 | AO21: FALSE | AP21: 1 | AQ21: 80 | AR21: 10 | AS21: 10 | AT21: 100 | AU21: 0 | AV21: 0 | AW21: 0 | AX21: 0 | AY21: 0
A22: ¨ | K22: 0 | L22: 0 | AF22: 0 | AJ22: FALSE | AK22: 0 | AL22: 1 | AM22: 4 | AN22: 4 | AO22: FALSE | AP22: 1 | AQ22: 80 | AR22: 10 | AS22: 10 | AT22: 100 | AU22: 0 | AV22: 0 | AW22: 0 | AX22: 0 | AY22: 0
A23: ¨ | K23: 0 | L23: 0 | AF23: 0 | AJ23: FALSE | AK23: 0 | AL23: 1 | AM23: 4 | AN23: 4 | AO23: FALSE | AP23: 1 | AQ23: 80 | AR23: 10 | AS23: 10 | AT23: 100 | AU23: 0 | AV23: 0 | AW23: 0 | AX23: 0 | AY23: 0
A24: ¨ | K24: 0 | L24: 0 | AF24: 0 | AJ24: FALSE | AK24: 0 | AL24: 1 | AM24: 4 | AN24: 4 | AO24: FALSE | AP24: 1 | AQ24: 80 | AR24: 10 | AS24: 10 | AT24: 100 | AU24: 0 | AV24: 0 | AW24: 0 | AX24: 0 | AY24: 0
A25: ¨ | K25: 0 | L25: 0 | AF25: 0 | AJ25: FALSE | AK25: 0 | AL25: 1 | AM25: 4 | AN25: 4 | AO25: FALSE | AP25: 1 | AQ25: 80 | AR25: 10 | AS25: 10 | AT25: 100 | AU25: 0 | AV25: 0 | AW25: 0 | AX25: 0 | AY25: 0
A26: ¨ | K26: 0 | L26: 0 | AF26: 0 | AJ26: FALSE | AK26: 0 | AL26: 1 | AM26: 4 | AN26: 4 | AO26: FALSE | AP26: 1 | AQ26: 80 | AR26: 10 | AS26: 10 | AT26: 100 | AU26: 0 | AV26: 0 | AW26: 0 | AX26: 0 | AY26: 0
A27: ¨ | K27: 0 | L27: 0 | AF27: 0 | AJ27: FALSE | AK27: 0 | AL27: 1 | AM27: 4 | AN27: 4 | AO27: FALSE | AP27: 1 | AQ27: 80 | AR27: 10 | AS27: 10 | AT27: 100 | AU27: 0 | AV27: 0 | AW27: 0 | AX27: 0 | AY27: 0
A28: ¨ | K28: 0 | L28: 0 | AF28: 0 | AJ28: FALSE | AK28: 0 | AL28: 1 | AM28: 4 | AN28: 4 | AO28: FALSE | AP28: 1 | AQ28: 80 | AR28: 10 | AS28: 10 | AT28: 100 | AU28: 0 | AV28: 0 | AW28: 0 | AX28: 0 | AY28: 0
A29: ¨ | K29: 0 | L29: 0 | AF29: 0 | AJ29: FALSE | AK29: 0 | AL29: 1 | AM29: 4 | AN29: 4 | AO29: FALSE | AP29: 1 | AQ29: 80 | AR29: 10 | AS29: 10 | AT29: 100 | AU29: 0 | AV29: 0 | AW29: 0 | AX29: 0 | AY29: 0
A30: ¨ | K30: 0 | L30: 0 | AF30: 0 | AJ30: FALSE | AK30: 0 | AL30: 1 | AM30: 4 | AN30: 4 | AO30: FALSE | AP30: 1 | AQ30: 80 | AR30: 10 | AS30: 10 | AT30: 100 | AU30: 0 | AV30: 0 | AW30: 0 | AX30: 0 | AY30: 0
A31: ¨ | K31: 0 | L31: 0 | AF31: 0 | AJ31: FALSE | AK31: 0 | AL31: 1 | AM31: 4 | AN31: 4 | AO31: FALSE | AP31: 1 | AQ31: 80 | AR31: 10 | AS31: 10 | AT31: 100 | AU31: 0 | AV31: 0 | AW31: 0 | AX31: 0 | AY31: 0
A32: ¨ | K32: 0 | L32: 0 | AF32: 0 | AJ32: FALSE | AK32: 0 | AL32: 1 | AM32: 4 | AN32: 4 | AO32: FALSE | AP32: 1 | AQ32: 80 | AR32: 10 | AS32: 10 | AT32: 100 | AU32: 0 | AV32: 0 | AW32: 0 | AX32: 0 | AY32: 0
A33: ¨ | K33: 0 | L33: 0 | AF33: 0 | AJ33: FALSE | AK33: 0 | AL33: 1 | AM33: 4 | AN33: 4 | AO33: FALSE | AP33: 1 | AQ33: 80 | AR33: 10 | AS33: 10 | AT33: 100 | AU33: 0 | AV33: 0 | AW33: 0 | AX33: 0 | AY33: 0
A34: ¨ | K34: 0 | L34: 0 | AF34: 0 | AJ34: FALSE | AK34: 0 | AL34: 1 | AM34: 4 | AN34: 4 | AO34: FALSE | AP34: 1 | AQ34: 80 | AR34: 10 | AS34: 10 | AT34: 100 | AU34: 0 | AV34: 0 | AW34: 0 | AX34: 0 | AY34: 0
A35: ¨ | K35: 0 | L35: 0 | AF35: 0 | AJ35: FALSE | AK35: 0 | AL35: 1 | AM35: 4 | AN35: 4 | AO35: FALSE | AP35: 1 | AQ35: 80 | AR35: 10 | AS35: 10 | AT35: 100 | AU35: 0 | AV35: 0 | AW35: 0 | AX35: 0 | AY35: 0
A36: ¨ | K36: 0 | L36: 0 | AF36: 0 | AJ36: FALSE | AK36: 0 | AL36: 1 | AM36: 4 | AN36: 4 | AO36: FALSE | AP36: 1 | AQ36: 80 | AR36: 10 | AS36: 10 | AT36: 100 | AU36: 0 | AV36: 0 | AW36: 0 | AX36: 0 | AY36: 0
A37: ¨ | K37: 0 | L37: 0 | AF37: 0 | AJ37: FALSE | AK37: 0 | AL37: 1 | AM37: 4 | AN37: 4 | AO37: FALSE | AP37: 1 | AQ37: 80 | AR37: 10 | AS37: 10 | AT37: 100 | AU37: 0 | AV37: 0 | AW37: 0 | AX37: 0 | AY37: 0
A38: ¨ | K38: 0 | L38: 0 | AF38: 0 | AJ38: FALSE | AK38: 0 | AL38: 1 | AM38: 4 | AN38: 4 | AO38: FALSE | AP38: 1 | AQ38: 80 | AR38: 10 | AS38: 10 | AT38: 100 | AU38: 0 | AV38: 0 | AW38: 0 | AX38: 0 | AY38: 0
A39: ¨ | K39: 0 | L39: 0 | AF39: 0 | AJ39: FALSE | AK39: 0 | AL39: 1 | AM39: 4 | AN39: 4 | AO39: FALSE | AP39: 1 | AQ39: 80 | AR39: 10 | AS39: 10 | AT39: 100 | AU39: 0 | AV39: 0 | AW39: 0 | AX39: 0 | AY39: 0
A40: ¨ | K40: 0 | L40: 0 | AF40: 0 | AJ40: FALSE | AK40: 0 | AL40: 1 | AM40: 4 | AN40: 4 | AO40: FALSE | AP40: 1 | AQ40: 80 | AR40: 10 | AS40: 10 | AT40: 100 | AU40: 0 | AV40: 0 | AW40: 0 | AX40: 0 | AY40: 0
A41: ¨ | K41: 0 | L41: 0 | AF41: 0 | AJ41: FALSE | AK41: 0 | AL41: 1 | AM41: 4 | AN41: 4 | AO41: FALSE | AP41: 1 | AQ41: 80 | AR41: 10 | AS41: 10 | AT41: 100 | AU41: 0 | AV41: 0 | AW41: 0 | AX41: 0 | AY41: 0
A42: ¨ | K42: 0 | L42: 0 | AF42: 0 | AJ42: FALSE | AK42: 0 | AL42: 1 | AM42: 4 | AN42: 4 | AO42: FALSE | AP42: 1 | AQ42: 80 | AR42: 10 | AS42: 10 | AT42: 100 | AU42: 0 | AV42: 0 | AW42: 0 | AX42: 0 | AY42: 0
A43: ¨ | K43: 0 | L43: 0 | AF43: 0 | AJ43: FALSE | AK43: 0 | AL43: 1 | AM43: 4 | AN43: 4 | AO43: FALSE | AP43: 1 | AQ43: 80 | AR43: 10 | AS43: 10 | AT43: 100 | AU43: 0 | AV43: 0 | AW43: 0 | AX43: 0 | AY43: 0
A44: ¨ | K44: 0 | L44: 0 | AF44: 0 | AJ44: FALSE | AK44: 0 | AL44: 1 | AM44: 4 | AN44: 4 | AO44: FALSE | AP44: 1 | AQ44: 80 | AR44: 10 | AS44: 10 | AT44: 100 | AU44: 0 | AV44: 0 | AW44: 0 | AX44: 0 | AY44: 0
K45: =IF(SUM(K10:K44)=0,1,SUM(K10:K44)) -> 19 | L45: =SUM(L10:L44) -> 100 | AF45: =IFERROR(SUM(AF10:AF44)/L45*100,"N/A") -> 1.315789474
AD47: Use Base: | AF47: 100
R49: A form by Leadersense Consulting & Systems Sdn Bhd @2017
G50: 0
G51: 1x ⍟
G52: 2x ⍟⍟
G53: 3x ⍟⍟⍟
G54: 4x ⍟⍟⍟⍟

Sheet DM105
B1: Simple CHECKLIST Simpeo Benchmarks Series | E1: =KPICreate!A4 -> 2020 | L1: =Home!$H$16 -> SAMPEL CORPORATION LTD
B2: Nama: | C2: =Home!H6 -> ADAM NAUFAL HASMADI | J2: ID KPI: | L2: DM105 | AI2: =IF(AI4="N/A","N/A","Ok") -> Ok
B3: Jawatan: | C3: =Home!H10 -> PEN. KETUA PEMASARAN DAN PERKHIDMATAN | J3: Deskripsi KPI: | L3: =IF(ISBLANK(VLOOKUP(L2,KPICreate!B5:C36,2)),"",VLOOKUP(L2,KPICreate!B5:C36,2)) -> OR04 Mengekalkan penyempurnaan kerja-kerja adhoc pemasaran dan perkhidmatan seperti yang diperlukan oleh Jabatan | AI3: =IF(AI5="N/A","N/A","Ok") -> Ok
B4: Bahagian: | C4: =Home!H12 -> PEMASARAN DAN PERKHIDMATAN | AI4: =IFERROR(CHOOSE(L5,"L","M","N","O","P","Q","R","S","T","U","V","W","X","Y","Z","AA","AB","AC","AD","AE","AF","AG","AH","AI","AJ","AK","AL","AM","AN","AO","AP","AQ","AR","AS","AT","AU","AV","AW","AX","AY","AZ","BA","BB","BC","BD","BE","BF","BG","BH","BI","BJ","BK","BK"),"N/A") -> L
B5: Skor: | J5: Minggu Pilihan: | L5: ='Wk Input'!BM4 -> 1 | M5: % | P5: % | T5: % | Y5: % | AE5: % | AI5: =IFERROR(CHOOSE(RIGHT(L2,2),5,6,7,8,9,10,11,12,13,14,15,16,17,18,19),"N/A") -> 9
B6: =IFERROR(AE40/100*AE42,"") -> 57.14285714 | M6: 70 | P6: 10 | T6: 10 | Y6: 10 | AE6: =M6+P6+T6+Y6 -> 100 | BA6: L5
E8: Saiz Wajaran | L8: Penyelesaian | O8: Tepati Masa | S8: Kualiti Kerja | X8: Ikut Bajet | AC8: Lupakan | AE8: Skor Baris | AG8: Catatan
A9: No | B9: Deskripsi Tugasan | E9: ⍟ 1x | F9: ⍟⍟ 2x | G9: ⍟⍟⍟ 3x | H9: ⍟⍟⍟⍟ 4x | J9: Wajar % | L9: Deadline | M9: Selesai | O9: ✪ Poor | P9: ✪✪ Fair | Q9: ✪✪✪Meet | S9: Not Used | T9: ✪ Poor | U9: ✪✪ Fair | V9: ✪✪✪Meet | X9: Not Used | Y9: ✪ Poor | Z9: ✪✪ Fair | AA9: ✪✪✪Meet
A10: 1 | B10: Menyelesaikan masalah bekalan untuk Kesatuan Pengguna Taman Aman Jaya | E10: 3x ⍟⍟⍟ | I10: =IF(OR(B10="",AM10),0,AI10) -> 0 | J10: =I10/I$40*100 -> 0 | L10: 2020-01-25 | O10: 2✪✪ | S10: 3✪✪✪ | AE10: =IFERROR(J10*AW10,"N/A") -> 0 | AI10: =IFERROR(VALUE(LEFT($E10,1)),0) -> 3 | AJ10: =IFERROR(VALUE(LEFT($O10,1)),0) -> 2 | AK10: =IFERROR(VALUE(LEFT($S10,1)),0) -> 3 | AL10: =IFERROR(VALUE(LEFT($X10,1)),0) -> 0 | AM10: TRUE | AN10: =IF($AX10,M$6,0) -> 70 | AO10: =P$6 -> 10 | AP10: =IF(AK10=0,0,T$6) -> 10 | AQ10: =IF(AL10=0,0,Y$6) -> 0 | AR10: =SUM(AN10:AQ10) -> 90 | AS10: =AJ10/3*AO10 -> 6.666666667 | AT10: =AK10/3*AP10 -> 10 | AU10: =AL10/3*AQ10 -> 0 | AV10: =IF(AN10<>0,AN10+AS10+AT10+AU10,0) -> 86.66666667 | AW10: =IFERROR(AV10/AR10,"N/A") -> 0.962962963 | AX10: TRUE
A11: 2 | B11: Menjayakan program terima kunjungan lawatan dari Goodhope Medical ke pejabat | E11: 2x ⍟⍟ | I11: 0 | J11: =I11/I$40*100 -> 0 | L11: 2020-02-13 | O11: 3✪✪✪ | S11: 3✪✪✪ | AE11: =IFERROR(J11*AW11,"N/A") -> 0 | AI11: =IFERROR(VALUE(LEFT($E11,1)),0) -> 2 | AJ11: =IFERROR(VALUE(LEFT($O11,1)),0) -> 3 | AK11: =IFERROR(VALUE(LEFT($S11,1)),0) -> 3 | AL11: =IFERROR(VALUE(LEFT($X11,1)),0) -> 0 | AM11: TRUE | AN11: =IF($AX11,M$6,0) -> 70 | AO11: =P$6 -> 10 | AP11: =IF(AK11=0,0,T$6) -> 10 | AQ11: =IF(AL11=0,0,Y$6) -> 0 | AR11: =SUM(AN11:AQ11) -> 90 | AS11: =AJ11/3*AO11 -> 10 | AT11: 10 | AU11: 0 | AV11: =IF(AN11<>0,AN11+AS11+AT11+AU11,0) -> 90 | AW11: =IFERROR(AV11/AR11,"N/A") -> 1 | AX11: TRUE
A12: 3 | B12: Membantu Jabatan dalam pengelolaan Pameran Inovasi 3 hari di PICC | E12: 4x ⍟⍟⍟⍟ | I12: 0 | J12: 0 | L12: 2020-03-28 | O12: 3✪✪✪ | S12: 3✪✪✪ | X12: 2✪✪ | AE12: 0 | AI12: 4 | AJ12: 3 | AK12: 3 | AL12: 2 | AM12: TRUE | AN12: 70 | AO12: 10 | AP12: 10 | AQ12: 10 | AR12: 100 | AS12: 10 | AT12: 10 | AU12: 6.666666667 | AV12: 96.66666667 | AW12: 0.9666666667 | AX12: TRUE
A13: 4 | B13: Memantau kerja-kerja penyiapan bekalan perkhidmatan di Taman Desa | E13: 2x ⍟⍟ | I13: 0 | J13: 0 | L13: 2020-05-15 | O13: 3✪✪✪ | S13: 3✪✪✪ | AE13: 0 | AI13: 2 | AJ13: 3 | AK13: 3 | AL13: 0 | AM13: TRUE | AN13: 70 | AO13: 10 | AP13: 10 | AQ13: 0 | AR13: 90 | AS13: 10 | AT13: 10 | AU13: 0 | AV13: 90 | AW13: 1 | AX13: TRUE
A14: 5 | B14: Membantu menyelesaikan masalah bekalan kepada Koperasi Pekerja Eastern Union | E14: 4x ⍟⍟⍟⍟ | I14: 0 | J14: 0 | L14: 2020-06-11 | O14: 3✪✪✪ | S14: 2✪✪ | X14: 2✪✪ | AE14: 0 | AI14: 4 | AJ14: 3 | AK14: 2 | AL14: 2 | AM14: TRUE | AN14: 70 | AO14: 10 | AP14: 10 | AQ14: 10 | AR14: 100 | AS14: 10 | AT14: 6.666666667 | AU14: 6.666666667 | AV14: 93.33333333 | AW14: 0.9333333333 | AX14: TRUE
A15: 6 | B15: Membantu Jabatan dalam pengelolaan Pameran New Age Marketing 3 hari di PWTC | E15: 4x ⍟⍟⍟⍟ | I15: 0 | J15: 0 | L15: 2020-07-01 | O15: 3✪✪✪ | S15: 3✪✪✪ | AE15: 0 | AI15: 4 | AJ15: 3 | AK15: 3 | AL15: 0 | AM15: TRUE | AN15: 70 | AO15: 10 | AP15: 10 | AQ15: 0 | AR15: 90 | AS15: 10 | AT15: 10 | AU15: 0 | AV15: 90 | AW15: 1 | AX15: TRUE
A16: 7 | B16: Membantu menyelesaikan masalah bekalan kepada Koperasi Pengguna Gombak Setia | E16: 3x ⍟⍟⍟ | I16: 0 | J16: 0 | L16: 2020-07-24 | O16: 2✪✪ | S16: 3✪✪✪ | X16: 2✪✪ | AE16: 0 | AI16: 3 | AJ16: 2 | AK16: 3 | AL16: 2 | AM16: TRUE | AN16: 70 | AO16: 10 | AP16: 10 | AQ16: 10 | AR16: 100 | AS16: 6.666666667 | AT16: 10 | AU16: 6.666666667 | AV16: 93.33333333 | AW16: 0.9333333333 | AX16: TRUE
A17: 8 | B17: Memantau kerja-kerja penyiapan bekalan perkhidmatan di Ukay Heights | E17: 2x ⍟⍟ | I17: 2 | J17: 28.57142857 | L17: 2020-09-18 | O17: 3✪✪✪ | S17: 3✪✪✪ | AE17: 28.57142857 | AI17: 2 | AJ17: 3 | AK17: 3 | AL17: 0 | AM17: FALSE | AN17: 70 | AO17: 10 | AP17: 10 | AQ17: 0 | AR17: 90 | AS17: 10 | AT17: 10 | AU17: 0 | AV17: 90 | AW17: 1 | AX17: TRUE
A18: 9 | B18: Menjayakan program terima kunjungan lawatan dari Performa Incorporation ke pejabat | E18: 2x ⍟⍟ | I18: 2 | J18: 28.57142857 | L18: 2020-10-08 | O18: 3✪✪✪ | S18: 3✪✪✪ | AE18: 28.57142857 | AI18: 2 | AJ18: 3 | AK18: 3 | AL18: 0 | AM18: FALSE | AN18: 70 | AO18: 10 | AP18: 10 | AQ18: 0 | AR18: 90 | AS18: 10 | AT18: 10 | AU18: 0 | AV18: 90 | AW18: 1 | AX18: TRUE
A19: 10 | B19: Membantu menyelesaikan masalah bekalan kepada Kesatuan Pengguna di Baling Jaya | E19: 3x ⍟⍟⍟ | I19: 3 | J19: 42.85714286 | L19: 2020-11-13 | AE19: 0 | AI19: 3 | AJ19: 0 | AK19: 0 | AL19: 0 | AM19: FALSE | AN19: 0 | AO19: 10 | AP19: 0 | AQ19: 0 | AR19: 10 | AS19: 0 | AT19: 0 | AU19: 0 | AV19: 0 | AW19: 0 | AX19: FALSE
A20: 11 | I20: 0 | J20: 0 | AE20: 0 | AI20: 0 | AJ20: 0 | AK20: 0 | AL20: 0 | AM20: FALSE | AN20: 0 | AO20: 10 | AP20: 0 | AQ20: 0 | AR20: 10 | AS20: 0 | AT20: 0 | AU20: 0 | AV20: 0 | AW20: 0 | AX20: FALSE | KL20: TRUE
A21: 12 | I21: 0 | J21: 0 | AE21: 0 | AI21: 0 | AJ21: 0 | AK21: 0 | AL21: 0 | AM21: FALSE | AN21: 0 | AO21: 10 | AP21: 0 | AQ21: 0 | AR21: 10 | AS21: 0 | AT21: 0 | AU21: 0 | AV21: 0 | AW21: 0 | AX21: FALSE
A22: 13 | I22: 0 | J22: 0 | AE22: 0 | AI22: 0 | AJ22: 0 | AK22: 0 | AL22: 0 | AM22: FALSE | AN22: 0 | AO22: 10 | AP22: 0 | AQ22: 0 | AR22: 10 | AS22: 0 | AT22: 0 | AU22: 0 | AV22: 0 | AW22: 0 | AX22: FALSE
A23: 14 | I23: 0 | J23: 0 | AE23: 0 | AI23: 0 | AJ23: 0 | AK23: 0 | AL23: 0 | AM23: FALSE | AN23: 0 | AO23: 10 | AP23: 0 | AQ23: 0 | AR23: 10 | AS23: 0 | AT23: 0 | AU23: 0 | AV23: 0 | AW23: 0 | AX23: FALSE
A24: 15 | I24: 0 | J24: 0 | AE24: 0 | AI24: 0 | AJ24: 0 | AK24: 0 | AL24: 0 | AM24: FALSE | AN24: 0 | AO24: 10 | AP24: 0 | AQ24: 0 | AR24: 10 | AS24: 0 | AT24: 0 | AU24: 0 | AV24: 0 | AW24: 0 | AX24: FALSE
A25: 16 | I25: 0 | J25: 0 | AE25: 0 | AI25: 0 | AJ25: 0 | AK25: 0 | AL25: 0 | AM25: FALSE | AN25: 0 | AO25: 10 | AP25: 0 | AQ25: 0 | AR25: 10 | AS25: 0 | AT25: 0 | AU25: 0 | AV25: 0 | AW25: 0 | AX25: FALSE
A26: 17 | I26: 0 | J26: 0 | AE26: 0 | AI26: 0 | AJ26: 0 | AK26: 0 | AL26: 0 | AM26: FALSE | AN26: 0 | AO26: 10 | AP26: 0 | AQ26: 0 | AR26: 10 | AS26: 0 | AT26: 0 | AU26: 0 | AV26: 0 | AW26: 0 | AX26: FALSE
A27: 18 | I27: 0 | J27: 0 | AE27: 0 | AI27: 0 | AJ27: 0 | AK27: 0 | AL27: 0 | AM27: FALSE | AN27: 0 | AO27: 10 | AP27: 0 | AQ27: 0 | AR27: 10 | AS27: 0 | AT27: 0 | AU27: 0 | AV27: 0 | AW27: 0 | AX27: FALSE
A28: 19 | I28: 0 | J28: 0 | AE28: 0 | AI28: 0 | AJ28: 0 | AK28: 0 | AL28: 0 | AM28: FALSE | AN28: 0 | AO28: 10 | AP28: 0 | AQ28: 0 | AR28: 10 | AS28: 0 | AT28: 0 | AU28: 0 | AV28: 0 | AW28: 0 | AX28: FALSE
A29: 20 | I29: 0 | J29: 0 | AE29: 0 | AI29: 0 | AJ29: 0 | AK29: 0 | AL29: 0 | AM29: FALSE | AN29: 0 | AO29: 10 | AP29: 0 | AQ29: 0 | AR29: 10 | AS29: 0 | AT29: 0 | AU29: 0 | AV29: 0 | AW29: 0 | AX29: FALSE
A30: 21 | I30: 0 | J30: 0 | AE30: 0 | AI30: 0 | AJ30: 0 | AK30: 0 | AL30: 0 | AM30: FALSE | AN30: 0 | AO30: 10 | AP30: 0 | AQ30: 0 | AR30: 10 | AS30: 0 | AT30: 0 | AU30: 0 | AV30: 0 | AW30: 0 | AX30: FALSE
A31: 22 | I31: 0 | J31: 0 | AE31: 0 | AI31: 0 | AJ31: 0 | AK31: 0 | AL31: 0 | AM31: FALSE | AN31: 0 | AO31: 10 | AP31: 0 | AQ31: 0 | AR31: 10 | AS31: 0 | AT31: 0 | AU31: 0 | AV31: 0 | AW31: 0 | AX31: FALSE
A32: 23 | I32: 0 | J32: 0 | AE32: 0 | AI32: 0 | AJ32: 0 | AK32: 0 | AL32: 0 | AM32: FALSE | AN32: 0 | AO32: 10 | AP32: 0 | AQ32: 0 | AR32: 10 | AS32: 0 | AT32: 0 | AU32: 0 | AV32: 0 | AW32: 0 | AX32: FALSE
A33: 24 | I33: 0 | J33: 0 | AE33: 0 | AI33: 0 | AJ33: 0 | AK33: 0 | AL33: 0 | AM33: FALSE | AN33: 0 | AO33: 10 | AP33: 0 | AQ33: 0 | AR33: 10 | AS33: 0 | AT33: 0 | AU33: 0 | AV33: 0 | AW33: 0 | AX33: FALSE
A34: 25 | I34: 0 | J34: 0 | AE34: 0 | AI34: 0 | AJ34: 0 | AK34: 0 | AL34: 0 | AM34: FALSE | AN34: 0 | AO34: 10 | AP34: 0 | AQ34: 0 | AR34: 10 | AS34: 0 | AT34: 0 | AU34: 0 | AV34: 0 | AW34: 0 | AX34: FALSE
A35: 26 | I35: 0 | J35: 0 | AE35: 0 | AI35: 0 | AJ35: 0 | AK35: 0 | AL35: 0 | AM35: FALSE | AN35: 0 | AO35: 10 | AP35: 0 | AQ35: 0 | AR35: 10 | AS35: 0 | AT35: 0 | AU35: 0 | AV35: 0 | AW35: 0 | AX35: FALSE
A36: 27 | I36: 0 | J36: 0 | AE36: 0 | AI36: 0 | AJ36: 0 | AK36: 0 | AL36: 0 | AM36: FALSE | AN36: 0 | AO36: 10 | AP36: 0 | AQ36: 0 | AR36: 10 | AS36: 0 | AT36: 0 | AU36: 0 | AV36: 0 | AW36: 0 | AX36: FALSE
A37: 28 | I37: 0 | J37: 0 | AE37: 0 | AI37: 0 | AJ37: 0 | AK37: 0 | AL37: 0 | AM37: FALSE | AN37: 0 | AO37: 10 | AP37: 0 | AQ37: 0 | AR37: 10 | AS37: 0 | AT37: 0 | AU37: 0 | AV37: 0 | AW37: 0 | AX37: FALSE
A38: 29 | I38: 0 | J38: 0 | AE38: 0 | AI38: 0 | AJ38: 0 | AK38: 0 | AL38: 0 | AM38: FALSE | AN38: 0 | AO38: 10 | AP38: 0 | AQ38: 0 | AR38: 10 | AS38: 0 | AT38: 0 | AU38: 0 | AV38: 0 | AW38: 0 | AX38: FALSE
A39: 30 | I39: 0 | J39: 0 | AE39: 0 | AI39: 0 | AJ39: 0 | AK39: 0 | AL39: 0 | AM39: FALSE | AN39: 0 | AO39: 10 | AP39: 0 | AQ39: 0 | AR39: 10 | AS39: 0 | AT39: 0 | AU39: 0 | AV39: 0 | AW39: 0 | AX39: FALSE
I40: =IF(SUM(I10:I39)=0,1,SUM(I10:I39)) -> 7 | J40: =SUM(J10:J39) -> 100 | AE40: =IFERROR(SUM(AE10:AE39)/J40*100,"N/A") -> 57.14285714
AC42: Use Base: | AE42: 100
Q44: A form by Leadersense Consulting & Systems Sdn Bhd @2017
E45: 1x ⍟ | O45: 1✪ | S45: Not Used | X45: Not Used
E46: 2x ⍟⍟ | O46: 2✪✪ | S46: 1✪ | X46: 1✪
E47: 3x ⍟⍟⍟ | O47: 3✪✪✪ | S47: 2✪✪ | X47: 2✪✪
E48: 4x ⍟⍟⍟⍟ | S48: 3✪✪✪ | X48: 3✪✪✪

Sheet StaffCharts
C1: Staff Chart #1 | BS1: 1.15 | CI1: 2.75 | CP1: 4.21 | DA1: 6.64 | DM1: 10.14
A2: =KPICreate!A4 -> 2020 | L2: Minggu Ini: | M2: ='Wk Input'!J2 -> 53 | Q2: =IF(M2<1,1,IF(M2>52,52,M2)) -> 52 | BN2: 100 | BO2: 100 | BP2: 85 | BQ2: 100 | BR2: 100 | BS2: 100 | BT2: 85 | BU2: 100 | BV2: 100 | BW2: 95 | BX2: 100 | BY2: 100 | BZ2: 90 | CA2: 100 | CB2: 95 | CC2: 85 | CD2: 100 | CE2: 100 | CF2: 100 | CG2: 100 | CH2: 95 | CI2: 60 | CJ2: 100 | CK2: 100 | CL2: 80 | CM2: 100 | CN2: 100 | CO2: 100 | CP2: 100 | CQ2: 85 | CR2: 100 | CS2: 100 | CT2: 100 | CU2: 95 | CV2: 90 | CW2: 100 | CX2: 100 | CY2: 100 | CZ2: 90 | DA2: 85 | DB2: 100 | DC2: 100 | DD2: 100 | DE2: 95 | DF2: 85 | DG2: 100 | DH2: 100 | DI2: 100 | DJ2: 100 | DK2: 90 | DL2: 100 | DM2: 100
A3: ID | B3: CG8 | C3: RAYMOND CHARLES | F3: =IF(F$40='Wk Input'!$J$2,sample!FI98,"") ->  | G3: =IF(G$40='Wk Input'!$J$2,sample!FJ98,"") ->  | H3: =IF(H$40='Wk Input'!$J$2,sample!FK98,"") ->  | I3: =IF(I$40='Wk Input'!$J$2,sample!FL98,"") ->  | J3: =IF(J$40='Wk Input'!$J$2,sample!FM98,"") ->  | K3: =IF(K$40='Wk Input'!$J$2,sample!FN98,"") ->  | L3: =IF(L$40='Wk Input'!$J$2,sample!FO98,"") ->  | M3: =IF(M$40='Wk Input'!$J$2,sample!FP98,"") ->  | N3: =IF(N$40='Wk Input'!$J$2,sample!FQ98,"") ->  | O3: =IF(O$40='Wk Input'!$J$2,sample!FR98,"") ->  | P3: =IF(P$40='Wk Input'!$J$2,sample!FS98,"") ->  | Q3: =IF(Q$40='Wk Input'!$J$2,sample!FT98,"") ->  | R3: =IF(R$40='Wk Input'!$J$2,sample!FU98,"") ->  | S3: =IF(S$40='Wk Input'!$J$2,sample!FV98,"") ->  | T3: =IF(T$40='Wk Input'!$J$2,sample!FW98,"") ->  | U3: =IF(U$40='Wk Input'!$J$2,sample!FX98,"") ->  | V3: =IF(V$40='Wk Input'!$J$2,sample!FY98,"") ->  | W3: =IF(W$40='Wk Input'!$J$2,sample!FZ98,"") ->  | X3: =IF(X$40='Wk Input'!$J$2,sample!GA98,"") ->  | Y3: =IF(Y$40='Wk Input'!$J$2,sample!GB98,"") ->  | Z3: =IF(Z$40='Wk Input'!$J$2,sample!GC98,"") ->  | AA3: =IF(AA$40='Wk Input'!$J$2,sample!GD98,"") ->  | AB3: =IF(AB$40='Wk Input'!$J$2,sample!GE98,"") ->  | AC3: =IF(AC$40='Wk Input'!$J$2,sample!GF98,"") ->  | AD3: =IF(AD$40='Wk Input'!$J$2,sample!GG98,"") ->  | AE3: =IF(AE$40='Wk Input'!$J$2,sample!GH98,"") ->  | AF3: =IF(AF$40='Wk Input'!$J$2,sample!GI98,"") ->  | AG3: =IF(AG$40='Wk Input'!$J$2,sample!GJ98,"") ->  | AH3: =IF(AH$40='Wk Input'!$J$2,sample!GK98,"") ->  | AI3: =IF(AI$40='Wk Input'!$J$2,sample!GL98,"") ->  | AJ3: =IF(AJ$40='Wk Input'!$J$2,sample!GM98,"") ->  | AK3: =IF(AK$40='Wk Input'!$J$2,sample!GN98,"") ->  | AL3: =IF(AL$40='Wk Input'!$J$2,sample!GO98,"") ->  | AM3: =IF(AM$40='Wk Input'!$J$2,sample!GP98,"") ->  | AN3: =IF(AN$40='Wk Input'!$J$2,sample!GQ98,"") ->  | AO3: =IF(AO$40='Wk Input'!$J$2,sample!GR98,"") ->  | AP3: =IF(AP$40='Wk Input'!$J$2,sample!GS98,"") ->  | AQ3: =IF(AQ$40='Wk Input'!$J$2,sample!GT98,"") ->  | AR3: =IF(AR$40='Wk Input'!$J$2,sample!GU98,"") ->  | AS3: =IF(AS$40='Wk Input'!$J$2,sample!GV98,"") ->  | AT3: =IF(AT$40='Wk Input'!$J$2,sample!GW98,"") ->  | AU3: =IF(AU$40='Wk Input'!$J$2,sample!GX98,"") ->  | AV3: =IF(AV$40='Wk Input'!$J$2,sample!GY98,"") ->  | AW3: =IF(AW$40='Wk Input'!$J$2,sample!GZ98,"") ->  | AX3: =IF(AX$40='Wk Input'!$J$2,sample!HA98,"") ->  | AY3: =IF(AY$40='Wk Input'!$J$2,sample!HB98,"") ->  | AZ3: =IF(AZ$40='Wk Input'!$J$2,sample!HC98,"") ->  | BA3: =IF(BA$40='Wk Input'!$J$2,sample!HD98,"") ->  | BB3: =IF(BB$40='Wk Input'!$J$2,sample!HE98,"") ->  | BC3: =IF(BC$40='Wk Input'!$J$2,sample!HF98,"") ->  | BD3: =IF(BD$40='Wk Input'!$J$2,sample!HG98,"") ->  | BE3: =IF(BE$40='Wk Input'!$J$2,sample!HH98,"") ->  | BO3: 75.2 | BQ3: 70.6 | BS3: 71.2 | BU3: 71.2 | BW3: 75.8 | BY3: 69.7 | CA3: 76.4 | CC3: 76.9 | CE3: 80.3 | CG3: 79.1 | CI3: 73.9 | CK3: 79.7 | CM3: 78.5 | CO3: 81.4 | CQ3: 80.2 | CS3: 83.7 | CU3: 79.8 | CW3: 78 | CY3: 82 | DA3: 76.3 | DC3: 83.3 | DE3: 78.1 | DG3: 84.3 | DI3: 77.7 | DK3: 81.5 | DM3: 78.5
B4: =Home!$Z$1 -> DM1 | C4: EKSEKUTIF PEMASARAN & LOGISTIK | F4: =IF(sample!FI90,sample!FI91,"") ->  | G4: =IF(sample!FJ90,sample!FJ91,"") ->  | H4: =IF(sample!FK90,sample!FK91,"") ->  | I4: =IF(sample!FL90,sample!FL91,"") ->  | J4: =IF(sample!FM90,sample!FM91,"") ->  | K4: =IF(sample!FN90,sample!FN91,"") ->  | L4: =IF(sample!FO90,sample!FO91,"") ->  | M4: =IF(sample!FP90,sample!FP91,"") ->  | N4: =IF(sample!FQ90,sample!FQ91,"") ->  | O4: =IF(sample!FR90,sample!FR91,"") ->  | P4: =IF(sample!FS90,sample!FS91,"") ->  | Q4: =IF(sample!FT90,sample!FT91,"") ->  | R4: =IF(sample!FU90,sample!FU91,"") ->  | S4: =IF(sample!FV90,sample!FV91,"") ->  | T4: =IF(sample!FW90,sample!FW91,"") ->  | U4: =IF(sample!FX90,sample!FX91,"") ->  | V4: =IF(sample!FY90,sample!FY91,"") ->  | W4: =IF(sample!FZ90,sample!FZ91,"") ->  | X4: =IF(sample!GA90,sample!GA91,"") ->  | Y4: =IF(sample!GB90,sample!GB91,"") ->  | Z4: =IF(sample!GC90,sample!GC91,"") ->  | AA4: =IF(sample!GD90,sample!GD91,"") ->  | AB4: =IF(sample!GE90,sample!GE91,"") -> 4 | AC4: =IF(sample!GF90,sample!GF91,"") ->  | AD4: =IF(sample!GG90,sample!GG91,"") ->  | AE4: =IF(sample!GH90,sample!GH91,"") ->  | AF4: =IF(sample!GI90,sample!GI91,"") ->  | AG4: =IF(sample!GJ90,sample!GJ91,"") ->  | AH4: =IF(sample!GK90,sample!GK91,"") ->  | AI4: =IF(sample!GL90,sample!GL91,"") ->  | AJ4: =IF(sample!GM90,sample!GM91,"") ->  | AK4: =IF(sample!GN90,sample!GN91,"") ->  | AL4: =IF(sample!GO90,sample!GO91,"") ->  | AM4: =IF(sample!GP90,sample!GP91,"") ->  | AN4: =IF(sample!GQ90,sample!GQ91,"") ->  | AO4: =IF(sample!GR90,sample!GR91,"") ->  | AP4: =IF(sample!GS90,sample!GS91,"") ->  | AQ4: =IF(sample!GT90,sample!GT91,"") ->  | AR4: =IF(sample!GU90,sample!GU91,"") ->  | AS4: =IF(sample!GV90,sample!GV91,"") ->  | AT4: =IF(sample!GW90,sample!GW91,"") ->  | AU4: =IF(sample!GX90,sample!GX91,"") ->  | AV4: =IF(sample!GY90,sample!GY91,"") ->  | AW4: =IF(sample!GZ90,sample!GZ91,"") ->  | AX4: =IF(sample!HA90,sample!HA91,"") ->  | AY4: =IF(sample!HB90,sample!HB91,"") ->  | AZ4: =IF(sample!HC90,sample!HC91,"") ->  | BA4: =IF(sample!HD90,sample!HD91,"") ->  | BB4: =IF(sample!HE90,sample!HE91,"") ->  | BC4: =IF(sample!HF90,sample!HF91,"") ->  | BD4: =IF(sample!HG90,sample!HG91,"") ->  | BE4: =IF(sample!HH90,sample!HH91,"") ->  | BN4: 75 | BO4: 80 | BP4: 70 | BQ4: 60 | BR4: 55 | BS4: 55 | BT4: 55 | BU4: 60 | BV4: 75 | BW4: 75 | BX4: 70 | BY4: 55 | BZ4: 75 | CA4: 80 | CB4: 80 | CC4: 80 | CD4: 85 | CE4: 85 | CF4: 90 | CG4: 90 | CH4: 90 | CI4: 85 | CJ4: 85 | CK4: 90 | CL4: 80 | CM4: 85 | CN4: 90 | CO4: 90 | CP4: 95 | CQ4: 90 | CR4: 90 | CS4: 90 | CT4: 80 | CU4: 80 | CV4: 85 | CW4: 85 | CX4: 85 | CY4: 80 | CZ4: 90 | DA4: 90 | DB4: 95 | DC4: 95 | DD4: 90 | DE4: 95 | DF4: 90 | DG4: 95 | DH4: 85 | DI4: 85 | DJ4: 85 | DK4: 80 | DL4: 80 | DM4: 85
B5: =ISNUMBER(FIND($B$4,$DO$4)) -> FALSE | C5: PEMASARAN & PERKHIDMATAN | F5: =IF(OR(sample!FI90,sample!FI94),"P"," ") ->  | G5: =IF(OR(sample!FJ90,sample!FJ94),"P"," ") ->  | H5: =IF(OR(sample!FK90,sample!FK94),"P"," ") ->  | I5: =IF(OR(sample!FL90,sample!FL94),"P"," ") ->  | J5: =IF(OR(sample!FM90,sample!FM94),"P"," ") ->  | K5: =IF(OR(sample!FN90,sample!FN94),"P"," ") ->  | L5: =IF(OR(sample!FO90,sample!FO94),"P"," ") ->  | M5: =IF(OR(sample!FP90,sample!FP94),"P"," ") ->  | N5: =IF(OR(sample!FQ90,sample!FQ94),"P"," ") ->  | O5: =IF(OR(sample!FR90,sample!FR94),"P"," ") ->  | P5: =IF(OR(sample!FS90,sample!FS94),"P"," ") ->  | Q5: =IF(OR(sample!FT90,sample!FT94),"P"," ") ->  | R5: =IF(OR(sample!FU90,sample!FU94),"P"," ") ->  | S5: =IF(OR(sample!FV90,sample!FV94),"P"," ") ->  | T5: =IF(OR(sample!FW90,sample!FW94),"P"," ") ->  | U5: =IF(OR(sample!FX90,sample!FX94),"P"," ") ->  | V5: =IF(OR(sample!FY90,sample!FY94),"P"," ") ->  | W5: =IF(OR(sample!FZ90,sample!FZ94),"P"," ") ->  | X5: =IF(OR(sample!GA90,sample!GA94),"P"," ") ->  | Y5: =IF(OR(sample!GB90,sample!GB94),"P"," ") ->  | Z5: =IF(OR(sample!GC90,sample!GC94),"P"," ") ->  | AA5: =IF(OR(sample!GD90,sample!GD94),"P"," ") ->  | AB5: =IF(OR(sample!GE90,sample!GE94),"P"," ") -> P | AC5: =IF(OR(sample!GF90,sample!GF94),"P"," ") ->  | AD5: =IF(OR(sample!GG90,sample!GG94),"P"," ") ->  | AE5: =IF(OR(sample!GH90,sample!GH94),"P"," ") ->  | AF5: =IF(OR(sample!GI90,sample!GI94),"P"," ") ->  | AG5: =IF(OR(sample!GJ90,sample!GJ94),"P"," ") ->  | AH5: =IF(OR(sample!GK90,sample!GK94),"P"," ") ->  | AI5: =IF(OR(sample!GL90,sample!GL94),"P"," ") ->  | AJ5: =IF(OR(sample!GM90,sample!GM94),"P"," ") ->  | AK5: =IF(OR(sample!GN90,sample!GN94),"P"," ") ->  | AL5: =IF(OR(sample!GO90,sample!GO94),"P"," ") -> P | AM5: =IF(OR(sample!GP90,sample!GP94),"P"," ") ->  | AN5: =IF(OR(sample!GQ90,sample!GQ94),"P"," ") ->  | AO5: =IF(OR(sample!GR90,sample!GR94),"P"," ") ->  | AP5: =IF(OR(sample!GS90,sample!GS94),"P"," ") ->  | AQ5: =IF(OR(sample!GT90,sample!GT94),"P"," ") ->  | AR5: =IF(OR(sample!GU90,sample!GU94),"P"," ") ->  | AS5: =IF(OR(sample!GV90,sample!GV94),"P"," ") ->  | AT5: =IF(OR(sample!GW90,sample!GW94),"P"," ") ->  | AU5: =IF(OR(sample!GX90,sample!GX94),"P"," ") ->  | AV5: =IF(OR(sample!GY90,sample!GY94),"P"," ") ->  | AW5: =IF(OR(sample!GZ90,sample!GZ94),"P"," ") ->  | AX5: =IF(OR(sample!HA90,sample!HA94),"P"," ") ->  | AY5: =IF(OR(sample!HB90,sample!HB94),"P"," ") ->  | AZ5: =IF(OR(sample!HC90,sample!HC94),"P"," ") ->  | BA5: =IF(OR(sample!HD90,sample!HD94),"P"," ") ->  | BB5: =IF(OR(sample!HE90,sample!HE94),"P"," ") ->  | BC5: =IF(OR(sample!HF90,sample!HF94),"P"," ") ->  | BD5: =IF(OR(sample!HG90,sample!HG94),"P"," ") ->  | BE5: =IF(OR(sample!HH90,sample!HH94),"P"," ") ->  | CV5: Yes
E6: Nilai Wk Konsol | F6: =IF(sample!FI94,sample!FI95,"") ->  | G6: =IF(sample!FJ94,sample!FJ95,"") ->  | H6: =IF(sample!FK94,sample!FK95,"") ->  | I6: =IF(sample!FL94,sample!FL95,"") ->  | J6: =IF(sample!FM94,sample!FM95,"") ->  | K6: =IF(sample!FN94,sample!FN95,"") ->  | L6: =IF(sample!FO94,sample!FO95,"") ->  | M6: =IF(sample!FP94,sample!FP95,"") ->  | N6: =IF(sample!FQ94,sample!FQ95,"") ->  | O6: =IF(sample!FR94,sample!FR95,"") ->  | P6: =IF(sample!FS94,sample!FS95,"") ->  | Q6: =IF(sample!FT94,sample!FT95,"") ->  | R6: =IF(sample!FU94,sample!FU95,"") ->  | S6: =IF(sample!FV94,sample!FV95,"") ->  | T6: =IF(sample!FW94,sample!FW95,"") ->  | U6: =IF(sample!FX94,sample!FX95,"") ->  | V6: =IF(sample!FY94,sample!FY95,"") ->  | W6: =IF(sample!FZ94,sample!FZ95,"") ->  | X6: =IF(sample!GA94,sample!GA95,"") ->  | Y6: =IF(sample!GB94,sample!GB95,"") ->  | Z6: =IF(sample!GC94,sample!GC95,"") ->  | AA6: =IF(sample!GD94,sample!GD95,"") ->  | AB6: =IF(sample!GE94,sample!GE95,"") ->  | AC6: =IF(sample!GF94,sample!GF95,"") ->  | AD6: =IF(sample!GG94,sample!GG95,"") ->  | AE6: =IF(sample!GH94,sample!GH95,"") ->  | AF6: =IF(sample!GI94,sample!GI95,"") ->  | AG6: =IF(sample!GJ94,sample!GJ95,"") ->  | AH6: =IF(sample!GK94,sample!GK95,"") ->  | AI6: =IF(sample!GL94,sample!GL95,"") ->  | AJ6: =IF(sample!GM94,sample!GM95,"") ->  | AK6: =IF(sample!GN94,sample!GN95,"") ->  | AL6: =IF(sample!GO94,sample!GO95,"") -> -2 | AM6: =IF(sample!GP94,sample!GP95,"") ->  | AN6: =IF(sample!GQ94,sample!GQ95,"") ->  | AO6: =IF(sample!GR94,sample!GR95,"") ->  | AP6: =IF(sample!GS94,sample!GS95,"") ->  | AQ6: =IF(sample!GT94,sample!GT95,"") ->  | AR6: =IF(sample!GU94,sample!GU95,"") ->  | AS6: =IF(sample!GV94,sample!GV95,"") ->  | AT6: =IF(sample!GW94,sample!GW95,"") ->  | AU6: =IF(sample!GX94,sample!GX95,"") ->  | AV6: =IF(sample!GY94,sample!GY95,"") ->  | AW6: =IF(sample!GZ94,sample!GZ95,"") ->  | AX6: =IF(sample!HA94,sample!HA95,"") ->  | AY6: =IF(sample!HB94,sample!HB95,"") ->  | AZ6: =IF(sample!HC94,sample!HC95,"") ->  | BA6: =IF(sample!HD94,sample!HD95,"") ->  | BB6: =IF(sample!HE94,sample!HE95,"") ->  | BC6: =IF(sample!HF94,sample!HF95,"") ->  | BD6: =IF(sample!HG94,sample!HG95,"") ->  | BE6: =IF(sample!HH94,sample!HH95,"") ->  | BG6: HUBUNG-KAIT | BN6: DATA INPUT TERAKHIR STAF | BT6: Last Input Date: | BU6: =TODAY()-1 -> 2020-12-30
B7: ID KPI | C7: Deskripsi Spesifik KPI | D7: Sasaran | BG7: Terima | BH7: Cascade1 | BI7: Cascade2 | BJ7: Cascade3 | BK7: Cascade4 | BL7: Cascade5 | BN7: Wk 1 | BO7: Wk 2 | BP7: Wk 3 | BQ7: Wk 4 | BR7: Wk 5 | BS7: Wk 6 | BT7: Wk 7 | BU7: Wk 8 | BV7: Wk 9 | BW7: Wk 10 | BX7: Wk 11 | BY7: Wk 12 | BZ7: Wk 13 | CA7: Wk 14 | CB7: Wk 15 | CC7: Wk 16 | CD7: Wk 17 | CE7: Wk 18 | CF7: Wk 19 | CG7: Wk 20 | CH7: Wk 21 | CI7: Wk 22 | CJ7: Wk 23 | CK7: Wk 24 | CL7: Wk 25 | CM7: Wk 26 | CN7: Wk 27 | CO7: Wk 28 | CP7: Wk 29 | CQ7: Wk 30 | CR7: Wk 31 | CS7: Wk 32 | CT7: Wk 33 | CU7: Wk 34 | CV7: Wk 35 | CW7: Wk 36 | CX7: Wk 37 | CY7: Wk 38 | CZ7: Wk 39 | DA7: Wk 40 | DB7: Wk 41 | DC7: Wk 42 | DD7: Wk 43 | DE7: Wk 44 | DF7: Wk 45 | DG7: Wk 46 | DH7: Wk 47 | DI7: Wk 48 | DJ7: Wk 49 | DK7: Wk 50 | DL7: Wk 51 | DM7: Wk 52
A8: =sample!K90 -> 0 | B8: CG801 | C8: WK01 Mencapai sasaran pendapatan korporat yang meningkat bagi Sektor Perumahan (RM Juta) | D8: 10 | E8: =HLOOKUP($Q$2,sample!$BN$2:$DM$105,89,FALSE) -> 10.14 | F8: =sample!L90 -> 0 | G8: =sample!M90 -> 0 | H8: =sample!N90 -> 0 | I8: =sample!O90 -> 0 | J8: =sample!P90 -> 0 | K8: =sample!Q90 -> 11.5 | L8: =sample!R90 -> 11.5 | M8: =sample!S90 -> 11.5 | N8: =sample!T90 -> 11.5 | O8: =sample!U90 -> 11.5 | P8: =sample!V90 -> 11.5 | Q8: =sample!W90 -> 11.5 | R8: =sample!X90 -> 11.5 | S8: =sample!Y90 -> 11.5 | T8: =sample!Z90 -> 11.5 | U8: =sample!AA90 -> 11.5 | V8: =sample!AB90 -> 11.5 | W8: =sample!AC90 -> 11.5 | X8: =sample!AD90 -> 11.5 | Y8: =sample!AE90 -> 11.5 | Z8: =sample!AF90 -> 11.5 | AA8: =sample!AG90 -> 27.5 | AB8: =sample!AH90 -> 27.5 | AC8: =sample!AI90 -> 27.5 | AD8: =sample!AJ90 -> 27.5 | AE8: =sample!AK90 -> 27.5 | AF8: =sample!AL90 -> 27.5 | AG8: =sample!AM90 -> 27.5 | AH8: =sample!AN90 -> 42.1 | AI8: =sample!AO90 -> 42.1 | AJ8: =sample!AP90 -> 42.1 | AK8: =sample!AQ90 -> 42.1 | AL8: =sample!AR90 -> 42.1 | AM8: =sample!AS90 -> 42.1 | AN8: =sample!AT90 -> 42.1 | AO8: =sample!AU90 -> 42.1 | AP8: =sample!AV90 -> 42.1 | AQ8: =sample!AW90 -> 42.1 | AR8: =sample!AX90 -> 42.1 | AS8: =sample!AY90 -> 66.4 | AT8: =sample!AZ90 -> 66.4 | AU8: =sample!BA90 -> 66.4 | AV8: =sample!BB90 -> 66.4 | AW8: =sample!BC90 -> 66.4 | AX8: =sample!BD90 -> 66.4 | AY8: =sample!BE90 -> 66.4 | AZ8: =sample!BF90 -> 66.4 | BA8: =sample!BG90 -> 66.4 | BB8: =sample!BH90 -> 66.4 | BC8: =sample!BI90 -> 66.4 | BD8: =sample!BJ90 -> 66.4 | BE8: =sample!BK90 -> 100 | BG8: DM101 | BN8: =IF(BN$41>$M$2,"",BN1) ->  | BO8: =IF(BO$41>$M$2,"",BO1) ->  | BS8: 1.15 | CI8: 2.75 | CP8: 4.21 | DA8: 6.64 | DM8: 10.14
BG9: =sample!BZ90 -> 1.15
A10: =sample!K91 -> 0 | B10: CG802 | C10: BP49 Mengekalkan Penghantaran shipment Pelanggan menepati sasaran - Zon Timur | D10: 95 | E10: =HLOOKUP($Q$2,sample!$BN$2:$DM$105,90,FALSE) -> 95.86538462 | F10: =sample!L91 -> 100 | G10: =sample!M91 -> 100 | H10: =sample!N91 -> 89.47368421 | I10: =sample!O91 -> 100 | J10: =sample!P91 -> 100 | K10: =sample!Q91 -> 100 | L10: =sample!R91 -> 89.47368421 | M10: =sample!S91 -> 100 | N10: =sample!T91 -> 100 | O10: =sample!U91 -> 100 | P10: =sample!V91 -> 100 | Q10: =sample!W91 -> 100 | R10: =sample!X91 -> 94.73684211 | S10: =sample!Y91 -> 100 | T10: =sample!Z91 -> 100 | U10: =sample!AA91 -> 89.47368421 | V10: =sample!AB91 -> 100 | W10: =sample!AC91 -> 100 | X10: =sample!AD91 -> 100 | Y10: =sample!AE91 -> 100 | Z10: =sample!AF91 -> 100 | AA10: =sample!AG91 -> 63.15789474 | AB10: =sample!AH91 -> 100 | AC10: =sample!AI91 -> 100 | AD10: =sample!AJ91 -> 84.21052632 | AE10: =sample!AK91 -> 100 | AF10: =sample!AL91 -> 100 | AG10: =sample!AM91 -> 100 | AH10: =sample!AN91 -> 100 | AI10: =sample!AO91 -> 89.47368421 | AJ10: =sample!AP91 -> 100 | AK10: =sample!AQ91 -> 100 | AL10: =sample!AR91 -> 100 | AM10: =sample!AS91 -> 100 | AN10: =sample!AT91 -> 94.73684211 | AO10: =sample!AU91 -> 100 | AP10: =sample!AV91 -> 100 | AQ10: =sample!AW91 -> 100 | AR10: =sample!AX91 -> 94.73684211 | AS10: =sample!AY91 -> 89.47368421 | AT10: =sample!AZ91 -> 100 | AU10: =sample!BA91 -> 100 | AV10: =sample!BB91 -> 100 | AW10: =sample!BC91 -> 100 | AX10: =sample!BD91 -> 89.47368421 | AY10: =sample!BE91 -> 100 | AZ10: =sample!BF91 -> 100 | BA10: =sample!BG91 -> 100 | BB10: =sample!BH91 -> 100 | BC10: =sample!BI91 -> 94.73684211 | BD10: =sample!BJ91 -> 100 | BE10: =sample!BK91 -> 100 | BG10: DM103 | BN10: =IF(BN$41>$M$2,"",BN2) -> 100 | BO10: =IF(BO$41>$M$2,"",BO2) -> 100 | BP10: 85 | BQ10: 100 | BR10: 100 | BS10: 100 | BT10: 85 | BU10: 100 | BV10: 100 | BW10: 95 | BX10: 100 | BY10: 100 | BZ10: 90 | CA10: 100 | CB10: 95 | CC10: 85 | CD10: 100 | CE10: 100 | CF10: 100 | CG10: 100 | CH10: 95 | CI10: 60 | CJ10: 100 | CK10: 100 | CL10: 80 | CM10: 100 | CN10: 100 | CO10: 100 | CP10: 100 | CQ10: 85 | CR10: 100 | CS10: 100 | CT10: 100 | CU10: 95 | CV10: 90 | CW10: 100 | CX10: 100 | CY10: 100 | CZ10: 90 | DA10: 85 | DB10: 100 | DC10: 100 | DD10: 100 | DE10: 95 | DF10: 85 | DG10: 100 | DH10: 100 | DI10: 100 | DJ10: 100 | DK10: 90 | DL10: 100 | DM10: 100
BG11: =sample!BZ91 -> 96.53846154
A12: =sample!K92 -> 0 | B12: CG803 | C12: BP20 Mengekalkan tahap tinggi peratusan Servis Aduan diselesai menepati sasaran (peratusan) | D12: 80 | E12: =HLOOKUP($Q$2,sample!$BN$2:$DM$105,91,FALSE) -> 77.58461538 | F12: =sample!L92 ->  | G12: =sample!M92 -> 70 | H12: =sample!N92 ->  | I12: =sample!O92 -> 41.25 | J12: =sample!P92 ->  | K12: =sample!Q92 -> 45 | L12: =sample!R92 ->  | M12: =sample!S92 -> 45 | N12: =sample!T92 ->  | O12: =sample!U92 -> 73.75 | P12: =sample!V92 ->  | Q12: =sample!W92 -> 35.625 | R12: =sample!X92 ->  | S12: =sample!Y92 -> 77.5 | T12: =sample!Z92 ->  | U12: =sample!AA92 -> 80.625 | V12: =sample!AB92 ->  | W12: =sample!AC92 -> 100 | X12: =sample!AD92 ->  | Y12: =sample!AE92 -> 94.375 | Z12: =sample!AF92 ->  | AA12: =sample!AG92 -> 61.875 | AB12: =sample!AH92 ->  | AC12: =sample!AI92 -> 98.125 | AD12: =sample!AJ92 ->  | AE12: =sample!AK92 -> 90.625 | AF12: =sample!AL92 ->  | AG12: =sample!AM92 -> 100 | AH12: =sample!AN92 ->  | AI12: =sample!AO92 -> 100 | AJ12: =sample!AP92 ->  | AK12: =sample!AQ92 -> 100 | AL12: =sample!AR92 ->  | AM12: =sample!AS92 -> 98.75 | AN12: =sample!AT92 ->  | AO12: =sample!AU92 -> 87.5 | AP12: =sample!AV92 ->  | AQ12: =sample!AW92 -> 100 | AR12: =sample!AX92 ->  | AS12: =sample!AY92 -> 76.875 | AT12: =sample!AZ92 ->  | AU12: =sample!BA92 -> 100 | AV12: =sample!BB92 ->  | AW12: =sample!BC92 -> 88.125 | AX12: =sample!BD92 ->  | AY12: =sample!BE92 -> 100 | AZ12: =sample!BF92 ->  | BA12: =sample!BG92 -> 85.625 | BB12: =sample!BH92 ->  | BC12: =sample!BI92 -> 100 | BD12: =sample!BJ92 ->  | BE12: =sample!BK92 -> 90.625 | BN12: =IF(BN$41>$M$2,"",BN3) ->  | BO12: =IF(BO$41>$M$2,"",BO3) -> 75.2 | BQ12: 70.6 | BS12: 71.2 | BU12: 71.2 | BW12: 75.8 | BY12: 69.7 | CA12: 76.4 | CC12: 76.9 | CE12: 80.3 | CG12: 79.1 | CI12: 73.9 | CK12: 79.7 | CM12: 78.5 | CO12: 81.4 | CQ12: 80.2 | CS12: 83.7 | CU12: 79.8 | CW12: 78 | CY12: 82 | DA12: 76.3 | DC12: 83.3 | DE12: 78.1 | DG12: 84.3 | DI12: 77.7 | DK12: 81.5 | DM12: 78.5
A14: =sample!K93 -> 0 | B14: CG804 | C14: BP34 Mengekalkan Penghantaran shipment Pelanggan menepati sasaran – servis Penjejakan Penghantaran | D14: 95 | E14: =HLOOKUP($Q$2,sample!$BN$2:$DM$105,92,FALSE) -> 81.63461538 | F14: =sample!L93 -> 78.94736842 | G14: =sample!M93 -> 84.21052632 | H14: =sample!N93 -> 73.68421053 | I14: =sample!O93 -> 63.15789474 | J14: =sample!P93 -> 57.89473684 | K14: =sample!Q93 -> 57.89473684 | L14: =sample!R93 -> 57.89473684 | M14: =sample!S93 -> 63.15789474 | N14: =sample!T93 -> 78.94736842 | O14: =sample!U93 -> 78.94736842 | P14: =sample!V93 -> 73.68421053 | Q14: =sample!W93 -> 57.89473684 | R14: =sample!X93 -> 78.94736842 | S14: =sample!Y93 -> 84.21052632 | T14: =sample!Z93 -> 84.21052632 | U14: =sample!AA93 -> 84.21052632 | V14: =sample!AB93 -> 89.47368421 | W14: =sample!AC93 -> 89.47368421 | X14: =sample!AD93 -> 94.73684211 | Y14: =sample!AE93 -> 94.73684211 | Z14: =sample!AF93 -> 94.73684211 | AA14: =sample!AG93 -> 89.47368421 | AB14: =sample!AH93 -> 89.47368421 | AC14: =sample!AI93 -> 94.73684211 | AD14: =sample!AJ93 -> 84.21052632 | AE14: =sample!AK93 -> 89.47368421 | AF14: =sample!AL93 -> 94.73684211 | AG14: =sample!AM93 -> 94.73684211 | AH14: =sample!AN93 -> 100 | AI14: =sample!AO93 -> 94.73684211 | AJ14: =sample!AP93 -> 94.73684211 | AK14: =sample!AQ93 -> 94.73684211 | AL14: =sample!AR93 -> 84.21052632 | AM14: =sample!AS93 -> 84.21052632 | AN14: =sample!AT93 -> 89.47368421 | AO14: =sample!AU93 -> 89.47368421 | AP14: =sample!AV93 -> 89.47368421 | AQ14: =sample!AW93 -> 84.21052632 | AR14: =sample!AX93 -> 94.73684211 | AS14: =sample!AY93 -> 94.73684211 | AT14: =sample!AZ93 -> 100 | AU14: =sample!BA93 -> 100 | AV14: =sample!BB93 -> 94.73684211 | AW14: =sample!BC93 -> 100 | AX14: =sample!BD93 -> 94.73684211 | AY14: =sample!BE93 -> 100 | AZ14: =sample!BF93 -> 89.47368421 | BA14: =sample!BG93 -> 89.47368421 | BB14: =sample!BH93 -> 89.47368421 | BC14: =sample!BI93 -> 84.21052632 | BD14: =sample!BJ93 -> 84.21052632 | BE14: =sample!BK93 -> 89.47368421 | BN14: =IF(BN$41>$M$2,"",BN4) -> 75 | BO14: =IF(BO$41>$M$2,"",BO4) -> 80 | BP14: 70 | BQ14: 60 | BR14: 55 | BS14: 55 | BT14: 55 | BU14: 60 | BV14: 75 | BW14: 75 | BX14: 70 | BY14: 55 | BZ14: 75 | CA14: 80 | CB14: 80 | CC14: 80 | CD14: 85 | CE14: 85 | CF14: 90 | CG14: 90 | CH14: 90 | CI14: 85 | CJ14: 85 | CK14: 90 | CL14: 80 | CM14: 85 | CN14: 90 | CO14: 90 | CP14: 95 | CQ14: 90 | CR14: 90 | CS14: 90 | CT14: 80 | CU14: 80 | CV14: 85 | CW14: 85 | CX14: 85 | CY14: 80 | CZ14: 90 | DA14: 90 | DB14: 95 | DC14: 95 | DD14: 90 | DE14: 95 | DF14: 90 | DG14: 95 | DH14: 85 | DI14: 85 | DJ14: 85 | DK14: 80 | DL14: 80 | DM14: 85
A16: =sample!K94 -> 0 | B16: CG805 | C16: BR55 Mencapai pelaksanaan Sistem Tiket Aduan STARSYS yang baru | D16: Yes | E16: =HLOOKUP($Q$2,sample!$BN$2:$DM$105,93,FALSE) -> Yes | F16: =sample!L94 ->  | G16: =sample!M94 ->  | H16: =sample!N94 ->  | I16: =sample!O94 ->  | J16: =sample!P94 -> 0 | K16: =sample!Q94 -> 0 | L16: =sample!R94 -> 0 | M16: =sample!S94 -> 0 | N16: =sample!T94 -> 0 | O16: =sample!U94 -> 0 | P16: =sample!V94 -> 0 | Q16: =sample!W94 -> 0 | R16: =sample!X94 -> 0 | S16: =sample!Y94 -> 0 | T16: =sample!Z94 -> 0 | U16: =sample!AA94 -> 0 | V16: =sample!AB94 -> 0 | W16: =sample!AC94 -> 0 | X16: =sample!AD94 -> 0 | Y16: =sample!AE94 -> 0 | Z16: =sample!AF94 -> 0 | AA16: =sample!AG94 -> 0 | AB16: =sample!AH94 -> 0 | AC16: =sample!AI94 -> 0 | AD16: =sample!AJ94 -> 0 | AE16: =sample!AK94 -> 0 | AF16: =sample!AL94 -> 0 | AG16: =sample!AM94 -> 0 | AH16: =sample!AN94 -> 0 | AI16: =sample!AO94 -> 0 | AJ16: =sample!AP94 -> 0 | AK16: =sample!AQ94 -> 0 | AL16: =sample!AR94 -> 0 | AM16: =sample!AS94 -> 0 | AN16: =sample!AT94 -> 100 | AO16: =sample!AU94 -> 100 | AP16: =sample!AV94 -> 100 | AQ16: =sample!AW94 -> 100 | AR16: =sample!AX94 -> 100 | AS16: =sample!AY94 -> 100 | AT16: =sample!AZ94 -> 100 | AU16: =sample!BA94 -> 100 | AV16: =sample!BB94 -> 100 | AW16: =sample!BC94 -> 100 | AX16: =sample!BD94 -> 100 | AY16: =sample!BE94 -> 100 | AZ16: =sample!BF94 -> 100 | BA16: =sample!BG94 -> 100 | BB16: =sample!BH94 -> 100 | BC16: =sample!BI94 -> 100 | BD16: =sample!BJ94 -> 100 | BE16: =sample!BK94 -> 100 | BN16: =IF(BN$41>$M$2,"",BN5) ->  | BO16: =IF(BO$41>$M$2,"",BO5) ->  | CV16: Yes
A18: =sample!K95 -> 0 | B18: CG806 | C18: N/A | D18: 0 | E18: =HLOOKUP($Q$2,sample!$BN$2:$DM$105,94,FALSE) ->  | F18: =sample!L95 ->  | G18: =sample!M95 ->  | H18: =sample!N95 ->  | I18: =sample!O95 ->  | J18: =sample!P95 ->  | K18: =sample!Q95 ->  | L18: =sample!R95 ->  | M18: =sample!S95 ->  | N18: =sample!T95 ->  | O18: =sample!U95 ->  | P18: =sample!V95 ->  | Q18: =sample!W95 ->  | R18: =sample!X95 ->  | S18: =sample!Y95 ->  | T18: =sample!Z95 ->  | U18: =sample!AA95 ->  | V18: =sample!AB95 ->  | W18: =sample!AC95 ->  | X18: =sample!AD95 ->  | Y18: =sample!AE95 ->  | Z18: =sample!AF95 ->  | AA18: =sample!AG95 ->  | AB18: =sample!AH95 ->  | AC18: =sample!AI95 ->  | AD18: =sample!AJ95 ->  | AE18: =sample!AK95 ->  | AF18: =sample!AL95 ->  | AG18: =sample!AM95 ->  | AH18: =sample!AN95 ->  | AI18: =sample!AO95 ->  | AJ18: =sample!AP95 ->  | AK18: =sample!AQ95 ->  | AL18: =sample!AR95 ->  | AM18: =sample!AS95 ->  | AN18: =sample!AT95 ->  | AO18: =sample!AU95 ->  | AP18: =sample!AV95 ->  | AQ18: =sample!AW95 ->  | AR18: =sample!AX95 ->  | AS18: =sample!AY95 ->  | AT18: =sample!AZ95 ->  | AU18: =sample!BA95 ->  | AV18: =sample!BB95 ->  | AW18: =sample!BC95 ->  | AX18: =sample!BD95 ->  | AY18: =sample!BE95 ->  | AZ18: =sample!BF95 ->  | BA18: =sample!BG95 ->  | BB18: =sample!BH95 ->  | BC18: =sample!BI95 ->  | BD18: =sample!BJ95 ->  | BE18: =sample!BK95 ->  | BN18: =IF(sample!X235="","",sample!X235) ->  | BO18: =IF(sample!Y235="","",sample!Y235) ->  | BP18: =IF(sample!Z235="","",sample!Z235) ->  | BQ18: =IF(sample!AA235="","",sample!AA235) ->  | BR18: =IF(sample!AB235="","",sample!AB235) ->  | BS18: =IF(sample!AC235="","",sample!AC235) ->  | BT18: =IF(sample!AD235="","",sample!AD235) ->  | BU18: =IF(sample!AE235="","",sample!AE235) ->  | BV18: =IF(sample!AF235="","",sample!AF235) ->  | BW18: =IF(sample!AG235="","",sample!AG235) ->  | BX18: =IF(sample!AH235="","",sample!AH235) ->  | BY18: =IF(sample!AI235="","",sample!AI235) ->  | BZ18: =IF(sample!AJ235="","",sample!AJ235) ->  | CA18: =IF(sample!AK235="","",sample!AK235) ->  | CB18: =IF(sample!AL235="","",sample!AL235) ->  | CC18: =IF(sample!AM235="","",sample!AM235) ->  | CD18: =IF(sample!AN235="","",sample!AN235) ->  | CE18: =IF(sample!AO235="","",sample!AO235) ->  | CF18: =IF(sample!AP235="","",sample!AP235) ->  | CG18: =IF(sample!AQ235="","",sample!AQ235) ->  | CH18: =IF(sample!AR235="","",sample!AR235) ->  | CI18: =IF(sample!AS235="","",sample!AS235) ->  | CJ18: =IF(sample!AT235="","",sample!AT235) ->  | CK18: =IF(sample!AU235="","",sample!AU235) ->  | CL18: =IF(sample!AV235="","",sample!AV235) ->  | CM18: =IF(sample!AW235="","",sample!AW235) ->  | CN18: =IF(sample!AX235="","",sample!AX235) ->  | CO18: =IF(sample!AY235="","",sample!AY235) ->  | CP18: =IF(sample!AZ235="","",sample!AZ235) ->  | CQ18: =IF(sample!BA235="","",sample!BA235) ->  | CR18: =IF(sample!BB235="","",sample!BB235) ->  | CS18: =IF(sample!BC235="","",sample!BC235) ->  | CT18: =IF(sample!BD235="","",sample!BD235) ->  | CU18: =IF(sample!BE235="","",sample!BE235) ->  | CV18: =IF(sample!BF235="","",sample!BF235) ->  | CW18: =IF(sample!BG235="","",sample!BG235) ->  | CX18: =IF(sample!BH235="","",sample!BH235) ->  | CY18: =IF(sample!BI235="","",sample!BI235) ->  | CZ18: =IF(sample!BJ235="","",sample!BJ235) ->  | DA18: =IF(sample!BK235="","",sample!BK235) ->  | DB18: =IF(sample!BL235="","",sample!BL235) ->  | DC18: =IF(sample!BM235="","",sample!BM235) ->  | DD18: =IF(sample!BN235="","",sample!BN235) ->  | DE18: =IF(sample!BO235="","",sample!BO235) ->  | DF18: =IF(sample!BP235="","",sample!BP235) ->  | DG18: =IF(sample!BQ235="","",sample!BQ235) ->  | DH18: =IF(sample!BR235="","",sample!BR235) ->  | DI18: =IF(sample!BS235="","",sample!BS235) ->  | DJ18: =IF(sample!BT235="","",sample!BT235) ->  | DK18: =IF(sample!BU235="","",sample!BU235) ->  | DL18: =IF(sample!BV235="","",sample!BV235) ->  | DM18: =IF(sample!BW235="","",sample!BW235) -> 
A20: =sample!K96 -> 0 | B20: CG807 | C20: N/A | D20: 0 | E20: =HLOOKUP($Q$2,sample!$BN$2:$DM$105,95,FALSE) ->  | F20: =sample!L96 ->  | G20: =sample!M96 ->  | H20: =sample!N96 ->  | I20: =sample!O96 ->  | J20: =sample!P96 ->  | K20: =sample!Q96 ->  | L20: =sample!R96 ->  | M20: =sample!S96 ->  | N20: =sample!T96 ->  | O20: =sample!U96 ->  | P20: =sample!V96 ->  | Q20: =sample!W96 ->  | R20: =sample!X96 ->  | S20: =sample!Y96 ->  | T20: =sample!Z96 ->  | U20: =sample!AA96 ->  | V20: =sample!AB96 ->  | W20: =sample!AC96 ->  | X20: =sample!AD96 ->  | Y20: =sample!AE96 ->  | Z20: =sample!AF96 ->  | AA20: =sample!AG96 ->  | AB20: =sample!AH96 ->  | AC20: =sample!AI96 ->  | AD20: =sample!AJ96 ->  | AE20: =sample!AK96 ->  | AF20: =sample!AL96 ->  | AG20: =sample!AM96 ->  | AH20: =sample!AN96 ->  | AI20: =sample!AO96 ->  | AJ20: =sample!AP96 ->  | AK20: =sample!AQ96 ->  | AL20: =sample!AR96 ->  | AM20: =sample!AS96 ->  | AN20: =sample!AT96 ->  | AO20: =sample!AU96 ->  | AP20: =sample!AV96 ->  | AQ20: =sample!AW96 ->  | AR20: =sample!AX96 ->  | AS20: =sample!AY96 ->  | AT20: =sample!AZ96 ->  | AU20: =sample!BA96 ->  | AV20: =sample!BB96 ->  | AW20: =sample!BC96 ->  | AX20: =sample!BD96 ->  | AY20: =sample!BE96 ->  | AZ20: =sample!BF96 ->  | BA20: =sample!BG96 ->  | BB20: =sample!BH96 ->  | BC20: =sample!BI96 ->  | BD20: =sample!BJ96 ->  | BE20: =sample!BK96 ->  | BN20: =IF(sample!X236="","",sample!X236) ->  | BO20: =IF(sample!Y236="","",sample!Y236) ->  | BP20: =IF(sample!Z236="","",sample!Z236) ->  | BQ20: =IF(sample!AA236="","",sample!AA236) ->  | BR20: =IF(sample!AB236="","",sample!AB236) ->  | BS20: =IF(sample!AC236="","",sample!AC236) ->  | BT20: =IF(sample!AD236="","",sample!AD236) ->  | BU20: =IF(sample!AE236="","",sample!AE236) ->  | BV20: =IF(sample!AF236="","",sample!AF236) ->  | BW20: =IF(sample!AG236="","",sample!AG236) ->  | BX20: =IF(sample!AH236="","",sample!AH236) ->  | BY20: =IF(sample!AI236="","",sample!AI236) ->  | BZ20: =IF(sample!AJ236="","",sample!AJ236) ->  | CA20: =IF(sample!AK236="","",sample!AK236) ->  | CB20: =IF(sample!AL236="","",sample!AL236) ->  | CC20: =IF(sample!AM236="","",sample!AM236) ->  | CD20: =IF(sample!AN236="","",sample!AN236) ->  | CE20: =IF(sample!AO236="","",sample!AO236) ->  | CF20: =IF(sample!AP236="","",sample!AP236) ->  | CG20: =IF(sample!AQ236="","",sample!AQ236) ->  | CH20: =IF(sample!AR236="","",sample!AR236) ->  | CI20: =IF(sample!AS236="","",sample!AS236) ->  | CJ20: =IF(sample!AT236="","",sample!AT236) ->  | CK20: =IF(sample!AU236="","",sample!AU236) ->  | CL20: =IF(sample!AV236="","",sample!AV236) ->  | CM20: =IF(sample!AW236="","",sample!AW236) ->  | CN20: =IF(sample!AX236="","",sample!AX236) ->  | CO20: =IF(sample!AY236="","",sample!AY236) ->  | CP20: =IF(sample!AZ236="","",sample!AZ236) ->  | CQ20: =IF(sample!BA236="","",sample!BA236) ->  | CR20: =IF(sample!BB236="","",sample!BB236) ->  | CS20: =IF(sample!BC236="","",sample!BC236) ->  | CT20: =IF(sample!BD236="","",sample!BD236) ->  | CU20: =IF(sample!BE236="","",sample!BE236) ->  | CV20: =IF(sample!BF236="","",sample!BF236) ->  | CW20: =IF(sample!BG236="","",sample!BG236) ->  | CX20: =IF(sample!BH236="","",sample!BH236) ->  | CY20: =IF(sample!BI236="","",sample!BI236) ->  | CZ20: =IF(sample!BJ236="","",sample!BJ236) ->  | DA20: =IF(sample!BK236="","",sample!BK236) ->  | DB20: =IF(sample!BL236="","",sample!BL236) ->  | DC20: =IF(sample!BM236="","",sample!BM236) ->  | DD20: =IF(sample!BN236="","",sample!BN236) ->  | DE20: =IF(sample!BO236="","",sample!BO236) ->  | DF20: =IF(sample!BP236="","",sample!BP236) ->  | DG20: =IF(sample!BQ236="","",sample!BQ236) ->  | DH20: =IF(sample!BR236="","",sample!BR236) ->  | DI20: =IF(sample!BS236="","",sample!BS236) ->  | DJ20: =IF(sample!BT236="","",sample!BT236) ->  | DK20: =IF(sample!BU236="","",sample!BU236) ->  | DL20: =IF(sample!BV236="","",sample!BV236) ->  | DM20: =IF(sample!BW236="","",sample!BW236) -> 
A22: =sample!K97 -> 0 | B22: CG808 | C22: N/A | D22: 0 | E22: =HLOOKUP($Q$2,sample!$BN$2:$DM$105,96,FALSE) ->  | F22: =sample!L97 ->  | G22: =sample!M97 ->  | H22: =sample!N97 ->  | I22: =sample!O97 ->  | J22: =sample!P97 ->  | K22: =sample!Q97 ->  | L22: =sample!R97 ->  | M22: =sample!S97 ->  | N22: =sample!T97 ->  | O22: =sample!U97 ->  | P22: =sample!V97 ->  | Q22: =sample!W97 ->  | R22: =sample!X97 ->  | S22: =sample!Y97 ->  | T22: =sample!Z97 ->  | U22: =sample!AA97 ->  | V22: =sample!AB97 ->  | W22: =sample!AC97 ->  | X22: =sample!AD97 ->  | Y22: =sample!AE97 ->  | Z22: =sample!AF97 ->  | AA22: =sample!AG97 ->  | AB22: =sample!AH97 ->  | AC22: =sample!AI97 ->  | AD22: =sample!AJ97 ->  | AE22: =sample!AK97 ->  | AF22: =sample!AL97 ->  | AG22: =sample!AM97 ->  | AH22: =sample!AN97 ->  | AI22: =sample!AO97 ->  | AJ22: =sample!AP97 ->  | AK22: =sample!AQ97 ->  | AL22: =sample!AR97 ->  | AM22: =sample!AS97 ->  | AN22: =sample!AT97 ->  | AO22: =sample!AU97 ->  | AP22: =sample!AV97 ->  | AQ22: =sample!AW97 ->  | AR22: =sample!AX97 ->  | AS22: =sample!AY97 ->  | AT22: =sample!AZ97 ->  | AU22: =sample!BA97 ->  | AV22: =sample!BB97 ->  | AW22: =sample!BC97 ->  | AX22: =sample!BD97 ->  | AY22: =sample!BE97 ->  | AZ22: =sample!BF97 ->  | BA22: =sample!BG97 ->  | BB22: =sample!BH97 ->  | BC22: =sample!BI97 ->  | BD22: =sample!BJ97 ->  | BE22: =sample!BK97 ->  | BN22: =IF(sample!X237="","",sample!X237) ->  | BO22: =IF(sample!Y237="","",sample!Y237) ->  | BP22: =IF(sample!Z237="","",sample!Z237) ->  | BQ22: =IF(sample!AA237="","",sample!AA237) ->  | BR22: =IF(sample!AB237="","",sample!AB237) ->  | BS22: =IF(sample!AC237="","",sample!AC237) ->  | BT22: =IF(sample!AD237="","",sample!AD237) ->  | BU22: =IF(sample!AE237="","",sample!AE237) ->  | BV22: =IF(sample!AF237="","",sample!AF237) ->  | BW22: =IF(sample!AG237="","",sample!AG237) ->  | BX22: =IF(sample!AH237="","",sample!AH237) ->  | BY22: =IF(sample!AI237="","",sample!AI237) ->  | BZ22: =IF(sample!AJ237="","",sample!AJ237) ->  | CA22: =IF(sample!AK237="","",sample!AK237) ->  | CB22: =IF(sample!AL237="","",sample!AL237) ->  | CC22: =IF(sample!AM237="","",sample!AM237) ->  | CD22: =IF(sample!AN237="","",sample!AN237) ->  | CE22: =IF(sample!AO237="","",sample!AO237) ->  | CF22: =IF(sample!AP237="","",sample!AP237) ->  | CG22: =IF(sample!AQ237="","",sample!AQ237) ->  | CH22: =IF(sample!AR237="","",sample!AR237) ->  | CI22: =IF(sample!AS237="","",sample!AS237) ->  | CJ22: =IF(sample!AT237="","",sample!AT237) ->  | CK22: =IF(sample!AU237="","",sample!AU237) ->  | CL22: =IF(sample!AV237="","",sample!AV237) ->  | CM22: =IF(sample!AW237="","",sample!AW237) ->  | CN22: =IF(sample!AX237="","",sample!AX237) ->  | CO22: =IF(sample!AY237="","",sample!AY237) ->  | CP22: =IF(sample!AZ237="","",sample!AZ237) ->  | CQ22: =IF(sample!BA237="","",sample!BA237) ->  | CR22: =IF(sample!BB237="","",sample!BB237) ->  | CS22: =IF(sample!BC237="","",sample!BC237) ->  | CT22: =IF(sample!BD237="","",sample!BD237) ->  | CU22: =IF(sample!BE237="","",sample!BE237) ->  | CV22: =IF(sample!BF237="","",sample!BF237) ->  | CW22: =IF(sample!BG237="","",sample!BG237) ->  | CX22: =IF(sample!BH237="","",sample!BH237) ->  | CY22: =IF(sample!BI237="","",sample!BI237) ->  | CZ22: =IF(sample!BJ237="","",sample!BJ237) ->  | DA22: =IF(sample!BK237="","",sample!BK237) ->  | DB22: =IF(sample!BL237="","",sample!BL237) ->  | DC22: =IF(sample!BM237="","",sample!BM237) ->  | DD22: =IF(sample!BN237="","",sample!BN237) ->  | DE22: =IF(sample!BO237="","",sample!BO237) ->  | DF22: =IF(sample!BP237="","",sample!BP237) ->  | DG22: =IF(sample!BQ237="","",sample!BQ237) ->  | DH22: =IF(sample!BR237="","",sample!BR237) ->  | DI22: =IF(sample!BS237="","",sample!BS237) ->  | DJ22: =IF(sample!BT237="","",sample!BT237) ->  | DK22: =IF(sample!BU237="","",sample!BU237) ->  | DL22: =IF(sample!BV237="","",sample!BV237) ->  | DM22: =IF(sample!BW237="","",sample!BW237) -> 
A24: =sample!K98 -> 0 | B24: CG809 | C24: N/A | D24: 0 | E24: =HLOOKUP($Q$2,sample!$BN$2:$DM$105,97,FALSE) ->  | F24: =sample!L98 ->  | G24: =sample!M98 ->  | H24: =sample!N98 ->  | I24: =sample!O98 ->  | J24: =sample!P98 ->  | K24: =sample!Q98 ->  | L24: =sample!R98 ->  | M24: =sample!S98 ->  | N24: =sample!T98 ->  | O24: =sample!U98 ->  | P24: =sample!V98 ->  | Q24: =sample!W98 ->  | R24: =sample!X98 ->  | S24: =sample!Y98 ->  | T24: =sample!Z98 ->  | U24: =sample!AA98 ->  | V24: =sample!AB98 ->  | W24: =sample!AC98 ->  | X24: =sample!AD98 ->  | Y24: =sample!AE98 ->  | Z24: =sample!AF98 ->  | AA24: =sample!AG98 ->  | AB24: =sample!AH98 ->  | AC24: =sample!AI98 ->  | AD24: =sample!AJ98 ->  | AE24: =sample!AK98 ->  | AF24: =sample!AL98 ->  | AG24: =sample!AM98 ->  | AH24: =sample!AN98 ->  | AI24: =sample!AO98 ->  | AJ24: =sample!AP98 ->  | AK24: =sample!AQ98 ->  | AL24: =sample!AR98 ->  | AM24: =sample!AS98 ->  | AN24: =sample!AT98 ->  | AO24: =sample!AU98 ->  | AP24: =sample!AV98 ->  | AQ24: =sample!AW98 ->  | AR24: =sample!AX98 ->  | AS24: =sample!AY98 ->  | AT24: =sample!AZ98 ->  | AU24: =sample!BA98 ->  | AV24: =sample!BB98 ->  | AW24: =sample!BC98 ->  | AX24: =sample!BD98 ->  | AY24: =sample!BE98 ->  | AZ24: =sample!BF98 ->  | BA24: =sample!BG98 ->  | BB24: =sample!BH98 ->  | BC24: =sample!BI98 ->  | BD24: =sample!BJ98 ->  | BE24: =sample!BK98 ->  | BN24: =IF(sample!X238="","",sample!X238) ->  | BO24: =IF(sample!Y238="","",sample!Y238) ->  | BP24: =IF(sample!Z238="","",sample!Z238) ->  | BQ24: =IF(sample!AA238="","",sample!AA238) ->  | BR24: =IF(sample!AB238="","",sample!AB238) ->  | BS24: =IF(sample!AC238="","",sample!AC238) ->  | BT24: =IF(sample!AD238="","",sample!AD238) ->  | BU24: =IF(sample!AE238="","",sample!AE238) ->  | BV24: =IF(sample!AF238="","",sample!AF238) ->  | BW24: =IF(sample!AG238="","",sample!AG238) ->  | BX24: =IF(sample!AH238="","",sample!AH238) ->  | BY24: =IF(sample!AI238="","",sample!AI238) ->  | BZ24: =IF(sample!AJ238="","",sample!AJ238) ->  | CA24: =IF(sample!AK238="","",sample!AK238) ->  | CB24: =IF(sample!AL238="","",sample!AL238) ->  | CC24: =IF(sample!AM238="","",sample!AM238) ->  | CD24: =IF(sample!AN238="","",sample!AN238) ->  | CE24: =IF(sample!AO238="","",sample!AO238) ->  | CF24: =IF(sample!AP238="","",sample!AP238) ->  | CG24: =IF(sample!AQ238="","",sample!AQ238) ->  | CH24: =IF(sample!AR238="","",sample!AR238) ->  | CI24: =IF(sample!AS238="","",sample!AS238) ->  | CJ24: =IF(sample!AT238="","",sample!AT238) ->  | CK24: =IF(sample!AU238="","",sample!AU238) ->  | CL24: =IF(sample!AV238="","",sample!AV238) ->  | CM24: =IF(sample!AW238="","",sample!AW238) ->  | CN24: =IF(sample!AX238="","",sample!AX238) ->  | CO24: =IF(sample!AY238="","",sample!AY238) ->  | CP24: =IF(sample!AZ238="","",sample!AZ238) ->  | CQ24: =IF(sample!BA238="","",sample!BA238) ->  | CR24: =IF(sample!BB238="","",sample!BB238) ->  | CS24: =IF(sample!BC238="","",sample!BC238) ->  | CT24: =IF(sample!BD238="","",sample!BD238) ->  | CU24: =IF(sample!BE238="","",sample!BE238) ->  | CV24: =IF(sample!BF238="","",sample!BF238) ->  | CW24: =IF(sample!BG238="","",sample!BG238) ->  | CX24: =IF(sample!BH238="","",sample!BH238) ->  | CY24: =IF(sample!BI238="","",sample!BI238) ->  | CZ24: =IF(sample!BJ238="","",sample!BJ238) ->  | DA24: =IF(sample!BK238="","",sample!BK238) ->  | DB24: =IF(sample!BL238="","",sample!BL238) ->  | DC24: =IF(sample!BM238="","",sample!BM238) ->  | DD24: =IF(sample!BN238="","",sample!BN238) ->  | DE24: =IF(sample!BO238="","",sample!BO238) ->  | DF24: =IF(sample!BP238="","",sample!BP238) ->  | DG24: =IF(sample!BQ238="","",sample!BQ238) ->  | DH24: =IF(sample!BR238="","",sample!BR238) ->  | DI24: =IF(sample!BS238="","",sample!BS238) ->  | DJ24: =IF(sample!BT238="","",sample!BT238) ->  | DK24: =IF(sample!BU238="","",sample!BU238) ->  | DL24: =IF(sample!BV238="","",sample!BV238) ->  | DM24: =IF(sample!BW238="","",sample!BW238) -> 
A26: =sample!K99 -> 0 | B26: CG810 | C26: N/A | D26: 0 | E26: =HLOOKUP($Q$2,sample!$BN$2:$DM$105,98,FALSE) ->  | F26: =sample!L99 ->  | G26: =sample!M99 ->  | H26: =sample!N99 ->  | I26: =sample!O99 ->  | J26: =sample!P99 ->  | K26: =sample!Q99 ->  | L26: =sample!R99 ->  | M26: =sample!S99 ->  | N26: =sample!T99 ->  | O26: =sample!U99 ->  | P26: =sample!V99 ->  | Q26: =sample!W99 ->  | R26: =sample!X99 ->  | S26: =sample!Y99 ->  | T26: =sample!Z99 ->  | U26: =sample!AA99 ->  | V26: =sample!AB99 ->  | W26: =sample!AC99 ->  | X26: =sample!AD99 ->  | Y26: =sample!AE99 ->  | Z26: =sample!AF99 ->  | AA26: =sample!AG99 ->  | AB26: =sample!AH99 ->  | AC26: =sample!AI99 ->  | AD26: =sample!AJ99 ->  | AE26: =sample!AK99 ->  | AF26: =sample!AL99 ->  | AG26: =sample!AM99 ->  | AH26: =sample!AN99 ->  | AI26: =sample!AO99 ->  | AJ26: =sample!AP99 ->  | AK26: =sample!AQ99 ->  | AL26: =sample!AR99 ->  | AM26: =sample!AS99 ->  | AN26: =sample!AT99 ->  | AO26: =sample!AU99 ->  | AP26: =sample!AV99 ->  | AQ26: =sample!AW99 ->  | AR26: =sample!AX99 ->  | AS26: =sample!AY99 ->  | AT26: =sample!AZ99 ->  | AU26: =sample!BA99 ->  | AV26: =sample!BB99 ->  | AW26: =sample!BC99 ->  | AX26: =sample!BD99 ->  | AY26: =sample!BE99 ->  | AZ26: =sample!BF99 ->  | BA26: =sample!BG99 ->  | BB26: =sample!BH99 ->  | BC26: =sample!BI99 ->  | BD26: =sample!BJ99 ->  | BE26: =sample!BK99 ->  | BN26: =IF(sample!X239="","",sample!X239) ->  | BO26: =IF(sample!Y239="","",sample!Y239) ->  | BP26: =IF(sample!Z239="","",sample!Z239) ->  | BQ26: =IF(sample!AA239="","",sample!AA239) ->  | BR26: =IF(sample!AB239="","",sample!AB239) ->  | BS26: =IF(sample!AC239="","",sample!AC239) ->  | BT26: =IF(sample!AD239="","",sample!AD239) ->  | BU26: =IF(sample!AE239="","",sample!AE239) ->  | BV26: =IF(sample!AF239="","",sample!AF239) ->  | BW26: =IF(sample!AG239="","",sample!AG239) ->  | BX26: =IF(sample!AH239="","",sample!AH239) ->  | BY26: =IF(sample!AI239="","",sample!AI239) ->  | BZ26: =IF(sample!AJ239="","",sample!AJ239) ->  | CA26: =IF(sample!AK239="","",sample!AK239) ->  | CB26: =IF(sample!AL239="","",sample!AL239) ->  | CC26: =IF(sample!AM239="","",sample!AM239) ->  | CD26: =IF(sample!AN239="","",sample!AN239) ->  | CE26: =IF(sample!AO239="","",sample!AO239) ->  | CF26: =IF(sample!AP239="","",sample!AP239) ->  | CG26: =IF(sample!AQ239="","",sample!AQ239) ->  | CH26: =IF(sample!AR239="","",sample!AR239) ->  | CI26: =IF(sample!AS239="","",sample!AS239) ->  | CJ26: =IF(sample!AT239="","",sample!AT239) ->  | CK26: =IF(sample!AU239="","",sample!AU239) ->  | CL26: =IF(sample!AV239="","",sample!AV239) ->  | CM26: =IF(sample!AW239="","",sample!AW239) ->  | CN26: =IF(sample!AX239="","",sample!AX239) ->  | CO26: =IF(sample!AY239="","",sample!AY239) ->  | CP26: =IF(sample!AZ239="","",sample!AZ239) ->  | CQ26: =IF(sample!BA239="","",sample!BA239) ->  | CR26: =IF(sample!BB239="","",sample!BB239) ->  | CS26: =IF(sample!BC239="","",sample!BC239) ->  | CT26: =IF(sample!BD239="","",sample!BD239) ->  | CU26: =IF(sample!BE239="","",sample!BE239) ->  | CV26: =IF(sample!BF239="","",sample!BF239) ->  | CW26: =IF(sample!BG239="","",sample!BG239) ->  | CX26: =IF(sample!BH239="","",sample!BH239) ->  | CY26: =IF(sample!BI239="","",sample!BI239) ->  | CZ26: =IF(sample!BJ239="","",sample!BJ239) ->  | DA26: =IF(sample!BK239="","",sample!BK239) ->  | DB26: =IF(sample!BL239="","",sample!BL239) ->  | DC26: =IF(sample!BM239="","",sample!BM239) ->  | DD26: =IF(sample!BN239="","",sample!BN239) ->  | DE26: =IF(sample!BO239="","",sample!BO239) ->  | DF26: =IF(sample!BP239="","",sample!BP239) ->  | DG26: =IF(sample!BQ239="","",sample!BQ239) ->  | DH26: =IF(sample!BR239="","",sample!BR239) ->  | DI26: =IF(sample!BS239="","",sample!BS239) ->  | DJ26: =IF(sample!BT239="","",sample!BT239) ->  | DK26: =IF(sample!BU239="","",sample!BU239) ->  | DL26: =IF(sample!BV239="","",sample!BV239) ->  | DM26: =IF(sample!BW239="","",sample!BW239) -> 
A28: =sample!K100 -> 0 | B28: CG811 | C28: N/A | D28: 0 | E28: =HLOOKUP($Q$2,sample!$BN$2:$DM$105,99,FALSE) ->  | F28: =sample!L100 ->  | G28: =sample!M100 ->  | H28: =sample!N100 ->  | I28: =sample!O100 ->  | J28: =sample!P100 ->  | K28: =sample!Q100 ->  | L28: =sample!R100 ->  | M28: =sample!S100 ->  | N28: =sample!T100 ->  | O28: =sample!U100 ->  | P28: =sample!V100 ->  | Q28: =sample!W100 ->  | R28: =sample!X100 ->  | S28: =sample!Y100 ->  | T28: =sample!Z100 ->  | U28: =sample!AA100 ->  | V28: =sample!AB100 ->  | W28: =sample!AC100 ->  | X28: =sample!AD100 ->  | Y28: =sample!AE100 ->  | Z28: =sample!AF100 ->  | AA28: =sample!AG100 ->  | AB28: =sample!AH100 ->  | AC28: =sample!AI100 ->  | AD28: =sample!AJ100 ->  | AE28: =sample!AK100 ->  | AF28: =sample!AL100 ->  | AG28: =sample!AM100 ->  | AH28: =sample!AN100 ->  | AI28: =sample!AO100 ->  | AJ28: =sample!AP100 ->  | AK28: =sample!AQ100 ->  | AL28: =sample!AR100 ->  | AM28: =sample!AS100 ->  | AN28: =sample!AT100 ->  | AO28: =sample!AU100 ->  | AP28: =sample!AV100 ->  | AQ28: =sample!AW100 ->  | AR28: =sample!AX100 ->  | AS28: =sample!AY100 ->  | AT28: =sample!AZ100 ->  | AU28: =sample!BA100 ->  | AV28: =sample!BB100 ->  | AW28: =sample!BC100 ->  | AX28: =sample!BD100 ->  | AY28: =sample!BE100 ->  | AZ28: =sample!BF100 ->  | BA28: =sample!BG100 ->  | BB28: =sample!BH100 ->  | BC28: =sample!BI100 ->  | BD28: =sample!BJ100 ->  | BE28: =sample!BK100 ->  | BN28: =IF(sample!X240="","",sample!X240) ->  | BO28: =IF(sample!Y240="","",sample!Y240) ->  | BP28: =IF(sample!Z240="","",sample!Z240) ->  | BQ28: =IF(sample!AA240="","",sample!AA240) ->  | BR28: =IF(sample!AB240="","",sample!AB240) ->  | BS28: =IF(sample!AC240="","",sample!AC240) ->  | BT28: =IF(sample!AD240="","",sample!AD240) ->  | BU28: =IF(sample!AE240="","",sample!AE240) ->  | BV28: =IF(sample!AF240="","",sample!AF240) ->  | BW28: =IF(sample!AG240="","",sample!AG240) ->  | BX28: =IF(sample!AH240="","",sample!AH240) ->  | BY28: =IF(sample!AI240="","",sample!AI240) ->  | BZ28: =IF(sample!AJ240="","",sample!AJ240) ->  | CA28: =IF(sample!AK240="","",sample!AK240) ->  | CB28: =IF(sample!AL240="","",sample!AL240) ->  | CC28: =IF(sample!AM240="","",sample!AM240) ->  | CD28: =IF(sample!AN240="","",sample!AN240) ->  | CE28: =IF(sample!AO240="","",sample!AO240) ->  | CF28: =IF(sample!AP240="","",sample!AP240) ->  | CG28: =IF(sample!AQ240="","",sample!AQ240) ->  | CH28: =IF(sample!AR240="","",sample!AR240) ->  | CI28: =IF(sample!AS240="","",sample!AS240) ->  | CJ28: =IF(sample!AT240="","",sample!AT240) ->  | CK28: =IF(sample!AU240="","",sample!AU240) ->  | CL28: =IF(sample!AV240="","",sample!AV240) ->  | CM28: =IF(sample!AW240="","",sample!AW240) ->  | CN28: =IF(sample!AX240="","",sample!AX240) ->  | CO28: =IF(sample!AY240="","",sample!AY240) ->  | CP28: =IF(sample!AZ240="","",sample!AZ240) ->  | CQ28: =IF(sample!BA240="","",sample!BA240) ->  | CR28: =IF(sample!BB240="","",sample!BB240) ->  | CS28: =IF(sample!BC240="","",sample!BC240) ->  | CT28: =IF(sample!BD240="","",sample!BD240) ->  | CU28: =IF(sample!BE240="","",sample!BE240) ->  | CV28: =IF(sample!BF240="","",sample!BF240) ->  | CW28: =IF(sample!BG240="","",sample!BG240) ->  | CX28: =IF(sample!BH240="","",sample!BH240) ->  | CY28: =IF(sample!BI240="","",sample!BI240) ->  | CZ28: =IF(sample!BJ240="","",sample!BJ240) ->  | DA28: =IF(sample!BK240="","",sample!BK240) ->  | DB28: =IF(sample!BL240="","",sample!BL240) ->  | DC28: =IF(sample!BM240="","",sample!BM240) ->  | DD28: =IF(sample!BN240="","",sample!BN240) ->  | DE28: =IF(sample!BO240="","",sample!BO240) ->  | DF28: =IF(sample!BP240="","",sample!BP240) ->  | DG28: =IF(sample!BQ240="","",sample!BQ240) ->  | DH28: =IF(sample!BR240="","",sample!BR240) ->  | DI28: =IF(sample!BS240="","",sample!BS240) ->  | DJ28: =IF(sample!BT240="","",sample!BT240) ->  | DK28: =IF(sample!BU240="","",sample!BU240) ->  | DL28: =IF(sample!BV240="","",sample!BV240) ->  | DM28: =IF(sample!BW240="","",sample!BW240) -> 
A30: =sample!K101 -> 0 | B30: CG812 | C30: N/A | D30: 0 | E30: =HLOOKUP($Q$2,sample!$BN$2:$DM$105,100,FALSE) ->  | F30: =sample!L101 ->  | G30: =sample!M101 ->  | H30: =sample!N101 ->  | I30: =sample!O101 ->  | J30: =sample!P101 ->  | K30: =sample!Q101 ->  | L30: =sample!R101 ->  | M30: =sample!S101 ->  | N30: =sample!T101 ->  | O30: =sample!U101 ->  | P30: =sample!V101 ->  | Q30: =sample!W101 ->  | R30: =sample!X101 ->  | S30: =sample!Y101 ->  | T30: =sample!Z101 ->  | U30: =sample!AA101 ->  | V30: =sample!AB101 ->  | W30: =sample!AC101 ->  | X30: =sample!AD101 ->  | Y30: =sample!AE101 ->  | Z30: =sample!AF101 ->  | AA30: =sample!AG101 ->  | AB30: =sample!AH101 ->  | AC30: =sample!AI101 ->  | AD30: =sample!AJ101 ->  | AE30: =sample!AK101 ->  | AF30: =sample!AL101 ->  | AG30: =sample!AM101 ->  | AH30: =sample!AN101 ->  | AI30: =sample!AO101 ->  | AJ30: =sample!AP101 ->  | AK30: =sample!AQ101 ->  | AL30: =sample!AR101 ->  | AM30: =sample!AS101 ->  | AN30: =sample!AT101 ->  | AO30: =sample!AU101 ->  | AP30: =sample!AV101 ->  | AQ30: =sample!AW101 ->  | AR30: =sample!AX101 ->  | AS30: =sample!AY101 ->  | AT30: =sample!AZ101 ->  | AU30: =sample!BA101 ->  | AV30: =sample!BB101 ->  | AW30: =sample!BC101 ->  | AX30: =sample!BD101 ->  | AY30: =sample!BE101 ->  | AZ30: =sample!BF101 ->  | BA30: =sample!BG101 ->  | BB30: =sample!BH101 ->  | BC30: =sample!BI101 ->  | BD30: =sample!BJ101 ->  | BE30: =sample!BK101 ->  | BN30: =IF(sample!X241="","",sample!X241) ->  | BO30: =IF(sample!Y241="","",sample!Y241) ->  | BP30: =IF(sample!Z241="","",sample!Z241) ->  | BQ30: =IF(sample!AA241="","",sample!AA241) ->  | BR30: =IF(sample!AB241="","",sample!AB241) ->  | BS30: =IF(sample!AC241="","",sample!AC241) ->  | BT30: =IF(sample!AD241="","",sample!AD241) ->  | BU30: =IF(sample!AE241="","",sample!AE241) ->  | BV30: =IF(sample!AF241="","",sample!AF241) ->  | BW30: =IF(sample!AG241="","",sample!AG241) ->  | BX30: =IF(sample!AH241="","",sample!AH241) ->  | BY30: =IF(sample!AI241="","",sample!AI241) ->  | BZ30: =IF(sample!AJ241="","",sample!AJ241) ->  | CA30: =IF(sample!AK241="","",sample!AK241) ->  | CB30: =IF(sample!AL241="","",sample!AL241) ->  | CC30: =IF(sample!AM241="","",sample!AM241) ->  | CD30: =IF(sample!AN241="","",sample!AN241) ->  | CE30: =IF(sample!AO241="","",sample!AO241) ->  | CF30: =IF(sample!AP241="","",sample!AP241) ->  | CG30: =IF(sample!AQ241="","",sample!AQ241) ->  | CH30: =IF(sample!AR241="","",sample!AR241) ->  | CI30: =IF(sample!AS241="","",sample!AS241) ->  | CJ30: =IF(sample!AT241="","",sample!AT241) ->  | CK30: =IF(sample!AU241="","",sample!AU241) ->  | CL30: =IF(sample!AV241="","",sample!AV241) ->  | CM30: =IF(sample!AW241="","",sample!AW241) ->  | CN30: =IF(sample!AX241="","",sample!AX241) ->  | CO30: =IF(sample!AY241="","",sample!AY241) ->  | CP30: =IF(sample!AZ241="","",sample!AZ241) ->  | CQ30: =IF(sample!BA241="","",sample!BA241) ->  | CR30: =IF(sample!BB241="","",sample!BB241) ->  | CS30: =IF(sample!BC241="","",sample!BC241) ->  | CT30: =IF(sample!BD241="","",sample!BD241) ->  | CU30: =IF(sample!BE241="","",sample!BE241) ->  | CV30: =IF(sample!BF241="","",sample!BF241) ->  | CW30: =IF(sample!BG241="","",sample!BG241) ->  | CX30: =IF(sample!BH241="","",sample!BH241) ->  | CY30: =IF(sample!BI241="","",sample!BI241) ->  | CZ30: =IF(sample!BJ241="","",sample!BJ241) ->  | DA30: =IF(sample!BK241="","",sample!BK241) ->  | DB30: =IF(sample!BL241="","",sample!BL241) ->  | DC30: =IF(sample!BM241="","",sample!BM241) ->  | DD30: =IF(sample!BN241="","",sample!BN241) ->  | DE30: =IF(sample!BO241="","",sample!BO241) ->  | DF30: =IF(sample!BP241="","",sample!BP241) ->  | DG30: =IF(sample!BQ241="","",sample!BQ241) ->  | DH30: =IF(sample!BR241="","",sample!BR241) ->  | DI30: =IF(sample!BS241="","",sample!BS241) ->  | DJ30: =IF(sample!BT241="","",sample!BT241) ->  | DK30: =IF(sample!BU241="","",sample!BU241) ->  | DL30: =IF(sample!BV241="","",sample!BV241) ->  | DM30: =IF(sample!BW241="","",sample!BW241) -> 
A32: =sample!K102 -> 0 | B32: CG813 | C32: N/A | D32: 0 | E32: =HLOOKUP($Q$2,sample!$BN$2:$DM$105,101,FALSE) ->  | F32: =sample!L102 ->  | G32: =sample!M102 ->  | H32: =sample!N102 ->  | I32: =sample!O102 ->  | J32: =sample!P102 ->  | K32: =sample!Q102 ->  | L32: =sample!R102 ->  | M32: =sample!S102 ->  | N32: =sample!T102 ->  | O32: =sample!U102 ->  | P32: =sample!V102 ->  | Q32: =sample!W102 ->  | R32: =sample!X102 ->  | S32: =sample!Y102 ->  | T32: =sample!Z102 ->  | U32: =sample!AA102 ->  | V32: =sample!AB102 ->  | W32: =sample!AC102 ->  | X32: =sample!AD102 ->  | Y32: =sample!AE102 ->  | Z32: =sample!AF102 ->  | AA32: =sample!AG102 ->  | AB32: =sample!AH102 ->  | AC32: =sample!AI102 ->  | AD32: =sample!AJ102 ->  | AE32: =sample!AK102 ->  | AF32: =sample!AL102 ->  | AG32: =sample!AM102 ->  | AH32: =sample!AN102 ->  | AI32: =sample!AO102 ->  | AJ32: =sample!AP102 ->  | AK32: =sample!AQ102 ->  | AL32: =sample!AR102 ->  | AM32: =sample!AS102 ->  | AN32: =sample!AT102 ->  | AO32: =sample!AU102 ->  | AP32: =sample!AV102 ->  | AQ32: =sample!AW102 ->  | AR32: =sample!AX102 ->  | AS32: =sample!AY102 ->  | AT32: =sample!AZ102 ->  | AU32: =sample!BA102 ->  | AV32: =sample!BB102 ->  | AW32: =sample!BC102 ->  | AX32: =sample!BD102 ->  | AY32: =sample!BE102 ->  | AZ32: =sample!BF102 ->  | BA32: =sample!BG102 ->  | BB32: =sample!BH102 ->  | BC32: =sample!BI102 ->  | BD32: =sample!BJ102 ->  | BE32: =sample!BK102 ->  | BN32: =IF(sample!X242="","",sample!X242) ->  | BO32: =IF(sample!Y242="","",sample!Y242) ->  | BP32: =IF(sample!Z242="","",sample!Z242) ->  | BQ32: =IF(sample!AA242="","",sample!AA242) ->  | BR32: =IF(sample!AB242="","",sample!AB242) ->  | BS32: =IF(sample!AC242="","",sample!AC242) ->  | BT32: =IF(sample!AD242="","",sample!AD242) ->  | BU32: =IF(sample!AE242="","",sample!AE242) ->  | BV32: =IF(sample!AF242="","",sample!AF242) ->  | BW32: =IF(sample!AG242="","",sample!AG242) ->  | BX32: =IF(sample!AH242="","",sample!AH242) ->  | BY32: =IF(sample!AI242="","",sample!AI242) ->  | BZ32: =IF(sample!AJ242="","",sample!AJ242) ->  | CA32: =IF(sample!AK242="","",sample!AK242) ->  | CB32: =IF(sample!AL242="","",sample!AL242) ->  | CC32: =IF(sample!AM242="","",sample!AM242) ->  | CD32: =IF(sample!AN242="","",sample!AN242) ->  | CE32: =IF(sample!AO242="","",sample!AO242) ->  | CF32: =IF(sample!AP242="","",sample!AP242) ->  | CG32: =IF(sample!AQ242="","",sample!AQ242) ->  | CH32: =IF(sample!AR242="","",sample!AR242) ->  | CI32: =IF(sample!AS242="","",sample!AS242) ->  | CJ32: =IF(sample!AT242="","",sample!AT242) ->  | CK32: =IF(sample!AU242="","",sample!AU242) ->  | CL32: =IF(sample!AV242="","",sample!AV242) ->  | CM32: =IF(sample!AW242="","",sample!AW242) ->  | CN32: =IF(sample!AX242="","",sample!AX242) ->  | CO32: =IF(sample!AY242="","",sample!AY242) ->  | CP32: =IF(sample!AZ242="","",sample!AZ242) ->  | CQ32: =IF(sample!BA242="","",sample!BA242) ->  | CR32: =IF(sample!BB242="","",sample!BB242) ->  | CS32: =IF(sample!BC242="","",sample!BC242) ->  | CT32: =IF(sample!BD242="","",sample!BD242) ->  | CU32: =IF(sample!BE242="","",sample!BE242) ->  | CV32: =IF(sample!BF242="","",sample!BF242) ->  | CW32: =IF(sample!BG242="","",sample!BG242) ->  | CX32: =IF(sample!BH242="","",sample!BH242) ->  | CY32: =IF(sample!BI242="","",sample!BI242) ->  | CZ32: =IF(sample!BJ242="","",sample!BJ242) ->  | DA32: =IF(sample!BK242="","",sample!BK242) ->  | DB32: =IF(sample!BL242="","",sample!BL242) ->  | DC32: =IF(sample!BM242="","",sample!BM242) ->  | DD32: =IF(sample!BN242="","",sample!BN242) ->  | DE32: =IF(sample!BO242="","",sample!BO242) ->  | DF32: =IF(sample!BP242="","",sample!BP242) ->  | DG32: =IF(sample!BQ242="","",sample!BQ242) ->  | DH32: =IF(sample!BR242="","",sample!BR242) ->  | DI32: =IF(sample!BS242="","",sample!BS242) ->  | DJ32: =IF(sample!BT242="","",sample!BT242) ->  | DK32: =IF(sample!BU242="","",sample!BU242) ->  | DL32: =IF(sample!BV242="","",sample!BV242) ->  | DM32: =IF(sample!BW242="","",sample!BW242) -> 
